{"text_format":"1","workbook":"xlsx","n_sheets":7,"sheets":["Notes","Players","Sheet1","Score Cards","DRAW","Half Sheet","Sheet3"],"not_rendered":{"charts":0,"images":1,"macros":1,"external_links":0,"defined_names":2,"comments":0,"pivot_tables":0},"unopened":[],"bounds":{"document_bytes":16777216,"sheet_cells":100000,"rows_first":2000,"rows_last":500,"rows_between":2000,"halvings":0,"cell_chars":16384,"cell_head_chars":4096},"cells_cut":0,"cells_raw":0,"read":"whole","date_system":"1900"}

{"sheet":"Notes","index":0,"n_rows":0,"n_cols":0,"rows_kept":0,"cut":false,"hidden":false,"merged":[]}

{"sheet":"Players","index":1,"n_rows":44,"n_cols":5,"rows_kept":44,"cut":false,"hidden":false,"merged":[]}
["Team No.","Lead","Second","Third","Skip"]
[]
[1]
[2]
[3]
[4]
[5]
[6]
[7]
[8]
[9]
[10]
[11]
[12]
[13]
[14]
[15]
[16]
[17]
[18]
[19]
[20]
[21]
[22]
[23]
[24]
[25]
[26]
[27]
[28]
[29]
[30]
[31]
[32]
[33]
[34]
[35]
[36]
[37]
[38]
[39]
[40]
[41]
[42]

{"sheet":"Sheet1","index":2,"n_rows":48,"n_cols":91,"rows_kept":48,"cut":false,"hidden":false,"merged":[[3,12,3,17],[3,57,3,62],[0,1,0,88],[3,66,3,71],[3,82,4,87],[3,21,3,26],[3,30,3,35],[3,39,3,44],[3,48,3,53],[4,75,4,81],[2,5,2,7],[4,1,4,2],[1,1,1,88],[2,20,2,25],[3,1,3,2],[2,13,2,16],[3,3,3,8]]}
[null,"Tournament Name etc. Here."]
[null,"Other heading info"]
[null,null,null,null,null,"No. of ends =",null,null,15,null,null,null,null,"Points for a Win=",null,null,null,1,null,null,"Points for Draw=",null,null,null,null,null,0.5]
[null,null,null,"ROUND 1",null,null,null,null,null,null,null,null,"ROUND 2",null,null,null,null,null,null,null,null,"ROUND 3",null,null,null,null,null,null,null,null,"ROUND 4",null,null,null,null,null,null,null,null,"ROUND 5",null,null,null,null,null,null,null,null,"ROUND 6",null,null,null,null,null,null,null,null,"ROUND 7",null,null,null,null,null,null,null,null,"ROUND 8",null,null,null,null,null,null,null,null,{"$f":"SUM(BX7:BX20)-SUM(BY7:BY20)","v":0},{"$f":"SUM(BY7:BY20)-SUM(BX7:BX20)","v":0},{"$f":"IF(MOD(SUM(BZ7:BZ20),$I$3)=0,0,MOD(SUM(BZ7:BZ20),$I$3))","v":0},{"$f":"SUM(CA7:CA20)","v":0},null,null,null,"TOTALS"]
[null,null,null,null,null,{"$f":"SUM(F7:F48)-SUM(G7:G48)","v":0},{"$f":"SUM(G7:G48)-SUM(F7:F48)","v":0},{"$f":"IF(MOD(SUM(H7:H48),$I$3)=0,0,MOD(SUM(H7:H48),$I$3))","v":0},null,null,null,null,null,null,{"$f":"SUM(O7:O48)-SUM(P7:P48)","v":0},{"$f":"SUM(P7:P48)-SUM(O7:O48)","v":0},{"$f":"IF(MOD(SUM(Q7:Q48),$I$3)=0,0,MOD(SUM(Q7:Q48),$I$3))","v":0},null,null,null,null,null,null,{"$f":"SUM(X7:X48)-SUM(Y7:Y48)","v":0},{"$f":"SUM(Y7:Y48)-SUM(X7:X48)","v":0},{"$f":"IF(MOD(SUM(Z7:Z48),$I$3)=0,0,MOD(SUM(Z7:Z48),$I$3))","v":0},null,null,null,null,null,null,{"$f":"SUM(AG7:AG48)-SUM(AH7:AH48)","v":0},{"$f":"SUM(AH7:AH48)-SUM(AG7:AG48)","v":0},{"$f":"IF(MOD(SUM(AI7:AI48),$I$3)=0,0,MOD(SUM(AI7:AI48),$I$3))","v":0},null,null,null,null,null,null,{"$f":"SUM(AP7:AP48)-SUM(AQ7:AQ48)","v":0},{"$f":"SUM(AQ7:AQ48)-SUM(AP7:AP48)","v":0},{"$f":"IF(MOD(SUM(AR7:AR48),$I$3)=0,0,MOD(SUM(AR7:AR48),$I$3))","v":0},null,null,null,null,null,null,{"$f":"SUM(AY7:AY48)-SUM(AZ7:AZ48)","v":0},{"$f":"SUM(AZ7:AZ48)-SUM(AY7:AY48)","v":0},{"$f":"IF(MOD(SUM(BA7:BA48),$I$3)=0,0,MOD(SUM(BA7:BA48),$I$3))","v":0},null,null,null,null,null,null,{"$f":"SUM(BH7:BH48)-SUM(BI7:BI48)","v":0},{"$f":"SUM(BI7:BI48)-SUM(BH7:BH48)","v":0},{"$f":"IF(MOD(SUM(BJ7:BJ48),$I$3)=0,0,MOD(SUM(BJ7:BJ48),$I$3))","v":0},null,null,null,null,null,null,{"$f":"SUM(BQ7:BQ48)-SUM(BR7:BR48)","v":0},{"$f":"SUM(BR7:BR48)-SUM(BQ7:BQ48)","v":0},{"$f":"IF(MOD(SUM(BS7:BS48),$I$3)=0,0,MOD(SUM(BS7:BS48),$I$3))","v":0},null,null,null,null,"ROUND 9",null,null,null,null,null,null,null,null,null,null,null,null,null,null,"Total"]
[null,"Team","Skips Name","V's","Rink","F","A","Ends","M'gin",null,null,"W/D/L","V's","Rink","F","A","Ends","M'gin",null,null,"W/D/L","V's","Rink","F","A","Ends","M'gin",null,null,"W/D/L","V's","Rink","F","A","Ends","M'gin",null,null,"W/D/L","V's","Rink","F","A","Ends","M'gin",null,null,"W/D/L","V's","Rink","F","A","Ends","M'gin",null,null,"W/D/L","V's","Rink","F","A","Ends","M'gin",null,null,"W/D/L","V's","Rink","F","A","Ends","M'gin",null,null,"W/D/L","F","A","Ends","M'gin",null,null,"W/D/L","Wins","M'gin",null,null,"Ends","Points","Rank",null,"Margins"]
[null,1,null,2,1,null,null,null,{"$f":"IF(L7=\"D\",\"D\",IF(L7=\"W\",J7,IF(L7=\"L\",J7,0)))","v":0},{"$f":"IF(F7+G7=0,0,IF(F7+G7>0.1,F7-G7,0))","v":0},{"$f":"IF(L7=\"W\",$R$3,IF(L7=\"D\",$AA$3,0))","v":0},{"$f":"IF(F7>G7,\"W\",IF(F7<G7,\"L\",IF(F7=0,\"\",IF(F7=G7,\"D\",0))))","v":""},3,13,null,null,null,{"$f":"IF(U7=\"D\",\"D\",IF(U7=\"W\",S7,IF(U7=\"L\",S7,0)))","v":0},{"$f":"IF(O7+P7=0,0,IF(O7+P7>0.1,O7-P7,0))","v":0},{"$f":"IF(U7=\"W\",$R$3,IF(U7=\"D\",$AA$3,0))","v":0},{"$f":"IF(O7>P7,\"W\",IF(O7<P7,\"L\",IF(O7=0,\"\",IF(O7=P7,\"D\",0))))","v":""},5,19,null,null,null,{"$f":"IF(AD7=\"D\",\"D\",IF(AD7=\"W\",AB7,IF(AD7=\"L\",AB7,0)))","v":0},{"$f":"IF(X7+Y7=0,0,IF(X7+Y7>0.1,X7-Y7,0))","v":0},{"$f":"IF(AD7=\"W\",$R$3,IF(AD7=\"D\",$AA$3,0))","v":0},{"$f":"IF(X7>Y7,\"W\",IF(X7<Y7,\"L\",IF(X7=0,\"\",IF(X7=Y7,\"D\",0))))","v":""},7,2,null,null,null,{"$f":"IF(AM7=\"D\",\"D\",IF(AM7=\"W\",AK7,IF(AM7=\"L\",AK7,0)))","v":0},{"$f":"IF(AG7+AH7=0,0,IF(AG7+AH7>0.1,AG7-AH7,0))","v":0},{"$f":"IF(AM7=\"W\",$R$3,IF(AM7=\"D\",$AA$3,0))","v":0},{"$f":"IF(AG7>AH7,\"W\",IF(AG7<AH7,\"L\",IF(AG7=0,\"\",IF(AG7=AH7,\"D\",0))))","v":""},14,14,null,null,null,{"$f":"IF(AV7=\"D\",\"D\",IF(AV7=\"W\",AT7,IF(AV7=\"L\",AT7,0)))","v":0},{"$f":"IF(AP7+AQ7=0,0,IF(AP7+AQ7>0.1,AP7-AQ7,0))","v":0},{"$f":"IF(AV7=\"W\",$R$3,IF(AV7=\"D\",$AA$3,0))","v":0},{"$f":"IF(AP7>AQ7,\"W\",IF(AP7<AQ7,\"L\",IF(AP7=0,\"\",IF(AP7=AQ7,\"D\",0))))","v":""},12,17,null,null,null,{"$f":"IF(BE7=\"D\",\"D\",IF(BE7=\"W\",BC7,IF(BE7=\"L\",BC7,0)))","v":0},{"$f":"IF(AY7+AZ7=0,0,IF(AY7+AZ7>0.1,AY7-AZ7,0))","v":0},{"$f":"IF(BE7=\"W\",$R$3,IF(BE7=\"D\",$AA$3,0))","v":0},{"$f":"IF(AY7>AZ7,\"W\",IF(AY7<AZ7,\"L\",IF(AY7=0,\"\",IF(AY7=AZ7,\"D\",0))))","v":""},13,5,null,null,null,{"$f":"IF(BN7=\"D\",\"D\",IF(BN7=\"W\",BL7,IF(BN7=\"L\",BL7,0)))","v":0},{"$f":"IF(BH7+BI7=0,0,IF(BH7+BI7>0.1,BH7-BI7,0))","v":0},{"$f":"IF(BN7=\"W\",$R$3,IF(BN7=\"D\",$AA$3,0))","v":0},{"$f":"IF(BH7>BI7,\"W\",IF(BH7<BI7,\"L\",IF(BH7=0,\"\",IF(BH7=BI7,\"D\",0))))","v":""},8,8,null,null,null,{"$f":"IF(BW7=\"D\",\"D\",IF(BW7=\"W\",BU7,IF(BW7=\"L\",BU7,0)))","v":0},{"$f":"IF(BQ7+BR7=0,0,IF(BQ7+BR7>0.1,BQ7-BR7,0))","v":0},{"$f":"IF(BW7=\"W\",$R$3,IF(BW7=\"D\",$AA$3,0))","v":0},{"$f":"IF(BQ7>BR7,\"W\",IF(BQ7<BR7,\"L\",IF(BQ7=0,\"\",IF(BQ7=BR7,\"D\",0))))","v":""},null,null,null,{"$f":"IF(CD7=\"D\",\"D\",IF(CD7=\"W\",CB7,IF(CD7=\"L\",CB7,0)))","v":0},{"$f":"IF(BX7+BY7=0,0,IF(BX7+BY7>0.1,BX7-BY7,0))","v":0},{"$f":"IF(CD7=\"W\",1,IF(CD7=\"D\",0.5,0))","v":0},{"$f":"IF(BX7>BY7,\"W\",IF(BX7<BY7,\"L\",IF(BX7=0,\"\",IF(BX7=BY7,\"D\",0))))","v":""},{"$f":"K7+T7+AC7+AL7+AU7+BD7+BM7+BV7+CC7","v":0},{"$f":"F7-G7+O7-P7+X7-Y7+AG7-AH7+AP7-AQ7+AY7-AZ7+BH7-BI7+BQ7-BR7","v":0},{"$f":"(CE7*1000000)+(CF7*100)+CI7","v":0},{"$f":"(CF7*10000)+(CF7*1000)+CI7","v":0},{"$f":"H7+Q7+Z7+AI7+AR7+BA7+BJ7+BS7+BZ7","v":0},{"$f":"(CE7*$R$3)+CI7","v":0},{"$f":"IF($CG$7:$CG$48=0,\"\",RANK(CG7,$CG$7:$CG$48))","v":""},null,{"$f":"J7+S7+AB7+AK7+AT7+BC7+BL7+BU7+CB7","v":0}]
[null,2,null,1,1,null,null,null,0,0,0,"",4,12,null,null,null,0,0,0,"",8,16,null,null,null,0,0,0,"",12,5,null,null,null,0,0,0,"",13,8,null,null,null,0,0,0,"",14,18,null,null,null,0,0,0,"",9,2,null,null,null,0,0,0,"",5,9,null,null,null,0,0,0,"",null,null,null,0,0,0,"",0,0,0,0,0,0,"",null,0]
[null,3,null,14,2,null,null,null,0,0,0,"",1,13,null,null,null,0,0,0,"",7,15,null,null,null,0,0,0,"",11,4,null,null,null,0,0,0,"",12,10,null,null,null,0,0,0,"",13,16,null,null,null,0,0,0,"",10,1,null,null,null,0,0,0,"",4,11,null,null,null,0,0,0,"",null,null,null,0,0,0,"",0,0,0,0,0,0,"",null,0]
[null,4,null,13,3,null,null,null,0,0,0,"",2,12,null,null,null,0,0,0,"",6,18,null,null,null,0,0,0,"",10,7,null,null,null,0,0,0,"",11,9,null,null,null,0,0,0,"",8,20,null,null,null,0,0,0,"",12,7,null,null,null,0,0,0,"",3,11,null,null,null,0,0,0,"",null,null,null,0,0,0,"",0,0,0,0,0,0,"",null,0]
[null,5,null,12,4,null,null,null,0,0,0,"",14,8,null,null,null,0,0,0,"",1,19,null,null,null,0,0,0,"",9,3,null,null,null,0,0,0,"",10,12,null,null,null,0,0,0,"",11,15,null,null,null,0,0,0,"",8,6,null,null,null,0,0,0,"",2,9,null,null,null,0,0,0,"",null,null,null,0,0,0,"",0,0,0,0,0,0,"",null,0]
[null,6,null,11,5,null,null,null,0,0,0,"",13,14,null,null,null,0,0,0,"",4,18,null,null,null,0,0,0,"",8,1,null,null,null,0,0,0,"",9,13,null,null,null,0,0,0,"",10,19,null,null,null,0,0,0,"",7,4,null,null,null,0,0,0,"",14,14,null,null,null,0,0,0,"",null,null,null,0,0,0,"",0,0,0,0,0,0,"",null,0]
[null,7,null,10,6,null,null,null,0,0,0,"",12,9,null,null,null,0,0,0,"",3,15,null,null,null,0,0,0,"",1,2,null,null,null,0,0,0,"",8,11,null,null,null,0,0,0,"",9,21,null,null,null,0,0,0,"",6,4,null,null,null,0,0,0,"",13,10,null,null,null,0,0,0,"",null,null,null,0,0,0,"",0,0,0,0,0,0,"",null,0]
[null,8,null,9,7,null,null,null,0,0,0,"",11,10,null,null,null,0,0,0,"",2,16,null,null,null,0,0,0,"",6,1,null,null,null,0,0,0,"",7,11,null,null,null,0,0,0,"",4,20,null,null,null,0,0,0,"",5,6,null,null,null,0,0,0,"",1,8,null,null,null,0,0,0,"",null,null,null,0,0,0,"",0,0,0,0,0,0,"",null,0]
[null,9,null,8,7,null,null,null,0,0,0,"",10,11,null,null,null,0,0,0,"",14,17,null,null,null,0,0,0,"",5,3,null,null,null,0,0,0,"",6,13,null,null,null,0,0,0,"",7,21,null,null,null,0,0,0,"",2,2,null,null,null,0,0,0,"",11,12,null,null,null,0,0,0,"",null,null,null,0,0,0,"",0,0,0,0,0,0,"",null,0]
[null,10,null,7,6,null,null,null,0,0,0,"",9,11,null,null,null,0,0,0,"",13,20,null,null,null,0,0,0,"",4,7,null,null,null,0,0,0,"",5,12,null,null,null,0,0,0,"",6,19,null,null,null,0,0,0,"",3,1,null,null,null,0,0,0,"",12,13,null,null,null,0,0,0,"",null,null,null,0,0,0,"",0,0,0,0,0,0,"",null,0]
[null,11,null,6,5,null,null,null,0,0,0,"",8,10,null,null,null,0,0,0,"",12,21,null,null,null,0,0,0,"",3,4,null,null,null,0,0,0,"",4,9,null,null,null,0,0,0,"",5,15,null,null,null,0,0,0,"",14,3,null,null,null,0,0,0,"",9,12,null,null,null,0,0,0,"",null,null,null,0,0,0,"",0,0,0,0,0,0,"",null,0]
[null,12,null,5,4,null,null,null,0,0,0,"",7,9,null,null,null,0,0,0,"",11,21,null,null,null,0,0,0,"",2,5,null,null,null,0,0,0,"",3,10,null,null,null,0,0,0,"",1,17,null,null,null,0,0,0,"",4,7,null,null,null,0,0,0,"",10,13,null,null,null,0,0,0,"",null,null,null,0,0,0,"",0,0,0,0,0,0,"",null,0]
[null,13,null,4,3,null,null,null,0,0,0,"",6,14,null,null,null,0,0,0,"",10,20,null,null,null,0,0,0,"",14,6,null,null,null,0,0,0,"",2,8,null,null,null,0,0,0,"",3,16,null,null,null,0,0,0,"",1,5,null,null,null,0,0,0,"",7,10,null,null,null,0,0,0,"",null,null,null,0,0,0,"",0,0,0,0,0,0,"",null,0]
[null,14,null,3,2,null,null,null,0,0,0,"",5,8,null,null,null,0,0,0,"",9,17,null,null,null,0,0,0,"",13,6,null,null,null,0,0,0,"",1,14,null,null,null,0,0,0,"",2,18,null,null,null,0,0,0,"",11,3,null,null,null,0,0,0,"",6,14,null,null,null,0,0,0,"",null,null,null,0,0,0,"",0,0,0,0,0,0,"",null,0]
[null,15,null,16,8,null,null,null,0,0,0,"",17,20,null,null,null,0,0,0,"",19,5,null,null,null,0,0,0,"",21,9,null,null,null,0,0,0,"",28,21,null,null,null,0,0,0,"",26,3,null,null,null,0,0,0,"",27,12,null,null,null,0,0,0,"",22,15,null,null,null,0,0,0,"",null,null,null,0,0,0,"",0,0,0,0,0,0,""]
[null,16,null,15,8,null,null,null,0,0,0,"",18,19,null,null,null,0,0,0,"",22,2,null,null,null,0,0,0,"",26,12,null,null,null,0,0,0,"",27,15,null,null,null,0,0,0,"",28,4,null,null,null,0,0,0,"",23,9,null,null,null,0,0,0,"",19,16,null,null,null,0,0,0,"",null,null,null,0,0,0,"",0,0,0,0,0,0,""]
[null,17,null,28,9,null,null,null,0,0,0,"",15,20,null,null,null,0,0,0,"",21,1,null,null,null,0,0,0,"",25,11,null,null,null,0,0,0,"",26,17,null,null,null,0,0,0,"",27,2,null,null,null,0,0,0,"",24,8,null,null,null,0,0,0,"",18,18,null,null,null,0,0,0,"",null,null,null,0,0,0,"",0,0,0,0,0,0,""]
[null,18,null,27,10,null,null,null,0,0,0,"",16,19,null,null,null,0,0,0,"",20,4,null,null,null,0,0,0,"",24,14,null,null,null,0,0,0,"",25,16,null,null,null,0,0,0,"",22,6,null,null,null,0,0,0,"",26,14,null,null,null,0,0,0,"",17,18,null,null,null,0,0,0,"",null,null,null,0,0,0,"",0,0,0,0,0,0,""]
[null,19,null,26,11,null,null,null,0,0,0,"",28,15,null,null,null,0,0,0,"",15,5,null,null,null,0,0,0,"",23,10,null,null,null,0,0,0,"",24,19,null,null,null,0,0,0,"",25,1,null,null,null,0,0,0,"",22,13,null,null,null,0,0,0,"",16,16,null,null,null,0,0,0,"",null,null,null,0,0,0,"",0,0,0,0,0,0,""]
[null,20,null,25,12,null,null,null,0,0,0,"",27,21,null,null,null,0,0,0,"",18,4,null,null,null,0,0,0,"",22,8,null,null,null,0,0,0,"",23,20,null,null,null,0,0,0,"",24,5,null,null,null,0,0,0,"",21,11,null,null,null,0,0,0,"",28,21,null,null,null,0,0,0,"",null,null,null,0,0,0,"",0,0,0,0,0,0,""]
[null,21,null,24,13,null,null,null,0,0,0,"",26,16,null,null,null,0,0,0,"",17,1,null,null,null,0,0,0,"",15,9,null,null,null,0,0,0,"",22,18,null,null,null,0,0,0,"",23,7,null,null,null,0,0,0,"",20,11,null,null,null,0,0,0,"",27,17,null,null,null,0,0,0,"",null,null,null,0,0,0,"",0,0,0,0,0,0,""]
[null,22,null,23,14,null,null,null,0,0,0,"",25,17,null,null,null,0,0,0,"",16,2,null,null,null,0,0,0,"",20,8,null,null,null,0,0,0,"",21,18,null,null,null,0,0,0,"",18,6,null,null,null,0,0,0,"",19,13,null,null,null,0,0,0,"",15,15,null,null,null,0,0,0,"",null,null,null,0,0,0,"",0,0,0,0,0,0,""]
[null,23,null,22,14,null,null,null,0,0,0,"",24,18,null,null,null,0,0,0,"",28,3,null,null,null,0,0,0,"",19,10,null,null,null,0,0,0,"",20,20,null,null,null,0,0,0,"",21,7,null,null,null,0,0,0,"",16,9,null,null,null,0,0,0,"",25,19,null,null,null,0,0,0,"",null,null,null,0,0,0,"",0,0,0,0,0,0,""]
[null,24,null,21,13,null,null,null,0,0,0,"",23,18,null,null,null,0,0,0,"",27,6,null,null,null,0,0,0,"",18,14,null,null,null,0,0,0,"",19,19,null,null,null,0,0,0,"",20,5,null,null,null,0,0,0,"",17,8,null,null,null,0,0,0,"",26,20,null,null,null,0,0,0,"",null,null,null,0,0,0,"",0,0,0,0,0,0,""]
[null,25,null,20,12,null,null,null,0,0,0,"",22,17,null,null,null,0,0,0,"",26,7,null,null,null,0,0,0,"",17,11,null,null,null,0,0,0,"",18,16,null,null,null,0,0,0,"",19,1,null,null,null,0,0,0,"",28,10,null,null,null,0,0,0,"",23,19,null,null,null,0,0,0,"",null,null,null,0,0,0,"",0,0,0,0,0,0,""]
[null,26,null,19,11,null,null,null,0,0,0,"",21,16,null,null,null,0,0,0,"",25,7,null,null,null,0,0,0,"",16,12,null,null,null,0,0,0,"",17,17,null,null,null,0,0,0,"",15,3,null,null,null,0,0,0,"",18,14,null,null,null,0,0,0,"",24,20,null,null,null,0,0,0,"",null,null,null,0,0,0,"",0,0,0,0,0,0,""]
[null,27,null,18,10,null,null,null,0,0,0,"",20,21,null,null,null,0,0,0,"",24,6,null,null,null,0,0,0,"",28,13,null,null,null,0,0,0,"",16,15,null,null,null,0,0,0,"",17,2,null,null,null,0,0,0,"",15,12,null,null,null,0,0,0,"",21,17,null,null,null,0,0,0,"",null,null,null,0,0,0,"",0,0,0,0,0,0,""]
[null,28,null,17,9,null,null,null,0,0,0,"",19,15,null,null,null,0,0,0,"",23,3,null,null,null,0,0,0,"",27,13,null,null,null,0,0,0,"",15,21,null,null,null,0,0,0,"",16,4,null,null,null,0,0,0,"",25,10,null,null,null,0,0,0,"",20,21,null,null,null,0,0,0,"",null,null,null,0,0,0,"",0,0,0,0,0,0,""]
[null,29,null,30,15,null,null,null,0,0,0,"",31,6,null,null,null,0,0,0,"",33,12,null,null,null,0,0,0,"",35,16,null,null,null,0,0,0,"",42,7,null,null,null,0,0,0,"",40,10,null,null,null,0,0,0,"",41,19,null,null,null,0,0,0,"",36,1,null,null,null,0,0,0,"",null,null,null,0,0,0,"",0,0,0,0,0,0,""]
[null,30,null,29,15,null,null,null,0,0,0,"",32,5,null,null,null,0,0,0,"",36,9,null,null,null,0,0,0,"",40,19,null,null,null,0,0,0,"",41,1,null,null,null,0,0,0,"",42,11,null,null,null,0,0,0,"",37,16,null,null,null,0,0,0,"",33,2,null,null,null,0,0,0,"",null,null,null,0,0,0,"",0,0,0,0,0,0,""]
[null,31,null,42,16,null,null,null,0,0,0,"",29,6,null,null,null,0,0,0,"",35,8,null,null,null,0,0,0,"",39,18,null,null,null,0,0,0,"",40,3,null,null,null,0,0,0,"",41,9,null,null,null,0,0,0,"",38,15,null,null,null,0,0,0,"",32,4,null,null,null,0,0,0,"",null,null,null,0,0,0,"",0,0,0,0,0,0,""]
[null,32,null,41,17,null,null,null,0,0,0,"",30,5,null,null,null,0,0,0,"",34,11,null,null,null,0,0,0,"",38,21,null,null,null,0,0,0,"",39,2,null,null,null,0,0,0,"",36,13,null,null,null,0,0,0,"",40,21,null,null,null,0,0,0,"",31,4,null,null,null,0,0,0,"",null,null,null,0,0,0,"",0,0,0,0,0,0,""]
[null,33,null,40,18,null,null,null,0,0,0,"",42,1,null,null,null,0,0,0,"",29,12,null,null,null,0,0,0,"",37,17,null,null,null,0,0,0,"",38,5,null,null,null,0,0,0,"",39,8,null,null,null,0,0,0,"",36,20,null,null,null,0,0,0,"",30,2,null,null,null,0,0,0,"",null,null,null,0,0,0,"",0,0,0,0,0,0,""]
[null,34,null,39,19,null,null,null,0,0,0,"",41,7,null,null,null,0,0,0,"",32,11,null,null,null,0,0,0,"",36,15,null,null,null,0,0,0,"",37,6,null,null,null,0,0,0,"",38,12,null,null,null,0,0,0,"",35,18,null,null,null,0,0,0,"",42,7,null,null,null,0,0,0,"",null,null,null,0,0,0,"",0,0,0,0,0,0,""]
[null,35,null,38,20,null,null,null,0,0,0,"",40,2,null,null,null,0,0,0,"",31,8,null,null,null,0,0,0,"",29,16,null,null,null,0,0,0,"",36,4,null,null,null,0,0,0,"",37,14,null,null,null,0,0,0,"",34,18,null,null,null,0,0,0,"",41,3,null,null,null,0,0,0,"",null,null,null,0,0,0,"",0,0,0,0,0,0,""]
[null,36,null,37,21,null,null,null,0,0,0,"",39,3,null,null,null,0,0,0,"",30,9,null,null,null,0,0,0,"",34,15,null,null,null,0,0,0,"",35,4,null,null,null,0,0,0,"",32,13,null,null,null,0,0,0,"",33,20,null,null,null,0,0,0,"",29,1,null,null,null,0,0,0,"",null,null,null,0,0,0,"",0,0,0,0,0,0,""]
[null,37,null,36,21,null,null,null,0,0,0,"",38,4,null,null,null,0,0,0,"",42,10,null,null,null,0,0,0,"",33,17,null,null,null,0,0,0,"",34,6,null,null,null,0,0,0,"",35,14,null,null,null,0,0,0,"",30,16,null,null,null,0,0,0,"",39,5,null,null,null,0,0,0,"",null,null,null,0,0,0,"",0,0,0,0,0,0,""]
[null,38,null,35,20,null,null,null,0,0,0,"",37,4,null,null,null,0,0,0,"",41,13,null,null,null,0,0,0,"",32,21,null,null,null,0,0,0,"",33,5,null,null,null,0,0,0,"",34,12,null,null,null,0,0,0,"",31,15,null,null,null,0,0,0,"",40,6,null,null,null,0,0,0,"",null,null,null,0,0,0,"",0,0,0,0,0,0,""]
[null,39,null,34,19,null,null,null,0,0,0,"",36,3,null,null,null,0,0,0,"",40,14,null,null,null,0,0,0,"",31,18,null,null,null,0,0,0,"",32,2,null,null,null,0,0,0,"",33,8,null,null,null,0,0,0,"",42,17,null,null,null,0,0,0,"",37,5,null,null,null,0,0,0,"",null,null,null,0,0,0,"",0,0,0,0,0,0,""]
[null,40,null,33,18,null,null,null,0,0,0,"",35,2,null,null,null,0,0,0,"",39,14,null,null,null,0,0,0,"",30,19,null,null,null,0,0,0,"",31,3,null,null,null,0,0,0,"",29,10,null,null,null,0,0,0,"",32,21,null,null,null,0,0,0,"",38,6,null,null,null,0,0,0,"",null,null,null,0,0,0,"",0,0,0,0,0,0,""]
[null,41,null,32,17,null,null,null,0,0,0,"",34,7,null,null,null,0,0,0,"",38,13,null,null,null,0,0,0,"",42,20,null,null,null,0,0,0,"",30,1,null,null,null,0,0,0,"",31,9,null,null,null,0,0,0,"",29,19,null,null,null,0,0,0,"",35,3,null,null,null,0,0,0,"",null,null,null,0,0,0,"",0,0,0,0,0,0,""]
[null,42,null,31,16,null,null,null,0,0,0,"",33,1,null,null,null,0,0,0,"",37,10,null,null,null,0,0,0,"",41,20,null,null,null,0,0,0,"",29,7,null,null,null,0,0,0,"",30,11,null,null,null,0,0,0,"",39,17,null,null,null,0,0,0,"",34,7,null,null,null,0,0,0,"",null,null,null,0,0,0,"",0,0,0,0,0,0,""]

{"sheet":"Score Cards","index":3,"n_rows":1134,"n_cols":53,"rows_kept":1134,"cut":false,"hidden":false,"merged":[[706,22,706,24],[1,50,2,52],[1,54,2,56],[1,57,2,59],[3,30,3,32],[3,34,3,36],[3,37,3,39],[3,40,3,42],[3,43,3,45],[3,47,3,49],[3,50,3,52],[3,54,3,56],[0,0,0,5],[0,7,0,12],[0,14,0,19],[0,20,0,25],[0,27,0,32],[0,34,0,39],[0,40,0,45],[0,47,0,52],[0,54,0,59],[1,0,2,2],[1,3,2,5],[1,7,2,9],[1,10,2,12],[1,14,2,16],[1,17,2,19],[1,20,2,22],[1,23,2,25],[1,27,2,29],[1,30,2,32],[1,34,2,36],[1,37,2,39],[1,40,2,42],[1,43,2,45],[1,47,2,49],[29,43,30,45],[29,47,30,49],[29,50,30,52],[29,54,30,56],[3,57,3,59],[24,0,25,0],[24,7,25,7],[24,14,25,14],[24,20,25,20],[24,27,25,27],[24,34,25,34],[24,40,25,40],[24,47,25,47],[24,54,25,54],[28,0,28,5],[28,7,28,12],[28,14,28,19],[28,20,28,25],[28,27,28,32],[28,34,28,39],[28,40,28,45],[28,47,28,52],[28,54,28,59],[3,0,3,2],[3,3,3,5],[3,7,3,9],[3,10,3,12],[3,14,3,16],[3,17,3,19],[3,20,3,22],[3,23,3,25],[3,27,3,29],[29,57,30,59],[31,0,31,2],[31,3,31,5],[31,7,31,9],[31,10,31,12],[31,14,31,16],[31,17,31,19],[31,20,31,22],[31,23,31,25],[31,27,31,29],[31,30,31,32],[31,34,31,36],[31,37,31,39],[31,40,31,42],[31,43,31,45],[31,47,31,49],[31,50,31,52],[31,54,31,56],[31,57,31,59],[29,0,30,2],[29,3,30,5],[29,7,30,9],[29,10,30,12],[29,14,30,16],[29,17,30,19],[29,20,30,22],[29,23,30,25],[29,27,30,29],[29,30,30,32],[29,34,30,36],[29,37,30,39],[29,40,30,42],[55,43,56,45],[55,47,56,49],[55,50,56,52],[55,54,56,56],[52,0,53,0],[52,7,53,7],[52,14,53,14],[52,20,53,20],[52,27,53,27],[52,34,53,34],[52,40,53,40],[52,47,53,47],[52,54,53,54],[54,0,54,5],[54,7,54,12],[54,14,54,19],[54,20,54,25],[54,27,54,32],[54,34,54,39],[54,40,54,45],[54,47,54,52],[54,54,54,59],[55,57,56,59],[57,0,57,2],[57,3,57,5],[57,7,57,9],[57,10,57,12],[57,14,57,16],[57,17,57,19],[57,20,57,22],[57,23,57,25],[57,27,57,29],[57,30,57,32],[57,34,57,36],[57,37,57,39],[57,40,57,42],[57,43,57,45],[57,47,57,49],[57,50,57,52],[57,54,57,56],[57,57,57,59],[55,0,56,2],[55,3,56,5],[55,7,56,9],[55,10,56,12],[55,14,56,16],[55,17,56,19],[55,20,56,22],[55,23,56,25],[55,27,56,29],[55,30,56,32],[55,34,56,36],[55,37,56,39],[55,40,56,42],[83,43,84,45],[83,47,84,49],[83,50,84,52],[83,54,84,56],[78,0,79,0],[78,7,79,7],[78,14,79,14],[78,20,79,20],[78,27,79,27],[78,34,79,34],[78,40,79,40],[78,47,79,47],[78,54,79,54],[82,0,82,5],[82,7,82,12],[82,14,82,19],[82,20,82,25],[82,27,82,32],[82,34,82,39],[82,40,82,45],[82,47,82,52],[82,54,82,59],[83,57,84,59],[85,0,85,2],[85,3,85,5],[85,7,85,9],[85,10,85,12],[85,14,85,16],[85,17,85,19],[85,20,85,22],[85,23,85,25],[85,27,85,29],[85,30,85,32],[85,34,85,36],[85,37,85,39],[85,40,85,42],[85,43,85,45],[85,47,85,49],[85,50,85,52],[85,54,85,56],[85,57,85,59],[83,0,84,2],[83,3,84,5],[83,7,84,9],[83,10,84,12],[83,14,84,16],[83,17,84,19],[83,20,84,22],[83,23,84,25],[83,27,84,29],[83,30,84,32],[83,34,84,36],[83,37,84,39],[83,40,84,42],[109,43,110,45],[109,47,110,49],[109,50,110,52],[109,54,110,56],[106,0,107,0],[106,7,107,7],[106,14,107,14],[106,20,107,20],[106,27,107,27],[106,34,107,34],[106,40,107,40],[106,47,107,47],[106,54,107,54],[108,0,108,5],[108,7,108,12],[108,14,108,19],[108,20,108,25],[108,27,108,32],[108,34,108,39],[108,40,108,45],[108,47,108,52],[108,54,108,59],[109,57,110,59],[111,0,111,2],[111,3,111,5],[111,7,111,9],[111,10,111,12],[111,14,111,16],[111,17,111,19],[111,20,111,22],[111,23,111,25],[111,27,111,29],[111,30,111,32],[111,34,111,36],[111,37,111,39],[111,40,111,42],[111,43,111,45],[111,47,111,49],[111,50,111,52],[111,54,111,56],[111,57,111,59],[109,0,110,2],[109,3,110,5],[109,7,110,9],[109,10,110,12],[109,14,110,16],[109,17,110,19],[109,20,110,22],[109,23,110,25],[109,27,110,29],[109,30,110,32],[109,34,110,36],[109,37,110,39],[109,40,110,42],[137,43,138,45],[137,47,138,49],[137,50,138,52],[137,54,138,56],[132,0,133,0],[132,7,133,7],[132,14,133,14],[132,20,133,20],[132,27,133,27],[132,34,133,34],[132,40,133,40],[132,47,133,47],[132,54,133,54],[136,0,136,5],[136,7,136,12],[136,14,136,19],[136,20,136,25],[136,27,136,32],[136,34,136,39],[136,40,136,45],[136,47,136,52],[136,54,136,59],[137,57,138,59],[139,0,139,2],[139,3,139,5],[139,7,139,9],[139,10,139,12],[139,14,139,16],[139,17,139,19],[139,20,139,22],[139,23,139,25],[139,27,139,29],[139,30,139,32],[139,34,139,36],[139,37,139,39],[139,40,139,42],[139,43,139,45],[139,47,139,49],[139,50,139,52],[139,54,139,56],[139,57,139,59],[137,0,138,2],[137,3,138,5],[137,7,138,9],[137,10,138,12],[137,14,138,16],[137,17,138,19],[137,20,138,22],[137,23,138,25],[137,27,138,29],[137,30,138,32],[137,34,138,36],[137,37,138,39],[137,40,138,42],[163,43,164,45],[163,47,164,49],[163,50,164,52],[163,54,164,56],[160,0,161,0],[160,7,161,7],[160,14,161,14],[160,20,161,20],[160,27,161,27],[160,34,161,34],[160,40,161,40],[160,47,161,47],[160,54,161,54],[162,0,162,5],[162,7,162,12],[162,14,162,19],[162,20,162,25],[162,27,162,32],[162,34,162,39],[162,40,162,45],[162,47,162,52],[162,54,162,59],[163,57,164,59],[165,0,165,2],[165,3,165,5],[165,7,165,9],[165,10,165,12],[165,14,165,16],[165,17,165,19],[165,20,165,22],[165,23,165,25],[165,27,165,29],[165,30,165,32],[165,34,165,36],[165,37,165,39],[165,40,165,42],[165,43,165,45],[165,47,165,49],[165,50,165,52],[165,54,165,56],[165,57,165,59],[163,0,164,2],[163,3,164,5],[163,7,164,9],[163,10,164,12],[163,14,164,16],[163,17,164,19],[163,20,164,22],[163,23,164,25],[163,27,164,29],[163,30,164,32],[163,34,164,36],[163,37,164,39],[163,40,164,42],[191,43,192,45],[191,47,192,49],[191,50,192,52],[191,54,192,56],[186,0,187,0],[186,7,187,7],[186,14,187,14],[186,20,187,20],[186,27,187,27],[186,34,187,34],[186,40,187,40],[186,47,187,47],[186,54,187,54],[190,0,190,5],[190,7,190,12],[190,14,190,19],[190,20,190,25],[190,27,190,32],[190,34,190,39],[190,40,190,45],[190,47,190,52],[190,54,190,59],[191,57,192,59],[193,0,193,2],[193,3,193,5],[193,7,193,9],[193,10,193,12],[193,14,193,16],[193,17,193,19],[193,20,193,22],[193,23,193,25],[193,27,193,29],[193,30,193,32],[193,34,193,36],[193,37,193,39],[193,40,193,42],[193,43,193,45],[193,47,193,49],[193,50,193,52],[193,54,193,56],[193,57,193,59],[191,0,192,2],[191,3,192,5],[191,7,192,9],[191,10,192,12],[191,14,192,16],[191,17,192,19],[191,20,192,22],[191,23,192,25],[191,27,192,29],[191,30,192,32],[191,34,192,36],[191,37,192,39],[191,40,192,42],[217,43,218,45],[217,47,218,49],[217,50,218,52],[217,54,218,56],[214,0,215,0],[214,7,215,7],[214,14,215,14],[214,20,215,20],[214,27,215,27],[214,34,215,34],[214,40,215,40],[214,47,215,47],[214,54,215,54],[216,0,216,5],[216,7,216,12],[216,14,216,19],[216,20,216,25],[216,27,216,32],[216,34,216,39],[216,40,216,45],[216,47,216,52],[216,54,216,59],[217,57,218,59],[219,0,219,2],[219,3,219,5],[219,7,219,9],[219,10,219,12],[219,14,219,16],[219,17,219,19],[219,20,219,22],[219,23,219,25],[219,27,219,29],[219,30,219,32],[219,34,219,36],[219,37,219,39],[219,40,219,42],[219,43,219,45],[219,47,219,49],[219,50,219,52],[219,54,219,56],[219,57,219,59],[217,0,218,2],[217,3,218,5],[217,7,218,9],[217,10,218,12],[217,14,218,16],[217,17,218,19],[217,20,218,22],[217,23,218,25],[217,27,218,29],[217,30,218,32],[217,34,218,36],[217,37,218,39],[217,40,218,42],[245,43,246,45],[245,47,246,49],[245,50,246,52],[245,54,246,56],[240,0,241,0],[240,7,241,7],[240,14,241,14],[240,20,241,20],[240,27,241,27],[240,34,241,34],[240,40,241,40],[240,47,241,47],[240,54,241,54],[244,0,244,5],[244,7,244,12],[244,14,244,19],[244,20,244,25],[244,27,244,32],[244,34,244,39],[244,40,244,45],[244,47,244,52],[244,54,244,59],[245,57,246,59],[247,0,247,2],[247,3,247,5],[247,7,247,9],[247,10,247,12],[247,14,247,16],[247,17,247,19],[247,20,247,22],[247,23,247,25],[247,27,247,29],[247,30,247,32],[247,34,247,36],[247,37,247,39],[247,40,247,42],[247,43,247,45],[247,47,247,49],[247,50,247,52],[247,54,247,56],[247,57,247,59],[245,0,246,2],[245,3,246,5],[245,7,246,9],[245,10,246,12],[245,14,246,16],[245,17,246,19],[245,20,246,22],[245,23,246,25],[245,27,246,29],[245,30,246,32],[245,34,246,36],[245,37,246,39],[245,40,246,42],[271,43,272,45],[271,47,272,49],[271,50,272,52],[271,54,272,56],[268,0,269,0],[268,7,269,7],[268,14,269,14],[268,20,269,20],[268,27,269,27],[268,34,269,34],[268,40,269,40],[268,47,269,47],[268,54,269,54],[270,0,270,5],[270,7,270,12],[270,14,270,19],[270,20,270,25],[270,27,270,32],[270,34,270,39],[270,40,270,45],[270,47,270,52],[270,54,270,59],[271,57,272,59],[273,0,273,2],[273,3,273,5],[273,7,273,9],[273,10,273,12],[273,14,273,16],[273,17,273,19],[273,20,273,22],[273,23,273,25],[273,27,273,29],[273,30,273,32],[273,34,273,36],[273,37,273,39],[273,40,273,42],[273,43,273,45],[273,47,273,49],[273,50,273,52],[273,54,273,56],[273,57,273,59],[271,0,272,2],[271,3,272,5],[271,7,272,9],[271,10,272,12],[271,14,272,16],[271,17,272,19],[271,20,272,22],[271,23,272,25],[271,27,272,29],[271,30,272,32],[271,34,272,36],[271,37,272,39],[271,40,272,42],[299,43,300,45],[299,47,300,49],[299,50,300,52],[299,54,300,56],[294,0,295,0],[294,7,295,7],[294,14,295,14],[294,20,295,20],[294,27,295,27],[294,34,295,34],[294,40,295,40],[294,47,295,47],[294,54,295,54],[298,0,298,5],[298,7,298,12],[298,14,298,19],[298,20,298,25],[298,27,298,32],[298,34,298,39],[298,40,298,45],[298,47,298,52],[298,54,298,59],[299,57,300,59],[301,0,301,2],[301,3,301,5],[301,7,301,9],[301,10,301,12],[301,14,301,16],[301,17,301,19],[301,20,301,22],[301,23,301,25],[301,27,301,29],[301,30,301,32],[301,34,301,36],[301,37,301,39],[301,40,301,42],[301,43,301,45],[301,47,301,49],[301,50,301,52],[301,54,301,56],[301,57,301,59],[299,0,300,2],[299,3,300,5],[299,7,300,9],[299,10,300,12],[299,14,300,16],[299,17,300,19],[299,20,300,22],[299,23,300,25],[299,27,300,29],[299,30,300,32],[299,34,300,36],[299,37,300,39],[299,40,300,42],[325,43,326,45],[325,47,326,49],[325,50,326,52],[325,54,326,56],[322,0,323,0],[322,7,323,7],[322,14,323,14],[322,20,323,20],[322,27,323,27],[322,34,323,34],[322,40,323,40],[322,47,323,47],[322,54,323,54],[324,0,324,5],[324,7,324,12],[324,14,324,19],[324,20,324,25],[324,27,324,32],[324,34,324,39],[324,40,324,45],[324,47,324,52],[324,54,324,59],[325,57,326,59],[327,0,327,2],[327,3,327,5],[327,7,327,9],[327,10,327,12],[327,14,327,16],[327,17,327,19],[327,20,327,22],[327,23,327,25],[327,27,327,29],[327,30,327,32],[327,34,327,36],[327,37,327,39],[327,40,327,42],[327,43,327,45],[327,47,327,49],[327,50,327,52],[327,54,327,56],[327,57,327,59],[325,0,326,2],[325,3,326,5],[325,7,326,9],[325,10,326,12],[325,14,326,16],[325,17,326,19],[325,20,326,22],[325,23,326,25],[325,27,326,29],[325,30,326,32],[325,34,326,36],[325,37,326,39],[325,40,326,42],[353,43,354,45],[353,47,354,49],[353,50,354,52],[353,54,354,56],[348,0,349,0],[348,7,349,7],[348,14,349,14],[348,20,349,20],[348,27,349,27],[348,34,349,34],[348,40,349,40],[348,47,349,47],[348,54,349,54],[352,0,352,5],[352,7,352,12],[352,14,352,19],[352,20,352,25],[352,27,352,32],[352,34,352,39],[352,40,352,45],[352,47,352,52],[352,54,352,59],[353,57,354,59],[355,0,355,2],[355,3,355,5],[355,7,355,9],[355,10,355,12],[355,14,355,16],[355,17,355,19],[355,20,355,22],[355,23,355,25],[355,27,355,29],[355,30,355,32],[355,34,355,36],[355,37,355,39],[355,40,355,42],[355,43,355,45],[355,47,355,49],[355,50,355,52],[355,54,355,56],[355,57,355,59],[353,0,354,2],[353,3,354,5],[353,7,354,9],[353,10,354,12],[353,14,354,16],[353,17,354,19],[353,20,354,22],[353,23,354,25],[353,27,354,29],[353,30,354,32],[353,34,354,36],[353,37,354,39],[353,40,354,42],[379,43,380,45],[379,47,380,49],[379,50,380,52],[379,54,380,56],[376,0,377,0],[376,7,377,7],[376,14,377,14],[376,20,377,20],[376,27,377,27],[376,34,377,34],[376,40,377,40],[376,47,377,47],[376,54,377,54],[378,0,378,5],[378,7,378,12],[378,14,378,19],[378,20,378,25],[378,27,378,32],[378,34,378,39],[378,40,378,45],[378,47,378,52],[378,54,378,59],[379,57,380,59],[381,0,381,2],[381,3,381,5],[381,7,381,9],[381,10,381,12],[381,14,381,16],[381,17,381,19],[381,20,381,22],[381,23,381,25],[381,27,381,29],[381,30,381,32],[381,34,381,36],[381,37,381,39],[381,40,381,42],[381,43,381,45],[381,47,381,49],[381,50,381,52],[381,54,381,56],[381,57,381,59],[379,0,380,2],[379,3,380,5],[379,7,380,9],[379,10,380,12],[379,14,380,16],[379,17,380,19],[379,20,380,22],[379,23,380,25],[379,27,380,29],[379,30,380,32],[379,34,380,36],[379,37,380,39],[379,40,380,42],[407,43,408,45],[407,47,408,49],[407,50,408,52],[407,54,408,56],[402,0,403,0],[402,7,403,7],[402,14,403,14],[402,20,403,20],[402,27,403,27],[402,34,403,34],[402,40,403,40],[402,47,403,47],[402,54,403,54],[406,0,406,5],[406,7,406,12],[406,14,406,19],[406,20,406,25],[406,27,406,32],[406,34,406,39],[406,40,406,45],[406,47,406,52],[406,54,406,59],[407,57,408,59],[409,0,409,2],[409,3,409,5],[409,7,409,9],[409,10,409,12],[409,14,409,16],[409,17,409,19],[409,20,409,22],[409,23,409,25],[409,27,409,29],[409,30,409,32],[409,34,409,36],[409,37,409,39],[409,40,409,42],[409,43,409,45],[409,47,409,49],[409,50,409,52],[409,54,409,56],[409,57,409,59],[407,0,408,2],[407,3,408,5],[407,7,408,9],[407,10,408,12],[407,14,408,16],[407,17,408,19],[407,20,408,22],[407,23,408,25],[407,27,408,29],[407,30,408,32],[407,34,408,36],[407,37,408,39],[407,40,408,42],[433,43,434,45],[433,47,434,49],[433,50,434,52],[433,54,434,56],[430,0,431,0],[430,7,431,7],[430,14,431,14],[430,20,431,20],[430,27,431,27],[430,34,431,34],[430,40,431,40],[430,47,431,47],[430,54,431,54],[432,0,432,5],[432,7,432,12],[432,14,432,19],[432,20,432,25],[432,27,432,32],[432,34,432,39],[432,40,432,45],[432,47,432,52],[432,54,432,59],[433,57,434,59],[435,0,435,2],[435,3,435,5],[435,7,435,9],[435,10,435,12],[435,14,435,16],[435,17,435,19],[435,20,435,22],[435,23,435,25],[435,27,435,29],[435,30,435,32],[435,34,435,36],[435,37,435,39],[435,40,435,42],[435,43,435,45],[435,47,435,49],[435,50,435,52],[435,54,435,56],[435,57,435,59],[433,0,434,2],[433,3,434,5],[433,7,434,9],[433,10,434,12],[433,14,434,16],[433,17,434,19],[433,20,434,22],[433,23,434,25],[433,27,434,29],[433,30,434,32],[433,34,434,36],[433,37,434,39],[433,40,434,42],[461,43,462,45],[461,47,462,49],[461,50,462,52],[461,54,462,56],[456,0,457,0],[456,7,457,7],[456,14,457,14],[456,20,457,20],[456,27,457,27],[456,34,457,34],[456,40,457,40],[456,47,457,47],[456,54,457,54],[460,0,460,5],[460,7,460,12],[460,14,460,19],[460,20,460,25],[460,27,460,32],[460,34,460,39],[460,40,460,45],[460,47,460,52],[460,54,460,59],[461,57,462,59],[463,0,463,2],[463,3,463,5],[463,7,463,9],[463,10,463,12],[463,14,463,16],[463,17,463,19],[463,20,463,22],[463,23,463,25],[463,27,463,29],[463,30,463,32],[463,34,463,36],[463,37,463,39],[463,40,463,42],[463,43,463,45],[463,47,463,49],[463,50,463,52],[463,54,463,56],[463,57,463,59],[461,0,462,2],[461,3,462,5],[461,7,462,9],[461,10,462,12],[461,14,462,16],[461,17,462,19],[461,20,462,22],[461,23,462,25],[461,27,462,29],[461,30,462,32],[461,34,462,36],[461,37,462,39],[461,40,462,42],[487,43,488,45],[487,47,488,49],[487,50,488,52],[487,54,488,56],[484,0,485,0],[484,7,485,7],[484,14,485,14],[484,20,485,20],[484,27,485,27],[484,34,485,34],[484,40,485,40],[484,47,485,47],[484,54,485,54],[486,0,486,5],[486,7,486,12],[486,14,486,19],[486,20,486,25],[486,27,486,32],[486,34,486,39],[486,40,486,45],[486,47,486,52],[486,54,486,59],[487,57,488,59],[489,0,489,2],[489,3,489,5],[489,7,489,9],[489,10,489,12],[489,14,489,16],[489,17,489,19],[489,20,489,22],[489,23,489,25],[489,27,489,29],[489,30,489,32],[489,34,489,36],[489,37,489,39],[489,40,489,42]],"merged_total":2269,"flags":["merged_cut"]}
["1st Game ",null,null,null,null,null,null,"2nd Game ",null,null,null,null,null,null,"3rd Game ",null,null,null,null,null,"4th Game",null,null,null,null,null,null,"5th Game",null,null,null,null,null,null,"6th Game",null,null,null,null,null,"7th Game",null,null,null,null,null,null,"8th Game"]
["Team No",null,null,"Rink No",null,null,null,"Team No",null,null,"Rink No",null,null,null,"Team No",null,null,"Rink No",null,null,"Team No",null,null,"Rink No",null,null,null,"Team No",null,null,"Rink No",null,null,null,"Team No",null,null,"Rink No",null,null,"Team No",null,null,"Rink No",null,null,null,"Team No",null,null,"Rink No"]
[]
[{"$f":"DRAW!$B$7","v":1},null,null,{"$f":"DRAW!$E$7","v":1},null,null,null,{"$f":"DRAW!$B$7","v":1},null,null,{"$f":"DRAW!$G$7","v":13},null,null,null,{"$f":"DRAW!$B$7","v":1},null,null,{"$f":"DRAW!$I$7","v":19},null,null,{"$f":"DRAW!$B$7","v":1},null,null,{"$f":"DRAW!$K$7","v":2},null,null,null,{"$f":"DRAW!$B$7","v":1},null,null,{"$f":"DRAW!$M$7","v":14},null,null,null,{"$f":"DRAW!$B$7","v":1},null,null,{"$f":"DRAW!$O$7","v":17},null,null,{"$f":"DRAW!$B$7","v":1},null,null,{"$f":"DRAW!$Q$7","v":5},null,null,null,{"$f":"DRAW!$B$7","v":1},null,null,{"$f":"DRAW!$S$7","v":8}]
[null,"Team",{"$f":"DRAW!$B$7","v":1},"V","Team",{"$f":"DRAW!$D$7","v":2},null,null,"Team",{"$f":"DRAW!$B$7","v":1},"V","Team",{"$f":"DRAW!$F$7","v":3},null,null,"Team",{"$f":"DRAW!$B$7","v":1},"V","Team",{"$f":"DRAW!$H$7","v":5},null,"Team",{"$f":"DRAW!$B$7","v":1},"V","Team",{"$f":"DRAW!$J$7","v":7},null,null,"Team",{"$f":"DRAW!$B$7","v":1},"V","Team",{"$f":"DRAW!$L$7","v":14},null,null,"Team",{"$f":"DRAW!$B$7","v":1},"V","Team",{"$f":"DRAW!$N$7","v":12},null,"Team",{"$f":"DRAW!$B$7","v":1},"V","Team",{"$f":"DRAW!$P$7","v":13},null,null,"Team",{"$f":"DRAW!$B$7","v":1},"V","Team",{"$f":"DRAW!$R$7","v":8}]
["Ends","Shots","Total",null,"Shots","Total",null,"Ends","Shots","Total",null,"Shots","Total",null,"Ends","Shots","Total",null,"Shots","Total","Ends","Shots","Total",null,"Shots","Total",null,"Ends","Shots","Total",null,"Shots","Total",null,"Ends","Shots","Total",null,"Shots","Total","Ends","Shots","Total",null,"Shots","Total",null,"Ends","Shots","Total",null,"shots","Totar"]
[1,null,null,null,null,null,null,1,null,null,null,null,null,null,1,null,null,null,null,null,1,null,null,null,null,null,null,1,null,null,null,null,null,null,1,null,null,null,null,null,1,null,null,null,null,null,null,1]
[2,null,null,null,null,null,null,2,null,null,null,null,null,null,2,null,null,null,null,null,2,null,null,null,null,null,null,2,null,null,null,null,null,null,2,null,null,null,null,null,2,null,null,null,null,null,null,2]
[3,null,null,null,null,null,null,3,null,null,null,null,null,null,3,null,null,null,null,null,3,null,null,null,null,null,null,3,null,null,null,null,null,null,3,null,null,null,null,null,3,null,null,null,null,null,null,3]
[4,null,null,null,null,null,null,4,null,null,null,null,null,null,4,null,null,null,null,null,4,null,null,null,null,null,null,4,null,null,null,null,null,null,4,null,null,null,null,null,4,null,null,null,null,null,null,4]
[5,null,null,null,null,null,null,5,null,null,null,null,null,null,5,null,null,null,null,null,5,null,null,null,null,null,null,5,null,null,null,null,null,null,5,null,null,null,null,null,5,null,null,null,null,null,null,5]
[6,null,null,null,null,null,null,6,null,null,null,null,null,null,6,null,null,null,null,null,6,null,null,null,null,null,null,6,null,null,null,null,null,null,6,null,null,null,null,null,6,null,null,null,null,null,null,6]
[7,null,null,null,null,null,null,7,null,null,null,null,null,null,7,null,null,null,null,null,7,null,null,null,null,null,null,7,null,null,null,null,null,null,7,null,null,null,null,null,7,null,null,null,null,null,null,7]
[8,null,null,null,null,null,null,8,null,null,null,null,null,null,8,null,null,null,null,null,8,null,null,null,null,null,null,8,null,null,null,null,null,null,8,null,null,null,null,null,8,null,null,null,null,null,null,8]
[9,null,null,null,null,null,null,9,null,null,null,null,null,null,9,null,null,null,null,null,9,null,null,null,null,null,null,9,null,null,null,null,null,null,9,null,null,null,null,null,9,null,null,null,null,null,null,9]
[10,null,null,null,null,null,null,10,null,null,null,null,null,null,10,null,null,null,null,null,10,null,null,null,null,null,null,10,null,null,null,null,null,null,10,null,null,null,null,null,10,null,null,null,null,null,null,10]
[11,null,null,null,null,null,null,11,null,null,null,null,null,null,11,null,null,null,null,null,11,null,null,null,null,null,null,11,null,null,null,null,null,null,11,null,null,null,null,null,11,null,null,null,null,null,null,11]
[12,null,null,null,null,null,null,12,null,null,null,null,null,null,12,null,null,null,null,null,12,null,null,null,null,null,null,12,null,null,null,null,null,null,12,null,null,null,null,null,12,null,null,null,null,null,null,12]
[13,null,null,null,null,null,null,13,null,null,null,null,null,null,13,null,null,null,null,null,13,null,null,null,null,null,null,13,null,null,null,null,null,null,13,null,null,null,null,null,13,null,null,null,null,null,null,13]
[14,null,null,null,null,null,null,14,null,null,null,null,null,null,14,null,null,null,null,null,14,null,null,null,null,null,null,14,null,null,null,null,null,null,14,null,null,null,null,null,14,null,null,null,null,null,null,14]
[15,null,null,null,null,null,null,15,null,null,null,null,null,null,15,null,null,null,null,null,15,null,null,null,null,null,null,15,null,null,null,null,null,null,15,null,null,null,null,null,15,null,null,null,null,null,null,15]
[16,null,null,null,null,null,null,16,null,null,null,null,null,null,16,null,null,null,null,null,16,null,null,null,null,null,null,16,null,null,null,null,null,null,16,null,null,null,null,null,16,null,null,null,null,null,null,16]
[17,null,null,null,null,null,null,17,null,null,null,null,null,null,17,null,null,null,null,null,17,null,null,null,null,null,null,17,null,null,null,null,null,null,17,null,null,null,null,null,17,null,null,null,null,null,null,17]
[18,null,null,null,null,null,null,18,null,null,null,null,null,null,18,null,null,null,null,null,18,null,null,null,null,null,null,18,null,null,null,null,null,null,18,null,null,null,null,null,18,null,null,null,null,null,null,18]
["Total","Shots",null,null,"Shots",null,null,"Total","Shots",null,null,"Shots",null,null,"Total","Shots",null,null,"Shots",null,"Total","Shots",null,null,"Shots",null,null,"Total","Shots",null,null,"Shots",null,null,"Total","Shots",null,null,"Shots",null,"Total","Shots",null,null,"Shots",null,null,"Total","Shots",null,null,"shots"]
[null,"Ends",null,null,"Ends",null,null,null,"Ends",null,null,"Ends",null,null,null,"Ends",null,null,"Ends",null,null,"Ends",null,null,"Ends",null,null,null,"Ends",null,null,"Ends",null,null,null,"Ends",null,null,"Ends",null,null,"Ends",null,null,"Ends",null,null,null,"Ends",null,null,"Ends"]
[]
[]
["1st Game ",null,null,null,null,null,null,"2nd Game ",null,null,null,null,null,null,"3rd Game ",null,null,null,null,null,"4th Game",null,null,null,null,null,null,"5th Game",null,null,null,null,null,null,"6th Game",null,null,null,null,null,"7th Game",null,null,null,null,null,null,"8th Game"]
["Team No",null,null,"Rink No",null,null,null,"Team No",null,null,"Rink No",null,null,null,"Team No",null,null,"Rink No",null,null,"Team No",null,null,"Rink No",null,null,null,"Team No",null,null,"Rink No",null,null,null,"Team No",null,null,"Rink No",null,null,"Team No",null,null,"Rink No",null,null,null,"Team No",null,null,"Rink No"]
[]
[{"$f":"DRAW!$B$8","v":2},null,null,{"$f":"DRAW!$E$8","v":1},null,null,null,{"$f":"DRAW!$B$8","v":2},null,null,{"$f":"DRAW!$G$8","v":12},null,null,null,{"$f":"DRAW!$B$8","v":2},null,null,{"$f":"DRAW!$I$8","v":16},null,null,{"$f":"DRAW!$B$8","v":2},null,null,{"$f":"DRAW!$K$8","v":5},null,null,null,{"$f":"DRAW!$B$8","v":2},null,null,{"$f":"DRAW!$M$8","v":8},null,null,null,{"$f":"DRAW!$B$8","v":2},null,null,{"$f":"DRAW!$O$8","v":18},null,null,{"$f":"DRAW!$B$8","v":2},null,null,{"$f":"DRAW!$Q$8","v":2},null,null,null,{"$f":"DRAW!$B$8","v":2},null,null,{"$f":"DRAW!$S$8","v":9}]
[null,"Team",{"$f":"DRAW!$B$8","v":2},"V","Team",{"$f":"DRAW!$D$8","v":1},null,null,"Team",{"$f":"DRAW!$B$8","v":2},"V","Team",{"$f":"DRAW!$F$8","v":4},null,null,"Team",{"$f":"DRAW!$B$8","v":2},"V","Team",{"$f":"DRAW!$H$8","v":8},null,"Team",{"$f":"DRAW!$B$8","v":2},"V","Team",{"$f":"DRAW!$J$8","v":12},null,null,"Team",{"$f":"DRAW!$B$8","v":2},"V","Team",{"$f":"DRAW!$L$8","v":13},null,null,"Team",{"$f":"DRAW!$B$8","v":2},"V","Team",{"$f":"DRAW!$N$8","v":14},null,"Team",{"$f":"DRAW!$B$8","v":2},"V","Team",{"$f":"DRAW!$P$8","v":9},null,null,"Team",{"$f":"DRAW!$B$8","v":2},"V","Team",{"$f":"DRAW!$R$8","v":5}]
["Ends","Shots","Total",null,"Shots","Total",null,"Ends","Shots","Total",null,"Shots","Total",null,"Ends","Shots","Total",null,"Shots","Total","Ends","Shots","Total",null,"Shots","Total",null,"Ends","Shots","Total",null,"Shots","Total",null,"Ends","Shots","Total",null,"Shots","Total","Ends","Shots","Total",null,"Shots","Total",null,"Ends","Shots","Total",null,"shots","Totar"]
[1,null,null,null,null,null,null,1,null,null,null,null,null,null,1,null,null,null,null,null,1,null,null,null,null,null,null,1,null,null,null,null,null,null,1,null,null,null,null,null,1,null,null,null,null,null,null,1]
[2,null,null,null,null,null,null,2,null,null,null,null,null,null,2,null,null,null,null,null,2,null,null,null,null,null,null,2,null,null,null,null,null,null,2,null,null,null,null,null,2,null,null,null,null,null,null,2]
[3,null,null,null,null,null,null,3,null,null,null,null,null,null,3,null,null,null,null,null,3,null,null,null,null,null,null,3,null,null,null,null,null,null,3,null,null,null,null,null,3,null,null,null,null,null,null,3]
[4,null,null,null,null,null,null,4,null,null,null,null,null,null,4,null,null,null,null,null,4,null,null,null,null,null,null,4,null,null,null,null,null,null,4,null,null,null,null,null,4,null,null,null,null,null,null,4]
[5,null,null,null,null,null,null,5,null,null,null,null,null,null,5,null,null,null,null,null,5,null,null,null,null,null,null,5,null,null,null,null,null,null,5,null,null,null,null,null,5,null,null,null,null,null,null,5]
[6,null,null,null,null,null,null,6,null,null,null,null,null,null,6,null,null,null,null,null,6,null,null,null,null,null,null,6,null,null,null,null,null,null,6,null,null,null,null,null,6,null,null,null,null,null,null,6]
[7,null,null,null,null,null,null,7,null,null,null,null,null,null,7,null,null,null,null,null,7,null,null,null,null,null,null,7,null,null,null,null,null,null,7,null,null,null,null,null,7,null,null,null,null,null,null,7]
[8,null,null,null,null,null,null,8,null,null,null,null,null,null,8,null,null,null,null,null,8,null,null,null,null,null,null,8,null,null,null,null,null,null,8,null,null,null,null,null,8,null,null,null,null,null,null,8]
[9,null,null,null,null,null,null,9,null,null,null,null,null,null,9,null,null,null,null,null,9,null,null,null,null,null,null,9,null,null,null,null,null,null,9,null,null,null,null,null,9,null,null,null,null,null,null,9]
[10,null,null,null,null,null,null,10,null,null,null,null,null,null,10,null,null,null,null,null,10,null,null,null,null,null,null,10,null,null,null,null,null,null,10,null,null,null,null,null,10,null,null,null,null,null,null,10]
[11,null,null,null,null,null,null,11,null,null,null,null,null,null,11,null,null,null,null,null,11,null,null,null,null,null,null,11,null,null,null,null,null,null,11,null,null,null,null,null,11,null,null,null,null,null,null,11]
[12,null,null,null,null,null,null,12,null,null,null,null,null,null,12,null,null,null,null,null,12,null,null,null,null,null,null,12,null,null,null,null,null,null,12,null,null,null,null,null,12,null,null,null,null,null,null,12]
[13,null,null,null,null,null,null,13,null,null,null,null,null,null,13,null,null,null,null,null,13,null,null,null,null,null,null,13,null,null,null,null,null,null,13,null,null,null,null,null,13,null,null,null,null,null,null,13]
[14,null,null,null,null,null,null,14,null,null,null,null,null,null,14,null,null,null,null,null,14,null,null,null,null,null,null,14,null,null,null,null,null,null,14,null,null,null,null,null,14,null,null,null,null,null,null,14]
[15,null,null,null,null,null,null,15,null,null,null,null,null,null,15,null,null,null,null,null,15,null,null,null,null,null,null,15,null,null,null,null,null,null,15,null,null,null,null,null,15,null,null,null,null,null,null,15]
[16,null,null,null,null,null,null,16,null,null,null,null,null,null,16,null,null,null,null,null,16,null,null,null,null,null,null,16,null,null,null,null,null,null,16,null,null,null,null,null,16,null,null,null,null,null,null,16]
[17,null,null,null,null,null,null,17,null,null,null,null,null,null,17,null,null,null,null,null,17,null,null,null,null,null,null,17,null,null,null,null,null,null,17,null,null,null,null,null,17,null,null,null,null,null,null,17]
[18,null,null,null,null,null,null,18,null,null,null,null,null,null,18,null,null,null,null,null,18,null,null,null,null,null,null,18,null,null,null,null,null,null,18,null,null,null,null,null,18,null,null,null,null,null,null,18]
["Total","Shots",null,null,"Shots",null,null,"Total","Shots",null,null,"Shots",null,null,"Total","Shots",null,null,"Shots",null,"Total","Shots",null,null,"Shots",null,null,"Total","Shots",null,null,"Shots",null,null,"Total","Shots",null,null,"Shots",null,"Total","Shots",null,null,"Shots",null,null,"Total","Shots",null,null,"shots"]
[null,"Ends",null,null,"Ends",null,null,null,"Ends",null,null,"Ends",null,null,null,"Ends",null,null,"Ends",null,null,"Ends",null,null,"Ends",null,null,null,"Ends",null,null,"Ends",null,null,null,"Ends",null,null,"Ends",null,null,"Ends",null,null,"Ends",null,null,null,"Ends",null,null,"Ends"]
["1st Game ",null,null,null,null,null,null,"2nd Game ",null,null,null,null,null,null,"3rd Game ",null,null,null,null,null,"4th Game",null,null,null,null,null,null,"5th Game",null,null,null,null,null,null,"6th Game",null,null,null,null,null,"7th Game",null,null,null,null,null,null,"8th Game"]
["Team No",null,null,"Rink No",null,null,null,"Team No",null,null,"Rink No",null,null,null,"Team No",null,null,"Rink No",null,null,"Team No",null,null,"Rink No",null,null,null,"Team No",null,null,"Rink No",null,null,null,"Team No",null,null,"Rink No",null,null,"Team No",null,null,"Rink No",null,null,null,"Team No",null,null,"Rink No"]
[]
[{"$f":"DRAW!$B$9","v":3},null,null,{"$f":"DRAW!$E$9","v":2},null,null,null,{"$f":"DRAW!$B$9","v":3},null,null,{"$f":"DRAW!$G$9","v":13},null,null,null,{"$f":"DRAW!$B$9","v":3},null,null,{"$f":"DRAW!$I$9","v":15},null,null,{"$f":"DRAW!$B$9","v":3},null,null,{"$f":"DRAW!$K$9","v":4},null,null,null,{"$f":"DRAW!$B$9","v":3},null,null,{"$f":"DRAW!$M$9","v":10},null,null,null,{"$f":"DRAW!$B$9","v":3},null,null,{"$f":"DRAW!$O$9","v":16},null,null,{"$f":"DRAW!$B$9","v":3},null,null,{"$f":"DRAW!$Q$9","v":1},null,null,null,{"$f":"DRAW!$B$9","v":3},null,null,{"$f":"DRAW!$S$9","v":11}]
[null,"Team",{"$f":"DRAW!$B$9","v":3},"V","Team",{"$f":"DRAW!$D$9","v":14},null,null,"Team",{"$f":"DRAW!$B$9","v":3},"V","Team",{"$f":"DRAW!$F$9","v":1},null,null,"Team",{"$f":"DRAW!$B$9","v":3},"V","Team",{"$f":"DRAW!$H$9","v":7},null,"Team",{"$f":"DRAW!$B$9","v":3},"V","Team",{"$f":"DRAW!$J$9","v":11},null,null,"Team",{"$f":"DRAW!$B$9","v":3},"V","Team",{"$f":"DRAW!$L$9","v":12},null,null,"Team",{"$f":"DRAW!$B$9","v":3},"V","Team",{"$f":"DRAW!$N$9","v":13},null,"Team",{"$f":"DRAW!$B$9","v":3},"V","Team",{"$f":"DRAW!$P$9","v":10},null,null,"Team",{"$f":"DRAW!$B$9","v":3},"V","Team",{"$f":"DRAW!$R$9","v":4}]
["Ends","Shots","Total",null,"Shots","Total",null,"Ends","Shots","Total",null,"Shots","Total",null,"Ends","Shots","Total",null,"Shots","Total","Ends","Shots","Total",null,"Shots","Total",null,"Ends","Shots","Total",null,"Shots","Total",null,"Ends","Shots","Total",null,"Shots","Total","Ends","Shots","Total",null,"Shots","Total",null,"Ends","Shots","Total",null,"shots","Totar"]
[1,null,null,null,null,null,null,1,null,null,null,null,null,null,1,null,null,null,null,null,1,null,null,null,null,null,null,1,null,null,null,null,null,null,1,null,null,null,null,null,1,null,null,null,null,null,null,1]
[2,null,null,null,null,null,null,2,null,null,null,null,null,null,2,null,null,null,null,null,2,null,null,null,null,null,null,2,null,null,null,null,null,null,2,null,null,null,null,null,2,null,null,null,null,null,null,2]
[3,null,null,null,null,null,null,3,null,null,null,null,null,null,3,null,null,null,null,null,3,null,null,null,null,null,null,3,null,null,null,null,null,null,3,null,null,null,null,null,3,null,null,null,null,null,null,3]
[4,null,null,null,null,null,null,4,null,null,null,null,null,null,4,null,null,null,null,null,4,null,null,null,null,null,null,4,null,null,null,null,null,null,4,null,null,null,null,null,4,null,null,null,null,null,null,4]
[5,null,null,null,null,null,null,5,null,null,null,null,null,null,5,null,null,null,null,null,5,null,null,null,null,null,null,5,null,null,null,null,null,null,5,null,null,null,null,null,5,null,null,null,null,null,null,5]
[6,null,null,null,null,null,null,6,null,null,null,null,null,null,6,null,null,null,null,null,6,null,null,null,null,null,null,6,null,null,null,null,null,null,6,null,null,null,null,null,6,null,null,null,null,null,null,6]
[7,null,null,null,null,null,null,7,null,null,null,null,null,null,7,null,null,null,null,null,7,null,null,null,null,null,null,7,null,null,null,null,null,null,7,null,null,null,null,null,7,null,null,null,null,null,null,7]
[8,null,null,null,null,null,null,8,null,null,null,null,null,null,8,null,null,null,null,null,8,null,null,null,null,null,null,8,null,null,null,null,null,null,8,null,null,null,null,null,8,null,null,null,null,null,null,8]
[9,null,null,null,null,null,null,9,null,null,null,null,null,null,9,null,null,null,null,null,9,null,null,null,null,null,null,9,null,null,null,null,null,null,9,null,null,null,null,null,9,null,null,null,null,null,null,9]
[10,null,null,null,null,null,null,10,null,null,null,null,null,null,10,null,null,null,null,null,10,null,null,null,null,null,null,10,null,null,null,null,null,null,10,null,null,null,null,null,10,null,null,null,null,null,null,10]
[11,null,null,null,null,null,null,11,null,null,null,null,null,null,11,null,null,null,null,null,11,null,null,null,null,null,null,11,null,null,null,null,null,null,11,null,null,null,null,null,11,null,null,null,null,null,null,11]
[12,null,null,null,null,null,null,12,null,null,null,null,null,null,12,null,null,null,null,null,12,null,null,null,null,null,null,12,null,null,null,null,null,null,12,null,null,null,null,null,12,null,null,null,null,null,null,12]
[13,null,null,null,null,null,null,13,null,null,null,null,null,null,13,null,null,null,null,null,13,null,null,null,null,null,null,13,null,null,null,null,null,null,13,null,null,null,null,null,13,null,null,null,null,null,null,13]
[14,null,null,null,null,null,null,14,null,null,null,null,null,null,14,null,null,null,null,null,14,null,null,null,null,null,null,14,null,null,null,null,null,null,14,null,null,null,null,null,14,null,null,null,null,null,null,14]
[15,null,null,null,null,null,null,15,null,null,null,null,null,null,15,null,null,null,null,null,15,null,null,null,null,null,null,15,null,null,null,null,null,null,15,null,null,null,null,null,15,null,null,null,null,null,null,15]
[16,null,null,null,null,null,null,16,null,null,null,null,null,null,16,null,null,null,null,null,16,null,null,null,null,null,null,16,null,null,null,null,null,null,16,null,null,null,null,null,16,null,null,null,null,null,null,16]
[17,null,null,null,null,null,null,17,null,null,null,null,null,null,17,null,null,null,null,null,17,null,null,null,null,null,null,17,null,null,null,null,null,null,17,null,null,null,null,null,17,null,null,null,null,null,null,17]
[18,null,null,null,null,null,null,18,null,null,null,null,null,null,18,null,null,null,null,null,18,null,null,null,null,null,null,18,null,null,null,null,null,null,18,null,null,null,null,null,18,null,null,null,null,null,null,18]
["Total","Shots",null,null,"Shots",null,null,"Total","Shots",null,null,"Shots",null,null,"Total","Shots",null,null,"Shots",null,"Total","Shots",null,null,"Shots",null,null,"Total","Shots",null,null,"Shots",null,null,"Total","Shots",null,null,"Shots",null,"Total","Shots",null,null,"Shots",null,null,"Total","Shots",null,null,"shots"]
[null,"Ends",null,null,"Ends",null,null,null,"Ends",null,null,"Ends",null,null,null,"Ends",null,null,"Ends",null,null,"Ends",null,null,"Ends",null,null,null,"Ends",null,null,"Ends",null,null,null,"Ends",null,null,"Ends",null,null,"Ends",null,null,"Ends",null,null,null,"Ends",null,null,"Ends"]
[]
[]
["1st Game ",null,null,null,null,null,null,"2nd Game ",null,null,null,null,null,null,"3rd Game ",null,null,null,null,null,"4th Game",null,null,null,null,null,null,"5th Game",null,null,null,null,null,null,"6th Game",null,null,null,null,null,"7th Game",null,null,null,null,null,null,"8th Game"]
["Team No",null,null,"Rink No",null,null,null,"Team No",null,null,"Rink No",null,null,null,"Team No",null,null,"Rink No",null,null,"Team No",null,null,"Rink No",null,null,null,"Team No",null,null,"Rink No",null,null,null,"Team No",null,null,"Rink No",null,null,"Team No",null,null,"Rink No",null,null,null,"Team No",null,null,"Rink No"]
[]
[{"$f":"DRAW!$B$10","v":4},null,null,{"$f":"DRAW!$E$10","v":3},null,null,null,{"$f":"DRAW!$B$10","v":4},null,null,{"$f":"DRAW!$G$10","v":12},null,null,null,{"$f":"DRAW!$B$10","v":4},null,null,{"$f":"DRAW!$I$10","v":18},null,null,{"$f":"DRAW!$B$10","v":4},null,null,{"$f":"DRAW!$K$10","v":7},null,null,null,{"$f":"DRAW!$B$10","v":4},null,null,{"$f":"DRAW!$M$10","v":9},null,null,null,{"$f":"DRAW!$B$10","v":4},null,null,{"$f":"DRAW!$O$10","v":20},null,null,{"$f":"DRAW!$B$10","v":4},null,null,{"$f":"DRAW!$Q$10","v":7},null,null,null,{"$f":"DRAW!$B$10","v":4},null,null,{"$f":"DRAW!$S$10","v":11}]
[null,"Team",{"$f":"DRAW!$B$10","v":4},"V","Team",{"$f":"DRAW!$D$10","v":13},null,null,"Team",{"$f":"DRAW!$B$10","v":4},"V","Team",{"$f":"DRAW!$F$10","v":2},null,null,"Team",{"$f":"DRAW!$B$10","v":4},"V","Team",{"$f":"DRAW!$H$10","v":6},null,"Team",{"$f":"DRAW!$B$10","v":4},"V","Team",{"$f":"DRAW!$J$10","v":10},null,null,"Team",{"$f":"DRAW!$B$10","v":4},"V","Team",{"$f":"DRAW!$L$10","v":11},null,null,"Team",{"$f":"DRAW!$B$10","v":4},"V","Team",{"$f":"DRAW!$N$10","v":8},null,"Team",{"$f":"DRAW!$B$10","v":4},"V","Team",{"$f":"DRAW!$P$10","v":12},null,null,"Team",{"$f":"DRAW!$B$10","v":4},"V","Team",{"$f":"DRAW!$R$10","v":3}]
["Ends","Shots","Total",null,"Shots","Total",null,"Ends","Shots","Total",null,"Shots","Total",null,"Ends","Shots","Total",null,"Shots","Total","Ends","Shots","Total",null,"Shots","Total",null,"Ends","Shots","Total",null,"Shots","Total",null,"Ends","Shots","Total",null,"Shots","Total","Ends","Shots","Total",null,"Shots","Total",null,"Ends","Shots","Total",null,"shots","Totar"]
[1,null,null,null,null,null,null,1,null,null,null,null,null,null,1,null,null,null,null,null,1,null,null,null,null,null,null,1,null,null,null,null,null,null,1,null,null,null,null,null,1,null,null,null,null,null,null,1]
[2,null,null,null,null,null,null,2,null,null,null,null,null,null,2,null,null,null,null,null,2,null,null,null,null,null,null,2,null,null,null,null,null,null,2,null,null,null,null,null,2,null,null,null,null,null,null,2]
[3,null,null,null,null,null,null,3,null,null,null,null,null,null,3,null,null,null,null,null,3,null,null,null,null,null,null,3,null,null,null,null,null,null,3,null,null,null,null,null,3,null,null,null,null,null,null,3]
[4,null,null,null,null,null,null,4,null,null,null,null,null,null,4,null,null,null,null,null,4,null,null,null,null,null,null,4,null,null,null,null,null,null,4,null,null,null,null,null,4,null,null,null,null,null,null,4]
[5,null,null,null,null,null,null,5,null,null,null,null,null,null,5,null,null,null,null,null,5,null,null,null,null,null,null,5,null,null,null,null,null,null,5,null,null,null,null,null,5,null,null,null,null,null,null,5]
[6,null,null,null,null,null,null,6,null,null,null,null,null,null,6,null,null,null,null,null,6,null,null,null,null,null,null,6,null,null,null,null,null,null,6,null,null,null,null,null,6,null,null,null,null,null,null,6]
[7,null,null,null,null,null,null,7,null,null,null,null,null,null,7,null,null,null,null,null,7,null,null,null,null,null,null,7,null,null,null,null,null,null,7,null,null,null,null,null,7,null,null,null,null,null,null,7]
[8,null,null,null,null,null,null,8,null,null,null,null,null,null,8,null,null,null,null,null,8,null,null,null,null,null,null,8,null,null,null,null,null,null,8,null,null,null,null,null,8,null,null,null,null,null,null,8]
[9,null,null,null,null,null,null,9,null,null,null,null,null,null,9,null,null,null,null,null,9,null,null,null,null,null,null,9,null,null,null,null,null,null,9,null,null,null,null,null,9,null,null,null,null,null,null,9]
[10,null,null,null,null,null,null,10,null,null,null,null,null,null,10,null,null,null,null,null,10,null,null,null,null,null,null,10,null,null,null,null,null,null,10,null,null,null,null,null,10,null,null,null,null,null,null,10]
[11,null,null,null,null,null,null,11,null,null,null,null,null,null,11,null,null,null,null,null,11,null,null,null,null,null,null,11,null,null,null,null,null,null,11,null,null,null,null,null,11,null,null,null,null,null,null,11]
[12,null,null,null,null,null,null,12,null,null,null,null,null,null,12,null,null,null,null,null,12,null,null,null,null,null,null,12,null,null,null,null,null,null,12,null,null,null,null,null,12,null,null,null,null,null,null,12]
[13,null,null,null,null,null,null,13,null,null,null,null,null,null,13,null,null,null,null,null,13,null,null,null,null,null,null,13,null,null,null,null,null,null,13,null,null,null,null,null,13,null,null,null,null,null,null,13]
[14,null,null,null,null,null,null,14,null,null,null,null,null,null,14,null,null,null,null,null,14,null,null,null,null,null,null,14,null,null,null,null,null,null,14,null,null,null,null,null,14,null,null,null,null,null,null,14]
[15,null,null,null,null,null,null,15,null,null,null,null,null,null,15,null,null,null,null,null,15,null,null,null,null,null,null,15,null,null,null,null,null,null,15,null,null,null,null,null,15,null,null,null,null,null,null,15]
[16,null,null,null,null,null,null,16,null,null,null,null,null,null,16,null,null,null,null,null,16,null,null,null,null,null,null,16,null,null,null,null,null,null,16,null,null,null,null,null,16,null,null,null,null,null,null,16]
[17,null,null,null,null,null,null,17,null,null,null,null,null,null,17,null,null,null,null,null,17,null,null,null,null,null,null,17,null,null,null,null,null,null,17,null,null,null,null,null,17,null,null,null,null,null,null,17]
[18,null,null,null,null,null,null,18,null,null,null,null,null,null,18,null,null,null,null,null,18,null,null,null,null,null,null,18,null,null,null,null,null,null,18,null,null,null,null,null,18,null,null,null,null,null,null,18]
["Total","Shots",null,null,"Shots",null,null,"Total","Shots",null,null,"Shots",null,null,"Total","Shots",null,null,"Shots",null,"Total","Shots",null,null,"Shots",null,null,"Total","Shots",null,null,"Shots",null,null,"Total","Shots",null,null,"Shots",null,"Total","Shots",null,null,"Shots",null,null,"Total","Shots",null,null,"shots"]
[null,"Ends",null,null,"Ends",null,null,null,"Ends",null,null,"Ends",null,null,null,"Ends",null,null,"Ends",null,null,"Ends",null,null,"Ends",null,null,null,"Ends",null,null,"Ends",null,null,null,"Ends",null,null,"Ends",null,null,"Ends",null,null,"Ends",null,null,null,"Ends",null,null,"Ends"]
["1st Game ",null,null,null,null,null,null,"2nd Game ",null,null,null,null,null,null,"3rd Game ",null,null,null,null,null,"4th Game",null,null,null,null,null,null,"5th Game",null,null,null,null,null,null,"6th Game",null,null,null,null,null,"7th Game",null,null,null,null,null,null,"8th Game"]
["Team No",null,null,"Rink No",null,null,null,"Team No",null,null,"Rink No",null,null,null,"Team No",null,null,"Rink No",null,null,"Team No",null,null,"Rink No",null,null,null,"Team No",null,null,"Rink No",null,null,null,"Team No",null,null,"Rink No",null,null,"Team No",null,null,"Rink No",null,null,null,"Team No",null,null,"Rink No"]
[]
[{"$f":"DRAW!$B$11","v":5},null,null,{"$f":"DRAW!$E$11","v":4},null,null,null,{"$f":"DRAW!$B$11","v":5},null,null,{"$f":"DRAW!$G$11","v":8},null,null,null,{"$f":"DRAW!$B$11","v":5},null,null,{"$f":"DRAW!$I$11","v":19},null,null,{"$f":"DRAW!$B$11","v":5},null,null,{"$f":"DRAW!$K$11","v":3},null,null,null,{"$f":"DRAW!$B$11","v":5},null,null,{"$f":"DRAW!$M$11","v":12},null,null,null,{"$f":"DRAW!$B$11","v":5},null,null,{"$f":"DRAW!$O$11","v":15},null,null,{"$f":"DRAW!$B$11","v":5},null,null,{"$f":"DRAW!$Q$11","v":6},null,null,null,{"$f":"DRAW!$B$11","v":5},null,null,{"$f":"DRAW!$S$11","v":9}]
[null,"Team",{"$f":"DRAW!$B$11","v":5},"V","Team",{"$f":"DRAW!$D$11","v":12},null,null,"Team",{"$f":"DRAW!$B$11","v":5},"V","Team",{"$f":"DRAW!$F$11","v":14},null,null,"Team",{"$f":"DRAW!$B$11","v":5},"V","Team",{"$f":"DRAW!$H$11","v":1},null,"Team",{"$f":"DRAW!$B$11","v":5},"V","Team",{"$f":"DRAW!$J$11","v":9},null,null,"Team",{"$f":"DRAW!$B$11","v":5},"V","Team",{"$f":"DRAW!$L$11","v":10},null,null,"Team",{"$f":"DRAW!$B$11","v":5},"V","Team",{"$f":"DRAW!$N$11","v":11},null,"Team",{"$f":"DRAW!$B$11","v":5},"V","Team",{"$f":"DRAW!$P$11","v":8},null,null,"Team",{"$f":"DRAW!$B$11","v":5},"V","Team",{"$f":"DRAW!$R$11","v":2}]
["Ends","Shots","Total",null,"Shots","Total",null,"Ends","Shots","Total",null,"Shots","Total",null,"Ends","Shots","Total",null,"Shots","Total","Ends","Shots","Total",null,"Shots","Total",null,"Ends","Shots","Total",null,"Shots","Total",null,"Ends","Shots","Total",null,"Shots","Total","Ends","Shots","Total",null,"Shots","Total",null,"Ends","Shots","Total",null,"shots","Totar"]
[1,null,null,null,null,null,null,1,null,null,null,null,null,null,1,null,null,null,null,null,1,null,null,null,null,null,null,1,null,null,null,null,null,null,1,null,null,null,null,null,1,null,null,null,null,null,null,1]
[2,null,null,null,null,null,null,2,null,null,null,null,null,null,2,null,null,null,null,null,2,null,null,null,null,null,null,2,null,null,null,null,null,null,2,null,null,null,null,null,2,null,null,null,null,null,null,2]
[3,null,null,null,null,null,null,3,null,null,null,null,null,null,3,null,null,null,null,null,3,null,null,null,null,null,null,3,null,null,null,null,null,null,3,null,null,null,null,null,3,null,null,null,null,null,null,3]
[4,null,null,null,null,null,null,4,null,null,null,null,null,null,4,null,null,null,null,null,4,null,null,null,null,null,null,4,null,null,null,null,null,null,4,null,null,null,null,null,4,null,null,null,null,null,null,4]
[5,null,null,null,null,null,null,5,null,null,null,null,null,null,5,null,null,null,null,null,5,null,null,null,null,null,null,5,null,null,null,null,null,null,5,null,null,null,null,null,5,null,null,null,null,null,null,5]
[6,null,null,null,null,null,null,6,null,null,null,null,null,null,6,null,null,null,null,null,6,null,null,null,null,null,null,6,null,null,null,null,null,null,6,null,null,null,null,null,6,null,null,null,null,null,null,6]
[7,null,null,null,null,null,null,7,null,null,null,null,null,null,7,null,null,null,null,null,7,null,null,null,null,null,null,7,null,null,null,null,null,null,7,null,null,null,null,null,7,null,null,null,null,null,null,7]
[8,null,null,null,null,null,null,8,null,null,null,null,null,null,8,null,null,null,null,null,8,null,null,null,null,null,null,8,null,null,null,null,null,null,8,null,null,null,null,null,8,null,null,null,null,null,null,8]
[9,null,null,null,null,null,null,9,null,null,null,null,null,null,9,null,null,null,null,null,9,null,null,null,null,null,null,9,null,null,null,null,null,null,9,null,null,null,null,null,9,null,null,null,null,null,null,9]
[10,null,null,null,null,null,null,10,null,null,null,null,null,null,10,null,null,null,null,null,10,null,null,null,null,null,null,10,null,null,null,null,null,null,10,null,null,null,null,null,10,null,null,null,null,null,null,10]
[11,null,null,null,null,null,null,11,null,null,null,null,null,null,11,null,null,null,null,null,11,null,null,null,null,null,null,11,null,null,null,null,null,null,11,null,null,null,null,null,11,null,null,null,null,null,null,11]
[12,null,null,null,null,null,null,12,null,null,null,null,null,null,12,null,null,null,null,null,12,null,null,null,null,null,null,12,null,null,null,null,null,null,12,null,null,null,null,null,12,null,null,null,null,null,null,12]
[13,null,null,null,null,null,null,13,null,null,null,null,null,null,13,null,null,null,null,null,13,null,null,null,null,null,null,13,null,null,null,null,null,null,13,null,null,null,null,null,13,null,null,null,null,null,null,13]
[14,null,null,null,null,null,null,14,null,null,null,null,null,null,14,null,null,null,null,null,14,null,null,null,null,null,null,14,null,null,null,null,null,null,14,null,null,null,null,null,14,null,null,null,null,null,null,14]
[15,null,null,null,null,null,null,15,null,null,null,null,null,null,15,null,null,null,null,null,15,null,null,null,null,null,null,15,null,null,null,null,null,null,15,null,null,null,null,null,15,null,null,null,null,null,null,15]
[16,null,null,null,null,null,null,16,null,null,null,null,null,null,16,null,null,null,null,null,16,null,null,null,null,null,null,16,null,null,null,null,null,null,16,null,null,null,null,null,16,null,null,null,null,null,null,16]
[17,null,null,null,null,null,null,17,null,null,null,null,null,null,17,null,null,null,null,null,17,null,null,null,null,null,null,17,null,null,null,null,null,null,17,null,null,null,null,null,17,null,null,null,null,null,null,17]
[18,null,null,null,null,null,null,18,null,null,null,null,null,null,18,null,null,null,null,null,18,null,null,null,null,null,null,18,null,null,null,null,null,null,18,null,null,null,null,null,18,null,null,null,null,null,null,18]
["Total","Shots",null,null,"Shots",null,null,"Total","Shots",null,null,"Shots",null,null,"Total","Shots",null,null,"Shots",null,"Total","Shots",null,null,"Shots",null,null,"Total","Shots",null,null,"Shots",null,null,"Total","Shots",null,null,"Shots",null,"Total","Shots",null,null,"Shots",null,null,"Total","Shots",null,null,"shots"]
[null,"Ends",null,null,"Ends",null,null,null,"Ends",null,null,"Ends",null,null,null,"Ends",null,null,"Ends",null,null,"Ends",null,null,"Ends",null,null,null,"Ends",null,null,"Ends",null,null,null,"Ends",null,null,"Ends",null,null,"Ends",null,null,"Ends",null,null,null,"Ends",null,null,"Ends"]
[]
[]
["1st Game ",null,null,null,null,null,null,"2nd Game ",null,null,null,null,null,null,"3rd Game ",null,null,null,null,null,"4th Game",null,null,null,null,null,null,"5th Game",null,null,null,null,null,null,"6th Game",null,null,null,null,null,"7th Game",null,null,null,null,null,null,"8th Game"]
["Team No",null,null,"Rink No",null,null,null,"Team No",null,null,"Rink No",null,null,null,"Team No",null,null,"Rink No",null,null,"Team No",null,null,"Rink No",null,null,null,"Team No",null,null,"Rink No",null,null,null,"Team No",null,null,"Rink No",null,null,"Team No",null,null,"Rink No",null,null,null,"Team No",null,null,"Rink No"]
[]
[{"$f":"DRAW!$B$12","v":6},null,null,{"$f":"DRAW!$E$12","v":5},null,null,null,{"$f":"DRAW!$B$12","v":6},null,null,{"$f":"DRAW!$G$12","v":14},null,null,null,{"$f":"DRAW!$B$12","v":6},null,null,{"$f":"DRAW!$I$12","v":18},null,null,{"$f":"DRAW!$B$12","v":6},null,null,{"$f":"DRAW!$K$12","v":1},null,null,null,{"$f":"DRAW!$B$12","v":6},null,null,{"$f":"DRAW!$M$12","v":13},null,null,null,{"$f":"DRAW!$B$12","v":6},null,null,{"$f":"DRAW!$O$12","v":19},null,null,{"$f":"DRAW!$B$12","v":6},null,null,{"$f":"DRAW!$Q$12","v":4},null,null,null,{"$f":"DRAW!$B$12","v":6},null,null,{"$f":"DRAW!$S$12","v":14}]
[null,"Team",{"$f":"DRAW!$B$12","v":6},"V","Team",{"$f":"DRAW!$D$12","v":11},null,null,"Team",{"$f":"DRAW!$B$12","v":6},"V","Team",{"$f":"DRAW!$F$12","v":13},null,null,"Team",{"$f":"DRAW!$B$12","v":6},"V","Team",{"$f":"DRAW!$H$12","v":4},null,"Team",{"$f":"DRAW!$B$12","v":6},"V","Team",{"$f":"DRAW!$J$12","v":8},null,null,"Team",{"$f":"DRAW!$B$12","v":6},"V","Team",{"$f":"DRAW!$L$12","v":9},null,null,"Team",{"$f":"DRAW!$B$12","v":6},"V","Team",{"$f":"DRAW!$N$12","v":10},null,"Team",{"$f":"DRAW!$B$12","v":6},"V","Team",{"$f":"DRAW!$P$12","v":7},null,null,"Team",{"$f":"DRAW!$B$12","v":6},"V","Team",{"$f":"DRAW!$R$12","v":14}]
["Ends","Shots","Total",null,"Shots","Total",null,"Ends","Shots","Total",null,"Shots","Total",null,"Ends","Shots","Total",null,"Shots","Total","Ends","Shots","Total",null,"Shots","Total",null,"Ends","Shots","Total",null,"Shots","Total",null,"Ends","Shots","Total",null,"Shots","Total","Ends","Shots","Total",null,"Shots","Total",null,"Ends","Shots","Total",null,"shots","Totar"]
[1,null,null,null,null,null,null,1,null,null,null,null,null,null,1,null,null,null,null,null,1,null,null,null,null,null,null,1,null,null,null,null,null,null,1,null,null,null,null,null,1,null,null,null,null,null,null,1]
[2,null,null,null,null,null,null,2,null,null,null,null,null,null,2,null,null,null,null,null,2,null,null,null,null,null,null,2,null,null,null,null,null,null,2,null,null,null,null,null,2,null,null,null,null,null,null,2]
[3,null,null,null,null,null,null,3,null,null,null,null,null,null,3,null,null,null,null,null,3,null,null,null,null,null,null,3,null,null,null,null,null,null,3,null,null,null,null,null,3,null,null,null,null,null,null,3]
[4,null,null,null,null,null,null,4,null,null,null,null,null,null,4,null,null,null,null,null,4,null,null,null,null,null,null,4,null,null,null,null,null,null,4,null,null,null,null,null,4,null,null,null,null,null,null,4]
[5,null,null,null,null,null,null,5,null,null,null,null,null,null,5,null,null,null,null,null,5,null,null,null,null,null,null,5,null,null,null,null,null,null,5,null,null,null,null,null,5,null,null,null,null,null,null,5]
[6,null,null,null,null,null,null,6,null,null,null,null,null,null,6,null,null,null,null,null,6,null,null,null,null,null,null,6,null,null,null,null,null,null,6,null,null,null,null,null,6,null,null,null,null,null,null,6]
[7,null,null,null,null,null,null,7,null,null,null,null,null,null,7,null,null,null,null,null,7,null,null,null,null,null,null,7,null,null,null,null,null,null,7,null,null,null,null,null,7,null,null,null,null,null,null,7]
[8,null,null,null,null,null,null,8,null,null,null,null,null,null,8,null,null,null,null,null,8,null,null,null,null,null,null,8,null,null,null,null,null,null,8,null,null,null,null,null,8,null,null,null,null,null,null,8]
[9,null,null,null,null,null,null,9,null,null,null,null,null,null,9,null,null,null,null,null,9,null,null,null,null,null,null,9,null,null,null,null,null,null,9,null,null,null,null,null,9,null,null,null,null,null,null,9]
[10,null,null,null,null,null,null,10,null,null,null,null,null,null,10,null,null,null,null,null,10,null,null,null,null,null,null,10,null,null,null,null,null,null,10,null,null,null,null,null,10,null,null,null,null,null,null,10]
[11,null,null,null,null,null,null,11,null,null,null,null,null,null,11,null,null,null,null,null,11,null,null,null,null,null,null,11,null,null,null,null,null,null,11,null,null,null,null,null,11,null,null,null,null,null,null,11]
[12,null,null,null,null,null,null,12,null,null,null,null,null,null,12,null,null,null,null,null,12,null,null,null,null,null,null,12,null,null,null,null,null,null,12,null,null,null,null,null,12,null,null,null,null,null,null,12]
[13,null,null,null,null,null,null,13,null,null,null,null,null,null,13,null,null,null,null,null,13,null,null,null,null,null,null,13,null,null,null,null,null,null,13,null,null,null,null,null,13,null,null,null,null,null,null,13]
[14,null,null,null,null,null,null,14,null,null,null,null,null,null,14,null,null,null,null,null,14,null,null,null,null,null,null,14,null,null,null,null,null,null,14,null,null,null,null,null,14,null,null,null,null,null,null,14]
[15,null,null,null,null,null,null,15,null,null,null,null,null,null,15,null,null,null,null,null,15,null,null,null,null,null,null,15,null,null,null,null,null,null,15,null,null,null,null,null,15,null,null,null,null,null,null,15]
[16,null,null,null,null,null,null,16,null,null,null,null,null,null,16,null,null,null,null,null,16,null,null,null,null,null,null,16,null,null,null,null,null,null,16,null,null,null,null,null,16,null,null,null,null,null,null,16]
[17,null,null,null,null,null,null,17,null,null,null,null,null,null,17,null,null,null,null,null,17,null,null,null,null,null,null,17,null,null,null,null,null,null,17,null,null,null,null,null,17,null,null,null,null,null,null,17]
[18,null,null,null,null,null,null,18,null,null,null,null,null,null,18,null,null,null,null,null,18,null,null,null,null,null,null,18,null,null,null,null,null,null,18,null,null,null,null,null,18,null,null,null,null,null,null,18]
["Total","Shots",null,null,"Shots",null,null,"Total","Shots",null,null,"Shots",null,null,"Total","Shots",null,null,"Shots",null,"Total","Shots",null,null,"Shots",null,null,"Total","Shots",null,null,"Shots",null,null,"Total","Shots",null,null,"Shots",null,"Total","Shots",null,null,"Shots",null,null,"Total","Shots",null,null,"shots"]
[null,"Ends",null,null,"Ends",null,null,null,"Ends",null,null,"Ends",null,null,null,"Ends",null,null,"Ends",null,null,"Ends",null,null,"Ends",null,null,null,"Ends",null,null,"Ends",null,null,null,"Ends",null,null,"Ends",null,null,"Ends",null,null,"Ends",null,null,null,"Ends",null,null,"Ends"]
["1st Game ",null,null,null,null,null,null,"2nd Game ",null,null,null,null,null,null,"3rd Game ",null,null,null,null,null,"4th Game",null,null,null,null,null,null,"5th Game",null,null,null,null,null,null,"6th Game",null,null,null,null,null,"7th Game",null,null,null,null,null,null,"8th Game"]
["Team No",null,null,"Rink No",null,null,null,"Team No",null,null,"Rink No",null,null,null,"Team No",null,null,"Rink No",null,null,"Team No",null,null,"Rink No",null,null,null,"Team No",null,null,"Rink No",null,null,null,"Team No",null,null,"Rink No",null,null,"Team No",null,null,"Rink No",null,null,null,"Team No",null,null,"Rink No"]
[]
[{"$f":"DRAW!$B$13","v":7},null,null,{"$f":"DRAW!$E$13","v":6},null,null,null,{"$f":"DRAW!$B$13","v":7},null,null,{"$f":"DRAW!$G$13","v":9},null,null,null,{"$f":"DRAW!$B$13","v":7},null,null,{"$f":"DRAW!$I$13","v":15},null,null,{"$f":"DRAW!$B$13","v":7},null,null,{"$f":"DRAW!$K$13","v":2},null,null,null,{"$f":"DRAW!$B$13","v":7},null,null,{"$f":"DRAW!$M$13","v":11},null,null,null,{"$f":"DRAW!$B$13","v":7},null,null,{"$f":"DRAW!$O$13","v":21},null,null,{"$f":"DRAW!$B$13","v":7},null,null,{"$f":"DRAW!$Q$13","v":4},null,null,null,{"$f":"DRAW!$B$13","v":7},null,null,{"$f":"DRAW!$S$13","v":10}]
[null,"Team",{"$f":"DRAW!$B$13","v":7},"V","Team",{"$f":"DRAW!$D$13","v":10},null,null,"Team",{"$f":"DRAW!$B$13","v":7},"V","Team",{"$f":"DRAW!$F$13","v":12},null,null,"Team",{"$f":"DRAW!$B$13","v":7},"V","Team",{"$f":"DRAW!$H$13","v":3},null,"Team",{"$f":"DRAW!$B$13","v":7},"V","Team",{"$f":"DRAW!$J$13","v":1},null,null,"Team",{"$f":"DRAW!$B$13","v":7},"V","Team",{"$f":"DRAW!$L$13","v":8},null,null,"Team",{"$f":"DRAW!$B$13","v":7},"V","Team",{"$f":"DRAW!$N$13","v":9},null,"Team",{"$f":"DRAW!$B$13","v":7},"V","Team",{"$f":"DRAW!$P$13","v":6},null,null,"Team",{"$f":"DRAW!$B$13","v":7},"V","Team",{"$f":"DRAW!$R$13","v":13}]
["Ends","Shots","Total",null,"Shots","Total",null,"Ends","Shots","Total",null,"Shots","Total",null,"Ends","Shots","Total",null,"Shots","Total","Ends","Shots","Total",null,"Shots","Total",null,"Ends","Shots","Total",null,"Shots","Total",null,"Ends","Shots","Total",null,"Shots","Total","Ends","Shots","Total",null,"Shots","Total",null,"Ends","Shots","Total",null,"shots","Totar"]
[1,null,null,null,null,null,null,1,null,null,null,null,null,null,1,null,null,null,null,null,1,null,null,null,null,null,null,1,null,null,null,null,null,null,1,null,null,null,null,null,1,null,null,null,null,null,null,1]
[2,null,null,null,null,null,null,2,null,null,null,null,null,null,2,null,null,null,null,null,2,null,null,null,null,null,null,2,null,null,null,null,null,null,2,null,null,null,null,null,2,null,null,null,null,null,null,2]
[3,null,null,null,null,null,null,3,null,null,null,null,null,null,3,null,null,null,null,null,3,null,null,null,null,null,null,3,null,null,null,null,null,null,3,null,null,null,null,null,3,null,null,null,null,null,null,3]
[4,null,null,null,null,null,null,4,null,null,null,null,null,null,4,null,null,null,null,null,4,null,null,null,null,null,null,4,null,null,null,null,null,null,4,null,null,null,null,null,4,null,null,null,null,null,null,4]
[5,null,null,null,null,null,null,5,null,null,null,null,null,null,5,null,null,null,null,null,5,null,null,null,null,null,null,5,null,null,null,null,null,null,5,null,null,null,null,null,5,null,null,null,null,null,null,5]
[6,null,null,null,null,null,null,6,null,null,null,null,null,null,6,null,null,null,null,null,6,null,null,null,null,null,null,6,null,null,null,null,null,null,6,null,null,null,null,null,6,null,null,null,null,null,null,6]
[7,null,null,null,null,null,null,7,null,null,null,null,null,null,7,null,null,null,null,null,7,null,null,null,null,null,null,7,null,null,null,null,null,null,7,null,null,null,null,null,7,null,null,null,null,null,null,7]
[8,null,null,null,null,null,null,8,null,null,null,null,null,null,8,null,null,null,null,null,8,null,null,null,null,null,null,8,null,null,null,null,null,null,8,null,null,null,null,null,8,null,null,null,null,null,null,8]
[9,null,null,null,null,null,null,9,null,null,null,null,null,null,9,null,null,null,null,null,9,null,null,null,null,null,null,9,null,null,null,null,null,null,9,null,null,null,null,null,9,null,null,null,null,null,null,9]
[10,null,null,null,null,null,null,10,null,null,null,null,null,null,10,null,null,null,null,null,10,null,null,null,null,null,null,10,null,null,null,null,null,null,10,null,null,null,null,null,10,null,null,null,null,null,null,10]
[11,null,null,null,null,null,null,11,null,null,null,null,null,null,11,null,null,null,null,null,11,null,null,null,null,null,null,11,null,null,null,null,null,null,11,null,null,null,null,null,11,null,null,null,null,null,null,11]
[12,null,null,null,null,null,null,12,null,null,null,null,null,null,12,null,null,null,null,null,12,null,null,null,null,null,null,12,null,null,null,null,null,null,12,null,null,null,null,null,12,null,null,null,null,null,null,12]
[13,null,null,null,null,null,null,13,null,null,null,null,null,null,13,null,null,null,null,null,13,null,null,null,null,null,null,13,null,null,null,null,null,null,13,null,null,null,null,null,13,null,null,null,null,null,null,13]
[14,null,null,null,null,null,null,14,null,null,null,null,null,null,14,null,null,null,null,null,14,null,null,null,null,null,null,14,null,null,null,null,null,null,14,null,null,null,null,null,14,null,null,null,null,null,null,14]
[15,null,null,null,null,null,null,15,null,null,null,null,null,null,15,null,null,null,null,null,15,null,null,null,null,null,null,15,null,null,null,null,null,null,15,null,null,null,null,null,15,null,null,null,null,null,null,15]
[16,null,null,null,null,null,null,16,null,null,null,null,null,null,16,null,null,null,null,null,16,null,null,null,null,null,null,16,null,null,null,null,null,null,16,null,null,null,null,null,16,null,null,null,null,null,null,16]
[17,null,null,null,null,null,null,17,null,null,null,null,null,null,17,null,null,null,null,null,17,null,null,null,null,null,null,17,null,null,null,null,null,null,17,null,null,null,null,null,17,null,null,null,null,null,null,17]
[18,null,null,null,null,null,null,18,null,null,null,null,null,null,18,null,null,null,null,null,18,null,null,null,null,null,null,18,null,null,null,null,null,null,18,null,null,null,null,null,18,null,null,null,null,null,null,18]
["Total","Shots",null,null,"Shots",null,null,"Total","Shots",null,null,"Shots",null,null,"Total","Shots",null,null,"Shots",null,"Total","Shots",null,null,"Shots",null,null,"Total","Shots",null,null,"Shots",null,null,"Total","Shots",null,null,"Shots",null,"Total","Shots",null,null,"Shots",null,null,"Total","Shots",null,null,"shots"]
[null,"Ends",null,null,"Ends",null,null,null,"Ends",null,null,"Ends",null,null,null,"Ends",null,null,"Ends",null,null,"Ends",null,null,"Ends",null,null,null,"Ends",null,null,"Ends",null,null,null,"Ends",null,null,"Ends",null,null,"Ends",null,null,"Ends",null,null,null,"Ends",null,null,"Ends"]
[]
[]
["1st Game ",null,null,null,null,null,null,"2nd Game ",null,null,null,null,null,null,"3rd Game ",null,null,null,null,null,"4th Game",null,null,null,null,null,null,"5th Game",null,null,null,null,null,null,"6th Game",null,null,null,null,null,"7th Game",null,null,null,null,null,null,"8th Game"]
["Team No",null,null,"Rink No",null,null,null,"Team No",null,null,"Rink No",null,null,null,"Team No",null,null,"Rink No",null,null,"Team No",null,null,"Rink No",null,null,null,"Team No",null,null,"Rink No",null,null,null,"Team No",null,null,"Rink No",null,null,"Team No",null,null,"Rink No",null,null,null,"Team No",null,null,"Rink No"]
[]
[{"$f":"DRAW!$B$14","v":8},null,null,{"$f":"DRAW!$E$14","v":7},null,null,null,{"$f":"DRAW!$B$14","v":8},null,null,{"$f":"DRAW!$G$14","v":10},null,null,null,{"$f":"DRAW!$B$14","v":8},null,null,{"$f":"DRAW!$I$14","v":16},null,null,{"$f":"DRAW!$B$14","v":8},null,null,{"$f":"DRAW!$K$14","v":1},null,null,null,{"$f":"DRAW!$B$14","v":8},null,null,{"$f":"DRAW!$M$14","v":11},null,null,null,{"$f":"DRAW!$B$14","v":8},null,null,{"$f":"DRAW!$O$14","v":20},null,null,{"$f":"DRAW!$B$14","v":8},null,null,{"$f":"DRAW!$Q$14","v":6},null,null,null,{"$f":"DRAW!$B$14","v":8},null,null,{"$f":"DRAW!$S$14","v":8}]
[null,"Team",{"$f":"DRAW!$B$14","v":8},"V","Team",{"$f":"DRAW!$D$14","v":9},null,null,"Team",{"$f":"DRAW!$B$14","v":8},"V","Team",{"$f":"DRAW!$F$14","v":11},null,null,"Team",{"$f":"DRAW!$B$14","v":8},"V","Team",{"$f":"DRAW!$H$14","v":2},null,"Team",{"$f":"DRAW!$B$14","v":8},"V","Team",{"$f":"DRAW!$J$14","v":6},null,null,"Team",{"$f":"DRAW!$B$14","v":8},"V","Team",{"$f":"DRAW!$L$14","v":7},null,null,"Team",{"$f":"DRAW!$B$14","v":8},"V","Team",{"$f":"DRAW!$N$14","v":4},null,"Team",{"$f":"DRAW!$B$14","v":8},"V","Team",{"$f":"DRAW!$P$14","v":5},null,null,"Team",{"$f":"DRAW!$B$14","v":8},"V","Team",{"$f":"DRAW!$R$14","v":1}]
["Ends","Shots","Total",null,"Shots","Total",null,"Ends","Shots","Total",null,"Shots","Total",null,"Ends","Shots","Total",null,"Shots","Total","Ends","Shots","Total",null,"Shots","Total",null,"Ends","Shots","Total",null,"Shots","Total",null,"Ends","Shots","Total",null,"Shots","Total","Ends","Shots","Total",null,"Shots","Total",null,"Ends","Shots","Total",null,"shots","Totar"]
[1,null,null,null,null,null,null,1,null,null,null,null,null,null,1,null,null,null,null,null,1,null,null,null,null,null,null,1,null,null,null,null,null,null,1,null,null,null,null,null,1,null,null,null,null,null,null,1]
[2,null,null,null,null,null,null,2,null,null,null,null,null,null,2,null,null,null,null,null,2,null,null,null,null,null,null,2,null,null,null,null,null,null,2,null,null,null,null,null,2,null,null,null,null,null,null,2]
[3,null,null,null,null,null,null,3,null,null,null,null,null,null,3,null,null,null,null,null,3,null,null,null,null,null,null,3,null,null,null,null,null,null,3,null,null,null,null,null,3,null,null,null,null,null,null,3]
[4,null,null,null,null,null,null,4,null,null,null,null,null,null,4,null,null,null,null,null,4,null,null,null,null,null,null,4,null,null,null,null,null,null,4,null,null,null,null,null,4,null,null,null,null,null,null,4]
[5,null,null,null,null,null,null,5,null,null,null,null,null,null,5,null,null,null,null,null,5,null,null,null,null,null,null,5,null,null,null,null,null,null,5,null,null,null,null,null,5,null,null,null,null,null,null,5]
[6,null,null,null,null,null,null,6,null,null,null,null,null,null,6,null,null,null,null,null,6,null,null,null,null,null,null,6,null,null,null,null,null,null,6,null,null,null,null,null,6,null,null,null,null,null,null,6]
[7,null,null,null,null,null,null,7,null,null,null,null,null,null,7,null,null,null,null,null,7,null,null,null,null,null,null,7,null,null,null,null,null,null,7,null,null,null,null,null,7,null,null,null,null,null,null,7]
[8,null,null,null,null,null,null,8,null,null,null,null,null,null,8,null,null,null,null,null,8,null,null,null,null,null,null,8,null,null,null,null,null,null,8,null,null,null,null,null,8,null,null,null,null,null,null,8]
[9,null,null,null,null,null,null,9,null,null,null,null,null,null,9,null,null,null,null,null,9,null,null,null,null,null,null,9,null,null,null,null,null,null,9,null,null,null,null,null,9,null,null,null,null,null,null,9]
[10,null,null,null,null,null,null,10,null,null,null,null,null,null,10,null,null,null,null,null,10,null,null,null,null,null,null,10,null,null,null,null,null,null,10,null,null,null,null,null,10,null,null,null,null,null,null,10]
[11,null,null,null,null,null,null,11,null,null,null,null,null,null,11,null,null,null,null,null,11,null,null,null,null,null,null,11,null,null,null,null,null,null,11,null,null,null,null,null,11,null,null,null,null,null,null,11]
[12,null,null,null,null,null,null,12,null,null,null,null,null,null,12,null,null,null,null,null,12,null,null,null,null,null,null,12,null,null,null,null,null,null,12,null,null,null,null,null,12,null,null,null,null,null,null,12]
[13,null,null,null,null,null,null,13,null,null,null,null,null,null,13,null,null,null,null,null,13,null,null,null,null,null,null,13,null,null,null,null,null,null,13,null,null,null,null,null,13,null,null,null,null,null,null,13]
[14,null,null,null,null,null,null,14,null,null,null,null,null,null,14,null,null,null,null,null,14,null,null,null,null,null,null,14,null,null,null,null,null,null,14,null,null,null,null,null,14,null,null,null,null,null,null,14]
[15,null,null,null,null,null,null,15,null,null,null,null,null,null,15,null,null,null,null,null,15,null,null,null,null,null,null,15,null,null,null,null,null,null,15,null,null,null,null,null,15,null,null,null,null,null,null,15]
[16,null,null,null,null,null,null,16,null,null,null,null,null,null,16,null,null,null,null,null,16,null,null,null,null,null,null,16,null,null,null,null,null,null,16,null,null,null,null,null,16,null,null,null,null,null,null,16]
[17,null,null,null,null,null,null,17,null,null,null,null,null,null,17,null,null,null,null,null,17,null,null,null,null,null,null,17,null,null,null,null,null,null,17,null,null,null,null,null,17,null,null,null,null,null,null,17]
[18,null,null,null,null,null,null,18,null,null,null,null,null,null,18,null,null,null,null,null,18,null,null,null,null,null,null,18,null,null,null,null,null,null,18,null,null,null,null,null,18,null,null,null,null,null,null,18]
["Total","Shots",null,null,"Shots",null,null,"Total","Shots",null,null,"Shots",null,null,"Total","Shots",null,null,"Shots",null,"Total","Shots",null,null,"Shots",null,null,"Total","Shots",null,null,"Shots",null,null,"Total","Shots",null,null,"Shots",null,"Total","Shots",null,null,"Shots",null,null,"Total","Shots",null,null,"shots"]
[null,"Ends",null,null,"Ends",null,null,null,"Ends",null,null,"Ends",null,null,null,"Ends",null,null,"Ends",null,null,"Ends",null,null,"Ends",null,null,null,"Ends",null,null,"Ends",null,null,null,"Ends",null,null,"Ends",null,null,"Ends",null,null,"Ends",null,null,null,"Ends",null,null,"Ends"]
["1st Game ",null,null,null,null,null,null,"2nd Game ",null,null,null,null,null,null,"3rd Game ",null,null,null,null,null,"4th Game",null,null,null,null,null,null,"5th Game",null,null,null,null,null,null,"6th Game",null,null,null,null,null,"7th Game",null,null,null,null,null,null,"8th Game"]
["Team No",null,null,"Rink No",null,null,null,"Team No",null,null,"Rink No",null,null,null,"Team No",null,null,"Rink No",null,null,"Team No",null,null,"Rink No",null,null,null,"Team No",null,null,"Rink No",null,null,null,"Team No",null,null,"Rink No",null,null,"Team No",null,null,"Rink No",null,null,null,"Team No",null,null,"Rink No"]
[]
[{"$f":"DRAW!$B$15","v":9},null,null,{"$f":"DRAW!$E$15","v":7},null,null,null,{"$f":"DRAW!$B$15","v":9},null,null,{"$f":"DRAW!$G$15","v":11},null,null,null,{"$f":"DRAW!$B$15","v":9},null,null,{"$f":"DRAW!$I$15","v":17},null,null,{"$f":"DRAW!$B$15","v":9},null,null,{"$f":"DRAW!$K$15","v":3},null,null,null,{"$f":"DRAW!$B$15","v":9},null,null,{"$f":"DRAW!$M$15","v":13},null,null,null,{"$f":"DRAW!$B$15","v":9},null,null,{"$f":"DRAW!$O$15","v":21},null,null,{"$f":"DRAW!$B$15","v":9},null,null,{"$f":"DRAW!$Q$15","v":2},null,null,null,{"$f":"DRAW!$B$15","v":9},null,null,{"$f":"DRAW!$S$15","v":12}]
[null,"Team",{"$f":"DRAW!$B$15","v":9},"V","Team",{"$f":"DRAW!$D$15","v":8},null,null,"Team",{"$f":"DRAW!$B$15","v":9},"V","Team",{"$f":"DRAW!$F$15","v":10},null,null,"Team",{"$f":"DRAW!$B$15","v":9},"V","Team",{"$f":"DRAW!$H$15","v":14},null,"Team",{"$f":"DRAW!$B$15","v":9},"V","Team",{"$f":"DRAW!$J$15","v":5},null,null,"Team",{"$f":"DRAW!$B$15","v":9},"V","Team",{"$f":"DRAW!$L$15","v":6},null,null,"Team",{"$f":"DRAW!$B$15","v":9},"V","Team",{"$f":"DRAW!$N$15","v":7},null,"Team",{"$f":"DRAW!$B$15","v":9},"V","Team",{"$f":"DRAW!$P$15","v":2},null,null,"Team",{"$f":"DRAW!$B$15","v":9},"V","Team",{"$f":"DRAW!$R$15","v":11}]
["Ends","Shots","Total",null,"Shots","Total",null,"Ends","Shots","Total",null,"Shots","Total",null,"Ends","Shots","Total",null,"Shots","Total","Ends","Shots","Total",null,"Shots","Total",null,"Ends","Shots","Total",null,"Shots","Total",null,"Ends","Shots","Total",null,"Shots","Total","Ends","Shots","Total",null,"Shots","Total",null,"Ends","Shots","Total",null,"shots","Totar"]
[1,null,null,null,null,null,null,1,null,null,null,null,null,null,1,null,null,null,null,null,1,null,null,null,null,null,null,1,null,null,null,null,null,null,1,null,null,null,null,null,1,null,null,null,null,null,null,1]
[2,null,null,null,null,null,null,2,null,null,null,null,null,null,2,null,null,null,null,null,2,null,null,null,null,null,null,2,null,null,null,null,null,null,2,null,null,null,null,null,2,null,null,null,null,null,null,2]
[3,null,null,null,null,null,null,3,null,null,null,null,null,null,3,null,null,null,null,null,3,null,null,null,null,null,null,3,null,null,null,null,null,null,3,null,null,null,null,null,3,null,null,null,null,null,null,3]
[4,null,null,null,null,null,null,4,null,null,null,null,null,null,4,null,null,null,null,null,4,null,null,null,null,null,null,4,null,null,null,null,null,null,4,null,null,null,null,null,4,null,null,null,null,null,null,4]
[5,null,null,null,null,null,null,5,null,null,null,null,null,null,5,null,null,null,null,null,5,null,null,null,null,null,null,5,null,null,null,null,null,null,5,null,null,null,null,null,5,null,null,null,null,null,null,5]
[6,null,null,null,null,null,null,6,null,null,null,null,null,null,6,null,null,null,null,null,6,null,null,null,null,null,null,6,null,null,null,null,null,null,6,null,null,null,null,null,6,null,null,null,null,null,null,6]
[7,null,null,null,null,null,null,7,null,null,null,null,null,null,7,null,null,null,null,null,7,null,null,null,null,null,null,7,null,null,null,null,null,null,7,null,null,null,null,null,7,null,null,null,null,null,null,7]
[8,null,null,null,null,null,null,8,null,null,null,null,null,null,8,null,null,null,null,null,8,null,null,null,null,null,null,8,null,null,null,null,null,null,8,null,null,null,null,null,8,null,null,null,null,null,null,8]
[9,null,null,null,null,null,null,9,null,null,null,null,null,null,9,null,null,null,null,null,9,null,null,null,null,null,null,9,null,null,null,null,null,null,9,null,null,null,null,null,9,null,null,null,null,null,null,9]
[10,null,null,null,null,null,null,10,null,null,null,null,null,null,10,null,null,null,null,null,10,null,null,null,null,null,null,10,null,null,null,null,null,null,10,null,null,null,null,null,10,null,null,null,null,null,null,10]
[11,null,null,null,null,null,null,11,null,null,null,null,null,null,11,null,null,null,null,null,11,null,null,null,null,null,null,11,null,null,null,null,null,null,11,null,null,null,null,null,11,null,null,null,null,null,null,11]
[12,null,null,null,null,null,null,12,null,null,null,null,null,null,12,null,null,null,null,null,12,null,null,null,null,null,null,12,null,null,null,null,null,null,12,null,null,null,null,null,12,null,null,null,null,null,null,12]
[13,null,null,null,null,null,null,13,null,null,null,null,null,null,13,null,null,null,null,null,13,null,null,null,null,null,null,13,null,null,null,null,null,null,13,null,null,null,null,null,13,null,null,null,null,null,null,13]
[14,null,null,null,null,null,null,14,null,null,null,null,null,null,14,null,null,null,null,null,14,null,null,null,null,null,null,14,null,null,null,null,null,null,14,null,null,null,null,null,14,null,null,null,null,null,null,14]
[15,null,null,null,null,null,null,15,null,null,null,null,null,null,15,null,null,null,null,null,15,null,null,null,null,null,null,15,null,null,null,null,null,null,15,null,null,null,null,null,15,null,null,null,null,null,null,15]
[16,null,null,null,null,null,null,16,null,null,null,null,null,null,16,null,null,null,null,null,16,null,null,null,null,null,null,16,null,null,null,null,null,null,16,null,null,null,null,null,16,null,null,null,null,null,null,16]
[17,null,null,null,null,null,null,17,null,null,null,null,null,null,17,null,null,null,null,null,17,null,null,null,null,null,null,17,null,null,null,null,null,null,17,null,null,null,null,null,17,null,null,null,null,null,null,17]
[18,null,null,null,null,null,null,18,null,null,null,null,null,null,18,null,null,null,null,null,18,null,null,null,null,null,null,18,null,null,null,null,null,null,18,null,null,null,null,null,18,null,null,null,null,null,null,18]
["Total","Shots",null,null,"Shots",null,null,"Total","Shots",null,null,"Shots",null,null,"Total","Shots",null,null,"Shots",null,"Total","Shots",null,null,"Shots",null,null,"Total","Shots",null,null,"Shots",null,null,"Total","Shots",null,null,"Shots",null,"Total","Shots",null,null,"Shots",null,null,"Total","Shots",null,null,"shots"]
[null,"Ends",null,null,"Ends",null,null,null,"Ends",null,null,"Ends",null,null,null,"Ends",null,null,"Ends",null,null,"Ends",null,null,"Ends",null,null,null,"Ends",null,null,"Ends",null,null,null,"Ends",null,null,"Ends",null,null,"Ends",null,null,"Ends",null,null,null,"Ends",null,null,"Ends"]
[]
[]
["1st Game ",null,null,null,null,null,null,"2nd Game ",null,null,null,null,null,null,"3rd Game ",null,null,null,null,null,"4th Game",null,null,null,null,null,null,"5th Game",null,null,null,null,null,null,"6th Game",null,null,null,null,null,"7th Game",null,null,null,null,null,null,"8th Game"]
["Team No",null,null,"Rink No",null,null,null,"Team No",null,null,"Rink No",null,null,null,"Team No",null,null,"Rink No",null,null,"Team No",null,null,"Rink No",null,null,null,"Team No",null,null,"Rink No",null,null,null,"Team No",null,null,"Rink No",null,null,"Team No",null,null,"Rink No",null,null,null,"Team No",null,null,"Rink No"]
[]
[{"$f":"DRAW!$B$16","v":10},null,null,{"$f":"DRAW!$E$16","v":6},null,null,null,{"$f":"DRAW!$B$16","v":10},null,null,{"$f":"DRAW!$G$16","v":11},null,null,null,{"$f":"DRAW!$B$16","v":10},null,null,{"$f":"DRAW!$I$16","v":20},null,null,{"$f":"DRAW!$B$16","v":10},null,null,{"$f":"DRAW!$K$16","v":7},null,null,null,{"$f":"DRAW!$B$16","v":10},null,null,{"$f":"DRAW!$M$16","v":12},null,null,null,{"$f":"DRAW!$B$16","v":10},null,null,{"$f":"DRAW!$O$16","v":19},null,null,{"$f":"DRAW!$B$16","v":10},null,null,{"$f":"DRAW!$Q$16","v":1},null,null,null,{"$f":"DRAW!$B$16","v":10},null,null,{"$f":"DRAW!$S$16","v":13}]
[null,"Team",{"$f":"DRAW!$B$16","v":10},"V","Team",{"$f":"DRAW!$D$16","v":7},null,null,"Team",{"$f":"DRAW!$B$16","v":10},"V","Team",{"$f":"DRAW!$F$16","v":9},null,null,"Team",{"$f":"DRAW!$B$16","v":10},"V","Team",{"$f":"DRAW!$H$16","v":13},null,"Team",{"$f":"DRAW!$B$16","v":10},"V","Team",{"$f":"DRAW!$J$16","v":4},null,null,"Team",{"$f":"DRAW!$B$16","v":10},"V","Team",{"$f":"DRAW!$L$16","v":5},null,null,"Team",{"$f":"DRAW!$B$16","v":10},"V","Team",{"$f":"DRAW!$N$16","v":6},null,"Team",{"$f":"DRAW!$B$16","v":10},"V","Team",{"$f":"DRAW!$P$16","v":3},null,null,"Team",{"$f":"DRAW!$B$16","v":10},"V","Team",{"$f":"DRAW!$R$16","v":12}]
["Ends","Shots","Total",null,"Shots","Total",null,"Ends","Shots","Total",null,"Shots","Total",null,"Ends","Shots","Total",null,"Shots","Total","Ends","Shots","Total",null,"Shots","Total",null,"Ends","Shots","Total",null,"Shots","Total",null,"Ends","Shots","Total",null,"Shots","Total","Ends","Shots","Total",null,"Shots","Total",null,"Ends","Shots","Total",null,"shots","Totar"]
[1,null,null,null,null,null,null,1,null,null,null,null,null,null,1,null,null,null,null,null,1,null,null,null,null,null,null,1,null,null,null,null,null,null,1,null,null,null,null,null,1,null,null,null,null,null,null,1]
[2,null,null,null,null,null,null,2,null,null,null,null,null,null,2,null,null,null,null,null,2,null,null,null,null,null,null,2,null,null,null,null,null,null,2,null,null,null,null,null,2,null,null,null,null,null,null,2]
[3,null,null,null,null,null,null,3,null,null,null,null,null,null,3,null,null,null,null,null,3,null,null,null,null,null,null,3,null,null,null,null,null,null,3,null,null,null,null,null,3,null,null,null,null,null,null,3]
[4,null,null,null,null,null,null,4,null,null,null,null,null,null,4,null,null,null,null,null,4,null,null,null,null,null,null,4,null,null,null,null,null,null,4,null,null,null,null,null,4,null,null,null,null,null,null,4]
[5,null,null,null,null,null,null,5,null,null,null,null,null,null,5,null,null,null,null,null,5,null,null,null,null,null,null,5,null,null,null,null,null,null,5,null,null,null,null,null,5,null,null,null,null,null,null,5]
[6,null,null,null,null,null,null,6,null,null,null,null,null,null,6,null,null,null,null,null,6,null,null,null,null,null,null,6,null,null,null,null,null,null,6,null,null,null,null,null,6,null,null,null,null,null,null,6]
[7,null,null,null,null,null,null,7,null,null,null,null,null,null,7,null,null,null,null,null,7,null,null,null,null,null,null,7,null,null,null,null,null,null,7,null,null,null,null,null,7,null,null,null,null,null,null,7]
[8,null,null,null,null,null,null,8,null,null,null,null,null,null,8,null,null,null,null,null,8,null,null,null,null,null,null,8,null,null,null,null,null,null,8,null,null,null,null,null,8,null,null,null,null,null,null,8]
[9,null,null,null,null,null,null,9,null,null,null,null,null,null,9,null,null,null,null,null,9,null,null,null,null,null,null,9,null,null,null,null,null,null,9,null,null,null,null,null,9,null,null,null,null,null,null,9]
[10,null,null,null,null,null,null,10,null,null,null,null,null,null,10,null,null,null,null,null,10,null,null,null,null,null,null,10,null,null,null,null,null,null,10,null,null,null,null,null,10,null,null,null,null,null,null,10]
[11,null,null,null,null,null,null,11,null,null,null,null,null,null,11,null,null,null,null,null,11,null,null,null,null,null,null,11,null,null,null,null,null,null,11,null,null,null,null,null,11,null,null,null,null,null,null,11]
[12,null,null,null,null,null,null,12,null,null,null,null,null,null,12,null,null,null,null,null,12,null,null,null,null,null,null,12,null,null,null,null,null,null,12,null,null,null,null,null,12,null,null,null,null,null,null,12]
[13,null,null,null,null,null,null,13,null,null,null,null,null,null,13,null,null,null,null,null,13,null,null,null,null,null,null,13,null,null,null,null,null,null,13,null,null,null,null,null,13,null,null,null,null,null,null,13]
[14,null,null,null,null,null,null,14,null,null,null,null,null,null,14,null,null,null,null,null,14,null,null,null,null,null,null,14,null,null,null,null,null,null,14,null,null,null,null,null,14,null,null,null,null,null,null,14]
[15,null,null,null,null,null,null,15,null,null,null,null,null,null,15,null,null,null,null,null,15,null,null,null,null,null,null,15,null,null,null,null,null,null,15,null,null,null,null,null,15,null,null,null,null,null,null,15]
[16,null,null,null,null,null,null,16,null,null,null,null,null,null,16,null,null,null,null,null,16,null,null,null,null,null,null,16,null,null,null,null,null,null,16,null,null,null,null,null,16,null,null,null,null,null,null,16]
[17,null,null,null,null,null,null,17,null,null,null,null,null,null,17,null,null,null,null,null,17,null,null,null,null,null,null,17,null,null,null,null,null,null,17,null,null,null,null,null,17,null,null,null,null,null,null,17]
[18,null,null,null,null,null,null,18,null,null,null,null,null,null,18,null,null,null,null,null,18,null,null,null,null,null,null,18,null,null,null,null,null,null,18,null,null,null,null,null,18,null,null,null,null,null,null,18]
["Total","Shots",null,null,"Shots",null,null,"Total","Shots",null,null,"Shots",null,null,"Total","Shots",null,null,"Shots",null,"Total","Shots",null,null,"Shots",null,null,"Total","Shots",null,null,"Shots",null,null,"Total","Shots",null,null,"Shots",null,"Total","Shots",null,null,"Shots",null,null,"Total","Shots",null,null,"shots"]
[null,"Ends",null,null,"Ends",null,null,null,"Ends",null,null,"Ends",null,null,null,"Ends",null,null,"Ends",null,null,"Ends",null,null,"Ends",null,null,null,"Ends",null,null,"Ends",null,null,null,"Ends",null,null,"Ends",null,null,"Ends",null,null,"Ends",null,null,null,"Ends",null,null,"Ends"]
["1st Game ",null,null,null,null,null,null,"2nd Game ",null,null,null,null,null,null,"3rd Game ",null,null,null,null,null,"4th Game",null,null,null,null,null,null,"5th Game",null,null,null,null,null,null,"6th Game",null,null,null,null,null,"7th Game",null,null,null,null,null,null,"8th Game"]
["Team No",null,null,"Rink No",null,null,null,"Team No",null,null,"Rink No",null,null,null,"Team No",null,null,"Rink No",null,null,"Team No",null,null,"Rink No",null,null,null,"Team No",null,null,"Rink No",null,null,null,"Team No",null,null,"Rink No",null,null,"Team No",null,null,"Rink No",null,null,null,"Team No",null,null,"Rink No"]
[]
[{"$f":"DRAW!$B$17","v":11},null,null,{"$f":"DRAW!$E$17","v":5},null,null,null,{"$f":"DRAW!$B$17","v":11},null,null,{"$f":"DRAW!$G$17","v":10},null,null,null,{"$f":"DRAW!$B$17","v":11},null,null,{"$f":"DRAW!$I$17","v":21},null,null,{"$f":"DRAW!$B$17","v":11},null,null,{"$f":"DRAW!$K$17","v":4},null,null,null,{"$f":"DRAW!$B$17","v":11},null,null,{"$f":"DRAW!$M$17","v":9},null,null,null,{"$f":"DRAW!$B$17","v":11},null,null,{"$f":"DRAW!$O$17","v":15},null,null,{"$f":"DRAW!$B$17","v":11},null,null,{"$f":"DRAW!$Q$17","v":3},null,null,null,{"$f":"DRAW!$B$17","v":11},null,null,{"$f":"DRAW!$S$17","v":12}]
[null,"Team",{"$f":"DRAW!$B$17","v":11},"V","Team",{"$f":"DRAW!$D$17","v":6},null,null,"Team",{"$f":"DRAW!$B$17","v":11},"V","Team",{"$f":"DRAW!$F$17","v":8},null,null,"Team",{"$f":"DRAW!$B$17","v":11},"V","Team",{"$f":"DRAW!$H$17","v":12},null,"Team",{"$f":"DRAW!$B$17","v":11},"V","Team",{"$f":"DRAW!$J$17","v":3},null,null,"Team",{"$f":"DRAW!$B$17","v":11},"V","Team",{"$f":"DRAW!$L$17","v":4},null,null,"Team",{"$f":"DRAW!$B$17","v":11},"V","Team",{"$f":"DRAW!$N$17","v":5},null,"Team",{"$f":"DRAW!$B$17","v":11},"V","Team",{"$f":"DRAW!$P$17","v":14},null,null,"Team",{"$f":"DRAW!$B$17","v":11},"V","Team",{"$f":"DRAW!$R$17","v":9}]
["Ends","Shots","Total",null,"Shots","Total",null,"Ends","Shots","Total",null,"Shots","Total",null,"Ends","Shots","Total",null,"Shots","Total","Ends","Shots","Total",null,"Shots","Total",null,"Ends","Shots","Total",null,"Shots","Total",null,"Ends","Shots","Total",null,"Shots","Total","Ends","Shots","Total",null,"Shots","Total",null,"Ends","Shots","Total",null,"shots","Totar"]
[1,null,null,null,null,null,null,1,null,null,null,null,null,null,1,null,null,null,null,null,1,null,null,null,null,null,null,1,null,null,null,null,null,null,1,null,null,null,null,null,1,null,null,null,null,null,null,1]
[2,null,null,null,null,null,null,2,null,null,null,null,null,null,2,null,null,null,null,null,2,null,null,null,null,null,null,2,null,null,null,null,null,null,2,null,null,null,null,null,2,null,null,null,null,null,null,2]
[3,null,null,null,null,null,null,3,null,null,null,null,null,null,3,null,null,null,null,null,3,null,null,null,null,null,null,3,null,null,null,null,null,null,3,null,null,null,null,null,3,null,null,null,null,null,null,3]
[4,null,null,null,null,null,null,4,null,null,null,null,null,null,4,null,null,null,null,null,4,null,null,null,null,null,null,4,null,null,null,null,null,null,4,null,null,null,null,null,4,null,null,null,null,null,null,4]
[5,null,null,null,null,null,null,5,null,null,null,null,null,null,5,null,null,null,null,null,5,null,null,null,null,null,null,5,null,null,null,null,null,null,5,null,null,null,null,null,5,null,null,null,null,null,null,5]
[6,null,null,null,null,null,null,6,null,null,null,null,null,null,6,null,null,null,null,null,6,null,null,null,null,null,null,6,null,null,null,null,null,null,6,null,null,null,null,null,6,null,null,null,null,null,null,6]
[7,null,null,null,null,null,null,7,null,null,null,null,null,null,7,null,null,null,null,null,7,null,null,null,null,null,null,7,null,null,null,null,null,null,7,null,null,null,null,null,7,null,null,null,null,null,null,7]
[8,null,null,null,null,null,null,8,null,null,null,null,null,null,8,null,null,null,null,null,8,null,null,null,null,null,null,8,null,null,null,null,null,null,8,null,null,null,null,null,8,null,null,null,null,null,null,8]
[9,null,null,null,null,null,null,9,null,null,null,null,null,null,9,null,null,null,null,null,9,null,null,null,null,null,null,9,null,null,null,null,null,null,9,null,null,null,null,null,9,null,null,null,null,null,null,9]
[10,null,null,null,null,null,null,10,null,null,null,null,null,null,10,null,null,null,null,null,10,null,null,null,null,null,null,10,null,null,null,null,null,null,10,null,null,null,null,null,10,null,null,null,null,null,null,10]
[11,null,null,null,null,null,null,11,null,null,null,null,null,null,11,null,null,null,null,null,11,null,null,null,null,null,null,11,null,null,null,null,null,null,11,null,null,null,null,null,11,null,null,null,null,null,null,11]
[12,null,null,null,null,null,null,12,null,null,null,null,null,null,12,null,null,null,null,null,12,null,null,null,null,null,null,12,null,null,null,null,null,null,12,null,null,null,null,null,12,null,null,null,null,null,null,12]
[13,null,null,null,null,null,null,13,null,null,null,null,null,null,13,null,null,null,null,null,13,null,null,null,null,null,null,13,null,null,null,null,null,null,13,null,null,null,null,null,13,null,null,null,null,null,null,13]
[14,null,null,null,null,null,null,14,null,null,null,null,null,null,14,null,null,null,null,null,14,null,null,null,null,null,null,14,null,null,null,null,null,null,14,null,null,null,null,null,14,null,null,null,null,null,null,14]
[15,null,null,null,null,null,null,15,null,null,null,null,null,null,15,null,null,null,null,null,15,null,null,null,null,null,null,15,null,null,null,null,null,null,15,null,null,null,null,null,15,null,null,null,null,null,null,15]
[16,null,null,null,null,null,null,16,null,null,null,null,null,null,16,null,null,null,null,null,16,null,null,null,null,null,null,16,null,null,null,null,null,null,16,null,null,null,null,null,16,null,null,null,null,null,null,16]
[17,null,null,null,null,null,null,17,null,null,null,null,null,null,17,null,null,null,null,null,17,null,null,null,null,null,null,17,null,null,null,null,null,null,17,null,null,null,null,null,17,null,null,null,null,null,null,17]
[18,null,null,null,null,null,null,18,null,null,null,null,null,null,18,null,null,null,null,null,18,null,null,null,null,null,null,18,null,null,null,null,null,null,18,null,null,null,null,null,18,null,null,null,null,null,null,18]
["Total","Shots",null,null,"Shots",null,null,"Total","Shots",null,null,"Shots",null,null,"Total","Shots",null,null,"Shots",null,"Total","Shots",null,null,"Shots",null,null,"Total","Shots",null,null,"Shots",null,null,"Total","Shots",null,null,"Shots",null,"Total","Shots",null,null,"Shots",null,null,"Total","Shots",null,null,"shots"]
[null,"Ends",null,null,"Ends",null,null,null,"Ends",null,null,"Ends",null,null,null,"Ends",null,null,"Ends",null,null,"Ends",null,null,"Ends",null,null,null,"Ends",null,null,"Ends",null,null,null,"Ends",null,null,"Ends",null,null,"Ends",null,null,"Ends",null,null,null,"Ends",null,null,"Ends"]
[]
[]
["1st Game ",null,null,null,null,null,null,"2nd Game ",null,null,null,null,null,null,"3rd Game ",null,null,null,null,null,"4th Game",null,null,null,null,null,null,"5th Game",null,null,null,null,null,null,"6th Game",null,null,null,null,null,"7th Game",null,null,null,null,null,null,"8th Game"]
["Team No",null,null,"Rink No",null,null,null,"Team No",null,null,"Rink No",null,null,null,"Team No",null,null,"Rink No",null,null,"Team No",null,null,"Rink No",null,null,null,"Team No",null,null,"Rink No",null,null,null,"Team No",null,null,"Rink No",null,null,"Team No",null,null,"Rink No",null,null,null,"Team No",null,null,"Rink No"]
[]
[{"$f":"DRAW!$B$18","v":12},null,null,{"$f":"DRAW!$E$18","v":4},null,null,null,{"$f":"DRAW!$B$18","v":12},null,null,{"$f":"DRAW!$G$18","v":9},null,null,null,{"$f":"DRAW!$B$18","v":12},null,null,{"$f":"DRAW!$I$18","v":21},null,null,{"$f":"DRAW!$B$18","v":12},null,null,{"$f":"DRAW!$K$18","v":5},null,null,null,{"$f":"DRAW!$B$18","v":12},null,null,{"$f":"DRAW!$M$18","v":10},null,null,null,{"$f":"DRAW!$B$18","v":12},null,null,{"$f":"DRAW!$O$18","v":17},null,null,{"$f":"DRAW!$B$18","v":12},null,null,{"$f":"DRAW!$Q$18","v":7},null,null,null,{"$f":"DRAW!$B$18","v":12},null,null,{"$f":"DRAW!$S$18","v":13}]
[null,"Team",{"$f":"DRAW!$B$18","v":12},"V","Team",{"$f":"DRAW!$D$18","v":5},null,null,"Team",{"$f":"DRAW!$B$18","v":12},"V","Team",{"$f":"DRAW!$F$18","v":7},null,null,"Team",{"$f":"DRAW!$B$18","v":12},"V","Team",{"$f":"DRAW!$H$18","v":11},null,"Team",{"$f":"DRAW!$B$18","v":12},"V","Team",{"$f":"DRAW!$J$18","v":2},null,null,"Team",{"$f":"DRAW!$B$18","v":12},"V","Team",{"$f":"DRAW!$L$18","v":3},null,null,"Team",{"$f":"DRAW!$B$18","v":12},"V","Team",{"$f":"DRAW!$N$18","v":1},null,"Team",{"$f":"DRAW!$B$18","v":12},"V","Team",{"$f":"DRAW!$P$18","v":4},null,null,"Team",{"$f":"DRAW!$B$18","v":12},"V","Team",{"$f":"DRAW!$R$18","v":10}]
["Ends","Shots","Total",null,"Shots","Total",null,"Ends","Shots","Total",null,"Shots","Total",null,"Ends","Shots","Total",null,"Shots","Total","Ends","Shots","Total",null,"Shots","Total",null,"Ends","Shots","Total",null,"Shots","Total",null,"Ends","Shots","Total",null,"Shots","Total","Ends","Shots","Total",null,"Shots","Total",null,"Ends","Shots","Total",null,"shots","Totar"]
[1,null,null,null,null,null,null,1,null,null,null,null,null,null,1,null,null,null,null,null,1,null,null,null,null,null,null,1,null,null,null,null,null,null,1,null,null,null,null,null,1,null,null,null,null,null,null,1]
[2,null,null,null,null,null,null,2,null,null,null,null,null,null,2,null,null,null,null,null,2,null,null,null,null,null,null,2,null,null,null,null,null,null,2,null,null,null,null,null,2,null,null,null,null,null,null,2]
[3,null,null,null,null,null,null,3,null,null,null,null,null,null,3,null,null,null,null,null,3,null,null,null,null,null,null,3,null,null,null,null,null,null,3,null,null,null,null,null,3,null,null,null,null,null,null,3]
[4,null,null,null,null,null,null,4,null,null,null,null,null,null,4,null,null,null,null,null,4,null,null,null,null,null,null,4,null,null,null,null,null,null,4,null,null,null,null,null,4,null,null,null,null,null,null,4]
[5,null,null,null,null,null,null,5,null,null,null,null,null,null,5,null,null,null,null,null,5,null,null,null,null,null,null,5,null,null,null,null,null,null,5,null,null,null,null,null,5,null,null,null,null,null,null,5]
[6,null,null,null,null,null,null,6,null,null,null,null,null,null,6,null,null,null,null,null,6,null,null,null,null,null,null,6,null,null,null,null,null,null,6,null,null,null,null,null,6,null,null,null,null,null,null,6]
[7,null,null,null,null,null,null,7,null,null,null,null,null,null,7,null,null,null,null,null,7,null,null,null,null,null,null,7,null,null,null,null,null,null,7,null,null,null,null,null,7,null,null,null,null,null,null,7]
[8,null,null,null,null,null,null,8,null,null,null,null,null,null,8,null,null,null,null,null,8,null,null,null,null,null,null,8,null,null,null,null,null,null,8,null,null,null,null,null,8,null,null,null,null,null,null,8]
[9,null,null,null,null,null,null,9,null,null,null,null,null,null,9,null,null,null,null,null,9,null,null,null,null,null,null,9,null,null,null,null,null,null,9,null,null,null,null,null,9,null,null,null,null,null,null,9]
[10,null,null,null,null,null,null,10,null,null,null,null,null,null,10,null,null,null,null,null,10,null,null,null,null,null,null,10,null,null,null,null,null,null,10,null,null,null,null,null,10,null,null,null,null,null,null,10]
[11,null,null,null,null,null,null,11,null,null,null,null,null,null,11,null,null,null,null,null,11,null,null,null,null,null,null,11,null,null,null,null,null,null,11,null,null,null,null,null,11,null,null,null,null,null,null,11]
[12,null,null,null,null,null,null,12,null,null,null,null,null,null,12,null,null,null,null,null,12,null,null,null,null,null,null,12,null,null,null,null,null,null,12,null,null,null,null,null,12,null,null,null,null,null,null,12]
[13,null,null,null,null,null,null,13,null,null,null,null,null,null,13,null,null,null,null,null,13,null,null,null,null,null,null,13,null,null,null,null,null,null,13,null,null,null,null,null,13,null,null,null,null,null,null,13]
[14,null,null,null,null,null,null,14,null,null,null,null,null,null,14,null,null,null,null,null,14,null,null,null,null,null,null,14,null,null,null,null,null,null,14,null,null,null,null,null,14,null,null,null,null,null,null,14]
[15,null,null,null,null,null,null,15,null,null,null,null,null,null,15,null,null,null,null,null,15,null,null,null,null,null,null,15,null,null,null,null,null,null,15,null,null,null,null,null,15,null,null,null,null,null,null,15]
[16,null,null,null,null,null,null,16,null,null,null,null,null,null,16,null,null,null,null,null,16,null,null,null,null,null,null,16,null,null,null,null,null,null,16,null,null,null,null,null,16,null,null,null,null,null,null,16]
[17,null,null,null,null,null,null,17,null,null,null,null,null,null,17,null,null,null,null,null,17,null,null,null,null,null,null,17,null,null,null,null,null,null,17,null,null,null,null,null,17,null,null,null,null,null,null,17]
[18,null,null,null,null,null,null,18,null,null,null,null,null,null,18,null,null,null,null,null,18,null,null,null,null,null,null,18,null,null,null,null,null,null,18,null,null,null,null,null,18,null,null,null,null,null,null,18]
["Total","Shots",null,null,"Shots",null,null,"Total","Shots",null,null,"Shots",null,null,"Total","Shots",null,null,"Shots",null,"Total","Shots",null,null,"Shots",null,null,"Total","Shots",null,null,"Shots",null,null,"Total","Shots",null,null,"Shots",null,"Total","Shots",null,null,"Shots",null,null,"Total","Shots",null,null,"shots"]
[null,"Ends",null,null,"Ends",null,null,null,"Ends",null,null,"Ends",null,null,null,"Ends",null,null,"Ends",null,null,"Ends",null,null,"Ends",null,null,null,"Ends",null,null,"Ends",null,null,null,"Ends",null,null,"Ends",null,null,"Ends",null,null,"Ends",null,null,null,"Ends",null,null,"Ends"]
["1st Game ",null,null,null,null,null,null,"2nd Game ",null,null,null,null,null,null,"3rd Game ",null,null,null,null,null,"4th Game",null,null,null,null,null,null,"5th Game",null,null,null,null,null,null,"6th Game",null,null,null,null,null,"7th Game",null,null,null,null,null,null,"8th Game"]
["Team No",null,null,"Rink No",null,null,null,"Team No",null,null,"Rink No",null,null,null,"Team No",null,null,"Rink No",null,null,"Team No",null,null,"Rink No",null,null,null,"Team No",null,null,"Rink No",null,null,null,"Team No",null,null,"Rink No",null,null,"Team No",null,null,"Rink No",null,null,null,"Team No",null,null,"Rink No"]
[]
[{"$f":"DRAW!$B$19","v":13},null,null,{"$f":"DRAW!$E$19","v":3},null,null,null,{"$f":"DRAW!$B$19","v":13},null,null,{"$f":"DRAW!$G$19","v":14},null,null,null,{"$f":"DRAW!$B$19","v":13},null,null,{"$f":"DRAW!$I$19","v":20},null,null,{"$f":"DRAW!$B$19","v":13},null,null,{"$f":"DRAW!$K$19","v":6},null,null,null,{"$f":"DRAW!$B$19","v":13},null,null,{"$f":"DRAW!$M$19","v":8},null,null,null,{"$f":"DRAW!$B$19","v":13},null,null,{"$f":"DRAW!$O$19","v":16},null,null,{"$f":"DRAW!$B$19","v":13},null,null,{"$f":"DRAW!$Q$19","v":5},null,null,null,{"$f":"DRAW!$B$19","v":13},null,null,{"$f":"DRAW!$S$19","v":10}]
[null,"Team",{"$f":"DRAW!$B$19","v":13},"V","Team",{"$f":"DRAW!$D$19","v":4},null,null,"Team",{"$f":"DRAW!$B$19","v":13},"V","Team",{"$f":"DRAW!$F$19","v":6},null,null,"Team",{"$f":"DRAW!$B$19","v":13},"V","Team",{"$f":"DRAW!$H$19","v":10},null,"Team",{"$f":"DRAW!$B$19","v":13},"V","Team",{"$f":"DRAW!$J$19","v":14},null,null,"Team",{"$f":"DRAW!$B$19","v":13},"V","Team",{"$f":"DRAW!$L$19","v":2},null,null,"Team",{"$f":"DRAW!$B$19","v":13},"V","Team",{"$f":"DRAW!$N$19","v":3},null,"Team",{"$f":"DRAW!$B$19","v":13},"V","Team",{"$f":"DRAW!$P$19","v":1},null,null,"Team",{"$f":"DRAW!$B$19","v":13},"V","Team",{"$f":"DRAW!$R$19","v":7}]
["Ends","Shots","Total",null,"Shots","Total",null,"Ends","Shots","Total",null,"Shots","Total",null,"Ends","Shots","Total",null,"Shots","Total","Ends","Shots","Total",null,"Shots","Total",null,"Ends","Shots","Total",null,"Shots","Total",null,"Ends","Shots","Total",null,"Shots","Total","Ends","Shots","Total",null,"Shots","Total",null,"Ends","Shots","Total",null,"shots","Totar"]
[1,null,null,null,null,null,null,1,null,null,null,null,null,null,1,null,null,null,null,null,1,null,null,null,null,null,null,1,null,null,null,null,null,null,1,null,null,null,null,null,1,null,null,null,null,null,null,1]
[2,null,null,null,null,null,null,2,null,null,null,null,null,null,2,null,null,null,null,null,2,null,null,null,null,null,null,2,null,null,null,null,null,null,2,null,null,null,null,null,2,null,null,null,null,null,null,2]
[3,null,null,null,null,null,null,3,null,null,null,null,null,null,3,null,null,null,null,null,3,null,null,null,null,null,null,3,null,null,null,null,null,null,3,null,null,null,null,null,3,null,null,null,null,null,null,3]
[4,null,null,null,null,null,null,4,null,null,null,null,null,null,4,null,null,null,null,null,4,null,null,null,null,null,null,4,null,null,null,null,null,null,4,null,null,null,null,null,4,null,null,null,null,null,null,4]
[5,null,null,null,null,null,null,5,null,null,null,null,null,null,5,null,null,null,null,null,5,null,null,null,null,null,null,5,null,null,null,null,null,null,5,null,null,null,null,null,5,null,null,null,null,null,null,5]
[6,null,null,null,null,null,null,6,null,null,null,null,null,null,6,null,null,null,null,null,6,null,null,null,null,null,null,6,null,null,null,null,null,null,6,null,null,null,null,null,6,null,null,null,null,null,null,6]
[7,null,null,null,null,null,null,7,null,null,null,null,null,null,7,null,null,null,null,null,7,null,null,null,null,null,null,7,null,null,null,null,null,null,7,null,null,null,null,null,7,null,null,null,null,null,null,7]
[8,null,null,null,null,null,null,8,null,null,null,null,null,null,8,null,null,null,null,null,8,null,null,null,null,null,null,8,null,null,null,null,null,null,8,null,null,null,null,null,8,null,null,null,null,null,null,8]
[9,null,null,null,null,null,null,9,null,null,null,null,null,null,9,null,null,null,null,null,9,null,null,null,null,null,null,9,null,null,null,null,null,null,9,null,null,null,null,null,9,null,null,null,null,null,null,9]
[10,null,null,null,null,null,null,10,null,null,null,null,null,null,10,null,null,null,null,null,10,null,null,null,null,null,null,10,null,null,null,null,null,null,10,null,null,null,null,null,10,null,null,null,null,null,null,10]
[11,null,null,null,null,null,null,11,null,null,null,null,null,null,11,null,null,null,null,null,11,null,null,null,null,null,null,11,null,null,null,null,null,null,11,null,null,null,null,null,11,null,null,null,null,null,null,11]
[12,null,null,null,null,null,null,12,null,null,null,null,null,null,12,null,null,null,null,null,12,null,null,null,null,null,null,12,null,null,null,null,null,null,12,null,null,null,null,null,12,null,null,null,null,null,null,12]
[13,null,null,null,null,null,null,13,null,null,null,null,null,null,13,null,null,null,null,null,13,null,null,null,null,null,null,13,null,null,null,null,null,null,13,null,null,null,null,null,13,null,null,null,null,null,null,13]
[14,null,null,null,null,null,null,14,null,null,null,null,null,null,14,null,null,null,null,null,14,null,null,null,null,null,null,14,null,null,null,null,null,null,14,null,null,null,null,null,14,null,null,null,null,null,null,14]
[15,null,null,null,null,null,null,15,null,null,null,null,null,null,15,null,null,null,null,null,15,null,null,null,null,null,null,15,null,null,null,null,null,null,15,null,null,null,null,null,15,null,null,null,null,null,null,15]
[16,null,null,null,null,null,null,16,null,null,null,null,null,null,16,null,null,null,null,null,16,null,null,null,null,null,null,16,null,null,null,null,null,null,16,null,null,null,null,null,16,null,null,null,null,null,null,16]
[17,null,null,null,null,null,null,17,null,null,null,null,null,null,17,null,null,null,null,null,17,null,null,null,null,null,null,17,null,null,null,null,null,null,17,null,null,null,null,null,17,null,null,null,null,null,null,17]
[18,null,null,null,null,null,null,18,null,null,null,null,null,null,18,null,null,null,null,null,18,null,null,null,null,null,null,18,null,null,null,null,null,null,18,null,null,null,null,null,18,null,null,null,null,null,null,18]
["Total","Shots",null,null,"Shots",null,null,"Total","Shots",null,null,"Shots",null,null,"Total","Shots",null,null,"Shots",null,"Total","Shots",null,null,"Shots",null,null,"Total","Shots",null,null,"Shots",null,null,"Total","Shots",null,null,"Shots",null,"Total","Shots",null,null,"Shots",null,null,"Total","Shots",null,null,"shots"]
[null,"Ends",null,null,"Ends",null,null,null,"Ends",null,null,"Ends",null,null,null,"Ends",null,null,"Ends",null,null,"Ends",null,null,"Ends",null,null,null,"Ends",null,null,"Ends",null,null,null,"Ends",null,null,"Ends",null,null,"Ends",null,null,"Ends",null,null,null,"Ends",null,null,"Ends"]
[]
[]
["1st Game ",null,null,null,null,null,null,"2nd Game ",null,null,null,null,null,null,"3rd Game ",null,null,null,null,null,"4th Game",null,null,null,null,null,null,"5th Game",null,null,null,null,null,null,"6th Game",null,null,null,null,null,"7th Game",null,null,null,null,null,null,"8th Game"]
["Team No",null,null,"Rink No",null,null,null,"Team No",null,null,"Rink No",null,null,null,"Team No",null,null,"Rink No",null,null,"Team No",null,null,"Rink No",null,null,null,"Team No",null,null,"Rink No",null,null,null,"Team No",null,null,"Rink No",null,null,"Team No",null,null,"Rink No",null,null,null,"Team No",null,null,"Rink No"]
[]
[{"$f":"DRAW!$B$20","v":14},null,null,{"$f":"DRAW!$E$20","v":2},null,null,null,{"$f":"DRAW!$B$20","v":14},null,null,{"$f":"DRAW!$G$20","v":8},null,null,null,{"$f":"DRAW!$B$20","v":14},null,null,{"$f":"DRAW!$I$20","v":17},null,null,{"$f":"DRAW!$B$20","v":14},null,null,{"$f":"DRAW!$K$20","v":6},null,null,null,{"$f":"DRAW!$B$20","v":14},null,null,{"$f":"DRAW!$M$20","v":14},null,null,null,{"$f":"DRAW!$B$20","v":14},null,null,{"$f":"DRAW!$O$20","v":18},null,null,{"$f":"DRAW!$B$20","v":14},null,null,{"$f":"DRAW!$Q$20","v":3},null,null,null,{"$f":"DRAW!$B$20","v":14},null,null,{"$f":"DRAW!$S$20","v":14}]
[null,"Team",{"$f":"DRAW!$B$20","v":14},"V","Team",{"$f":"DRAW!$D$20","v":3},null,null,"Team",{"$f":"DRAW!$B$20","v":14},"V","Team",{"$f":"DRAW!$F$20","v":5},null,null,"Team",{"$f":"DRAW!$B$20","v":14},"V","Team",{"$f":"DRAW!$H$20","v":9},null,"Team",{"$f":"DRAW!$B$20","v":14},"V","Team",{"$f":"DRAW!$J$20","v":13},null,null,"Team",{"$f":"DRAW!$B$20","v":14},"V","Team",{"$f":"DRAW!$L$20","v":1},null,null,"Team",{"$f":"DRAW!$B$20","v":14},"V","Team",{"$f":"DRAW!$N$20","v":2},null,"Team",{"$f":"DRAW!$B$20","v":14},"V","Team",{"$f":"DRAW!$P$20","v":11},null,null,"Team",{"$f":"DRAW!$B$20","v":14},"V","Team",{"$f":"DRAW!$R$20","v":6}]
["Ends","Shots","Total",null,"Shots","Total",null,"Ends","Shots","Total",null,"Shots","Total",null,"Ends","Shots","Total",null,"Shots","Total","Ends","Shots","Total",null,"Shots","Total",null,"Ends","Shots","Total",null,"Shots","Total",null,"Ends","Shots","Total",null,"Shots","Total","Ends","Shots","Total",null,"Shots","Total",null,"Ends","Shots","Total",null,"shots","Totar"]
[1,null,null,null,null,null,null,1,null,null,null,null,null,null,1,null,null,null,null,null,1,null,null,null,null,null,null,1,null,null,null,null,null,null,1,null,null,null,null,null,1,null,null,null,null,null,null,1]
[2,null,null,null,null,null,null,2,null,null,null,null,null,null,2,null,null,null,null,null,2,null,null,null,null,null,null,2,null,null,null,null,null,null,2,null,null,null,null,null,2,null,null,null,null,null,null,2]
[3,null,null,null,null,null,null,3,null,null,null,null,null,null,3,null,null,null,null,null,3,null,null,null,null,null,null,3,null,null,null,null,null,null,3,null,null,null,null,null,3,null,null,null,null,null,null,3]
[4,null,null,null,null,null,null,4,null,null,null,null,null,null,4,null,null,null,null,null,4,null,null,null,null,null,null,4,null,null,null,null,null,null,4,null,null,null,null,null,4,null,null,null,null,null,null,4]
[5,null,null,null,null,null,null,5,null,null,null,null,null,null,5,null,null,null,null,null,5,null,null,null,null,null,null,5,null,null,null,null,null,null,5,null,null,null,null,null,5,null,null,null,null,null,null,5]
[6,null,null,null,null,null,null,6,null,null,null,null,null,null,6,null,null,null,null,null,6,null,null,null,null,null,null,6,null,null,null,null,null,null,6,null,null,null,null,null,6,null,null,null,null,null,null,6]
[7,null,null,null,null,null,null,7,null,null,null,null,null,null,7,null,null,null,null,null,7,null,null,null,null,null,null,7,null,null,null,null,null,null,7,null,null,null,null,null,7,null,null,null,null,null,null,7]
[8,null,null,null,null,null,null,8,null,null,null,null,null,null,8,null,null,null,null,null,8,null,null,null,null,null,null,8,null,null,null,null,null,null,8,null,null,null,null,null,8,null,null,null,null,null,null,8]
[9,null,null,null,null,null,null,9,null,null,null,null,null,null,9,null,null,null,null,null,9,null,null,null,null,null,null,9,null,null,null,null,null,null,9,null,null,null,null,null,9,null,null,null,null,null,null,9]
[10,null,null,null,null,null,null,10,null,null,null,null,null,null,10,null,null,null,null,null,10,null,null,null,null,null,null,10,null,null,null,null,null,null,10,null,null,null,null,null,10,null,null,null,null,null,null,10]
[11,null,null,null,null,null,null,11,null,null,null,null,null,null,11,null,null,null,null,null,11,null,null,null,null,null,null,11,null,null,null,null,null,null,11,null,null,null,null,null,11,null,null,null,null,null,null,11]
[12,null,null,null,null,null,null,12,null,null,null,null,null,null,12,null,null,null,null,null,12,null,null,null,null,null,null,12,null,null,null,null,null,null,12,null,null,null,null,null,12,null,null,null,null,null,null,12]
[13,null,null,null,null,null,null,13,null,null,null,null,null,null,13,null,null,null,null,null,13,null,null,null,null,null,null,13,null,null,null,null,null,null,13,null,null,null,null,null,13,null,null,null,null,null,null,13]
[14,null,null,null,null,null,null,14,null,null,null,null,null,null,14,null,null,null,null,null,14,null,null,null,null,null,null,14,null,null,null,null,null,null,14,null,null,null,null,null,14,null,null,null,null,null,null,14]
[15,null,null,null,null,null,null,15,null,null,null,null,null,null,15,null,null,null,null,null,15,null,null,null,null,null,null,15,null,null,null,null,null,null,15,null,null,null,null,null,15,null,null,null,null,null,null,15]
[16,null,null,null,null,null,null,16,null,null,null,null,null,null,16,null,null,null,null,null,16,null,null,null,null,null,null,16,null,null,null,null,null,null,16,null,null,null,null,null,16,null,null,null,null,null,null,16]
[17,null,null,null,null,null,null,17,null,null,null,null,null,null,17,null,null,null,null,null,17,null,null,null,null,null,null,17,null,null,null,null,null,null,17,null,null,null,null,null,17,null,null,null,null,null,null,17]
[18,null,null,null,null,null,null,18,null,null,null,null,null,null,18,null,null,null,null,null,18,null,null,null,null,null,null,18,null,null,null,null,null,null,18,null,null,null,null,null,18,null,null,null,null,null,null,18]
["Total","Shots",null,null,"Shots",null,null,"Total","Shots",null,null,"Shots",null,null,"Total","Shots",null,null,"Shots",null,"Total","Shots",null,null,"Shots",null,null,"Total","Shots",null,null,"Shots",null,null,"Total","Shots",null,null,"Shots",null,"Total","Shots",null,null,"Shots",null,null,"Total","Shots",null,null,"shots"]
[null,"Ends",null,null,"Ends",null,null,null,"Ends",null,null,"Ends",null,null,null,"Ends",null,null,"Ends",null,null,"Ends",null,null,"Ends",null,null,null,"Ends",null,null,"Ends",null,null,null,"Ends",null,null,"Ends",null,null,"Ends",null,null,"Ends",null,null,null,"Ends",null,null,"Ends"]
["1st Game ",null,null,null,null,null,null,"2nd Game ",null,null,null,null,null,null,"3rd Game ",null,null,null,null,null,"4th Game",null,null,null,null,null,null,"5th Game",null,null,null,null,null,null,"6th Game",null,null,null,null,null,"7th Game",null,null,null,null,null,null,"8th Game"]
["Team No",null,null,"Rink No",null,null,null,"Team No",null,null,"Rink No",null,null,null,"Team No",null,null,"Rink No",null,null,"Team No",null,null,"Rink No",null,null,null,"Team No",null,null,"Rink No",null,null,null,"Team No",null,null,"Rink No",null,null,"Team No",null,null,"Rink No",null,null,null,"Team No",null,null,"Rink No"]
[]
[{"$f":"DRAW!$B$21","v":15},null,null,{"$f":"DRAW!$E$21","v":8},null,null,null,{"$f":"DRAW!$B$21","v":15},null,null,{"$f":"DRAW!$G$21","v":20},null,null,null,{"$f":"DRAW!$B$21","v":15},null,null,{"$f":"DRAW!$I$21","v":5},null,null,{"$f":"DRAW!$B$21","v":15},null,null,{"$f":"DRAW!$K$21","v":9},null,null,null,{"$f":"DRAW!$B$21","v":15},null,null,{"$f":"DRAW!$M$21","v":21},null,null,null,{"$f":"DRAW!$B$21","v":15},null,null,{"$f":"DRAW!$O$21","v":3},null,null,{"$f":"DRAW!$B$21","v":15},null,null,{"$f":"DRAW!$Q$21","v":12},null,null,null,{"$f":"DRAW!$B$21","v":15},null,null,{"$f":"DRAW!$S$21","v":15}]
[null,"Team",{"$f":"DRAW!$B$21","v":15},"V","Team",{"$f":"DRAW!$D$21","v":16},null,null,"Team",{"$f":"DRAW!$B$21","v":15},"V","Team",{"$f":"DRAW!$F$21","v":17},null,null,"Team",{"$f":"DRAW!$B$21","v":15},"V","Team",{"$f":"DRAW!$H$21","v":19},null,"Team",{"$f":"DRAW!$B$21","v":15},"V","Team",{"$f":"DRAW!$J$21","v":21},null,null,"Team",{"$f":"DRAW!$B$21","v":15},"V","Team",{"$f":"DRAW!$L$21","v":28},null,null,"Team",{"$f":"DRAW!$B$21","v":15},"V","Team",{"$f":"DRAW!$N$21","v":26},null,"Team",{"$f":"DRAW!$B$21","v":15},"V","Team",{"$f":"DRAW!$P$21","v":27},null,null,"Team",{"$f":"DRAW!$B$21","v":15},"V","Team",{"$f":"DRAW!$R$21","v":22}]
["Ends","Shots","Total",null,"Shots","Total",null,"Ends","Shots","Total",null,"Shots","Total",null,"Ends","Shots","Total",null,"Shots","Total","Ends","Shots","Total",null,"Shots","Total",null,"Ends","Shots","Total",null,"Shots","Total",null,"Ends","Shots","Total",null,"Shots","Total","Ends","Shots","Total",null,"Shots","Total",null,"Ends","Shots","Total",null,"shots","Totar"]
[1,null,null,null,null,null,null,1,null,null,null,null,null,null,1,null,null,null,null,null,1,null,null,null,null,null,null,1,null,null,null,null,null,null,1,null,null,null,null,null,1,null,null,null,null,null,null,1]
[2,null,null,null,null,null,null,2,null,null,null,null,null,null,2,null,null,null,null,null,2,null,null,null,null,null,null,2,null,null,null,null,null,null,2,null,null,null,null,null,2,null,null,null,null,null,null,2]
[3,null,null,null,null,null,null,3,null,null,null,null,null,null,3,null,null,null,null,null,3,null,null,null,null,null,null,3,null,null,null,null,null,null,3,null,null,null,null,null,3,null,null,null,null,null,null,3]
[4,null,null,null,null,null,null,4,null,null,null,null,null,null,4,null,null,null,null,null,4,null,null,null,null,null,null,4,null,null,null,null,null,null,4,null,null,null,null,null,4,null,null,null,null,null,null,4]
[5,null,null,null,null,null,null,5,null,null,null,null,null,null,5,null,null,null,null,null,5,null,null,null,null,null,null,5,null,null,null,null,null,null,5,null,null,null,null,null,5,null,null,null,null,null,null,5]
[6,null,null,null,null,null,null,6,null,null,null,null,null,null,6,null,null,null,null,null,6,null,null,null,null,null,null,6,null,null,null,null,null,null,6,null,null,null,null,null,6,null,null,null,null,null,null,6]
[7,null,null,null,null,null,null,7,null,null,null,null,null,null,7,null,null,null,null,null,7,null,null,null,null,null,null,7,null,null,null,null,null,null,7,null,null,null,null,null,7,null,null,null,null,null,null,7]
[8,null,null,null,null,null,null,8,null,null,null,null,null,null,8,null,null,null,null,null,8,null,null,null,null,null,null,8,null,null,null,null,null,null,8,null,null,null,null,null,8,null,null,null,null,null,null,8]
[9,null,null,null,null,null,null,9,null,null,null,null,null,null,9,null,null,null,null,null,9,null,null,null,null,null,null,9,null,null,null,null,null,null,9,null,null,null,null,null,9,null,null,null,null,null,null,9]
[10,null,null,null,null,null,null,10,null,null,null,null,null,null,10,null,null,null,null,null,10,null,null,null,null,null,null,10,null,null,null,null,null,null,10,null,null,null,null,null,10,null,null,null,null,null,null,10]
[11,null,null,null,null,null,null,11,null,null,null,null,null,null,11,null,null,null,null,null,11,null,null,null,null,null,null,11,null,null,null,null,null,null,11,null,null,null,null,null,11,null,null,null,null,null,null,11]
[12,null,null,null,null,null,null,12,null,null,null,null,null,null,12,null,null,null,null,null,12,null,null,null,null,null,null,12,null,null,null,null,null,null,12,null,null,null,null,null,12,null,null,null,null,null,null,12]
[13,null,null,null,null,null,null,13,null,null,null,null,null,null,13,null,null,null,null,null,13,null,null,null,null,null,null,13,null,null,null,null,null,null,13,null,null,null,null,null,13,null,null,null,null,null,null,13]
[14,null,null,null,null,null,null,14,null,null,null,null,null,null,14,null,null,null,null,null,14,null,null,null,null,null,null,14,null,null,null,null,null,null,14,null,null,null,null,null,14,null,null,null,null,null,null,14]
[15,null,null,null,null,null,null,15,null,null,null,null,null,null,15,null,null,null,null,null,15,null,null,null,null,null,null,15,null,null,null,null,null,null,15,null,null,null,null,null,15,null,null,null,null,null,null,15]
[16,null,null,null,null,null,null,16,null,null,null,null,null,null,16,null,null,null,null,null,16,null,null,null,null,null,null,16,null,null,null,null,null,null,16,null,null,null,null,null,16,null,null,null,null,null,null,16]
[17,null,null,null,null,null,null,17,null,null,null,null,null,null,17,null,null,null,null,null,17,null,null,null,null,null,null,17,null,null,null,null,null,null,17,null,null,null,null,null,17,null,null,null,null,null,null,17]
[18,null,null,null,null,null,null,18,null,null,null,null,null,null,18,null,null,null,null,null,18,null,null,null,null,null,null,18,null,null,null,null,null,null,18,null,null,null,null,null,18,null,null,null,null,null,null,18]
["Total","Shots",null,null,"Shots",null,null,"Total","Shots",null,null,"Shots",null,null,"Total","Shots",null,null,"Shots",null,"Total","Shots",null,null,"Shots",null,null,"Total","Shots",null,null,"Shots",null,null,"Total","Shots",null,null,"Shots",null,"Total","Shots",null,null,"Shots",null,null,"Total","Shots",null,null,"shots"]
[null,"Ends",null,null,"Ends",null,null,null,"Ends",null,null,"Ends",null,null,null,"Ends",null,null,"Ends",null,null,"Ends",null,null,"Ends",null,null,null,"Ends",null,null,"Ends",null,null,null,"Ends",null,null,"Ends",null,null,"Ends",null,null,"Ends",null,null,null,"Ends",null,null,"Ends"]
[]
[]
["1st Game ",null,null,null,null,null,null,"2nd Game ",null,null,null,null,null,null,"3rd Game ",null,null,null,null,null,"4th Game",null,null,null,null,null,null,"5th Game",null,null,null,null,null,null,"6th Game",null,null,null,null,null,"7th Game",null,null,null,null,null,null,"8th Game"]
["Team No",null,null,"Rink No",null,null,null,"Team No",null,null,"Rink No",null,null,null,"Team No",null,null,"Rink No",null,null,"Team No",null,null,"Rink No",null,null,null,"Team No",null,null,"Rink No",null,null,null,"Team No",null,null,"Rink No",null,null,"Team No",null,null,"Rink No",null,null,null,"Team No",null,null,"Rink No"]
[]
[{"$f":"DRAW!$B$22","v":16},null,null,{"$f":"DRAW!$E$22","v":8},null,null,null,{"$f":"DRAW!$B$22","v":16},null,null,{"$f":"DRAW!$G$22","v":19},null,null,null,{"$f":"DRAW!$B$22","v":16},null,null,{"$f":"DRAW!$I$22","v":2},null,null,{"$f":"DRAW!$B$22","v":16},null,null,{"$f":"DRAW!$K$22","v":12},null,null,null,{"$f":"DRAW!$B$22","v":16},null,null,{"$f":"DRAW!$M$22","v":15},null,null,null,{"$f":"DRAW!$B$22","v":16},null,null,{"$f":"DRAW!$O$22","v":4},null,null,{"$f":"DRAW!$B$22","v":16},null,null,{"$f":"DRAW!$Q$22","v":9},null,null,null,{"$f":"DRAW!$B$22","v":16},null,null,{"$f":"DRAW!$S$22","v":16}]
[null,"Team",{"$f":"DRAW!$B$22","v":16},"V","Team",{"$f":"DRAW!$D$22","v":15},null,null,"Team",{"$f":"DRAW!$B$22","v":16},"V","Team",{"$f":"DRAW!$F$22","v":18},null,null,"Team",{"$f":"DRAW!$B$22","v":16},"V","Team",{"$f":"DRAW!$H$22","v":22},null,"Team",{"$f":"DRAW!$B$22","v":16},"V","Team",{"$f":"DRAW!$J$22","v":26},null,null,"Team",{"$f":"DRAW!$B$22","v":16},"V","Team",{"$f":"DRAW!$L$22","v":27},null,null,"Team",{"$f":"DRAW!$B$22","v":16},"V","Team",{"$f":"DRAW!$N$22","v":28},null,"Team",{"$f":"DRAW!$B$22","v":16},"V","Team",{"$f":"DRAW!$P$22","v":23},null,null,"Team",{"$f":"DRAW!$B$22","v":16},"V","Team",{"$f":"DRAW!$R$22","v":19}]
["Ends","Shots","Total",null,"Shots","Total",null,"Ends","Shots","Total",null,"Shots","Total",null,"Ends","Shots","Total",null,"Shots","Total","Ends","Shots","Total",null,"Shots","Total",null,"Ends","Shots","Total",null,"Shots","Total",null,"Ends","Shots","Total",null,"Shots","Total","Ends","Shots","Total",null,"Shots","Total",null,"Ends","Shots","Total",null,"shots","Totar"]
[1,null,null,null,null,null,null,1,null,null,null,null,null,null,1,null,null,null,null,null,1,null,null,null,null,null,null,1,null,null,null,null,null,null,1,null,null,null,null,null,1,null,null,null,null,null,null,1]
[2,null,null,null,null,null,null,2,null,null,null,null,null,null,2,null,null,null,null,null,2,null,null,null,null,null,null,2,null,null,null,null,null,null,2,null,null,null,null,null,2,null,null,null,null,null,null,2]
[3,null,null,null,null,null,null,3,null,null,null,null,null,null,3,null,null,null,null,null,3,null,null,null,null,null,null,3,null,null,null,null,null,null,3,null,null,null,null,null,3,null,null,null,null,null,null,3]
[4,null,null,null,null,null,null,4,null,null,null,null,null,null,4,null,null,null,null,null,4,null,null,null,null,null,null,4,null,null,null,null,null,null,4,null,null,null,null,null,4,null,null,null,null,null,null,4]
[5,null,null,null,null,null,null,5,null,null,null,null,null,null,5,null,null,null,null,null,5,null,null,null,null,null,null,5,null,null,null,null,null,null,5,null,null,null,null,null,5,null,null,null,null,null,null,5]
[6,null,null,null,null,null,null,6,null,null,null,null,null,null,6,null,null,null,null,null,6,null,null,null,null,null,null,6,null,null,null,null,null,null,6,null,null,null,null,null,6,null,null,null,null,null,null,6]
[7,null,null,null,null,null,null,7,null,null,null,null,null,null,7,null,null,null,null,null,7,null,null,null,null,null,null,7,null,null,null,null,null,null,7,null,null,null,null,null,7,null,null,null,null,null,null,7]
[8,null,null,null,null,null,null,8,null,null,null,null,null,null,8,null,null,null,null,null,8,null,null,null,null,null,null,8,null,null,null,null,null,null,8,null,null,null,null,null,8,null,null,null,null,null,null,8]
[9,null,null,null,null,null,null,9,null,null,null,null,null,null,9,null,null,null,null,null,9,null,null,null,null,null,null,9,null,null,null,null,null,null,9,null,null,null,null,null,9,null,null,null,null,null,null,9]
[10,null,null,null,null,null,null,10,null,null,null,null,null,null,10,null,null,null,null,null,10,null,null,null,null,null,null,10,null,null,null,null,null,null,10,null,null,null,null,null,10,null,null,null,null,null,null,10]
[11,null,null,null,null,null,null,11,null,null,null,null,null,null,11,null,null,null,null,null,11,null,null,null,null,null,null,11,null,null,null,null,null,null,11,null,null,null,null,null,11,null,null,null,null,null,null,11]
[12,null,null,null,null,null,null,12,null,null,null,null,null,null,12,null,null,null,null,null,12,null,null,null,null,null,null,12,null,null,null,null,null,null,12,null,null,null,null,null,12,null,null,null,null,null,null,12]
[13,null,null,null,null,null,null,13,null,null,null,null,null,null,13,null,null,null,null,null,13,null,null,null,null,null,null,13,null,null,null,null,null,null,13,null,null,null,null,null,13,null,null,null,null,null,null,13]
[14,null,null,null,null,null,null,14,null,null,null,null,null,null,14,null,null,null,null,null,14,null,null,null,null,null,null,14,null,null,null,null,null,null,14,null,null,null,null,null,14,null,null,null,null,null,null,14]
[15,null,null,null,null,null,null,15,null,null,null,null,null,null,15,null,null,null,null,null,15,null,null,null,null,null,null,15,null,null,null,null,null,null,15,null,null,null,null,null,15,null,null,null,null,null,null,15]
[16,null,null,null,null,null,null,16,null,null,null,null,null,null,16,null,null,null,null,null,16,null,null,null,null,null,null,16,null,null,null,null,null,null,16,null,null,null,null,null,16,null,null,null,null,null,null,16]
[17,null,null,null,null,null,null,17,null,null,null,null,null,null,17,null,null,null,null,null,17,null,null,null,null,null,null,17,null,null,null,null,null,null,17,null,null,null,null,null,17,null,null,null,null,null,null,17]
[18,null,null,null,null,null,null,18,null,null,null,null,null,null,18,null,null,null,null,null,18,null,null,null,null,null,null,18,null,null,null,null,null,null,18,null,null,null,null,null,18,null,null,null,null,null,null,18]
["Total","Shots",null,null,"Shots",null,null,"Total","Shots",null,null,"Shots",null,null,"Total","Shots",null,null,"Shots",null,"Total","Shots",null,null,"Shots",null,null,"Total","Shots",null,null,"Shots",null,null,"Total","Shots",null,null,"Shots",null,"Total","Shots",null,null,"Shots",null,null,"Total","Shots",null,null,"shots"]
[null,"Ends",null,null,"Ends",null,null,null,"Ends",null,null,"Ends",null,null,null,"Ends",null,null,"Ends",null,null,"Ends",null,null,"Ends",null,null,null,"Ends",null,null,"Ends",null,null,null,"Ends",null,null,"Ends",null,null,"Ends",null,null,"Ends",null,null,null,"Ends",null,null,"Ends"]
["1st Game ",null,null,null,null,null,null,"2nd Game ",null,null,null,null,null,null,"3rd Game ",null,null,null,null,null,"4th Game",null,null,null,null,null,null,"5th Game",null,null,null,null,null,null,"6th Game",null,null,null,null,null,"7th Game",null,null,null,null,null,null,"8th Game"]
["Team No",null,null,"Rink No",null,null,null,"Team No",null,null,"Rink No",null,null,null,"Team No",null,null,"Rink No",null,null,"Team No",null,null,"Rink No",null,null,null,"Team No",null,null,"Rink No",null,null,null,"Team No",null,null,"Rink No",null,null,"Team No",null,null,"Rink No",null,null,null,"Team No",null,null,"Rink No"]
[]
[{"$f":"DRAW!$B$23","v":17},null,null,{"$f":"DRAW!$E$23","v":9},null,null,null,{"$f":"DRAW!$B$23","v":17},null,null,{"$f":"DRAW!$G$23","v":20},null,null,null,{"$f":"DRAW!$B$23","v":17},null,null,{"$f":"DRAW!$I$23","v":1},null,null,{"$f":"DRAW!$B$23","v":17},null,null,{"$f":"DRAW!$K$23","v":11},null,null,null,{"$f":"DRAW!$B$23","v":17},null,null,{"$f":"DRAW!$M$23","v":17},null,null,null,{"$f":"DRAW!$B$23","v":17},null,null,{"$f":"DRAW!$O$23","v":2},null,null,{"$f":"DRAW!$B$23","v":17},null,null,{"$f":"DRAW!$Q$23","v":8},null,null,null,{"$f":"DRAW!$B$23","v":17},null,null,{"$f":"DRAW!$S$23","v":18}]
[null,"Team",{"$f":"DRAW!$B$23","v":17},"V","Team",{"$f":"DRAW!$D$23","v":28},null,null,"Team",{"$f":"DRAW!$B$23","v":17},"V","Team",{"$f":"DRAW!$F$23","v":15},null,null,"Team",{"$f":"DRAW!$B$23","v":17},"V","Team",{"$f":"DRAW!$H$23","v":21},null,"Team",{"$f":"DRAW!$B$23","v":17},"V","Team",{"$f":"DRAW!$J$23","v":25},null,null,"Team",{"$f":"DRAW!$B$23","v":17},"V","Team",{"$f":"DRAW!$L$23","v":26},null,null,"Team",{"$f":"DRAW!$B$23","v":17},"V","Team",{"$f":"DRAW!$N$23","v":27},null,"Team",{"$f":"DRAW!$B$23","v":17},"V","Team",{"$f":"DRAW!$P$23","v":24},null,null,"Team",{"$f":"DRAW!$B$23","v":17},"V","Team",{"$f":"DRAW!$R$23","v":18}]
["Ends","Shots","Total",null,"Shots","Total",null,"Ends","Shots","Total",null,"Shots","Total",null,"Ends","Shots","Total",null,"Shots","Total","Ends","Shots","Total",null,"Shots","Total",null,"Ends","Shots","Total",null,"Shots","Total",null,"Ends","Shots","Total",null,"Shots","Total","Ends","Shots","Total",null,"Shots","Total",null,"Ends","Shots","Total",null,"shots","Totar"]
[1,null,null,null,null,null,null,1,null,null,null,null,null,null,1,null,null,null,null,null,1,null,null,null,null,null,null,1,null,null,null,null,null,null,1,null,null,null,null,null,1,null,null,null,null,null,null,1]
[2,null,null,null,null,null,null,2,null,null,null,null,null,null,2,null,null,null,null,null,2,null,null,null,null,null,null,2,null,null,null,null,null,null,2,null,null,null,null,null,2,null,null,null,null,null,null,2]
[3,null,null,null,null,null,null,3,null,null,null,null,null,null,3,null,null,null,null,null,3,null,null,null,null,null,null,3,null,null,null,null,null,null,3,null,null,null,null,null,3,null,null,null,null,null,null,3]
[4,null,null,null,null,null,null,4,null,null,null,null,null,null,4,null,null,null,null,null,4,null,null,null,null,null,null,4,null,null,null,null,null,null,4,null,null,null,null,null,4,null,null,null,null,null,null,4]
[5,null,null,null,null,null,null,5,null,null,null,null,null,null,5,null,null,null,null,null,5,null,null,null,null,null,null,5,null,null,null,null,null,null,5,null,null,null,null,null,5,null,null,null,null,null,null,5]
[6,null,null,null,null,null,null,6,null,null,null,null,null,null,6,null,null,null,null,null,6,null,null,null,null,null,null,6,null,null,null,null,null,null,6,null,null,null,null,null,6,null,null,null,null,null,null,6]
[7,null,null,null,null,null,null,7,null,null,null,null,null,null,7,null,null,null,null,null,7,null,null,null,null,null,null,7,null,null,null,null,null,null,7,null,null,null,null,null,7,null,null,null,null,null,null,7]
[8,null,null,null,null,null,null,8,null,null,null,null,null,null,8,null,null,null,null,null,8,null,null,null,null,null,null,8,null,null,null,null,null,null,8,null,null,null,null,null,8,null,null,null,null,null,null,8]
[9,null,null,null,null,null,null,9,null,null,null,null,null,null,9,null,null,null,null,null,9,null,null,null,null,null,null,9,null,null,null,null,null,null,9,null,null,null,null,null,9,null,null,null,null,null,null,9]
[10,null,null,null,null,null,null,10,null,null,null,null,null,null,10,null,null,null,null,null,10,null,null,null,null,null,null,10,null,null,null,null,null,null,10,null,null,null,null,null,10,null,null,null,null,null,null,10]
[11,null,null,null,null,null,null,11,null,null,null,null,null,null,11,null,null,null,null,null,11,null,null,null,null,null,null,11,null,null,null,null,null,null,11,null,null,null,null,null,11,null,null,null,null,null,null,11]
[12,null,null,null,null,null,null,12,null,null,null,null,null,null,12,null,null,null,null,null,12,null,null,null,null,null,null,12,null,null,null,null,null,null,12,null,null,null,null,null,12,null,null,null,null,null,null,12]
[13,null,null,null,null,null,null,13,null,null,null,null,null,null,13,null,null,null,null,null,13,null,null,null,null,null,null,13,null,null,null,null,null,null,13,null,null,null,null,null,13,null,null,null,null,null,null,13]
[14,null,null,null,null,null,null,14,null,null,null,null,null,null,14,null,null,null,null,null,14,null,null,null,null,null,null,14,null,null,null,null,null,null,14,null,null,null,null,null,14,null,null,null,null,null,null,14]
[15,null,null,null,null,null,null,15,null,null,null,null,null,null,15,null,null,null,null,null,15,null,null,null,null,null,null,15,null,null,null,null,null,null,15,null,null,null,null,null,15,null,null,null,null,null,null,15]
[16,null,null,null,null,null,null,16,null,null,null,null,null,null,16,null,null,null,null,null,16,null,null,null,null,null,null,16,null,null,null,null,null,null,16,null,null,null,null,null,16,null,null,null,null,null,null,16]
[17,null,null,null,null,null,null,17,null,null,null,null,null,null,17,null,null,null,null,null,17,null,null,null,null,null,null,17,null,null,null,null,null,null,17,null,null,null,null,null,17,null,null,null,null,null,null,17]
[18,null,null,null,null,null,null,18,null,null,null,null,null,null,18,null,null,null,null,null,18,null,null,null,null,null,null,18,null,null,null,null,null,null,18,null,null,null,null,null,18,null,null,null,null,null,null,18]
["Total","Shots",null,null,"Shots",null,null,"Total","Shots",null,null,"Shots",null,null,"Total","Shots",null,null,"Shots",null,"Total","Shots",null,null,"Shots",null,null,"Total","Shots",null,null,"Shots",null,null,"Total","Shots",null,null,"Shots",null,"Total","Shots",null,null,"Shots",null,null,"Total","Shots",null,null,"shots"]
[null,"Ends",null,null,"Ends",null,null,null,"Ends",null,null,"Ends",null,null,null,"Ends",null,null,"Ends",null,null,"Ends",null,null,"Ends",null,null,null,"Ends",null,null,"Ends",null,null,null,"Ends",null,null,"Ends",null,null,"Ends",null,null,"Ends",null,null,null,"Ends",null,null,"Ends"]
[]
[]
["1st Game ",null,null,null,null,null,null,"2nd Game ",null,null,null,null,null,null,"3rd Game ",null,null,null,null,null,"4th Game",null,null,null,null,null,null,"5th Game",null,null,null,null,null,null,"6th Game",null,null,null,null,null,"7th Game",null,null,null,null,null,null,"8th Game"]
["Team No",null,null,"Rink No",null,null,null,"Team No",null,null,"Rink No",null,null,null,"Team No",null,null,"Rink No",null,null,"Team No",null,null,"Rink No",null,null,null,"Team No",null,null,"Rink No",null,null,null,"Team No",null,null,"Rink No",null,null,"Team No",null,null,"Rink No",null,null,null,"Team No",null,null,"Rink No"]
[]
[{"$f":"DRAW!$B$24","v":18},null,null,{"$f":"DRAW!$E$24","v":10},null,null,null,{"$f":"DRAW!$B$24","v":18},null,null,{"$f":"DRAW!$G$24","v":19},null,null,null,{"$f":"DRAW!$B$24","v":18},null,null,{"$f":"DRAW!$I$24","v":4},null,null,{"$f":"DRAW!$B$24","v":18},null,null,{"$f":"DRAW!$K$24","v":14},null,null,null,{"$f":"DRAW!$B$24","v":18},null,null,{"$f":"DRAW!$M$24","v":16},null,null,null,{"$f":"DRAW!$B$24","v":18},null,null,{"$f":"DRAW!$O$24","v":6},null,null,{"$f":"DRAW!$B$24","v":18},null,null,{"$f":"DRAW!$Q$24","v":14},null,null,null,{"$f":"DRAW!$B$24","v":18},null,null,{"$f":"DRAW!$S$24","v":18}]
[null,"Team",{"$f":"DRAW!$B$24","v":18},"V","Team",{"$f":"DRAW!$D$24","v":27},null,null,"Team",{"$f":"DRAW!$B$24","v":18},"V","Team",{"$f":"DRAW!$F$24","v":16},null,null,"Team",{"$f":"DRAW!$B$24","v":18},"V","Team",{"$f":"DRAW!$H$24","v":20},null,"Team",{"$f":"DRAW!$B$24","v":18},"V","Team",{"$f":"DRAW!$J$24","v":24},null,null,"Team",{"$f":"DRAW!$B$24","v":18},"V","Team",{"$f":"DRAW!$L$24","v":25},null,null,"Team",{"$f":"DRAW!$B$24","v":18},"V","Team",{"$f":"DRAW!$N$24","v":22},null,"Team",{"$f":"DRAW!$B$24","v":18},"V","Team",{"$f":"DRAW!$P$24","v":26},null,null,"Team",{"$f":"DRAW!$B$24","v":18},"V","Team",{"$f":"DRAW!$R$24","v":17}]
["Ends","Shots","Total",null,"Shots","Total",null,"Ends","Shots","Total",null,"Shots","Total",null,"Ends","Shots","Total",null,"Shots","Total","Ends","Shots","Total",null,"Shots","Total",null,"Ends","Shots","Total",null,"Shots","Total",null,"Ends","Shots","Total",null,"Shots","Total","Ends","Shots","Total",null,"Shots","Total",null,"Ends","Shots","Total",null,"shots","Totar"]
[1,null,null,null,null,null,null,1,null,null,null,null,null,null,1,null,null,null,null,null,1,null,null,null,null,null,null,1,null,null,null,null,null,null,1,null,null,null,null,null,1,null,null,null,null,null,null,1]
[2,null,null,null,null,null,null,2,null,null,null,null,null,null,2,null,null,null,null,null,2,null,null,null,null,null,null,2,null,null,null,null,null,null,2,null,null,null,null,null,2,null,null,null,null,null,null,2]
[3,null,null,null,null,null,null,3,null,null,null,null,null,null,3,null,null,null,null,null,3,null,null,null,null,null,null,3,null,null,null,null,null,null,3,null,null,null,null,null,3,null,null,null,null,null,null,3]
[4,null,null,null,null,null,null,4,null,null,null,null,null,null,4,null,null,null,null,null,4,null,null,null,null,null,null,4,null,null,null,null,null,null,4,null,null,null,null,null,4,null,null,null,null,null,null,4]
[5,null,null,null,null,null,null,5,null,null,null,null,null,null,5,null,null,null,null,null,5,null,null,null,null,null,null,5,null,null,null,null,null,null,5,null,null,null,null,null,5,null,null,null,null,null,null,5]
[6,null,null,null,null,null,null,6,null,null,null,null,null,null,6,null,null,null,null,null,6,null,null,null,null,null,null,6,null,null,null,null,null,null,6,null,null,null,null,null,6,null,null,null,null,null,null,6]
[7,null,null,null,null,null,null,7,null,null,null,null,null,null,7,null,null,null,null,null,7,null,null,null,null,null,null,7,null,null,null,null,null,null,7,null,null,null,null,null,7,null,null,null,null,null,null,7]
[8,null,null,null,null,null,null,8,null,null,null,null,null,null,8,null,null,null,null,null,8,null,null,null,null,null,null,8,null,null,null,null,null,null,8,null,null,null,null,null,8,null,null,null,null,null,null,8]
[9,null,null,null,null,null,null,9,null,null,null,null,null,null,9,null,null,null,null,null,9,null,null,null,null,null,null,9,null,null,null,null,null,null,9,null,null,null,null,null,9,null,null,null,null,null,null,9]
[10,null,null,null,null,null,null,10,null,null,null,null,null,null,10,null,null,null,null,null,10,null,null,null,null,null,null,10,null,null,null,null,null,null,10,null,null,null,null,null,10,null,null,null,null,null,null,10]
[11,null,null,null,null,null,null,11,null,null,null,null,null,null,11,null,null,null,null,null,11,null,null,null,null,null,null,11,null,null,null,null,null,null,11,null,null,null,null,null,11,null,null,null,null,null,null,11]
[12,null,null,null,null,null,null,12,null,null,null,null,null,null,12,null,null,null,null,null,12,null,null,null,null,null,null,12,null,null,null,null,null,null,12,null,null,null,null,null,12,null,null,null,null,null,null,12]
[13,null,null,null,null,null,null,13,null,null,null,null,null,null,13,null,null,null,null,null,13,null,null,null,null,null,null,13,null,null,null,null,null,null,13,null,null,null,null,null,13,null,null,null,null,null,null,13]
[14,null,null,null,null,null,null,14,null,null,null,null,null,null,14,null,null,null,null,null,14,null,null,null,null,null,null,14,null,null,null,null,null,null,14,null,null,null,null,null,14,null,null,null,null,null,null,14]
[15,null,null,null,null,null,null,15,null,null,null,null,null,null,15,null,null,null,null,null,15,null,null,null,null,null,null,15,null,null,null,null,null,null,15,null,null,null,null,null,15,null,null,null,null,null,null,15]
[16,null,null,null,null,null,null,16,null,null,null,null,null,null,16,null,null,null,null,null,16,null,null,null,null,null,null,16,null,null,null,null,null,null,16,null,null,null,null,null,16,null,null,null,null,null,null,16]
[17,null,null,null,null,null,null,17,null,null,null,null,null,null,17,null,null,null,null,null,17,null,null,null,null,null,null,17,null,null,null,null,null,null,17,null,null,null,null,null,17,null,null,null,null,null,null,17]
[18,null,null,null,null,null,null,18,null,null,null,null,null,null,18,null,null,null,null,null,18,null,null,null,null,null,null,18,null,null,null,null,null,null,18,null,null,null,null,null,18,null,null,null,null,null,null,18]
["Total","Shots",null,null,"Shots",null,null,"Total","Shots",null,null,"Shots",null,null,"Total","Shots",null,null,"Shots",null,"Total","Shots",null,null,"Shots",null,null,"Total","Shots",null,null,"Shots",null,null,"Total","Shots",null,null,"Shots",null,"Total","Shots",null,null,"Shots",null,null,"Total","Shots",null,null,"shots"]
[null,"Ends",null,null,"Ends",null,null,null,"Ends",null,null,"Ends",null,null,null,"Ends",null,null,"Ends",null,null,"Ends",null,null,"Ends",null,null,null,"Ends",null,null,"Ends",null,null,null,"Ends",null,null,"Ends",null,null,"Ends",null,null,"Ends",null,null,null,"Ends",null,null,"Ends"]
["1st Game ",null,null,null,null,null,null,"2nd Game ",null,null,null,null,null,null,"3rd Game ",null,null,null,null,null,"4th Game",null,null,null,null,null,null,"5th Game",null,null,null,null,null,null,"6th Game",null,null,null,null,null,"7th Game",null,null,null,null,null,null,"8th Game"]
["Team No",null,null,"Rink No",null,null,null,"Team No",null,null,"Rink No",null,null,null,"Team No",null,null,"Rink No",null,null,"Team No",null,null,"Rink No",null,null,null,"Team No",null,null,"Rink No",null,null,null,"Team No",null,null,"Rink No",null,null,"Team No",null,null,"Rink No",null,null,null,"Team No",null,null,"Rink No"]
[]
[{"$f":"DRAW!$B$25","v":19},null,null,{"$f":"DRAW!$E$25","v":11},null,null,null,{"$f":"DRAW!$B$25","v":19},null,null,{"$f":"DRAW!$G$25","v":15},null,null,null,{"$f":"DRAW!$B$25","v":19},null,null,{"$f":"DRAW!$I$25","v":5},null,null,{"$f":"DRAW!$B$25","v":19},null,null,{"$f":"DRAW!$K$25","v":10},null,null,null,{"$f":"DRAW!$B$25","v":19},null,null,{"$f":"DRAW!$M$25","v":19},null,null,null,{"$f":"DRAW!$B$25","v":19},null,null,{"$f":"DRAW!$O$25","v":1},null,null,{"$f":"DRAW!$B$25","v":19},null,null,{"$f":"DRAW!$Q$25","v":13},null,null,null,{"$f":"DRAW!$B$25","v":19},null,null,{"$f":"DRAW!$S$25","v":16}]
[null,"Team",{"$f":"DRAW!$B$25","v":19},"V","Team",{"$f":"DRAW!$D$25","v":26},null,null,"Team",{"$f":"DRAW!$B$25","v":19},"V","Team",{"$f":"DRAW!$F$25","v":28},null,null,"Team",{"$f":"DRAW!$B$25","v":19},"V","Team",{"$f":"DRAW!$H$25","v":15},null,"Team",{"$f":"DRAW!$B$25","v":19},"V","Team",{"$f":"DRAW!$J$25","v":23},null,null,"Team",{"$f":"DRAW!$B$25","v":19},"V","Team",{"$f":"DRAW!$L$25","v":24},null,null,"Team",{"$f":"DRAW!$B$25","v":19},"V","Team",{"$f":"DRAW!$N$25","v":25},null,"Team",{"$f":"DRAW!$B$25","v":19},"V","Team",{"$f":"DRAW!$P$25","v":22},null,null,"Team",{"$f":"DRAW!$B$25","v":19},"V","Team",{"$f":"DRAW!$R$25","v":16}]
["Ends","Shots","Total",null,"Shots","Total",null,"Ends","Shots","Total",null,"Shots","Total",null,"Ends","Shots","Total",null,"Shots","Total","Ends","Shots","Total",null,"Shots","Total",null,"Ends","Shots","Total",null,"Shots","Total",null,"Ends","Shots","Total",null,"Shots","Total","Ends","Shots","Total",null,"Shots","Total",null,"Ends","Shots","Total",null,"shots","Totar"]
[1,null,null,null,null,null,null,1,null,null,null,null,null,null,1,null,null,null,null,null,1,null,null,null,null,null,null,1,null,null,null,null,null,null,1,null,null,null,null,null,1,null,null,null,null,null,null,1]
[2,null,null,null,null,null,null,2,null,null,null,null,null,null,2,null,null,null,null,null,2,null,null,null,null,null,null,2,null,null,null,null,null,null,2,null,null,null,null,null,2,null,null,null,null,null,null,2]
[3,null,null,null,null,null,null,3,null,null,null,null,null,null,3,null,null,null,null,null,3,null,null,null,null,null,null,3,null,null,null,null,null,null,3,null,null,null,null,null,3,null,null,null,null,null,null,3]
[4,null,null,null,null,null,null,4,null,null,null,null,null,null,4,null,null,null,null,null,4,null,null,null,null,null,null,4,null,null,null,null,null,null,4,null,null,null,null,null,4,null,null,null,null,null,null,4]
[5,null,null,null,null,null,null,5,null,null,null,null,null,null,5,null,null,null,null,null,5,null,null,null,null,null,null,5,null,null,null,null,null,null,5,null,null,null,null,null,5,null,null,null,null,null,null,5]
[6,null,null,null,null,null,null,6,null,null,null,null,null,null,6,null,null,null,null,null,6,null,null,null,null,null,null,6,null,null,null,null,null,null,6,null,null,null,null,null,6,null,null,null,null,null,null,6]
[7,null,null,null,null,null,null,7,null,null,null,null,null,null,7,null,null,null,null,null,7,null,null,null,null,null,null,7,null,null,null,null,null,null,7,null,null,null,null,null,7,null,null,null,null,null,null,7]
[8,null,null,null,null,null,null,8,null,null,null,null,null,null,8,null,null,null,null,null,8,null,null,null,null,null,null,8,null,null,null,null,null,null,8,null,null,null,null,null,8,null,null,null,null,null,null,8]
[9,null,null,null,null,null,null,9,null,null,null,null,null,null,9,null,null,null,null,null,9,null,null,null,null,null,null,9,null,null,null,null,null,null,9,null,null,null,null,null,9,null,null,null,null,null,null,9]
[10,null,null,null,null,null,null,10,null,null,null,null,null,null,10,null,null,null,null,null,10,null,null,null,null,null,null,10,null,null,null,null,null,null,10,null,null,null,null,null,10,null,null,null,null,null,null,10]
[11,null,null,null,null,null,null,11,null,null,null,null,null,null,11,null,null,null,null,null,11,null,null,null,null,null,null,11,null,null,null,null,null,null,11,null,null,null,null,null,11,null,null,null,null,null,null,11]
[12,null,null,null,null,null,null,12,null,null,null,null,null,null,12,null,null,null,null,null,12,null,null,null,null,null,null,12,null,null,null,null,null,null,12,null,null,null,null,null,12,null,null,null,null,null,null,12]
[13,null,null,null,null,null,null,13,null,null,null,null,null,null,13,null,null,null,null,null,13,null,null,null,null,null,null,13,null,null,null,null,null,null,13,null,null,null,null,null,13,null,null,null,null,null,null,13]
[14,null,null,null,null,null,null,14,null,null,null,null,null,null,14,null,null,null,null,null,14,null,null,null,null,null,null,14,null,null,null,null,null,null,14,null,null,null,null,null,14,null,null,null,null,null,null,14]
[15,null,null,null,null,null,null,15,null,null,null,null,null,null,15,null,null,null,null,null,15,null,null,null,null,null,null,15,null,null,null,null,null,null,15,null,null,null,null,null,15,null,null,null,null,null,null,15]
[16,null,null,null,null,null,null,16,null,null,null,null,null,null,16,null,null,null,null,null,16,null,null,null,null,null,null,16,null,null,null,null,null,null,16,null,null,null,null,null,16,null,null,null,null,null,null,16]
[17,null,null,null,null,null,null,17,null,null,null,null,null,null,17,null,null,null,null,null,17,null,null,null,null,null,null,17,null,null,null,null,null,null,17,null,null,null,null,null,17,null,null,null,null,null,null,17]
[18,null,null,null,null,null,null,18,null,null,null,null,null,null,18,null,null,null,null,null,18,null,null,null,null,null,null,18,null,null,null,null,null,null,18,null,null,null,null,null,18,null,null,null,null,null,null,18]
["Total","Shots",null,null,"Shots",null,null,"Total","Shots",null,null,"Shots",null,null,"Total","Shots",null,null,"Shots",null,"Total","Shots",null,null,"Shots",null,null,"Total","Shots",null,null,"Shots",null,null,"Total","Shots",null,null,"Shots",null,"Total","Shots",null,null,"Shots",null,null,"Total","Shots",null,null,"shots"]
[null,"Ends",null,null,"Ends",null,null,null,"Ends",null,null,"Ends",null,null,null,"Ends",null,null,"Ends",null,null,"Ends",null,null,"Ends",null,null,null,"Ends",null,null,"Ends",null,null,null,"Ends",null,null,"Ends",null,null,"Ends",null,null,"Ends",null,null,null,"Ends",null,null,"Ends"]
[]
[]
["1st Game ",null,null,null,null,null,null,"2nd Game ",null,null,null,null,null,null,"3rd Game ",null,null,null,null,null,"4th Game",null,null,null,null,null,null,"5th Game",null,null,null,null,null,null,"6th Game",null,null,null,null,null,"7th Game",null,null,null,null,null,null,"8th Game"]
["Team No",null,null,"Rink No",null,null,null,"Team No",null,null,"Rink No",null,null,null,"Team No",null,null,"Rink No",null,null,"Team No",null,null,"Rink No",null,null,null,"Team No",null,null,"Rink No",null,null,null,"Team No",null,null,"Rink No",null,null,"Team No",null,null,"Rink No",null,null,null,"Team No",null,null,"Rink No"]
[]
[{"$f":"DRAW!$B$26","v":20},null,null,{"$f":"DRAW!$E$26","v":12},null,null,null,{"$f":"DRAW!$B$26","v":20},null,null,{"$f":"DRAW!$G$26","v":21},null,null,null,{"$f":"DRAW!$B$26","v":20},null,null,{"$f":"DRAW!$I$26","v":4},null,null,{"$f":"DRAW!$B$26","v":20},null,null,{"$f":"DRAW!$K$26","v":8},null,null,null,{"$f":"DRAW!$B$26","v":20},null,null,{"$f":"DRAW!$M$26","v":20},null,null,null,{"$f":"DRAW!$B$26","v":20},null,null,{"$f":"DRAW!$O$26","v":5},null,null,{"$f":"DRAW!$B$26","v":20},null,null,{"$f":"DRAW!$Q$26","v":11},null,null,null,{"$f":"DRAW!$B$26","v":20},null,null,{"$f":"DRAW!$S$26","v":21}]
[null,"Team",{"$f":"DRAW!$B$26","v":20},"V","Team",{"$f":"DRAW!$D$26","v":25},null,null,"Team",{"$f":"DRAW!$B$26","v":20},"V","Team",{"$f":"DRAW!$F$26","v":27},null,null,"Team",{"$f":"DRAW!$B$26","v":20},"V","Team",{"$f":"DRAW!$H$26","v":18},null,"Team",{"$f":"DRAW!$B$26","v":20},"V","Team",{"$f":"DRAW!$J$26","v":22},null,null,"Team",{"$f":"DRAW!$B$26","v":20},"V","Team",{"$f":"DRAW!$L$26","v":23},null,null,"Team",{"$f":"DRAW!$B$26","v":20},"V","Team",{"$f":"DRAW!$N$26","v":24},null,"Team",{"$f":"DRAW!$B$26","v":20},"V","Team",{"$f":"DRAW!$P$26","v":21},null,null,"Team",{"$f":"DRAW!$B$26","v":20},"V","Team",{"$f":"DRAW!$R$26","v":28}]
["Ends","Shots","Total",null,"Shots","Total",null,"Ends","Shots","Total",null,"Shots","Total",null,"Ends","Shots","Total",null,"Shots","Total","Ends","Shots","Total",null,"Shots","Total",null,"Ends","Shots","Total",null,"Shots","Total",null,"Ends","Shots","Total",null,"Shots","Total","Ends","Shots","Total",null,"Shots","Total",null,"Ends","Shots","Total",null,"shots","Totar"]
[1,null,null,null,null,null,null,1,null,null,null,null,null,null,1,null,null,null,null,null,1,null,null,null,null,null,null,1,null,null,null,null,null,null,1,null,null,null,null,null,1,null,null,null,null,null,null,1]
[2,null,null,null,null,null,null,2,null,null,null,null,null,null,2,null,null,null,null,null,2,null,null,null,null,null,null,2,null,null,null,null,null,null,2,null,null,null,null,null,2,null,null,null,null,null,null,2]
[3,null,null,null,null,null,null,3,null,null,null,null,null,null,3,null,null,null,null,null,3,null,null,null,null,null,null,3,null,null,null,null,null,null,3,null,null,null,null,null,3,null,null,null,null,null,null,3]
[4,null,null,null,null,null,null,4,null,null,null,null,null,null,4,null,null,null,null,null,4,null,null,null,null,null,null,4,null,null,null,null,null,null,4,null,null,null,null,null,4,null,null,null,null,null,null,4]
[5,null,null,null,null,null,null,5,null,null,null,null,null,null,5,null,null,null,null,null,5,null,null,null,null,null,null,5,null,null,null,null,null,null,5,null,null,null,null,null,5,null,null,null,null,null,null,5]
[6,null,null,null,null,null,null,6,null,null,null,null,null,null,6,null,null,null,null,null,6,null,null,null,null,null,null,6,null,null,null,null,null,null,6,null,null,null,null,null,6,null,null,null,null,null,null,6]
[7,null,null,null,null,null,null,7,null,null,null,null,null,null,7,null,null,null,null,null,7,null,null,null,null,null,null,7,null,null,null,null,null,null,7,null,null,null,null,null,7,null,null,null,null,null,null,7]
[8,null,null,null,null,null,null,8,null,null,null,null,null,null,8,null,null,null,null,null,8,null,null,null,null,null,null,8,null,null,null,null,null,null,8,null,null,null,null,null,8,null,null,null,null,null,null,8]
[9,null,null,null,null,null,null,9,null,null,null,null,null,null,9,null,null,null,null,null,9,null,null,null,null,null,null,9,null,null,null,null,null,null,9,null,null,null,null,null,9,null,null,null,null,null,null,9]
[10,null,null,null,null,null,null,10,null,null,null,null,null,null,10,null,null,null,null,null,10,null,null,null,null,null,null,10,null,null,null,null,null,null,10,null,null,null,null,null,10,null,null,null,null,null,null,10]
[11,null,null,null,null,null,null,11,null,null,null,null,null,null,11,null,null,null,null,null,11,null,null,null,null,null,null,11,null,null,null,null,null,null,11,null,null,null,null,null,11,null,null,null,null,null,null,11]
[12,null,null,null,null,null,null,12,null,null,null,null,null,null,12,null,null,null,null,null,12,null,null,null,null,null,null,12,null,null,null,null,null,null,12,null,null,null,null,null,12,null,null,null,null,null,null,12]
[13,null,null,null,null,null,null,13,null,null,null,null,null,null,13,null,null,null,null,null,13,null,null,null,null,null,null,13,null,null,null,null,null,null,13,null,null,null,null,null,13,null,null,null,null,null,null,13]
[14,null,null,null,null,null,null,14,null,null,null,null,null,null,14,null,null,null,null,null,14,null,null,null,null,null,null,14,null,null,null,null,null,null,14,null,null,null,null,null,14,null,null,null,null,null,null,14]
[15,null,null,null,null,null,null,15,null,null,null,null,null,null,15,null,null,null,null,null,15,null,null,null,null,null,null,15,null,null,null,null,null,null,15,null,null,null,null,null,15,null,null,null,null,null,null,15]
[16,null,null,null,null,null,null,16,null,null,null,null,null,null,16,null,null,null,null,null,16,null,null,null,null,null,null,16,null,null,null,null,null,null,16,null,null,null,null,null,16,null,null,null,null,null,null,16]
[17,null,null,null,null,null,null,17,null,null,null,null,null,null,17,null,null,null,null,null,17,null,null,null,null,null,null,17,null,null,null,null,null,null,17,null,null,null,null,null,17,null,null,null,null,null,null,17]
[18,null,null,null,null,null,null,18,null,null,null,null,null,null,18,null,null,null,null,null,18,null,null,null,null,null,null,18,null,null,null,null,null,null,18,null,null,null,null,null,18,null,null,null,null,null,null,18]
["Total","Shots",null,null,"Shots",null,null,"Total","Shots",null,null,"Shots",null,null,"Total","Shots",null,null,"Shots",null,"Total","Shots",null,null,"Shots",null,null,"Total","Shots",null,null,"Shots",null,null,"Total","Shots",null,null,"Shots",null,"Total","Shots",null,null,"Shots",null,null,"Total","Shots",null,null,"shots"]
[null,"Ends",null,null,"Ends",null,null,null,"Ends",null,null,"Ends",null,null,null,"Ends",null,null,"Ends",null,null,"Ends",null,null,"Ends",null,null,null,"Ends",null,null,"Ends",null,null,null,"Ends",null,null,"Ends",null,null,"Ends",null,null,"Ends",null,null,null,"Ends",null,null,"Ends"]
["1st Game ",null,null,null,null,null,null,"2nd Game ",null,null,null,null,null,null,"3rd Game ",null,null,null,null,null,"4th Game",null,null,null,null,null,null,"5th Game",null,null,null,null,null,null,"6th Game",null,null,null,null,null,"7th Game",null,null,null,null,null,null,"8th Game"]
["Team No",null,null,"Rink No",null,null,null,"Team No",null,null,"Rink No",null,null,null,"Team No",null,null,"Rink No",null,null,"Team No",null,null,"Rink No",null,null,null,"Team No",null,null,"Rink No",null,null,null,"Team No",null,null,"Rink No",null,null,"Team No",null,null,"Rink No",null,null,null,"Team No",null,null,"Rink No"]
[]
[{"$f":"DRAW!$B$27","v":21},null,null,{"$f":"DRAW!$E$27","v":13},null,null,null,{"$f":"DRAW!$B$27","v":21},null,null,{"$f":"DRAW!$G$27","v":16},null,null,null,{"$f":"DRAW!$B$27","v":21},null,null,{"$f":"DRAW!$I$27","v":1},null,null,{"$f":"DRAW!$B$27","v":21},null,null,{"$f":"DRAW!$K$27","v":9},null,null,null,{"$f":"DRAW!$B$27","v":21},null,null,{"$f":"DRAW!$M$27","v":18},null,null,null,{"$f":"DRAW!$B$27","v":21},null,null,{"$f":"DRAW!$O$27","v":7},null,null,{"$f":"DRAW!$B$27","v":21},null,null,{"$f":"DRAW!$Q$27","v":11},null,null,null,{"$f":"DRAW!$B$27","v":21},null,null,{"$f":"DRAW!$S$27","v":17}]
[null,"Team",{"$f":"DRAW!$B$27","v":21},"V","Team",{"$f":"DRAW!$D$27","v":24},null,null,"Team",{"$f":"DRAW!$B$27","v":21},"V","Team",{"$f":"DRAW!$F$27","v":26},null,null,"Team",{"$f":"DRAW!$B$27","v":21},"V","Team",{"$f":"DRAW!$H$27","v":17},null,"Team",{"$f":"DRAW!$B$27","v":21},"V","Team",{"$f":"DRAW!$J$27","v":15},null,null,"Team",{"$f":"DRAW!$B$27","v":21},"V","Team",{"$f":"DRAW!$L$27","v":22},null,null,"Team",{"$f":"DRAW!$B$27","v":21},"V","Team",{"$f":"DRAW!$N$27","v":23},null,"Team",{"$f":"DRAW!$B$27","v":21},"V","Team",{"$f":"DRAW!$P$27","v":20},null,null,"Team",{"$f":"DRAW!$B$27","v":21},"V","Team",{"$f":"DRAW!$R$27","v":27}]
["Ends","Shots","Total",null,"Shots","Total",null,"Ends","Shots","Total",null,"Shots","Total",null,"Ends","Shots","Total",null,"Shots","Total","Ends","Shots","Total",null,"Shots","Total",null,"Ends","Shots","Total",null,"Shots","Total",null,"Ends","Shots","Total",null,"Shots","Total","Ends","Shots","Total",null,"Shots","Total",null,"Ends","Shots","Total",null,"shots","Totar"]
[1,null,null,null,null,null,null,1,null,null,null,null,null,null,1,null,null,null,null,null,1,null,null,null,null,null,null,1,null,null,null,null,null,null,1,null,null,null,null,null,1,null,null,null,null,null,null,1]
[2,null,null,null,null,null,null,2,null,null,null,null,null,null,2,null,null,null,null,null,2,null,null,null,null,null,null,2,null,null,null,null,null,null,2,null,null,null,null,null,2,null,null,null,null,null,null,2]
[3,null,null,null,null,null,null,3,null,null,null,null,null,null,3,null,null,null,null,null,3,null,null,null,null,null,null,3,null,null,null,null,null,null,3,null,null,null,null,null,3,null,null,null,null,null,null,3]
[4,null,null,null,null,null,null,4,null,null,null,null,null,null,4,null,null,null,null,null,4,null,null,null,null,null,null,4,null,null,null,null,null,null,4,null,null,null,null,null,4,null,null,null,null,null,null,4]
[5,null,null,null,null,null,null,5,null,null,null,null,null,null,5,null,null,null,null,null,5,null,null,null,null,null,null,5,null,null,null,null,null,null,5,null,null,null,null,null,5,null,null,null,null,null,null,5]
[6,null,null,null,null,null,null,6,null,null,null,null,null,null,6,null,null,null,null,null,6,null,null,null,null,null,null,6,null,null,null,null,null,null,6,null,null,null,null,null,6,null,null,null,null,null,null,6]
[7,null,null,null,null,null,null,7,null,null,null,null,null,null,7,null,null,null,null,null,7,null,null,null,null,null,null,7,null,null,null,null,null,null,7,null,null,null,null,null,7,null,null,null,null,null,null,7]
[8,null,null,null,null,null,null,8,null,null,null,null,null,null,8,null,null,null,null,null,8,null,null,null,null,null,null,8,null,null,null,null,null,null,8,null,null,null,null,null,8,null,null,null,null,null,null,8]
[9,null,null,null,null,null,null,9,null,null,null,null,null,null,9,null,null,null,null,null,9,null,null,null,null,null,null,9,null,null,null,null,null,null,9,null,null,null,null,null,9,null,null,null,null,null,null,9]
[10,null,null,null,null,null,null,10,null,null,null,null,null,null,10,null,null,null,null,null,10,null,null,null,null,null,null,10,null,null,null,null,null,null,10,null,null,null,null,null,10,null,null,null,null,null,null,10]
[11,null,null,null,null,null,null,11,null,null,null,null,null,null,11,null,null,null,null,null,11,null,null,null,null,null,null,11,null,null,null,null,null,null,11,null,null,null,null,null,11,null,null,null,null,null,null,11]
[12,null,null,null,null,null,null,12,null,null,null,null,null,null,12,null,null,null,null,null,12,null,null,null,null,null,null,12,null,null,null,null,null,null,12,null,null,null,null,null,12,null,null,null,null,null,null,12]
[13,null,null,null,null,null,null,13,null,null,null,null,null,null,13,null,null,null,null,null,13,null,null,null,null,null,null,13,null,null,null,null,null,null,13,null,null,null,null,null,13,null,null,null,null,null,null,13]
[14,null,null,null,null,null,null,14,null,null,null,null,null,null,14,null,null,null,null,null,14,null,null,null,null,null,null,14,null,null,null,null,null,null,14,null,null,null,null,null,14,null,null,null,null,null,null,14]
[15,null,null,null,null,null,null,15,null,null,null,null,null,null,15,null,null,null,null,null,15,null,null,null,null,null,null,15,null,null,null,null,null,null,15,null,null,null,null,null,15,null,null,null,null,null,null,15]
[16,null,null,null,null,null,null,16,null,null,null,null,null,null,16,null,null,null,null,null,16,null,null,null,null,null,null,16,null,null,null,null,null,null,16,null,null,null,null,null,16,null,null,null,null,null,null,16]
[17,null,null,null,null,null,null,17,null,null,null,null,null,null,17,null,null,null,null,null,17,null,null,null,null,null,null,17,null,null,null,null,null,null,17,null,null,null,null,null,17,null,null,null,null,null,null,17]
[18,null,null,null,null,null,null,18,null,null,null,null,null,null,18,null,null,null,null,null,18,null,null,null,null,null,null,18,null,null,null,null,null,null,18,null,null,null,null,null,18,null,null,null,null,null,null,18]
["Total","Shots",null,null,"Shots",null,null,"Total","Shots",null,null,"Shots",null,null,"Total","Shots",null,null,"Shots",null,"Total","Shots",null,null,"Shots",null,null,"Total","Shots",null,null,"Shots",null,null,"Total","Shots",null,null,"Shots",null,"Total","Shots",null,null,"Shots",null,null,"Total","Shots",null,null,"shots"]
[null,"Ends",null,null,"Ends",null,null,null,"Ends",null,null,"Ends",null,null,null,"Ends",null,null,"Ends",null,null,"Ends",null,null,"Ends",null,null,null,"Ends",null,null,"Ends",null,null,null,"Ends",null,null,"Ends",null,null,"Ends",null,null,"Ends",null,null,null,"Ends",null,null,"Ends"]
[]
[]
["1st Game ",null,null,null,null,null,null,"2nd Game ",null,null,null,null,null,null,"3rd Game ",null,null,null,null,null,"4th Game",null,null,null,null,null,null,"5th Game",null,null,null,null,null,null,"6th Game",null,null,null,null,null,"7th Game",null,null,null,null,null,null,"8th Game"]
["Team No",null,null,"Rink No",null,null,null,"Team No",null,null,"Rink No",null,null,null,"Team No",null,null,"Rink No",null,null,"Team No",null,null,"Rink No",null,null,null,"Team No",null,null,"Rink No",null,null,null,"Team No",null,null,"Rink No",null,null,"Team No",null,null,"Rink No",null,null,null,"Team No",null,null,"Rink No"]
[]
[{"$f":"DRAW!$B$28","v":22},null,null,{"$f":"DRAW!$E$28","v":14},null,null,null,{"$f":"DRAW!$B$28","v":22},null,null,{"$f":"DRAW!$G$28","v":17},null,null,null,{"$f":"DRAW!$B$28","v":22},null,null,{"$f":"DRAW!$I$28","v":2},null,null,{"$f":"DRAW!$B$28","v":22},null,null,{"$f":"DRAW!$K$28","v":8},null,null,null,{"$f":"DRAW!$B$28","v":22},null,null,{"$f":"DRAW!$M$28","v":18},null,null,null,{"$f":"DRAW!$B$28","v":22},null,null,{"$f":"DRAW!$O$28","v":6},null,null,{"$f":"DRAW!$B$28","v":22},null,null,{"$f":"DRAW!$Q$28","v":13},null,null,null,{"$f":"DRAW!$B$28","v":22},null,null,{"$f":"DRAW!$S$28","v":15}]
[null,"Team",{"$f":"DRAW!$B$28","v":22},"V","Team",{"$f":"DRAW!$D$28","v":23},null,null,"Team",{"$f":"DRAW!$B$28","v":22},"V","Team",{"$f":"DRAW!$F$28","v":25},null,null,"Team",{"$f":"DRAW!$B$28","v":22},"V","Team",{"$f":"DRAW!$H$28","v":16},null,"Team",{"$f":"DRAW!$B$28","v":22},"V","Team",{"$f":"DRAW!$J$28","v":20},null,null,"Team",{"$f":"DRAW!$B$28","v":22},"V","Team",{"$f":"DRAW!$L$28","v":21},null,null,"Team",{"$f":"DRAW!$B$28","v":22},"V","Team",{"$f":"DRAW!$N$28","v":18},null,"Team",{"$f":"DRAW!$B$28","v":22},"V","Team",{"$f":"DRAW!$P$28","v":19},null,null,"Team",{"$f":"DRAW!$B$28","v":22},"V","Team",{"$f":"DRAW!$R$28","v":15}]
["Ends","Shots","Total",null,"Shots","Total",null,"Ends","Shots","Total",null,"Shots","Total",null,"Ends","Shots","Total",null,"Shots","Total","Ends","Shots","Total",null,"Shots","Total",null,"Ends","Shots","Total",null,"Shots","Total",null,"Ends","Shots","Total",null,"Shots","Total","Ends","Shots","Total",null,"Shots","Total",null,"Ends","Shots","Total",null,"shots","Totar"]
[1,null,null,null,null,null,null,1,null,null,null,null,null,null,1,null,null,null,null,null,1,null,null,null,null,null,null,1,null,null,null,null,null,null,1,null,null,null,null,null,1,null,null,null,null,null,null,1]
[2,null,null,null,null,null,null,2,null,null,null,null,null,null,2,null,null,null,null,null,2,null,null,null,null,null,null,2,null,null,null,null,null,null,2,null,null,null,null,null,2,null,null,null,null,null,null,2]
[3,null,null,null,null,null,null,3,null,null,null,null,null,null,3,null,null,null,null,null,3,null,null,null,null,null,null,3,null,null,null,null,null,null,3,null,null,null,null,null,3,null,null,null,null,null,null,3]
[4,null,null,null,null,null,null,4,null,null,null,null,null,null,4,null,null,null,null,null,4,null,null,null,null,null,null,4,null,null,null,null,null,null,4,null,null,null,null,null,4,null,null,null,null,null,null,4]
[5,null,null,null,null,null,null,5,null,null,null,null,null,null,5,null,null,null,null,null,5,null,null,null,null,null,null,5,null,null,null,null,null,null,5,null,null,null,null,null,5,null,null,null,null,null,null,5]
[6,null,null,null,null,null,null,6,null,null,null,null,null,null,6,null,null,null,null,null,6,null,null,null,null,null,null,6,null,null,null,null,null,null,6,null,null,null,null,null,6,null,null,null,null,null,null,6]
[7,null,null,null,null,null,null,7,null,null,null,null,null,null,7,null,null,null,null,null,7,null,null,null,null,null,null,7,null,null,null,null,null,null,7,null,null,null,null,null,7,null,null,null,null,null,null,7]
[8,null,null,null,null,null,null,8,null,null,null,null,null,null,8,null,null,null,null,null,8,null,null,null,null,null,null,8,null,null,null,null,null,null,8,null,null,null,null,null,8,null,null,null,null,null,null,8]
[9,null,null,null,null,null,null,9,null,null,null,null,null,null,9,null,null,null,null,null,9,null,null,null,null,null,null,9,null,null,null,null,null,null,9,null,null,null,null,null,9,null,null,null,null,null,null,9]
[10,null,null,null,null,null,null,10,null,null,null,null,null,null,10,null,null,null,null,null,10,null,null,null,null,null,null,10,null,null,null,null,null,null,10,null,null,null,null,null,10,null,null,null,null,null,null,10]
[11,null,null,null,null,null,null,11,null,null,null,null,null,null,11,null,null,null,null,null,11,null,null,null,null,null,null,11,null,null,null,null,null,null,11,null,null,null,null,null,11,null,null,null,null,null,null,11]
[12,null,null,null,null,null,null,12,null,null,null,null,null,null,12,null,null,null,null,null,12,null,null,null,null,null,null,12,null,null,null,null,null,null,12,null,null,null,null,null,12,null,null,null,null,null,null,12]
[13,null,null,null,null,null,null,13,null,null,null,null,null,null,13,null,null,null,null,null,13,null,null,null,null,null,null,13,null,null,null,null,null,null,13,null,null,null,null,null,13,null,null,null,null,null,null,13]
[14,null,null,null,null,null,null,14,null,null,null,null,null,null,14,null,null,null,null,null,14,null,null,null,null,null,null,14,null,null,null,null,null,null,14,null,null,null,null,null,14,null,null,null,null,null,null,14]
[15,null,null,null,null,null,null,15,null,null,null,null,null,null,15,null,null,null,null,null,15,null,null,null,null,null,null,15,null,null,null,null,null,null,15,null,null,null,null,null,15,null,null,null,null,null,null,15]
[16,null,null,null,null,null,null,16,null,null,null,null,null,null,16,null,null,null,null,null,16,null,null,null,null,null,null,16,null,null,null,null,null,null,16,null,null,null,null,null,16,null,null,null,null,null,null,16]
[17,null,null,null,null,null,null,17,null,null,null,null,null,null,17,null,null,null,null,null,17,null,null,null,null,null,null,17,null,null,null,null,null,null,17,null,null,null,null,null,17,null,null,null,null,null,null,17]
[18,null,null,null,null,null,null,18,null,null,null,null,null,null,18,null,null,null,null,null,18,null,null,null,null,null,null,18,null,null,null,null,null,null,18,null,null,null,null,null,18,null,null,null,null,null,null,18]
["Total","Shots",null,null,"Shots",null,null,"Total","Shots",null,null,"Shots",null,null,"Total","Shots",null,null,"Shots",null,"Total","Shots",null,null,"Shots",null,null,"Total","Shots",null,null,"Shots",null,null,"Total","Shots",null,null,"Shots",null,"Total","Shots",null,null,"Shots",null,null,"Total","Shots",null,null,"shots"]
[null,"Ends",null,null,"Ends",null,null,null,"Ends",null,null,"Ends",null,null,null,"Ends",null,null,"Ends",null,null,"Ends",null,null,"Ends",null,null,null,"Ends",null,null,"Ends",null,null,null,"Ends",null,null,"Ends",null,null,"Ends",null,null,"Ends",null,null,null,"Ends",null,null,"Ends"]
["1st Game ",null,null,null,null,null,null,"2nd Game ",null,null,null,null,null,null,"3rd Game ",null,null,null,null,null,"4th Game",null,null,null,null,null,null,"5th Game",null,null,null,null,null,null,"6th Game",null,null,null,null,null,"7th Game",null,null,null,null,null,null,"8th Game"]
["Team No",null,null,"Rink No",null,null,null,"Team No",null,null,"Rink No",null,null,null,"Team No",null,null,"Rink No",null,null,"Team No",null,null,"Rink No",null,null,null,"Team No",null,null,"Rink No",null,null,null,"Team No",null,null,"Rink No",null,null,"Team No",null,null,"Rink No",null,null,null,"Team No",null,null,"Rink No"]
[]
[{"$f":"DRAW!$B$29","v":23},null,null,{"$f":"DRAW!$E$29","v":14},null,null,null,{"$f":"DRAW!$B$29","v":23},null,null,{"$f":"DRAW!$G$29","v":18},null,null,null,{"$f":"DRAW!$B$29","v":23},null,null,{"$f":"DRAW!$I$29","v":3},null,null,{"$f":"DRAW!$B$29","v":23},null,null,{"$f":"DRAW!$K$29","v":10},null,null,null,{"$f":"DRAW!$B$29","v":23},null,null,{"$f":"DRAW!$M$29","v":20},null,null,null,{"$f":"DRAW!$B$29","v":23},null,null,{"$f":"DRAW!$O$29","v":7},null,null,{"$f":"DRAW!$B$29","v":23},null,null,{"$f":"DRAW!$Q$29","v":9},null,null,null,{"$f":"DRAW!$B$29","v":23},null,null,{"$f":"DRAW!$S$29","v":19}]
[null,"Team",{"$f":"DRAW!$B$29","v":23},"V","Team",{"$f":"DRAW!$D$29","v":22},null,null,"Team",{"$f":"DRAW!$B$29","v":23},"V","Team",{"$f":"DRAW!$F$29","v":24},null,null,"Team",{"$f":"DRAW!$B$29","v":23},"V","Team",{"$f":"DRAW!$H$29","v":28},null,"Team",{"$f":"DRAW!$B$29","v":23},"V","Team",{"$f":"DRAW!$J$29","v":19},null,null,"Team",{"$f":"DRAW!$B$29","v":23},"V","Team",{"$f":"DRAW!$L$29","v":20},null,null,"Team",{"$f":"DRAW!$B$29","v":23},"V","Team",{"$f":"DRAW!$N$29","v":21},null,"Team",{"$f":"DRAW!$B$29","v":23},"V","Team",{"$f":"DRAW!$P$29","v":16},null,null,"Team",{"$f":"DRAW!$B$29","v":23},"V","Team",{"$f":"DRAW!$R$29","v":25}]
["Ends","Shots","Total",null,"Shots","Total",null,"Ends","Shots","Total",null,"Shots","Total",null,"Ends","Shots","Total",null,"Shots","Total","Ends","Shots","Total",null,"Shots","Total",null,"Ends","Shots","Total",null,"Shots","Total",null,"Ends","Shots","Total",null,"Shots","Total","Ends","Shots","Total",null,"Shots","Total",null,"Ends","Shots","Total",null,"shots","Totar"]
[1,null,null,null,null,null,null,1,null,null,null,null,null,null,1,null,null,null,null,null,1,null,null,null,null,null,null,1,null,null,null,null,null,null,1,null,null,null,null,null,1,null,null,null,null,null,null,1]
[2,null,null,null,null,null,null,2,null,null,null,null,null,null,2,null,null,null,null,null,2,null,null,null,null,null,null,2,null,null,null,null,null,null,2,null,null,null,null,null,2,null,null,null,null,null,null,2]
[3,null,null,null,null,null,null,3,null,null,null,null,null,null,3,null,null,null,null,null,3,null,null,null,null,null,null,3,null,null,null,null,null,null,3,null,null,null,null,null,3,null,null,null,null,null,null,3]
[4,null,null,null,null,null,null,4,null,null,null,null,null,null,4,null,null,null,null,null,4,null,null,null,null,null,null,4,null,null,null,null,null,null,4,null,null,null,null,null,4,null,null,null,null,null,null,4]
[5,null,null,null,null,null,null,5,null,null,null,null,null,null,5,null,null,null,null,null,5,null,null,null,null,null,null,5,null,null,null,null,null,null,5,null,null,null,null,null,5,null,null,null,null,null,null,5]
[6,null,null,null,null,null,null,6,null,null,null,null,null,null,6,null,null,null,null,null,6,null,null,null,null,null,null,6,null,null,null,null,null,null,6,null,null,null,null,null,6,null,null,null,null,null,null,6]
[7,null,null,null,null,null,null,7,null,null,null,null,null,null,7,null,null,null,null,null,7,null,null,null,null,null,null,7,null,null,null,null,null,null,7,null,null,null,null,null,7,null,null,null,null,null,null,7]
[8,null,null,null,null,null,null,8,null,null,null,null,null,null,8,null,null,null,null,null,8,null,null,null,null,null,null,8,null,null,null,null,null,null,8,null,null,null,null,null,8,null,null,null,null,null,null,8]
[9,null,null,null,null,null,null,9,null,null,null,null,null,null,9,null,null,null,null,null,9,null,null,null,null,null,null,9,null,null,null,null,null,null,9,null,null,null,null,null,9,null,null,null,null,null,null,9]
[10,null,null,null,null,null,null,10,null,null,null,null,null,null,10,null,null,null,null,null,10,null,null,null,null,null,null,10,null,null,null,null,null,null,10,null,null,null,null,null,10,null,null,null,null,null,null,10]
[11,null,null,null,null,null,null,11,null,null,null,null,null,null,11,null,null,null,null,null,11,null,null,null,null,null,null,11,null,null,null,null,null,null,11,null,null,null,null,null,11,null,null,null,null,null,null,11]
[12,null,null,null,null,null,null,12,null,null,null,null,null,null,12,null,null,null,null,null,12,null,null,null,null,null,null,12,null,null,null,null,null,null,12,null,null,null,null,null,12,null,null,null,null,null,null,12]
[13,null,null,null,null,null,null,13,null,null,null,null,null,null,13,null,null,null,null,null,13,null,null,null,null,null,null,13,null,null,null,null,null,null,13,null,null,null,null,null,13,null,null,null,null,null,null,13]
[14,null,null,null,null,null,null,14,null,null,null,null,null,null,14,null,null,null,null,null,14,null,null,null,null,null,null,14,null,null,null,null,null,null,14,null,null,null,null,null,14,null,null,null,null,null,null,14]
[15,null,null,null,null,null,null,15,null,null,null,null,null,null,15,null,null,null,null,null,15,null,null,null,null,null,null,15,null,null,null,null,null,null,15,null,null,null,null,null,15,null,null,null,null,null,null,15]
[16,null,null,null,null,null,null,16,null,null,null,null,null,null,16,null,null,null,null,null,16,null,null,null,null,null,null,16,null,null,null,null,null,null,16,null,null,null,null,null,16,null,null,null,null,null,null,16]
[17,null,null,null,null,null,null,17,null,null,null,null,null,null,17,null,null,null,null,null,17,null,null,null,null,null,null,17,null,null,null,null,null,null,17,null,null,null,null,null,17,null,null,null,null,null,null,17]
[18,null,null,null,null,null,null,18,null,null,null,null,null,null,18,null,null,null,null,null,18,null,null,null,null,null,null,18,null,null,null,null,null,null,18,null,null,null,null,null,18,null,null,null,null,null,null,18]
["Total","Shots",null,null,"Shots",null,null,"Total","Shots",null,null,"Shots",null,null,"Total","Shots",null,null,"Shots",null,"Total","Shots",null,null,"Shots",null,null,"Total","Shots",null,null,"Shots",null,null,"Total","Shots",null,null,"Shots",null,"Total","Shots",null,null,"Shots",null,null,"Total","Shots",null,null,"shots"]
[null,"Ends",null,null,"Ends",null,null,null,"Ends",null,null,"Ends",null,null,null,"Ends",null,null,"Ends",null,null,"Ends",null,null,"Ends",null,null,null,"Ends",null,null,"Ends",null,null,null,"Ends",null,null,"Ends",null,null,"Ends",null,null,"Ends",null,null,null,"Ends",null,null,"Ends"]
[]
[]
["1st Game ",null,null,null,null,null,null,"2nd Game ",null,null,null,null,null,null,"3rd Game ",null,null,null,null,null,"4th Game",null,null,null,null,null,null,"5th Game",null,null,null,null,null,null,"6th Game",null,null,null,null,null,"7th Game",null,null,null,null,null,null,"8th Game"]
["Team No",null,null,"Rink No",null,null,null,"Team No",null,null,"Rink No",null,null,null,"Team No",null,null,"Rink No",null,null,"Team No",null,null,"Rink No",null,null,null,"Team No",null,null,"Rink No",null,null,null,"Team No",null,null,"Rink No",null,null,"Team No",null,null,"Rink No",null,null,null,"Team No",null,null,"Rink No"]
[]
[{"$f":"DRAW!$B$30","v":24},null,null,{"$f":"DRAW!$E$30","v":13},null,null,null,{"$f":"DRAW!$B$30","v":24},null,null,{"$f":"DRAW!$G$30","v":18},null,null,null,{"$f":"DRAW!$B$30","v":24},null,null,{"$f":"DRAW!$I$30","v":6},null,null,{"$f":"DRAW!$B$30","v":24},null,null,{"$f":"DRAW!$K$30","v":14},null,null,null,{"$f":"DRAW!$B$30","v":24},null,null,{"$f":"DRAW!$M$30","v":19},null,null,null,{"$f":"DRAW!$B$30","v":24},null,null,{"$f":"DRAW!$O$30","v":5},null,null,{"$f":"DRAW!$B$30","v":24},null,null,{"$f":"DRAW!$Q$30","v":8},null,null,null,{"$f":"DRAW!$B$30","v":24},null,null,{"$f":"DRAW!$S$30","v":20}]
[null,"Team",{"$f":"DRAW!$B$30","v":24},"V","Team",{"$f":"DRAW!$D$30","v":21},null,null,"Team",{"$f":"DRAW!$B$30","v":24},"V","Team",{"$f":"DRAW!$F$30","v":23},null,null,"Team",{"$f":"DRAW!$B$30","v":24},"V","Team",{"$f":"DRAW!$H$30","v":27},null,"Team",{"$f":"DRAW!$B$30","v":24},"V","Team",{"$f":"DRAW!$J$30","v":18},null,null,"Team",{"$f":"DRAW!$B$30","v":24},"V","Team",{"$f":"DRAW!$L$30","v":19},null,null,"Team",{"$f":"DRAW!$B$30","v":24},"V","Team",{"$f":"DRAW!$N$30","v":20},null,"Team",{"$f":"DRAW!$B$30","v":24},"V","Team",{"$f":"DRAW!$P$30","v":17},null,null,"Team",{"$f":"DRAW!$B$30","v":24},"V","Team",{"$f":"DRAW!$R$30","v":26}]
["Ends","Shots","Total",null,"Shots","Total",null,"Ends","Shots","Total",null,"Shots","Total",null,"Ends","Shots","Total",null,"Shots","Total","Ends","Shots","Total",null,"Shots","Total",null,"Ends","Shots","Total",null,"Shots","Total",null,"Ends","Shots","Total",null,"Shots","Total","Ends","Shots","Total",null,"Shots","Total",null,"Ends","Shots","Total",null,"shots","Totar"]
[1,null,null,null,null,null,null,1,null,null,null,null,null,null,1,null,null,null,null,null,1,null,null,null,null,null,null,1,null,null,null,null,null,null,1,null,null,null,null,null,1,null,null,null,null,null,null,1]
[2,null,null,null,null,null,null,2,null,null,null,null,null,null,2,null,null,null,null,null,2,null,null,null,null,null,null,2,null,null,null,null,null,null,2,null,null,null,null,null,2,null,null,null,null,null,null,2]
[3,null,null,null,null,null,null,3,null,null,null,null,null,null,3,null,null,null,null,null,3,null,null,null,null,null,null,3,null,null,null,null,null,null,3,null,null,null,null,null,3,null,null,null,null,null,null,3]
[4,null,null,null,null,null,null,4,null,null,null,null,null,null,4,null,null,null,null,null,4,null,null,null,null,null,null,4,null,null,null,null,null,null,4,null,null,null,null,null,4,null,null,null,null,null,null,4]
[5,null,null,null,null,null,null,5,null,null,null,null,null,null,5,null,null,null,null,null,5,null,null,null,null,null,null,5,null,null,null,null,null,null,5,null,null,null,null,null,5,null,null,null,null,null,null,5]
[6,null,null,null,null,null,null,6,null,null,null,null,null,null,6,null,null,null,null,null,6,null,null,null,null,null,null,6,null,null,null,null,null,null,6,null,null,null,null,null,6,null,null,null,null,null,null,6]
[7,null,null,null,null,null,null,7,null,null,null,null,null,null,7,null,null,null,null,null,7,null,null,null,null,null,null,7,null,null,null,null,null,null,7,null,null,null,null,null,7,null,null,null,null,null,null,7]
[8,null,null,null,null,null,null,8,null,null,null,null,null,null,8,null,null,null,null,null,8,null,null,null,null,null,null,8,null,null,null,null,null,null,8,null,null,null,null,null,8,null,null,null,null,null,null,8]
[9,null,null,null,null,null,null,9,null,null,null,null,null,null,9,null,null,null,null,null,9,null,null,null,null,null,null,9,null,null,null,null,null,null,9,null,null,null,null,null,9,null,null,null,null,null,null,9]
[10,null,null,null,null,null,null,10,null,null,null,null,null,null,10,null,null,null,null,null,10,null,null,null,null,null,null,10,null,null,null,null,null,null,10,null,null,null,null,null,10,null,null,null,null,null,null,10]
[11,null,null,null,null,null,null,11,null,null,null,null,null,null,11,null,null,null,null,null,11,null,null,null,null,null,null,11,null,null,null,null,null,null,11,null,null,null,null,null,11,null,null,null,null,null,null,11]
[12,null,null,null,null,null,null,12,null,null,null,null,null,null,12,null,null,null,null,null,12,null,null,null,null,null,null,12,null,null,null,null,null,null,12,null,null,null,null,null,12,null,null,null,null,null,null,12]
[13,null,null,null,null,null,null,13,null,null,null,null,null,null,13,null,null,null,null,null,13,null,null,null,null,null,null,13,null,null,null,null,null,null,13,null,null,null,null,null,13,null,null,null,null,null,null,13]
[14,null,null,null,null,null,null,14,null,null,null,null,null,null,14,null,null,null,null,null,14,null,null,null,null,null,null,14,null,null,null,null,null,null,14,null,null,null,null,null,14,null,null,null,null,null,null,14]
[15,null,null,null,null,null,null,15,null,null,null,null,null,null,15,null,null,null,null,null,15,null,null,null,null,null,null,15,null,null,null,null,null,null,15,null,null,null,null,null,15,null,null,null,null,null,null,15]
[16,null,null,null,null,null,null,16,null,null,null,null,null,null,16,null,null,null,null,null,16,null,null,null,null,null,null,16,null,null,null,null,null,null,16,null,null,null,null,null,16,null,null,null,null,null,null,16]
[17,null,null,null,null,null,null,17,null,null,null,null,null,null,17,null,null,null,null,null,17,null,null,null,null,null,null,17,null,null,null,null,null,null,17,null,null,null,null,null,17,null,null,null,null,null,null,17]
[18,null,null,null,null,null,null,18,null,null,null,null,null,null,18,null,null,null,null,null,18,null,null,null,null,null,null,18,null,null,null,null,null,null,18,null,null,null,null,null,18,null,null,null,null,null,null,18]
["Total","Shots",null,null,"Shots",null,null,"Total","Shots",null,null,"Shots",null,null,"Total","Shots",null,null,"Shots",null,"Total","Shots",null,null,"Shots",null,null,"Total","Shots",null,null,"Shots",null,null,"Total","Shots",null,null,"Shots",null,"Total","Shots",null,null,"Shots",null,null,"Total","Shots",null,null,"shots"]
[null,"Ends",null,null,"Ends",null,null,null,"Ends",null,null,"Ends",null,null,null,"Ends",null,null,"Ends",null,null,"Ends",null,null,"Ends",null,null,null,"Ends",null,null,"Ends",null,null,null,"Ends",null,null,"Ends",null,null,"Ends",null,null,"Ends",null,null,null,"Ends",null,null,"Ends"]
["1st Game ",null,null,null,null,null,null,"2nd Game ",null,null,null,null,null,null,"3rd Game ",null,null,null,null,null,"4th Game",null,null,null,null,null,null,"5th Game",null,null,null,null,null,null,"6th Game",null,null,null,null,null,"7th Game",null,null,null,null,null,null,"8th Game"]
["Team No",null,null,"Rink No",null,null,null,"Team No",null,null,"Rink No",null,null,null,"Team No",null,null,"Rink No",null,null,"Team No",null,null,"Rink No",null,null,null,"Team No",null,null,"Rink No",null,null,null,"Team No",null,null,"Rink No",null,null,"Team No",null,null,"Rink No",null,null,null,"Team No",null,null,"Rink No"]
[]
[{"$f":"DRAW!$B$31","v":25},null,null,{"$f":"DRAW!$E$31","v":12},null,null,null,{"$f":"DRAW!$B$31","v":25},null,null,{"$f":"DRAW!$G$31","v":17},null,null,null,{"$f":"DRAW!$B$31","v":25},null,null,{"$f":"DRAW!$I$31","v":7},null,null,{"$f":"DRAW!$B$31","v":25},null,null,{"$f":"DRAW!$K$31","v":11},null,null,null,{"$f":"DRAW!$B$31","v":25},null,null,{"$f":"DRAW!$M$31","v":16},null,null,null,{"$f":"DRAW!$B$31","v":25},null,null,{"$f":"DRAW!$O$31","v":1},null,null,{"$f":"DRAW!$B$31","v":25},null,null,{"$f":"DRAW!$Q$31","v":10},null,null,null,{"$f":"DRAW!$B$31","v":25},null,null,{"$f":"DRAW!$S$31","v":19}]
[null,"Team",{"$f":"DRAW!$B$31","v":25},"V","Team",{"$f":"DRAW!$D$31","v":20},null,null,"Team",{"$f":"DRAW!$B$31","v":25},"V","Team",{"$f":"DRAW!$F$31","v":22},null,null,"Team",{"$f":"DRAW!$B$31","v":25},"V","Team",{"$f":"DRAW!$H$31","v":26},null,"Team",{"$f":"DRAW!$B$31","v":25},"V","Team",{"$f":"DRAW!$J$31","v":17},null,null,"Team",{"$f":"DRAW!$B$31","v":25},"V","Team",{"$f":"DRAW!$L$31","v":18},null,null,"Team",{"$f":"DRAW!$B$31","v":25},"V","Team",{"$f":"DRAW!$N$31","v":19},null,"Team",{"$f":"DRAW!$B$31","v":25},"V","Team",{"$f":"DRAW!$P$31","v":28},null,null,"Team",{"$f":"DRAW!$B$31","v":25},"V","Team",{"$f":"DRAW!$R$31","v":23}]
["Ends","Shots","Total",null,"Shots","Total",null,"Ends","Shots","Total",null,"Shots","Total",null,"Ends","Shots","Total",null,"Shots","Total","Ends","Shots","Total",null,"Shots","Total",null,"Ends","Shots","Total",null,"Shots","Total",null,"Ends","Shots","Total",null,"Shots","Total","Ends","Shots","Total",null,"Shots","Total",null,"Ends","Shots","Total",null,"shots","Totar"]
[1,null,null,null,null,null,null,1,null,null,null,null,null,null,1,null,null,null,null,null,1,null,null,null,null,null,null,1,null,null,null,null,null,null,1,null,null,null,null,null,1,null,null,null,null,null,null,1]
[2,null,null,null,null,null,null,2,null,null,null,null,null,null,2,null,null,null,null,null,2,null,null,null,null,null,null,2,null,null,null,null,null,null,2,null,null,null,null,null,2,null,null,null,null,null,null,2]
[3,null,null,null,null,null,null,3,null,null,null,null,null,null,3,null,null,null,null,null,3,null,null,null,null,null,null,3,null,null,null,null,null,null,3,null,null,null,null,null,3,null,null,null,null,null,null,3]
[4,null,null,null,null,null,null,4,null,null,null,null,null,null,4,null,null,null,null,null,4,null,null,null,null,null,null,4,null,null,null,null,null,null,4,null,null,null,null,null,4,null,null,null,null,null,null,4]
[5,null,null,null,null,null,null,5,null,null,null,null,null,null,5,null,null,null,null,null,5,null,null,null,null,null,null,5,null,null,null,null,null,null,5,null,null,null,null,null,5,null,null,null,null,null,null,5]
[6,null,null,null,null,null,null,6,null,null,null,null,null,null,6,null,null,null,null,null,6,null,null,null,null,null,null,6,null,null,null,null,null,null,6,null,null,null,null,null,6,null,null,null,null,null,null,6]
[7,null,null,null,null,null,null,7,null,null,null,null,null,null,7,null,null,null,null,null,7,null,null,null,null,null,null,7,null,null,null,null,null,null,7,null,null,null,null,null,7,null,null,null,null,null,null,7]
[8,null,null,null,null,null,null,8,null,null,null,null,null,null,8,null,null,null,null,null,8,null,null,null,null,null,null,8,null,null,null,null,null,null,8,null,null,null,null,null,8,null,null,null,null,null,null,8]
[9,null,null,null,null,null,null,9,null,null,null,null,null,null,9,null,null,null,null,null,9,null,null,null,null,null,null,9,null,null,null,null,null,null,9,null,null,null,null,null,9,null,null,null,null,null,null,9]
[10,null,null,null,null,null,null,10,null,null,null,null,null,null,10,null,null,null,null,null,10,null,null,null,null,null,null,10,null,null,null,null,null,null,10,null,null,null,null,null,10,null,null,null,null,null,null,10]
[11,null,null,null,null,null,null,11,null,null,null,null,null,null,11,null,null,null,null,null,11,null,null,null,null,null,null,11,null,null,null,null,null,null,11,null,null,null,null,null,11,null,null,null,null,null,null,11]
[12,null,null,null,null,null,null,12,null,null,null,null,null,null,12,null,null,null,null,null,12,null,null,null,null,null,null,12,null,null,null,null,null,null,12,null,null,null,null,null,12,null,null,null,null,null,null,12]
[13,null,null,null,null,null,null,13,null,null,null,null,null,null,13,null,null,null,null,null,13,null,null,null,null,null,null,13,null,null,null,null,null,null,13,null,null,null,null,null,13,null,null,null,null,null,null,13]
[14,null,null,null,null,null,null,14,null,null,null,null,null,null,14,null,null,null,null,null,14,null,null,null,null,null,null,14,null,null,null,null,null,null,14,null,null,null,null,null,14,null,null,null,null,null,null,14]
[15,null,null,null,null,null,null,15,null,null,null,null,null,null,15,null,null,null,null,null,15,null,null,null,null,null,null,15,null,null,null,null,null,null,15,null,null,null,null,null,15,null,null,null,null,null,null,15]
[16,null,null,null,null,null,null,16,null,null,null,null,null,null,16,null,null,null,null,null,16,null,null,null,null,null,null,16,null,null,null,null,null,null,16,null,null,null,null,null,16,null,null,null,null,null,null,16]
[17,null,null,null,null,null,null,17,null,null,null,null,null,null,17,null,null,null,null,null,17,null,null,null,null,null,null,17,null,null,null,null,null,null,17,null,null,null,null,null,17,null,null,null,null,null,null,17]
[18,null,null,null,null,null,null,18,null,null,null,null,null,null,18,null,null,null,null,null,18,null,null,null,null,null,null,18,null,null,null,null,null,null,18,null,null,null,null,null,18,null,null,null,null,null,null,18]
["Total","Shots",null,null,"Shots",null,null,"Total","Shots",null,null,"Shots",null,null,"Total","Shots",null,null,"Shots",null,"Total","Shots",null,null,"Shots",null,null,"Total","Shots",null,null,"Shots",null,null,"Total","Shots",null,null,"Shots",null,"Total","Shots",null,null,"Shots",null,null,"Total","Shots",null,null,"shots"]
[null,"Ends",null,null,"Ends",null,null,null,"Ends",null,null,"Ends",null,null,null,"Ends",null,null,"Ends",null,null,"Ends",null,null,"Ends",null,null,null,"Ends",null,null,"Ends",null,null,null,"Ends",null,null,"Ends",null,null,"Ends",null,null,"Ends",null,null,null,"Ends",null,null,"Ends"]
[]
[]
["1st Game ",null,null,null,null,null,null,"2nd Game ",null,null,null,null,null,null,"3rd Game ",null,null,null,null,null,"4th Game",null,null,null,null,null,null,"5th Game",null,null,null,null,null,null,"6th Game",null,null,null,null,null,"7th Game",null,null,null,null,null,null,"8th Game"]
["Team No",null,null,"Rink No",null,null,null,"Team No",null,null,"Rink No",null,null,null,"Team No",null,null,"Rink No",null,null,"Team No",null,null,"Rink No",null,null,null,"Team No",null,null,"Rink No",null,null,null,"Team No",null,null,"Rink No",null,null,"Team No",null,null,"Rink No",null,null,null,"Team No",null,null,"Rink No"]
[]
[{"$f":"DRAW!$B$32","v":26},null,null,{"$f":"DRAW!$E$32","v":11},null,null,null,{"$f":"DRAW!$B$32","v":26},null,null,{"$f":"DRAW!$G$32","v":16},null,null,null,{"$f":"DRAW!$B$32","v":26},null,null,{"$f":"DRAW!$I$32","v":7},null,null,{"$f":"DRAW!$B$32","v":26},null,null,{"$f":"DRAW!$K$32","v":12},null,null,null,{"$f":"DRAW!$B$32","v":26},null,null,{"$f":"DRAW!$M$32","v":17},null,null,null,{"$f":"DRAW!$B$32","v":26},null,null,{"$f":"DRAW!$O$32","v":3},null,null,{"$f":"DRAW!$B$32","v":26},null,null,{"$f":"DRAW!$Q$32","v":14},null,null,null,{"$f":"DRAW!$B$32","v":26},null,null,{"$f":"DRAW!$S$32","v":20}]
[null,"Team",{"$f":"DRAW!$B$32","v":26},"V","Team",{"$f":"DRAW!$D$32","v":19},null,null,"Team",{"$f":"DRAW!$B$32","v":26},"V","Team",{"$f":"DRAW!$F$32","v":21},null,null,"Team",{"$f":"DRAW!$B$32","v":26},"V","Team",{"$f":"DRAW!$H$32","v":25},null,"Team",{"$f":"DRAW!$B$32","v":26},"V","Team",{"$f":"DRAW!$J$32","v":16},null,null,"Team",{"$f":"DRAW!$B$32","v":26},"V","Team",{"$f":"DRAW!$L$32","v":17},null,null,"Team",{"$f":"DRAW!$B$32","v":26},"V","Team",{"$f":"DRAW!$N$32","v":15},null,"Team",{"$f":"DRAW!$B$32","v":26},"V","Team",{"$f":"DRAW!$P$32","v":18},null,null,"Team",{"$f":"DRAW!$B$32","v":26},"V","Team",{"$f":"DRAW!$R$32","v":24}]
["Ends","Shots","Total",null,"Shots","Total",null,"Ends","Shots","Total",null,"Shots","Total",null,"Ends","Shots","Total",null,"Shots","Total","Ends","Shots","Total",null,"Shots","Total",null,"Ends","Shots","Total",null,"Shots","Total",null,"Ends","Shots","Total",null,"Shots","Total","Ends","Shots","Total",null,"Shots","Total",null,"Ends","Shots","Total",null,"shots","Totar"]
[1,null,null,null,null,null,null,1,null,null,null,null,null,null,1,null,null,null,null,null,1,null,null,null,null,null,null,1,null,null,null,null,null,null,1,null,null,null,null,null,1,null,null,null,null,null,null,1]
[2,null,null,null,null,null,null,2,null,null,null,null,null,null,2,null,null,null,null,null,2,null,null,null,null,null,null,2,null,null,null,null,null,null,2,null,null,null,null,null,2,null,null,null,null,null,null,2]
[3,null,null,null,null,null,null,3,null,null,null,null,null,null,3,null,null,null,null,null,3,null,null,null,null,null,null,3,null,null,null,null,null,null,3,null,null,null,null,null,3,null,null,null,null,null,null,3]
[4,null,null,null,null,null,null,4,null,null,null,null,null,null,4,null,null,null,null,null,4,null,null,null,null,null,null,4,null,null,null,null,null,null,4,null,null,null,null,null,4,null,null,null,null,null,null,4]
[5,null,null,null,null,null,null,5,null,null,null,null,null,null,5,null,null,null,null,null,5,null,null,null,null,null,null,5,null,null,null,null,null,null,5,null,null,null,null,null,5,null,null,null,null,null,null,5]
[6,null,null,null,null,null,null,6,null,null,null,null,null,null,6,null,null,null,null,null,6,null,null,null,null,null,null,6,null,null,null,null,null,null,6,null,null,null,null,null,6,null,null,null,null,null,null,6]
[7,null,null,null,null,null,null,7,null,null,null,null,null,null,7,null,null,null,null,null,7,null,null,null,null,null,null,7,null,null,null,null,null,null,7,null,null,null,null,null,7,null,null,null,null,null,null,7]
[8,null,null,null,null,null,null,8,null,null,null,null,null,null,8,null,null,null,null,null,8,null,null,null,null,null,null,8,null,null,null,null,null,null,8,null,null,null,null,null,8,null,null,null,null,null,null,8]
[9,null,null,null,null,null,null,9,null,null,null,null,null,null,9,null,null,null,null,null,9,null,null,null,null,null,null,9,null,null,null,null,null,null,9,null,null,null,null,null,9,null,null,null,null,null,null,9]
[10,null,null,null,null,null,null,10,null,null,null,null,null,null,10,null,null,null,null,null,10,null,null,null,null,null,null,10,null,null,null,null,null,null,10,null,null,null,null,null,10,null,null,null,null,null,null,10]
[11,null,null,null,null,null,null,11,null,null,null,null,null,null,11,null,null,null,null,null,11,null,null,null,null,null,null,11,null,null,null,null,null,null,11,null,null,null,null,null,11,null,null,null,null,null,null,11]
[12,null,null,null,null,null,null,12,null,null,null,null,null,null,12,null,null,null,null,null,12,null,null,null,null,null,null,12,null,null,null,null,null,null,12,null,null,null,null,null,12,null,null,null,null,null,null,12]
[13,null,null,null,null,null,null,13,null,null,null,null,null,null,13,null,null,null,null,null,13,null,null,null,null,null,null,13,null,null,null,null,null,null,13,null,null,null,null,null,13,null,null,null,null,null,null,13]
[14,null,null,null,null,null,null,14,null,null,null,null,null,null,14,null,null,null,null,null,14,null,null,null,null,null,null,14,null,null,null,null,null,null,14,null,null,null,null,null,14,null,null,null,null,null,null,14]
[15,null,null,null,null,null,null,15,null,null,null,null,null,null,15,null,null,null,null,null,15,null,null,null,null,null,null,15,null,null,null,null,null,null,15,null,null,null,null,null,15,null,null,null,null,null,null,15]
[16,null,null,null,null,null,null,16,null,null,null,null,null,null,16,null,null,null,null,null,16,null,null,null,null,null,null,16,null,null,null,null,null,null,16,null,null,null,null,null,16,null,null,null,null,null,null,16]
[17,null,null,null,null,null,null,17,null,null,null,null,null,null,17,null,null,null,null,null,17,null,null,null,null,null,null,17,null,null,null,null,null,null,17,null,null,null,null,null,17,null,null,null,null,null,null,17]
[18,null,null,null,null,null,null,18,null,null,null,null,null,null,18,null,null,null,null,null,18,null,null,null,null,null,null,18,null,null,null,null,null,null,18,null,null,null,null,null,18,null,null,null,null,null,null,18]
["Total","Shots",null,null,"Shots",null,null,"Total","Shots",null,null,"Shots",null,null,"Total","Shots",null,null,"Shots",null,"Total","Shots",null,null,"Shots",null,null,"Total","Shots",null,null,"Shots",null,null,"Total","Shots",null,null,"Shots",null,"Total","Shots",null,null,"Shots",null,null,"Total","Shots",null,null,"shots"]
[null,"Ends",null,null,"Ends",null,null,null,"Ends",null,null,"Ends",null,null,null,"Ends",null,null,"Ends",null,null,"Ends",null,null,"Ends",null,null,null,"Ends",null,null,"Ends",null,null,null,"Ends",null,null,"Ends",null,null,"Ends",null,null,"Ends",null,null,null,"Ends",null,null,"Ends"]
["1st Game ",null,null,null,null,null,null,"2nd Game ",null,null,null,null,null,null,"3rd Game ",null,null,null,null,null,"4th Game",null,null,null,null,null,null,"5th Game",null,null,null,null,null,null,"6th Game",null,null,null,null,null,"7th Game",null,null,null,null,null,null,"8th Game"]
["Team No",null,null,"Rink No",null,null,null,"Team No",null,null,"Rink No",null,null,null,"Team No",null,null,"Rink No",null,null,"Team No",null,null,"Rink No",null,null,null,"Team No",null,null,"Rink No",null,null,null,"Team No",null,null,"Rink No",null,null,"Team No",null,null,"Rink No",null,null,null,"Team No",null,null,"Rink No"]
[]
[{"$f":"DRAW!$B$33","v":27},null,null,{"$f":"DRAW!$E$33","v":10},null,null,null,{"$f":"DRAW!$B$33","v":27},null,null,{"$f":"DRAW!$G$33","v":21},null,null,null,{"$f":"DRAW!$B$33","v":27},null,null,{"$f":"DRAW!$I$33","v":6},null,null,{"$f":"DRAW!$B$33","v":27},null,null,{"$f":"DRAW!$K$33","v":13},null,null,null,{"$f":"DRAW!$B$33","v":27},null,null,{"$f":"DRAW!$M$33","v":15},null,null,null,{"$f":"DRAW!$B$33","v":27},null,null,{"$f":"DRAW!$O$33","v":2},null,null,{"$f":"DRAW!$B$33","v":27},null,null,{"$f":"DRAW!$Q$33","v":12},null,null,null,{"$f":"DRAW!$B$33","v":27},null,null,{"$f":"DRAW!$S$33","v":17}]
[null,"Team",{"$f":"DRAW!$B$33","v":27},"V","Team",{"$f":"DRAW!$D$33","v":18},null,null,"Team",{"$f":"DRAW!$B$33","v":27},"V","Team",{"$f":"DRAW!$F$33","v":20},null,null,"Team",{"$f":"DRAW!$B$33","v":27},"V","Team",{"$f":"DRAW!$H$33","v":24},null,"Team",{"$f":"DRAW!$B$33","v":27},null,null,{"$f":"DRAW!$J$33","v":28},null,null,"Team",{"$f":"DRAW!$B$33","v":27},"V","Team",{"$f":"DRAW!$L$33","v":16},null,null,"Team",{"$f":"DRAW!$B$33","v":27},"V","Team",{"$f":"DRAW!$N$33","v":17},null,"Team",{"$f":"DRAW!$B$33","v":27},"V","Team",{"$f":"DRAW!$P$33","v":15},null,null,"Team",{"$f":"DRAW!$B$33","v":27},"V","Team",{"$f":"DRAW!$R$33","v":21}]
["Ends","Shots","Total",null,"Shots","Total",null,"Ends","Shots","Total",null,"Shots","Total",null,"Ends","Shots","Total",null,"Shots","Total","Ends","Shots","Total",null,"Shots","Total",null,"Ends","Shots","Total",null,"Shots","Total",null,"Ends","Shots","Total",null,"Shots","Total","Ends","Shots","Total",null,"Shots","Total",null,"Ends","Shots","Total",null,"shots","Totar"]
[1,null,null,null,null,null,null,1,null,null,null,null,null,null,1,null,null,null,null,null,1,null,null,null,null,null,null,1,null,null,null,null,null,null,1,null,null,null,null,null,1,null,null,null,null,null,null,1]
[2,null,null,null,null,null,null,2,null,null,null,null,null,null,2,null,null,null,null,null,2,null,null,null,null,null,null,2,null,null,null,null,null,null,2,null,null,null,null,null,2,null,null,null,null,null,null,2]
[3,null,null,null,null,null,null,3,null,null,null,null,null,null,3,null,null,null,null,null,3,null,null,null,null,null,null,3,null,null,null,null,null,null,3,null,null,null,null,null,3,null,null,null,null,null,null,3]
[4,null,null,null,null,null,null,4,null,null,null,null,null,null,4,null,null,null,null,null,4,null,null,null,null,null,null,4,null,null,null,null,null,null,4,null,null,null,null,null,4,null,null,null,null,null,null,4]
[5,null,null,null,null,null,null,5,null,null,null,null,null,null,5,null,null,null,null,null,5,null,null,null,null,null,null,5,null,null,null,null,null,null,5,null,null,null,null,null,5,null,null,null,null,null,null,5]
[6,null,null,null,null,null,null,6,null,null,null,null,null,null,6,null,null,null,null,null,6,null,null,null,null,null,null,6,null,null,null,null,null,null,6,null,null,null,null,null,6,null,null,null,null,null,null,6]
[7,null,null,null,null,null,null,7,null,null,null,null,null,null,7,null,null,null,null,null,7,null,null,null,null,null,null,7,null,null,null,null,null,null,7,null,null,null,null,null,7,null,null,null,null,null,null,7]
[8,null,null,null,null,null,null,8,null,null,null,null,null,null,8,null,null,null,null,null,8,null,null,null,null,null,null,8,null,null,null,null,null,null,8,null,null,null,null,null,8,null,null,null,null,null,null,8]
[9,null,null,null,null,null,null,9,null,null,null,null,null,null,9,null,null,null,null,null,9,null,null,null,null,null,null,9,null,null,null,null,null,null,9,null,null,null,null,null,9,null,null,null,null,null,null,9]
[10,null,null,null,null,null,null,10,null,null,null,null,null,null,10,null,null,null,null,null,10,null,null,null,null,null,null,10,null,null,null,null,null,null,10,null,null,null,null,null,10,null,null,null,null,null,null,10]
[11,null,null,null,null,null,null,11,null,null,null,null,null,null,11,null,null,null,null,null,11,null,null,null,null,null,null,11,null,null,null,null,null,null,11,null,null,null,null,null,11,null,null,null,null,null,null,11]
[12,null,null,null,null,null,null,12,null,null,null,null,null,null,12,null,null,null,null,null,12,null,null,null,null,null,null,12,null,null,null,null,null,null,12,null,null,null,null,null,12,null,null,null,null,null,null,12]
[13,null,null,null,null,null,null,13,null,null,null,null,null,null,13,null,null,null,null,null,13,null,null,null,null,null,null,13,null,null,null,null,null,null,13,null,null,null,null,null,13,null,null,null,null,null,null,13]
[14,null,null,null,null,null,null,14,null,null,null,null,null,null,14,null,null,null,null,null,14,null,null,null,null,null,null,14,null,null,null,null,null,null,14,null,null,null,null,null,14,null,null,null,null,null,null,14]
[15,null,null,null,null,null,null,15,null,null,null,null,null,null,15,null,null,null,null,null,15,null,null,null,null,null,null,15,null,null,null,null,null,null,15,null,null,null,null,null,15,null,null,null,null,null,null,15]
[16,null,null,null,null,null,null,16,null,null,null,null,null,null,16,null,null,null,null,null,16,null,null,null,null,null,null,16,null,null,null,null,null,null,16,null,null,null,null,null,16,null,null,null,null,null,null,16]
[17,null,null,null,null,null,null,17,null,null,null,null,null,null,17,null,null,null,null,null,17,null,null,null,null,null,null,17,null,null,null,null,null,null,17,null,null,null,null,null,17,null,null,null,null,null,null,17]
[18,null,null,null,null,null,null,18,null,null,null,null,null,null,18,null,null,null,null,null,18,null,null,null,null,null,null,18,null,null,null,null,null,null,18,null,null,null,null,null,18,null,null,null,null,null,null,18]
["Total","Shots",null,null,"Shots",null,null,"Total","Shots",null,null,"Shots",null,null,"Total","Shots",null,null,"Shots",null,"Total","Shots",null,null,"Shots",null,null,"Total","Shots",null,null,"Shots",null,null,"Total","Shots",null,null,"Shots",null,"Total","Shots",null,null,"Shots",null,null,"Total","Shots",null,null,"shots"]
[null,"Ends",null,null,"Ends",null,null,null,"Ends",null,null,"Ends",null,null,null,"Ends",null,null,"Ends",null,null,"Ends",null,null,"Ends",null,null,null,"Ends",null,null,"Ends",null,null,null,"Ends",null,null,"Ends",null,null,"Ends",null,null,"Ends",null,null,null,"Ends",null,null,"Ends"]
[]
[]
["1st Game ",null,null,null,null,null,null,"2nd Game ",null,null,null,null,null,null,"3rd Game ",null,null,null,null,null,"4th Game",null,null,null,null,null,null,"5th Game",null,null,null,null,null,null,"6th Game",null,null,null,null,null,"7th Game",null,null,null,null,null,null,"8th Game"]
["Team No",null,null,"Rink No",null,null,null,"Team No",null,null,"Rink No",null,null,null,"Team No",null,null,"Rink No",null,null,"Team No",null,null,"Rink No",null,null,null,"Team No",null,null,"Rink No",null,null,null,"Team No",null,null,"Rink No",null,null,"Team No",null,null,"Rink No",null,null,null,"Team No",null,null,"Rink No"]
[]
[{"$f":"DRAW!$B$34","v":28},null,null,{"$f":"DRAW!$E$34","v":9},null,null,null,{"$f":"DRAW!$B$34","v":28},null,null,{"$f":"DRAW!$G$34","v":15},null,null,null,{"$f":"DRAW!$B$34","v":28},null,null,{"$f":"DRAW!$I$34","v":3},null,null,{"$f":"DRAW!$B$34","v":28},null,null,{"$f":"DRAW!$K$34","v":13},null,null,null,{"$f":"DRAW!$B$34","v":28},null,null,{"$f":"DRAW!$M$34","v":21},null,null,null,{"$f":"DRAW!$B$34","v":28},null,null,{"$f":"DRAW!$O$34","v":4},null,null,{"$f":"DRAW!$B$34","v":28},null,null,{"$f":"DRAW!$Q$34","v":10},null,null,null,{"$f":"DRAW!$B$34","v":28},null,null,{"$f":"DRAW!$S$34","v":21}]
[null,"Team",{"$f":"DRAW!$B$34","v":28},"V","Team",{"$f":"DRAW!$D$34","v":17},null,null,"Team",{"$f":"DRAW!$B$34","v":28},"V","Team",{"$f":"DRAW!$F$34","v":19},null,null,"Team",{"$f":"DRAW!$B$34","v":28},"V","Team",{"$f":"DRAW!$H$34","v":23},null,"Team",{"$f":"DRAW!$B$34","v":28},"V","Team",{"$f":"DRAW!$J$34","v":27},null,null,"Team",{"$f":"DRAW!$B$34","v":28},"V","Team",{"$f":"DRAW!$L$34","v":15},null,null,"Team",{"$f":"DRAW!$B$34","v":28},"V","Team",{"$f":"DRAW!$N$34","v":16},null,"Team",{"$f":"DRAW!$B$34","v":28},"V","Team",{"$f":"DRAW!$P$34","v":25},null,null,"Team",{"$f":"DRAW!$B$34","v":28},"V","Team",{"$f":"DRAW!$R$34","v":20}]
["Ends","Shots","Total",null,"Shots","Total",null,"Ends","Shots","Total",null,"Shots","Total",null,"Ends","Shots","Total",null,"Shots","Total","Ends","Shots","Total",null,"Shots","Total",null,"Ends","Shots","Total",null,"Shots","Total",null,"Ends","Shots","Total",null,"Shots","Total","Ends","Shots","Total",null,"Shots","Total",null,"Ends","Shots","Total",null,"shots","Totar"]
[1,null,null,null,null,null,null,1,null,null,null,null,null,null,1,null,null,null,null,null,1,null,null,null,null,null,null,1,null,null,null,null,null,null,1,null,null,null,null,null,1,null,null,null,null,null,null,1]
[2,null,null,null,null,null,null,2,null,null,null,null,null,null,2,null,null,null,null,null,2,null,null,null,null,null,null,2,null,null,null,null,null,null,2,null,null,null,null,null,2,null,null,null,null,null,null,2]
[3,null,null,null,null,null,null,3,null,null,null,null,null,null,3,null,null,null,null,null,3,null,null,null,null,null,null,3,null,null,null,null,null,null,3,null,null,null,null,null,3,null,null,null,null,null,null,3]
[4,null,null,null,null,null,null,4,null,null,null,null,null,null,4,null,null,null,null,null,4,null,null,null,null,null,null,4,null,null,null,null,null,null,4,null,null,null,null,null,4,null,null,null,null,null,null,4]
[5,null,null,null,null,null,null,5,null,null,null,null,null,null,5,null,null,null,null,null,5,null,null,null,null,null,null,5,null,null,null,null,null,null,5,null,null,null,null,null,5,null,null,null,null,null,null,5]
[6,null,null,null,null,null,null,6,null,null,null,null,null,null,6,null,null,null,null,null,6,null,null,null,null,null,null,6,null,null,null,null,null,null,6,null,null,null,null,null,6,null,null,null,null,null,null,6]
[7,null,null,null,null,null,null,7,null,null,null,null,null,null,7,null,null,null,null,null,7,null,null,null,null,null,null,7,null,null,null,null,null,null,7,null,null,null,null,null,7,null,null,null,null,null,null,7]
[8,null,null,null,null,null,null,8,null,null,null,null,null,null,8,null,null,null,null,null,8,null,null,null,null,null,null,8,null,null,null,null,null,null,8,null,null,null,null,null,8,null,null,null,null,null,null,8]
[9,null,null,null,null,null,null,9,null,null,null,null,null,null,9,null,null,null,null,null,9,null,null,null,null,null,null,9,null,null,null,null,null,null,9,null,null,null,null,null,9,null,null,null,null,null,null,9]
[10,null,null,null,null,null,null,10,null,null,null,null,null,null,10,null,null,null,null,null,10,null,null,null,null,null,null,10,null,null,null,null,null,null,10,null,null,null,null,null,10,null,null,null,null,null,null,10]
[11,null,null,null,null,null,null,11,null,null,null,null,null,null,11,null,null,null,null,null,11,null,null,null,null,null,null,11,null,null,null,null,null,null,11,null,null,null,null,null,11,null,null,null,null,null,null,11]
[12,null,null,null,null,null,null,12,null,null,null,null,null,null,12,null,null,null,null,null,12,null,null,null,null,null,null,12,null,null,null,null,null,null,12,null,null,null,null,null,12,null,null,null,null,null,null,12]
[13,null,null,null,null,null,null,13,null,null,null,null,null,null,13,null,null,null,null,null,13,null,null,null,null,null,null,13,null,null,null,null,null,null,13,null,null,null,null,null,13,null,null,null,null,null,null,13]
[14,null,null,null,null,null,null,14,null,null,null,null,null,null,14,null,null,null,null,null,14,null,null,null,null,null,null,14,null,null,null,null,null,null,14,null,null,null,null,null,14,null,null,null,null,null,null,14]
[15,null,null,null,null,null,null,15,null,null,null,null,null,null,15,null,null,null,null,null,15,null,null,null,null,null,null,15,null,null,null,null,null,null,15,null,null,null,null,null,15,null,null,null,null,null,null,15]
[16,null,null,null,null,null,null,16,null,null,null,null,null,null,16,null,null,null,null,null,16,null,null,null,null,null,null,16,null,null,null,null,null,null,16,null,null,null,null,null,16,null,null,null,null,null,null,16]
[17,null,null,null,null,null,null,17,null,null,null,null,null,null,17,null,null,null,null,null,17,null,null,null,null,null,null,17,null,null,null,null,null,null,17,null,null,null,null,null,17,null,null,null,null,null,null,17]
[18,null,null,null,null,null,null,18,null,null,null,null,null,null,18,null,null,null,null,null,18,null,null,null,null,null,null,18,null,null,null,null,null,null,18,null,null,null,null,null,18,null,null,null,null,null,null,18]
["Total","Shots",null,null,"Shots",null,null,"Total","Shots",null,null,"Shots",null,null,"Total","Shots",null,null,"Shots",null,"Total","Shots",null,null,"Shots",null,null,"Total","Shots",null,null,"Shots",null,null,"Total","Shots",null,null,"Shots",null,"Total","Shots",null,null,"Shots",null,null,"Total","Shots",null,null,"shots"]
[null,"Ends",null,null,"Ends",null,null,null,"Ends",null,null,"Ends",null,null,null,"Ends",null,null,"Ends",null,null,"Ends",null,null,"Ends",null,null,null,"Ends",null,null,"Ends",null,null,null,"Ends",null,null,"Ends",null,null,"Ends",null,null,"Ends",null,null,null,"Ends",null,null,"Ends"]
["1st Game ",null,null,null,null,null,null,"2nd Game ",null,null,null,null,null,null,"3rd Game ",null,null,null,null,null,"4th Game",null,null,null,null,null,null,"5th Game",null,null,null,null,null,null,"6th Game",null,null,null,null,null,"7th Game",null,null,null,null,null,null,"8th Game"]
["Team No",null,null,"Rink No",null,null,null,"Team No",null,null,"Rink No",null,null,null,"Team No",null,null,"Rink No",null,null,"Team No",null,null,"Rink No",null,null,null,"Team No",null,null,"Rink No",null,null,null,"Team No",null,null,"Rink No",null,null,"Team No",null,null,"Rink No",null,null,null,"Team No",null,null,"Rink No"]
[]
[{"$f":"DRAW!$B$35","v":29},null,null,{"$f":"DRAW!$E$35","v":15},null,null,null,{"$f":"DRAW!$B$35","v":29},null,null,{"$f":"DRAW!$G$35","v":6},null,null,null,{"$f":"DRAW!$B$35","v":29},null,null,{"$f":"DRAW!$I$35","v":12},null,null,{"$f":"DRAW!$B$35","v":29},null,null,{"$f":"DRAW!$K$35","v":16},null,null,null,{"$f":"DRAW!$B$35","v":29},null,null,{"$f":"DRAW!$M$35","v":7},null,null,null,{"$f":"DRAW!$B$35","v":29},null,null,{"$f":"DRAW!$O$35","v":10},null,null,{"$f":"DRAW!$B$35","v":29},null,null,{"$f":"DRAW!$Q$35","v":19},null,null,null,{"$f":"DRAW!$B$35","v":29},null,null,{"$f":"DRAW!$S$35","v":1}]
[null,"Team",{"$f":"DRAW!$B$35","v":29},"V","Team",{"$f":"DRAW!$D$35","v":30},null,null,"Team",{"$f":"DRAW!$B$35","v":29},"V","Team",{"$f":"DRAW!$F$35","v":31},null,null,"Team",{"$f":"DRAW!$B$35","v":29},"V","Team",{"$f":"DRAW!$H$35","v":33},null,"Team",{"$f":"DRAW!$B$35","v":29},"V","Team",{"$f":"DRAW!$J$35","v":35},null,null,"Team",{"$f":"DRAW!$B$35","v":29},"V","Team",{"$f":"DRAW!$L$35","v":42},null,null,"Team",{"$f":"DRAW!$B$35","v":29},"V","Team",{"$f":"DRAW!$N$35","v":40},null,"Team",{"$f":"DRAW!$B$35","v":29},"V","Team",{"$f":"DRAW!$P$35","v":41},null,null,"Team",{"$f":"DRAW!$B$35","v":29},"V","Team",{"$f":"DRAW!$R$35","v":36}]
["Ends","Shots","Total",null,"Shots","Total",null,"Ends","Shots","Total",null,"Shots","Total",null,"Ends","Shots","Total",null,"Shots","Total","Ends","Shots","Total",null,"Shots","Total",null,"Ends","Shots","Total",null,"Shots","Total",null,"Ends","Shots","Total",null,"Shots","Total","Ends","Shots","Total",null,"Shots","Total",null,"Ends","Shots","Total",null,"shots","Totar"]
[1,null,null,null,null,null,null,1,null,null,null,null,null,null,1,null,null,null,null,null,1,null,null,null,null,null,null,1,null,null,null,null,null,null,1,null,null,null,null,null,1,null,null,null,null,null,null,1]
[2,null,null,null,null,null,null,2,null,null,null,null,null,null,2,null,null,null,null,null,2,null,null,null,null,null,null,2,null,null,null,null,null,null,2,null,null,null,null,null,2,null,null,null,null,null,null,2]
[3,null,null,null,null,null,null,3,null,null,null,null,null,null,3,null,null,null,null,null,3,null,null,null,null,null,null,3,null,null,null,null,null,null,3,null,null,null,null,null,3,null,null,null,null,null,null,3]
[4,null,null,null,null,null,null,4,null,null,null,null,null,null,4,null,null,null,null,null,4,null,null,null,null,null,null,4,null,null,null,null,null,null,4,null,null,null,null,null,4,null,null,null,null,null,null,4]
[5,null,null,null,null,null,null,5,null,null,null,null,null,null,5,null,null,null,null,null,5,null,null,null,null,null,null,5,null,null,null,null,null,null,5,null,null,null,null,null,5,null,null,null,null,null,null,5]
[6,null,null,null,null,null,null,6,null,null,null,null,null,null,6,null,null,null,null,null,6,null,null,null,null,null,null,6,null,null,null,null,null,null,6,null,null,null,null,null,6,null,null,null,null,null,null,6]
[7,null,null,null,null,null,null,7,null,null,null,null,null,null,7,null,null,null,null,null,7,null,null,null,null,null,null,7,null,null,null,null,null,null,7,null,null,null,null,null,7,null,null,null,null,null,null,7]
[8,null,null,null,null,null,null,8,null,null,null,null,null,null,8,null,null,null,null,null,8,null,null,null,null,null,null,8,null,null,null,null,null,null,8,null,null,null,null,null,8,null,null,null,null,null,null,8]
[9,null,null,null,null,null,null,9,null,null,null,null,null,null,9,null,null,null,null,null,9,null,null,null,null,null,null,9,null,null,null,null,null,null,9,null,null,null,null,null,9,null,null,null,null,null,null,9]
[10,null,null,null,null,null,null,10,null,null,null,null,null,null,10,null,null,null,null,null,10,null,null,null,null,null,null,10,null,null,null,null,null,null,10,null,null,null,null,null,10,null,null,null,null,null,null,10]
[11,null,null,null,null,null,null,11,null,null,null,null,null,null,11,null,null,null,null,null,11,null,null,null,null,null,null,11,null,null,null,null,null,null,11,null,null,null,null,null,11,null,null,null,null,null,null,11]
[12,null,null,null,null,null,null,12,null,null,null,null,null,null,12,null,null,null,null,null,12,null,null,null,null,null,null,12,null,null,null,null,null,null,12,null,null,null,null,null,12,null,null,null,null,null,null,12]
[13,null,null,null,null,null,null,13,null,null,null,null,null,null,13,null,null,null,null,null,13,null,null,null,null,null,null,13,null,null,null,null,null,null,13,null,null,null,null,null,13,null,null,null,null,null,null,13]
[14,null,null,null,null,null,null,14,null,null,null,null,null,null,14,null,null,null,null,null,14,null,null,null,null,null,null,14,null,null,null,null,null,null,14,null,null,null,null,null,14,null,null,null,null,null,null,14]
[15,null,null,null,null,null,null,15,null,null,null,null,null,null,15,null,null,null,null,null,15,null,null,null,null,null,null,15,null,null,null,null,null,null,15,null,null,null,null,null,15,null,null,null,null,null,null,15]
[16,null,null,null,null,null,null,16,null,null,null,null,null,null,16,null,null,null,null,null,16,null,null,null,null,null,null,16,null,null,null,null,null,null,16,null,null,null,null,null,16,null,null,null,null,null,null,16]
[17,null,null,null,null,null,null,17,null,null,null,null,null,null,17,null,null,null,null,null,17,null,null,null,null,null,null,17,null,null,null,null,null,null,17,null,null,null,null,null,17,null,null,null,null,null,null,17]
[18,null,null,null,null,null,null,18,null,null,null,null,null,null,18,null,null,null,null,null,18,null,null,null,null,null,null,18,null,null,null,null,null,null,18,null,null,null,null,null,18,null,null,null,null,null,null,18]
["Total","Shots",null,null,"Shots",null,null,"Total","Shots",null,null,"Shots",null,null,"Total","Shots",null,null,"Shots",null,"Total","Shots",null,null,"Shots",null,null,"Total","Shots",null,null,"Shots",null,null,"Total","Shots",null,null,"Shots",null,"Total","Shots",null,null,"Shots",null,null,"Total","Shots",null,null,"shots"]
[null,"Ends",null,null,"Ends",null,null,null,"Ends",null,null,"Ends",null,null,null,"Ends",null,null,"Ends",null,null,"Ends",null,null,"Ends",null,null,null,"Ends",null,null,"Ends",null,null,null,"Ends",null,null,"Ends",null,null,"Ends",null,null,"Ends",null,null,null,"Ends",null,null,"Ends"]
[]
[]
["1st Game ",null,null,null,null,null,null,"2nd Game ",null,null,null,null,null,null,"3rd Game ",null,null,null,null,null,"4th Game",null,null,null,null,null,null,"5th Game",null,null,null,null,null,null,"6th Game",null,null,null,null,null,"7th Game",null,null,null,null,null,null,"8th Game"]
["Team No",null,null,"Rink No",null,null,null,"Team No",null,null,"Rink No",null,null,null,"Team No",null,null,"Rink No",null,null,"Team No",null,null,"Rink No",null,null,null,"Team No",null,null,"Rink No",null,null,null,"Team No",null,null,"Rink No",null,null,"Team No",null,null,"Rink No",null,null,null,"Team No",null,null,"Rink No"]
[]
[{"$f":"DRAW!$B$36","v":30},null,null,{"$f":"DRAW!$E$36","v":15},null,null,null,{"$f":"DRAW!$B$36","v":30},null,null,{"$f":"DRAW!$G$36","v":5},null,null,null,{"$f":"DRAW!$B$36","v":30},null,null,{"$f":"DRAW!$I$36","v":9},null,null,{"$f":"DRAW!$B$36","v":30},null,null,{"$f":"DRAW!$K$36","v":19},null,null,null,{"$f":"DRAW!$B$36","v":30},null,null,{"$f":"DRAW!$M$36","v":1},null,null,null,{"$f":"DRAW!$B$36","v":30},null,null,{"$f":"DRAW!$O$36","v":11},null,null,{"$f":"DRAW!$B$36","v":30},null,null,{"$f":"DRAW!$Q$36","v":16},null,null,null,{"$f":"DRAW!$B$36","v":30},null,null,{"$f":"DRAW!$S$36","v":2}]
[null,"Team",{"$f":"DRAW!$B$36","v":30},"V","Team",{"$f":"DRAW!$D$36","v":29},null,null,"Team",{"$f":"DRAW!$B$36","v":30},"V","Team",{"$f":"DRAW!$F$36","v":32},null,null,"Team",{"$f":"DRAW!$B$36","v":30},"V","Team",{"$f":"DRAW!$H$36","v":36},null,"Team",{"$f":"DRAW!$B$36","v":30},"V","Team",{"$f":"DRAW!$J$36","v":40},null,null,"Team",{"$f":"DRAW!$B$36","v":30},"V","Team",{"$f":"DRAW!$L$36","v":41},null,null,"Team",{"$f":"DRAW!$B$36","v":30},"V","Team",{"$f":"DRAW!$N$36","v":42},null,"Team",{"$f":"DRAW!$B$36","v":30},"V","Team",{"$f":"DRAW!$P$36","v":37},null,null,"Team",{"$f":"DRAW!$B$36","v":30},"V","Team",{"$f":"DRAW!$R$36","v":33}]
["Ends","Shots","Total",null,"Shots","Total",null,"Ends","Shots","Total",null,"Shots","Total",null,"Ends","Shots","Total",null,"Shots","Total","Ends","Shots","Total",null,"Shots","Total",null,"Ends","Shots","Total",null,"Shots","Total",null,"Ends","Shots","Total",null,"Shots","Total","Ends","Shots","Total",null,"Shots","Total",null,"Ends","Shots","Total",null,"shots","Totar"]
[1,null,null,null,null,null,null,1,null,null,null,null,null,null,1,null,null,null,null,null,1,null,null,null,null,null,null,1,null,null,null,null,null,null,1,null,null,null,null,null,1,null,null,null,null,null,null,1]
[2,null,null,null,null,null,null,2,null,null,null,null,null,null,2,null,null,null,null,null,2,null,null,null,null,null,null,2,null,null,null,null,null,null,2,null,null,null,null,null,2,null,null,null,null,null,null,2]
[3,null,null,null,null,null,null,3,null,null,null,null,null,null,3,null,null,null,null,null,3,null,null,null,null,null,null,3,null,null,null,null,null,null,3,null,null,null,null,null,3,null,null,null,null,null,null,3]
[4,null,null,null,null,null,null,4,null,null,null,null,null,null,4,null,null,null,null,null,4,null,null,null,null,null,null,4,null,null,null,null,null,null,4,null,null,null,null,null,4,null,null,null,null,null,null,4]
[5,null,null,null,null,null,null,5,null,null,null,null,null,null,5,null,null,null,null,null,5,null,null,null,null,null,null,5,null,null,null,null,null,null,5,null,null,null,null,null,5,null,null,null,null,null,null,5]
[6,null,null,null,null,null,null,6,null,null,null,null,null,null,6,null,null,null,null,null,6,null,null,null,null,null,null,6,null,null,null,null,null,null,6,null,null,null,null,null,6,null,null,null,null,null,null,6]
[7,null,null,null,null,null,null,7,null,null,null,null,null,null,7,null,null,null,null,null,7,null,null,null,null,null,null,7,null,null,null,null,null,null,7,null,null,null,null,null,7,null,null,null,null,null,null,7]
[8,null,null,null,null,null,null,8,null,null,null,null,null,null,8,null,null,null,null,null,8,null,null,null,null,null,null,8,null,null,null,null,null,null,8,null,null,null,null,null,8,null,null,null,null,null,null,8]
[9,null,null,null,null,null,null,9,null,null,null,null,null,null,9,null,null,null,null,null,9,null,null,null,null,null,null,9,null,null,null,null,null,null,9,null,null,null,null,null,9,null,null,null,null,null,null,9]
[10,null,null,null,null,null,null,10,null,null,null,null,null,null,10,null,null,null,null,null,10,null,null,null,null,null,null,10,null,null,null,null,null,null,10,null,null,null,null,null,10,null,null,null,null,null,null,10]
[11,null,null,null,null,null,null,11,null,null,null,null,null,null,11,null,null,null,null,null,11,null,null,null,null,null,null,11,null,null,null,null,null,null,11,null,null,null,null,null,11,null,null,null,null,null,null,11]
[12,null,null,null,null,null,null,12,null,null,null,null,null,null,12,null,null,null,null,null,12,null,null,null,null,null,null,12,null,null,null,null,null,null,12,null,null,null,null,null,12,null,null,null,null,null,null,12]
[13,null,null,null,null,null,null,13,null,null,null,null,null,null,13,null,null,null,null,null,13,null,null,null,null,null,null,13,null,null,null,null,null,null,13,null,null,null,null,null,13,null,null,null,null,null,null,13]
[14,null,null,null,null,null,null,14,null,null,null,null,null,null,14,null,null,null,null,null,14,null,null,null,null,null,null,14,null,null,null,null,null,null,14,null,null,null,null,null,14,null,null,null,null,null,null,14]
[15,null,null,null,null,null,null,15,null,null,null,null,null,null,15,null,null,null,null,null,15,null,null,null,null,null,null,15,null,null,null,null,null,null,15,null,null,null,null,null,15,null,null,null,null,null,null,15]
[16,null,null,null,null,null,null,16,null,null,null,null,null,null,16,null,null,null,null,null,16,null,null,null,null,null,null,16,null,null,null,null,null,null,16,null,null,null,null,null,16,null,null,null,null,null,null,16]
[17,null,null,null,null,null,null,17,null,null,null,null,null,null,17,null,null,null,null,null,17,null,null,null,null,null,null,17,null,null,null,null,null,null,17,null,null,null,null,null,17,null,null,null,null,null,null,17]
[18,null,null,null,null,null,null,18,null,null,null,null,null,null,18,null,null,null,null,null,18,null,null,null,null,null,null,18,null,null,null,null,null,null,18,null,null,null,null,null,18,null,null,null,null,null,null,18]
["Total","Shots",null,null,"Shots",null,null,"Total","Shots",null,null,"Shots",null,null,"Total","Shots",null,null,"Shots",null,"Total","Shots",null,null,"Shots",null,null,"Total","Shots",null,null,"Shots",null,null,"Total","Shots",null,null,"Shots",null,"Total","Shots",null,null,"Shots",null,null,"Total","Shots",null,null,"shots"]
[null,"Ends",null,null,"Ends",null,null,null,"Ends",null,null,"Ends",null,null,null,"Ends",null,null,"Ends",null,null,"Ends",null,null,"Ends",null,null,null,"Ends",null,null,"Ends",null,null,null,"Ends",null,null,"Ends",null,null,"Ends",null,null,"Ends",null,null,null,"Ends",null,null,"Ends"]
["1st Game ",null,null,null,null,null,null,"2nd Game ",null,null,null,null,null,null,"3rd Game ",null,null,null,null,null,"4th Game",null,null,null,null,null,null,"5th Game",null,null,null,null,null,null,"6th Game",null,null,null,null,null,"7th Game",null,null,null,null,null,null,"8th Game"]
["Team No",null,null,"Rink No",null,null,null,"Team No",null,null,"Rink No",null,null,null,"Team No",null,null,"Rink No",null,null,"Team No",null,null,"Rink No",null,null,null,"Team No",null,null,"Rink No",null,null,null,"Team No",null,null,"Rink No",null,null,"Team No",null,null,"Rink No",null,null,null,"Team No",null,null,"Rink No"]
[]
[{"$f":"DRAW!$B$37","v":31},null,null,{"$f":"DRAW!$E$37","v":16},null,null,null,{"$f":"DRAW!$B$37","v":31},null,null,{"$f":"DRAW!$G$37","v":6},null,null,null,{"$f":"DRAW!$B$37","v":31},null,null,{"$f":"DRAW!$I$37","v":8},null,null,{"$f":"DRAW!$B$37","v":31},null,null,{"$f":"DRAW!$K$37","v":18},null,null,null,{"$f":"DRAW!$B$37","v":31},null,null,{"$f":"DRAW!$M$37","v":3},null,null,null,{"$f":"DRAW!$B$37","v":31},null,null,{"$f":"DRAW!$O$37","v":9},null,null,{"$f":"DRAW!$B$37","v":31},null,null,{"$f":"DRAW!$Q$37","v":15},null,null,null,{"$f":"DRAW!$B$37","v":31},null,null,{"$f":"DRAW!$S$37","v":4}]
[null,"Team",{"$f":"DRAW!$B$37","v":31},"V","Team",{"$f":"DRAW!$D$37","v":42},null,null,"Team",{"$f":"DRAW!$B$37","v":31},"V","Team",{"$f":"DRAW!$F$37","v":29},null,null,"Team",{"$f":"DRAW!$B$37","v":31},"V","Team",{"$f":"DRAW!$H$37","v":35},null,"Team",{"$f":"DRAW!$B$37","v":31},"V","Team",{"$f":"DRAW!$J$37","v":39},null,null,"Team",{"$f":"DRAW!$B$37","v":31},"V","Team",{"$f":"DRAW!$L$37","v":40},null,null,"Team",{"$f":"DRAW!$B$37","v":31},"V","Team",{"$f":"DRAW!$N$37","v":41},null,"Team",{"$f":"DRAW!$B$37","v":31},"V","Team",{"$f":"DRAW!$P$37","v":38},null,null,"Team",{"$f":"DRAW!$B$37","v":31},"V","Team",{"$f":"DRAW!$R$37","v":32}]
["Ends","Shots","Total",null,"Shots","Total",null,"Ends","Shots","Total",null,"Shots","Total",null,"Ends","Shots","Total",null,"Shots","Total","Ends","Shots","Total",null,"Shots","Total",null,"Ends","Shots","Total",null,"Shots","Total",null,"Ends","Shots","Total",null,"Shots","Total","Ends","Shots","Total",null,"Shots","Total",null,"Ends","Shots","Total",null,"shots","Totar"]
[1,null,null,null,null,null,null,1,null,null,null,null,null,null,1,null,null,null,null,null,1,null,null,null,null,null,null,1,null,null,null,null,null,null,1,null,null,null,null,null,1,null,null,null,null,null,null,1]
[2,null,null,null,null,null,null,2,null,null,null,null,null,null,2,null,null,null,null,null,2,null,null,null,null,null,null,2,null,null,null,null,null,null,2,null,null,null,null,null,2,null,null,null,null,null,null,2]
[3,null,null,null,null,null,null,3,null,null,null,null,null,null,3,null,null,null,null,null,3,null,null,null,null,null,null,3,null,null,null,null,null,null,3,null,null,null,null,null,3,null,null,null,null,null,null,3]
[4,null,null,null,null,null,null,4,null,null,null,null,null,null,4,null,null,null,null,null,4,null,null,null,null,null,null,4,null,null,null,null,null,null,4,null,null,null,null,null,4,null,null,null,null,null,null,4]
[5,null,null,null,null,null,null,5,null,null,null,null,null,null,5,null,null,null,null,null,5,null,null,null,null,null,null,5,null,null,null,null,null,null,5,null,null,null,null,null,5,null,null,null,null,null,null,5]
[6,null,null,null,null,null,null,6,null,null,null,null,null,null,6,null,null,null,null,null,6,null,null,null,null,null,null,6,null,null,null,null,null,null,6,null,null,null,null,null,6,null,null,null,null,null,null,6]
[7,null,null,null,null,null,null,7,null,null,null,null,null,null,7,null,null,null,null,null,7,null,null,null,null,null,null,7,null,null,null,null,null,null,7,null,null,null,null,null,7,null,null,null,null,null,null,7]
[8,null,null,null,null,null,null,8,null,null,null,null,null,null,8,null,null,null,null,null,8,null,null,null,null,null,null,8,null,null,null,null,null,null,8,null,null,null,null,null,8,null,null,null,null,null,null,8]
[9,null,null,null,null,null,null,9,null,null,null,null,null,null,9,null,null,null,null,null,9,null,null,null,null,null,null,9,null,null,null,null,null,null,9,null,null,null,null,null,9,null,null,null,null,null,null,9]
[10,null,null,null,null,null,null,10,null,null,null,null,null,null,10,null,null,null,null,null,10,null,null,null,null,null,null,10,null,null,null,null,null,null,10,null,null,null,null,null,10,null,null,null,null,null,null,10]
[11,null,null,null,null,null,null,11,null,null,null,null,null,null,11,null,null,null,null,null,11,null,null,null,null,null,null,11,null,null,null,null,null,null,11,null,null,null,null,null,11,null,null,null,null,null,null,11]
[12,null,null,null,null,null,null,12,null,null,null,null,null,null,12,null,null,null,null,null,12,null,null,null,null,null,null,12,null,null,null,null,null,null,12,null,null,null,null,null,12,null,null,null,null,null,null,12]
[13,null,null,null,null,null,null,13,null,null,null,null,null,null,13,null,null,null,null,null,13,null,null,null,null,null,null,13,null,null,null,null,null,null,13,null,null,null,null,null,13,null,null,null,null,null,null,13]
[14,null,null,null,null,null,null,14,null,null,null,null,null,null,14,null,null,null,null,null,14,null,null,null,null,null,null,14,null,null,null,null,null,null,14,null,null,null,null,null,14,null,null,null,null,null,null,14]
[15,null,null,null,null,null,null,15,null,null,null,null,null,null,15,null,null,null,null,null,15,null,null,null,null,null,null,15,null,null,null,null,null,null,15,null,null,null,null,null,15,null,null,null,null,null,null,15]
[16,null,null,null,null,null,null,16,null,null,null,null,null,null,16,null,null,null,null,null,16,null,null,null,null,null,null,16,null,null,null,null,null,null,16,null,null,null,null,null,16,null,null,null,null,null,null,16]
[17,null,null,null,null,null,null,17,null,null,null,null,null,null,17,null,null,null,null,null,17,null,null,null,null,null,null,17,null,null,null,null,null,null,17,null,null,null,null,null,17,null,null,null,null,null,null,17]
[18,null,null,null,null,null,null,18,null,null,null,null,null,null,18,null,null,null,null,null,18,null,null,null,null,null,null,18,null,null,null,null,null,null,18,null,null,null,null,null,18,null,null,null,null,null,null,18]
["Total","Shots",null,null,"Shots",null,null,"Total","Shots",null,null,"Shots",null,null,"Total","Shots",null,null,"Shots",null,"Total","Shots",null,null,"Shots",null,null,"Total","Shots",null,null,"Shots",null,null,"Total","Shots",null,null,"Shots",null,"Total","Shots",null,null,"Shots",null,null,"Total","Shots",null,null,"shots"]
[null,"Ends",null,null,"Ends",null,null,null,"Ends",null,null,"Ends",null,null,null,"Ends",null,null,"Ends",null,null,"Ends",null,null,"Ends",null,null,null,"Ends",null,null,"Ends",null,null,null,"Ends",null,null,"Ends",null,null,"Ends",null,null,"Ends",null,null,null,"Ends",null,null,"Ends"]
[]
[]
["1st Game ",null,null,null,null,null,null,"2nd Game ",null,null,null,null,null,null,"3rd Game ",null,null,null,null,null,"4th Game",null,null,null,null,null,null,"5th Game",null,null,null,null,null,null,"6th Game",null,null,null,null,null,"7th Game",null,null,null,null,null,null,"8th Game"]
["Team No",null,null,"Rink No",null,null,null,"Team No",null,null,"Rink No",null,null,null,"Team No",null,null,"Rink No",null,null,"Team No",null,null,"Rink No",null,null,null,"Team No",null,null,"Rink No",null,null,null,"Team No",null,null,"Rink No",null,null,"Team No",null,null,"Rink No",null,null,null,"Team No",null,null,"Rink No"]
[]
[{"$f":"DRAW!$B$38","v":32},null,null,{"$f":"DRAW!$E$38","v":17},null,null,null,{"$f":"DRAW!$B$38","v":32},null,null,{"$f":"DRAW!$G$38","v":5},null,null,null,{"$f":"DRAW!$B$38","v":32},null,null,{"$f":"DRAW!$I$38","v":11},null,null,{"$f":"DRAW!$B$38","v":32},null,null,{"$f":"DRAW!$K$38","v":21},null,null,null,{"$f":"DRAW!$B$38","v":32},null,null,{"$f":"DRAW!$M$38","v":2},null,null,null,{"$f":"DRAW!$B$38","v":32},null,null,{"$f":"DRAW!$O$38","v":13},null,null,{"$f":"DRAW!$B$38","v":32},null,null,{"$f":"DRAW!$Q$38","v":21},null,null,null,{"$f":"DRAW!$B$38","v":32},null,null,{"$f":"DRAW!$S$38","v":4}]
[null,"Team",{"$f":"DRAW!$B$38","v":32},"V","Team",{"$f":"DRAW!$D$38","v":41},null,null,"Team",{"$f":"DRAW!$B$38","v":32},"V","Team",{"$f":"DRAW!$F$38","v":30},null,null,"Team",{"$f":"DRAW!$B$38","v":32},"V","Team",{"$f":"DRAW!$H$38","v":34},null,"Team",{"$f":"DRAW!$B$38","v":32},"V","Team",{"$f":"DRAW!$J$38","v":38},null,null,"Team",{"$f":"DRAW!$B$38","v":32},"V","Team",{"$f":"DRAW!$L$38","v":39},null,null,"Team",{"$f":"DRAW!$B$38","v":32},"V","Team",{"$f":"DRAW!$N$38","v":36},null,"Team",{"$f":"DRAW!$B$38","v":32},"V","Team",{"$f":"DRAW!$P$38","v":40},null,null,"Team",{"$f":"DRAW!$B$38","v":32},"V","Team",{"$f":"DRAW!$R$38","v":31}]
["Ends","Shots","Total",null,"Shots","Total",null,"Ends","Shots","Total",null,"Shots","Total",null,"Ends","Shots","Total",null,"Shots","Total","Ends","Shots","Total",null,"Shots","Total",null,"Ends","Shots","Total",null,"Shots","Total",null,"Ends","Shots","Total",null,"Shots","Total","Ends","Shots","Total",null,"Shots","Total",null,"Ends","Shots","Total",null,"shots","Totar"]
[1,null,null,null,null,null,null,1,null,null,null,null,null,null,1,null,null,null,null,null,1,null,null,null,null,null,null,1,null,null,null,null,null,null,1,null,null,null,null,null,1,null,null,null,null,null,null,1]
[2,null,null,null,null,null,null,2,null,null,null,null,null,null,2,null,null,null,null,null,2,null,null,null,null,null,null,2,null,null,null,null,null,null,2,null,null,null,null,null,2,null,null,null,null,null,null,2]
[3,null,null,null,null,null,null,3,null,null,null,null,null,null,3,null,null,null,null,null,3,null,null,null,null,null,null,3,null,null,null,null,null,null,3,null,null,null,null,null,3,null,null,null,null,null,null,3]
[4,null,null,null,null,null,null,4,null,null,null,null,null,null,4,null,null,null,null,null,4,null,null,null,null,null,null,4,null,null,null,null,null,null,4,null,null,null,null,null,4,null,null,null,null,null,null,4]
[5,null,null,null,null,null,null,5,null,null,null,null,null,null,5,null,null,null,null,null,5,null,null,null,null,null,null,5,null,null,null,null,null,null,5,null,null,null,null,null,5,null,null,null,null,null,null,5]
[6,null,null,null,null,null,null,6,null,null,null,null,null,null,6,null,null,null,null,null,6,null,null,null,null,null,null,6,null,null,null,null,null,null,6,null,null,null,null,null,6,null,null,null,null,null,null,6]
[7,null,null,null,null,null,null,7,null,null,null,null,null,null,7,null,null,null,null,null,7,null,null,null,null,null,null,7,null,null,null,null,null,null,7,null,null,null,null,null,7,null,null,null,null,null,null,7]
[8,null,null,null,null,null,null,8,null,null,null,null,null,null,8,null,null,null,null,null,8,null,null,null,null,null,null,8,null,null,null,null,null,null,8,null,null,null,null,null,8,null,null,null,null,null,null,8]
[9,null,null,null,null,null,null,9,null,null,null,null,null,null,9,null,null,null,null,null,9,null,null,null,null,null,null,9,null,null,null,null,null,null,9,null,null,null,null,null,9,null,null,null,null,null,null,9]
[10,null,null,null,null,null,null,10,null,null,null,null,null,null,10,null,null,null,null,null,10,null,null,null,null,null,null,10,null,null,null,null,null,null,10,null,null,null,null,null,10,null,null,null,null,null,null,10]
[11,null,null,null,null,null,null,11,null,null,null,null,null,null,11,null,null,null,null,null,11,null,null,null,null,null,null,11,null,null,null,null,null,null,11,null,null,null,null,null,11,null,null,null,null,null,null,11]
[12,null,null,null,null,null,null,12,null,null,null,null,null,null,12,null,null,null,null,null,12,null,null,null,null,null,null,12,null,null,null,null,null,null,12,null,null,null,null,null,12,null,null,null,null,null,null,12]
[13,null,null,null,null,null,null,13,null,null,null,null,null,null,13,null,null,null,null,null,13,null,null,null,null,null,null,13,null,null,null,null,null,null,13,null,null,null,null,null,13,null,null,null,null,null,null,13]
[14,null,null,null,null,null,null,14,null,null,null,null,null,null,14,null,null,null,null,null,14,null,null,null,null,null,null,14,null,null,null,null,null,null,14,null,null,null,null,null,14,null,null,null,null,null,null,14]
[15,null,null,null,null,null,null,15,null,null,null,null,null,null,15,null,null,null,null,null,15,null,null,null,null,null,null,15,null,null,null,null,null,null,15,null,null,null,null,null,15,null,null,null,null,null,null,15]
[16,null,null,null,null,null,null,16,null,null,null,null,null,null,16,null,null,null,null,null,16,null,null,null,null,null,null,16,null,null,null,null,null,null,16,null,null,null,null,null,16,null,null,null,null,null,null,16]
[17,null,null,null,null,null,null,17,null,null,null,null,null,null,17,null,null,null,null,null,17,null,null,null,null,null,null,17,null,null,null,null,null,null,17,null,null,null,null,null,17,null,null,null,null,null,null,17]
[18,null,null,null,null,null,null,18,null,null,null,null,null,null,18,null,null,null,null,null,18,null,null,null,null,null,null,18,null,null,null,null,null,null,18,null,null,null,null,null,18,null,null,null,null,null,null,18]
["Total","Shots",null,null,"Shots",null,null,"Total","Shots",null,null,"Shots",null,null,"Total","Shots",null,null,"Shots",null,"Total","Shots",null,null,"Shots",null,null,"Total","Shots",null,null,"Shots",null,null,"Total","Shots",null,null,"Shots",null,"Total","Shots",null,null,"Shots",null,null,"Total","Shots",null,null,"shots"]
[null,"Ends",null,null,"Ends",null,null,null,"Ends",null,null,"Ends",null,null,null,"Ends",null,null,"Ends",null,null,"Ends",null,null,"Ends",null,null,null,"Ends",null,null,"Ends",null,null,null,"Ends",null,null,"Ends",null,null,"Ends",null,null,"Ends",null,null,null,"Ends",null,null,"Ends"]
["1st Game ",null,null,null,null,null,null,"2nd Game ",null,null,null,null,null,null,"3rd Game ",null,null,null,null,null,"4th Game",null,null,null,null,null,null,"5th Game",null,null,null,null,null,null,"6th Game",null,null,null,null,null,"7th Game",null,null,null,null,null,null,"8th Game"]
["Team No",null,null,"Rink No",null,null,null,"Team No",null,null,"Rink No",null,null,null,"Team No",null,null,"Rink No",null,null,"Team No",null,null,"Rink No",null,null,null,"Team No",null,null,"Rink No",null,null,null,"Team No",null,null,"Rink No",null,null,"Team No",null,null,"Rink No",null,null,null,"Team No",null,null,"Rink No"]
[]
[{"$f":"DRAW!$B$39","v":33},null,null,{"$f":"DRAW!$E$39","v":18},null,null,null,{"$f":"DRAW!$B$39","v":33},null,null,{"$f":"DRAW!$G$39","v":1},null,null,null,{"$f":"DRAW!$B$39","v":33},null,null,{"$f":"DRAW!$I$39","v":12},null,null,{"$f":"DRAW!$B$39","v":33},null,null,{"$f":"DRAW!$K$39","v":17},null,null,null,{"$f":"DRAW!$B$39","v":33},null,null,{"$f":"DRAW!$M$39","v":5},null,null,null,{"$f":"DRAW!$B$39","v":33},null,null,{"$f":"DRAW!$O$39","v":8},null,null,{"$f":"DRAW!$B$39","v":33},null,null,{"$f":"DRAW!$Q$39","v":20},null,null,null,{"$f":"DRAW!$B$39","v":33},null,null,{"$f":"DRAW!$S$39","v":2}]
[null,"Team",{"$f":"DRAW!$B$39","v":33},"V","Team",{"$f":"DRAW!$D$39","v":40},null,null,"Team",{"$f":"DRAW!$B$39","v":33},"V","Team",{"$f":"DRAW!$F$39","v":42},null,null,"Team",{"$f":"DRAW!$B$39","v":33},"V","Team",{"$f":"DRAW!$H$39","v":29},null,"Team",{"$f":"DRAW!$B$39","v":33},"V","Team",{"$f":"DRAW!$J$39","v":37},null,null,"Team",{"$f":"DRAW!$B$39","v":33},"V","Team",{"$f":"DRAW!$L$39","v":38},null,null,"Team",{"$f":"DRAW!$B$39","v":33},"V","Team",{"$f":"DRAW!$N$39","v":39},null,"Team",{"$f":"DRAW!$B$39","v":33},"V","Team",{"$f":"DRAW!$P$39","v":36},null,null,"Team",{"$f":"DRAW!$B$39","v":33},"V","Team",{"$f":"DRAW!$R$39","v":30}]
["Ends","Shots","Total",null,"Shots","Total",null,"Ends","Shots","Total",null,"Shots","Total",null,"Ends","Shots","Total",null,"Shots","Total","Ends","Shots","Total",null,"Shots","Total",null,"Ends","Shots","Total",null,"Shots","Total",null,"Ends","Shots","Total",null,"Shots","Total","Ends","Shots","Total",null,"Shots","Total",null,"Ends","Shots","Total",null,"shots","Totar"]
[1,null,null,null,null,null,null,1,null,null,null,null,null,null,1,null,null,null,null,null,1,null,null,null,null,null,null,1,null,null,null,null,null,null,1,null,null,null,null,null,1,null,null,null,null,null,null,1]
[2,null,null,null,null,null,null,2,null,null,null,null,null,null,2,null,null,null,null,null,2,null,null,null,null,null,null,2,null,null,null,null,null,null,2,null,null,null,null,null,2,null,null,null,null,null,null,2]
[3,null,null,null,null,null,null,3,null,null,null,null,null,null,3,null,null,null,null,null,3,null,null,null,null,null,null,3,null,null,null,null,null,null,3,null,null,null,null,null,3,null,null,null,null,null,null,3]
[4,null,null,null,null,null,null,4,null,null,null,null,null,null,4,null,null,null,null,null,4,null,null,null,null,null,null,4,null,null,null,null,null,null,4,null,null,null,null,null,4,null,null,null,null,null,null,4]
[5,null,null,null,null,null,null,5,null,null,null,null,null,null,5,null,null,null,null,null,5,null,null,null,null,null,null,5,null,null,null,null,null,null,5,null,null,null,null,null,5,null,null,null,null,null,null,5]
[6,null,null,null,null,null,null,6,null,null,null,null,null,null,6,null,null,null,null,null,6,null,null,null,null,null,null,6,null,null,null,null,null,null,6,null,null,null,null,null,6,null,null,null,null,null,null,6]
[7,null,null,null,null,null,null,7,null,null,null,null,null,null,7,null,null,null,null,null,7,null,null,null,null,null,null,7,null,null,null,null,null,null,7,null,null,null,null,null,7,null,null,null,null,null,null,7]
[8,null,null,null,null,null,null,8,null,null,null,null,null,null,8,null,null,null,null,null,8,null,null,null,null,null,null,8,null,null,null,null,null,null,8,null,null,null,null,null,8,null,null,null,null,null,null,8]
[9,null,null,null,null,null,null,9,null,null,null,null,null,null,9,null,null,null,null,null,9,null,null,null,null,null,null,9,null,null,null,null,null,null,9,null,null,null,null,null,9,null,null,null,null,null,null,9]
[10,null,null,null,null,null,null,10,null,null,null,null,null,null,10,null,null,null,null,null,10,null,null,null,null,null,null,10,null,null,null,null,null,null,10,null,null,null,null,null,10,null,null,null,null,null,null,10]
[11,null,null,null,null,null,null,11,null,null,null,null,null,null,11,null,null,null,null,null,11,null,null,null,null,null,null,11,null,null,null,null,null,null,11,null,null,null,null,null,11,null,null,null,null,null,null,11]
[12,null,null,null,null,null,null,12,null,null,null,null,null,null,12,null,null,null,null,null,12,null,null,null,null,null,null,12,null,null,null,null,null,null,12,null,null,null,null,null,12,null,null,null,null,null,null,12]
[13,null,null,null,null,null,null,13,null,null,null,null,null,null,13,null,null,null,null,null,13,null,null,null,null,null,null,13,null,null,null,null,null,null,13,null,null,null,null,null,13,null,null,null,null,null,null,13]
[14,null,null,null,null,null,null,14,null,null,null,null,null,null,14,null,null,null,null,null,14,null,null,null,null,null,null,14,null,null,null,null,null,null,14,null,null,null,null,null,14,null,null,null,null,null,null,14]
[15,null,null,null,null,null,null,15,null,null,null,null,null,null,15,null,null,null,null,null,15,null,null,null,null,null,null,15,null,null,null,null,null,null,15,null,null,null,null,null,15,null,null,null,null,null,null,15]
[16,null,null,null,null,null,null,16,null,null,null,null,null,null,16,null,null,null,null,null,16,null,null,null,null,null,null,16,null,null,null,null,null,null,16,null,null,null,null,null,16,null,null,null,null,null,null,16]
[17,null,null,null,null,null,null,17,null,null,null,null,null,null,17,null,null,null,null,null,17,null,null,null,null,null,null,17,null,null,null,null,null,null,17,null,null,null,null,null,17,null,null,null,null,null,null,17]
[18,null,null,null,null,null,null,18,null,null,null,null,null,null,18,null,null,null,null,null,18,null,null,null,null,null,null,18,null,null,null,null,null,null,18,null,null,null,null,null,18,null,null,null,null,null,null,18]
["Total","Shots",null,null,"Shots",null,null,"Total","Shots",null,null,"Shots",null,null,"Total","Shots",null,null,"Shots",null,"Total","Shots",null,null,"Shots",null,null,"Total","Shots",null,null,"Shots",null,null,"Total","Shots",null,null,"Shots",null,"Total","Shots",null,null,"Shots",null,null,"Total","Shots",null,null,"shots"]
[null,"Ends",null,null,"Ends",null,null,null,"Ends",null,null,"Ends",null,null,null,"Ends",null,null,"Ends",null,null,"Ends",null,null,"Ends",null,null,null,"Ends",null,null,"Ends",null,null,null,"Ends",null,null,"Ends",null,null,"Ends",null,null,"Ends",null,null,null,"Ends",null,null,"Ends"]
[]
[]
["1st Game ",null,null,null,null,null,null,"2nd Game ",null,null,null,null,null,null,"3rd Game ",null,null,null,null,null,"4th Game",null,null,null,null,null,null,"5th Game",null,null,null,null,null,null,"6th Game",null,null,null,null,null,"7th Game",null,null,null,null,null,null,"8th Game"]
["Team No",null,null,"Rink No",null,null,null,"Team No",null,null,"Rink No",null,null,null,"Team No",null,null,"Rink No",null,null,"Team No",null,null,"Rink No",null,null,null,"Team No",null,null,"Rink No",null,null,null,"Team No",null,null,"Rink No",null,null,"Team No",null,null,"Rink No",null,null,null,"Team No",null,null,"Rink No"]
[]
[{"$f":"DRAW!$B$40","v":34},null,null,{"$f":"DRAW!$E$40","v":19},null,null,null,{"$f":"DRAW!$B$40","v":34},null,null,{"$f":"DRAW!$G$40","v":7},null,null,null,{"$f":"DRAW!$B$40","v":34},null,null,{"$f":"DRAW!$I$40","v":11},null,null,{"$f":"DRAW!$B$40","v":34},null,null,{"$f":"DRAW!$K$40","v":15},null,null,null,{"$f":"DRAW!$B$40","v":34},null,null,{"$f":"DRAW!$M$40","v":6},null,null,null,{"$f":"DRAW!$B$40","v":34},null,null,{"$f":"DRAW!$O$40","v":12},null,null,{"$f":"DRAW!$B$40","v":34},null,null,{"$f":"DRAW!$Q$40","v":18},null,null,null,{"$f":"DRAW!$B$40","v":34},null,null,{"$f":"DRAW!$S$40","v":7}]
[null,"Team",{"$f":"DRAW!$B$40","v":34},"V","Team",{"$f":"DRAW!$D$40","v":39},null,null,"Team",{"$f":"DRAW!$B$40","v":34},"V","Team",{"$f":"DRAW!$F$40","v":41},null,null,"Team",{"$f":"DRAW!$B$40","v":34},"V","Team",{"$f":"DRAW!$H$40","v":32},null,"Team",{"$f":"DRAW!$B$40","v":34},"V","Team",{"$f":"DRAW!$J$40","v":36},null,null,"Team",{"$f":"DRAW!$B$40","v":34},"V","Team",{"$f":"DRAW!$L$40","v":37},null,null,"Team",{"$f":"DRAW!$B$40","v":34},"V","Team",{"$f":"DRAW!$N$40","v":38},null,"Team",{"$f":"DRAW!$B$40","v":34},"V","Team",{"$f":"DRAW!$P$40","v":35},null,null,"Team",{"$f":"DRAW!$B$40","v":34},"V","Team",{"$f":"DRAW!$R$40","v":42}]
["Ends","Shots","Total",null,"Shots","Total",null,"Ends","Shots","Total",null,"Shots","Total",null,"Ends","Shots","Total",null,"Shots","Total","Ends","Shots","Total",null,"Shots","Total",null,"Ends","Shots","Total",null,"Shots","Total",null,"Ends","Shots","Total",null,"Shots","Total","Ends","Shots","Total",null,"Shots","Total",null,"Ends","Shots","Total",null,"shots","Totar"]
[1,null,null,null,null,null,null,1,null,null,null,null,null,null,1,null,null,null,null,null,1,null,null,null,null,null,null,1,null,null,null,null,null,null,1,null,null,null,null,null,1,null,null,null,null,null,null,1]
[2,null,null,null,null,null,null,2,null,null,null,null,null,null,2,null,null,null,null,null,2,null,null,null,null,null,null,2,null,null,null,null,null,null,2,null,null,null,null,null,2,null,null,null,null,null,null,2]
[3,null,null,null,null,null,null,3,null,null,null,null,null,null,3,null,null,null,null,null,3,null,null,null,null,null,null,3,null,null,null,null,null,null,3,null,null,null,null,null,3,null,null,null,null,null,null,3]
[4,null,null,null,null,null,null,4,null,null,null,null,null,null,4,null,null,null,null,null,4,null,null,null,null,null,null,4,null,null,null,null,null,null,4,null,null,null,null,null,4,null,null,null,null,null,null,4]
[5,null,null,null,null,null,null,5,null,null,null,null,null,null,5,null,null,null,null,null,5,null,null,null,null,null,null,5,null,null,null,null,null,null,5,null,null,null,null,null,5,null,null,null,null,null,null,5]
[6,null,null,null,null,null,null,6,null,null,null,null,null,null,6,null,null,null,null,null,6,null,null,null,null,null,null,6,null,null,null,null,null,null,6,null,null,null,null,null,6,null,null,null,null,null,null,6]
[7,null,null,null,null,null,null,7,null,null,null,null,null,null,7,null,null,null,null,null,7,null,null,null,null,null,null,7,null,null,null,null,null,null,7,null,null,null,null,null,7,null,null,null,null,null,null,7]
[8,null,null,null,null,null,null,8,null,null,null,null,null,null,8,null,null,null,null,null,8,null,null,null,null,null,null,8,null,null,null,null,null,null,8,null,null,null,null,null,8,null,null,null,null,null,null,8]
[9,null,null,null,null,null,null,9,null,null,null,null,null,null,9,null,null,null,null,null,9,null,null,null,null,null,null,9,null,null,null,null,null,null,9,null,null,null,null,null,9,null,null,null,null,null,null,9]
[10,null,null,null,null,null,null,10,null,null,null,null,null,null,10,null,null,null,null,null,10,null,null,null,null,null,null,10,null,null,null,null,null,null,10,null,null,null,null,null,10,null,null,null,null,null,null,10]
[11,null,null,null,null,null,null,11,null,null,null,null,null,null,11,null,null,null,null,null,11,null,null,null,null,null,null,11,null,null,null,null,null,null,11,null,null,null,null,null,11,null,null,null,null,null,null,11]
[12,null,null,null,null,null,null,12,null,null,null,null,null,null,12,null,null,null,null,null,12,null,null,null,null,null,null,12,null,null,null,null,null,null,12,null,null,null,null,null,12,null,null,null,null,null,null,12]
[13,null,null,null,null,null,null,13,null,null,null,null,null,null,13,null,null,null,null,null,13,null,null,null,null,null,null,13,null,null,null,null,null,null,13,null,null,null,null,null,13,null,null,null,null,null,null,13]
[14,null,null,null,null,null,null,14,null,null,null,null,null,null,14,null,null,null,null,null,14,null,null,null,null,null,null,14,null,null,null,null,null,null,14,null,null,null,null,null,14,null,null,null,null,null,null,14]
[15,null,null,null,null,null,null,15,null,null,null,null,null,null,15,null,null,null,null,null,15,null,null,null,null,null,null,15,null,null,null,null,null,null,15,null,null,null,null,null,15,null,null,null,null,null,null,15]
[16,null,null,null,null,null,null,16,null,null,null,null,null,null,16,null,null,null,null,null,16,null,null,null,null,null,null,16,null,null,null,null,null,null,16,null,null,null,null,null,16,null,null,null,null,null,null,16]
[17,null,null,null,null,null,null,17,null,null,null,null,null,null,17,null,null,null,null,null,17,null,null,null,null,null,null,17,null,null,null,null,null,null,17,null,null,null,null,null,17,null,null,null,null,null,null,17]
[18,null,null,null,null,null,null,18,null,null,null,null,null,null,18,null,null,null,null,null,18,null,null,null,null,null,null,18,null,null,null,null,null,null,18,null,null,null,null,null,18,null,null,null,null,null,null,18]
["Total","Shots",null,null,"Shots",null,null,"Total","Shots",null,null,"Shots",null,null,"Total","Shots",null,null,"Shots",null,"Total","Shots",null,null,"Shots",null,null,"Total","Shots",null,null,"Shots",null,null,"Total","Shots",null,null,"Shots",null,"Total","Shots",null,null,"Shots",null,null,"Total","Shots",null,null,"shots"]
[null,"Ends",null,null,"Ends",null,null,null,"Ends",null,null,"Ends",null,null,null,"Ends",null,null,"Ends",null,null,"Ends",null,null,"Ends",null,null,null,"Ends",null,null,"Ends",null,null,null,"Ends",null,null,"Ends",null,null,"Ends",null,null,"Ends",null,null,null,"Ends",null,null,"Ends"]
["1st Game ",null,null,null,null,null,null,"2nd Game ",null,null,null,null,null,null,"3rd Game ",null,null,null,null,null,"4th Game",null,null,null,null,null,null,"5th Game",null,null,null,null,null,null,"6th Game",null,null,null,null,null,"7th Game",null,null,null,null,null,null,"8th Game"]
["Team No",null,null,"Rink No",null,null,null,"Team No",null,null,"Rink No",null,null,null,"Team No",null,null,"Rink No",null,null,"Team No",null,null,"Rink No",null,null,null,"Team No",null,null,"Rink No",null,null,null,"Team No",null,null,"Rink No",null,null,"Team No",null,null,"Rink No",null,null,null,"Team No",null,null,"Rink No"]
[]
[{"$f":"DRAW!$B$41","v":35},null,null,{"$f":"DRAW!$E$41","v":20},null,null,null,{"$f":"DRAW!$B$41","v":35},null,null,{"$f":"DRAW!$G$41","v":2},null,null,null,{"$f":"DRAW!$B$41","v":35},null,null,{"$f":"DRAW!$I$41","v":8},null,null,{"$f":"DRAW!$B$41","v":35},null,null,{"$f":"DRAW!$K$41","v":16},null,null,null,{"$f":"DRAW!$B$41","v":35},null,null,{"$f":"DRAW!$M$41","v":4},null,null,null,{"$f":"DRAW!$B$41","v":35},null,null,{"$f":"DRAW!$O$41","v":14},null,null,{"$f":"DRAW!$B$41","v":35},null,null,{"$f":"DRAW!$Q$41","v":18},null,null,null,{"$f":"DRAW!$B$41","v":35},null,null,{"$f":"DRAW!$S$41","v":3}]
[null,"Team",{"$f":"DRAW!$B$41","v":35},"V","Team",{"$f":"DRAW!$D$41","v":38},null,null,"Team",{"$f":"DRAW!$B$41","v":35},"V","Team",{"$f":"DRAW!$F$41","v":40},null,null,"Team",{"$f":"DRAW!$B$41","v":35},"V","Team",{"$f":"DRAW!$H$41","v":31},null,"Team",{"$f":"DRAW!$B$41","v":35},"V","Team",{"$f":"DRAW!$J$41","v":29},null,null,"Team",{"$f":"DRAW!$B$41","v":35},"V","Team",{"$f":"DRAW!$L$41","v":36},null,null,"Team",{"$f":"DRAW!$B$41","v":35},"V","Team",{"$f":"DRAW!$N$41","v":37},null,"Team",{"$f":"DRAW!$B$41","v":35},"V","Team",{"$f":"DRAW!$P$41","v":34},null,null,"Team",{"$f":"DRAW!$B$41","v":35},"V","Team",{"$f":"DRAW!$R$41","v":41}]
["Ends","Shots","Total",null,"Shots","Total",null,"Ends","Shots","Total",null,"Shots","Total",null,"Ends","Shots","Total",null,"Shots","Total","Ends","Shots","Total",null,"Shots","Total",null,"Ends","Shots","Total",null,"Shots","Total",null,"Ends","Shots","Total",null,"Shots","Total","Ends","Shots","Total",null,"Shots","Total",null,"Ends","Shots","Total",null,"shots","Totar"]
[1,null,null,null,null,null,null,1,null,null,null,null,null,null,1,null,null,null,null,null,1,null,null,null,null,null,null,1,null,null,null,null,null,null,1,null,null,null,null,null,1,null,null,null,null,null,null,1]
[2,null,null,null,null,null,null,2,null,null,null,null,null,null,2,null,null,null,null,null,2,null,null,null,null,null,null,2,null,null,null,null,null,null,2,null,null,null,null,null,2,null,null,null,null,null,null,2]
[3,null,null,null,null,null,null,3,null,null,null,null,null,null,3,null,null,null,null,null,3,null,null,null,null,null,null,3,null,null,null,null,null,null,3,null,null,null,null,null,3,null,null,null,null,null,null,3]
[4,null,null,null,null,null,null,4,null,null,null,null,null,null,4,null,null,null,null,null,4,null,null,null,null,null,null,4,null,null,null,null,null,null,4,null,null,null,null,null,4,null,null,null,null,null,null,4]
[5,null,null,null,null,null,null,5,null,null,null,null,null,null,5,null,null,null,null,null,5,null,null,null,null,null,null,5,null,null,null,null,null,null,5,null,null,null,null,null,5,null,null,null,null,null,null,5]
[6,null,null,null,null,null,null,6,null,null,null,null,null,null,6,null,null,null,null,null,6,null,null,null,null,null,null,6,null,null,null,null,null,null,6,null,null,null,null,null,6,null,null,null,null,null,null,6]
[7,null,null,null,null,null,null,7,null,null,null,null,null,null,7,null,null,null,null,null,7,null,null,null,null,null,null,7,null,null,null,null,null,null,7,null,null,null,null,null,7,null,null,null,null,null,null,7]
[8,null,null,null,null,null,null,8,null,null,null,null,null,null,8,null,null,null,null,null,8,null,null,null,null,null,null,8,null,null,null,null,null,null,8,null,null,null,null,null,8,null,null,null,null,null,null,8]
[9,null,null,null,null,null,null,9,null,null,null,null,null,null,9,null,null,null,null,null,9,null,null,null,null,null,null,9,null,null,null,null,null,null,9,null,null,null,null,null,9,null,null,null,null,null,null,9]
[10,null,null,null,null,null,null,10,null,null,null,null,null,null,10,null,null,null,null,null,10,null,null,null,null,null,null,10,null,null,null,null,null,null,10,null,null,null,null,null,10,null,null,null,null,null,null,10]
[11,null,null,null,null,null,null,11,null,null,null,null,null,null,11,null,null,null,null,null,11,null,null,null,null,null,null,11,null,null,null,null,null,null,11,null,null,null,null,null,11,null,null,null,null,null,null,11]
[12,null,null,null,null,null,null,12,null,null,null,null,null,null,12,null,null,null,null,null,12,null,null,null,null,null,null,12,null,null,null,null,null,null,12,null,null,null,null,null,12,null,null,null,null,null,null,12]
[13,null,null,null,null,null,null,13,null,null,null,null,null,null,13,null,null,null,null,null,13,null,null,null,null,null,null,13,null,null,null,null,null,null,13,null,null,null,null,null,13,null,null,null,null,null,null,13]
[14,null,null,null,null,null,null,14,null,null,null,null,null,null,14,null,null,null,null,null,14,null,null,null,null,null,null,14,null,null,null,null,null,null,14,null,null,null,null,null,14,null,null,null,null,null,null,14]
[15,null,null,null,null,null,null,15,null,null,null,null,null,null,15,null,null,null,null,null,15,null,null,null,null,null,null,15,null,null,null,null,null,null,15,null,null,null,null,null,15,null,null,null,null,null,null,15]
[16,null,null,null,null,null,null,16,null,null,null,null,null,null,16,null,null,null,null,null,16,null,null,null,null,null,null,16,null,null,null,null,null,null,16,null,null,null,null,null,16,null,null,null,null,null,null,16]
[17,null,null,null,null,null,null,17,null,null,null,null,null,null,17,null,null,null,null,null,17,null,null,null,null,null,null,17,null,null,null,null,null,null,17,null,null,null,null,null,17,null,null,null,null,null,null,17]
[18,null,null,null,null,null,null,18,null,null,null,null,null,null,18,null,null,null,null,null,18,null,null,null,null,null,null,18,null,null,null,null,null,null,18,null,null,null,null,null,18,null,null,null,null,null,null,18]
["Total","Shots",null,null,"Shots",null,null,"Total","Shots",null,null,"Shots",null,null,"Total","Shots",null,null,"Shots",null,"Total","Shots",null,null,"Shots",null,null,"Total","Shots",null,null,"Shots",null,null,"Total","Shots",null,null,"Shots",null,"Total","Shots",null,null,"Shots",null,null,"Total","Shots",null,null,"shots"]
[null,"Ends",null,null,"Ends",null,null,null,"Ends",null,null,"Ends",null,null,null,"Ends",null,null,"Ends",null,null,"Ends",null,null,"Ends",null,null,null,"Ends",null,null,"Ends",null,null,null,"Ends",null,null,"Ends",null,null,"Ends",null,null,"Ends",null,null,null,"Ends",null,null,"Ends"]
[]
[]
["1st Game ",null,null,null,null,null,null,"2nd Game ",null,null,null,null,null,null,"3rd Game ",null,null,null,null,null,"4th Game",null,null,null,null,null,null,"5th Game",null,null,null,null,null,null,"6th Game",null,null,null,null,null,"7th Game",null,null,null,null,null,null,"8th Game"]
["Team No",null,null,"Rink No",null,null,null,"Team No",null,null,"Rink No",null,null,null,"Team No",null,null,"Rink No",null,null,"Team No",null,null,"Rink No",null,null,null,"Team No",null,null,"Rink No",null,null,null,"Team No",null,null,"Rink No",null,null,"Team No",null,null,"Rink No",null,null,null,"Team No",null,null,"Rink No"]
[]
[{"$f":"DRAW!$B$42","v":36},null,null,{"$f":"DRAW!$E$42","v":21},null,null,null,{"$f":"DRAW!$B$42","v":36},null,null,{"$f":"DRAW!$G$42","v":3},null,null,null,{"$f":"DRAW!$B$42","v":36},null,null,{"$f":"DRAW!$I$42","v":9},null,null,{"$f":"DRAW!$B$42","v":36},null,null,{"$f":"DRAW!$K$42","v":15},null,null,null,{"$f":"DRAW!$B$42","v":36},null,null,{"$f":"DRAW!$M$42","v":4},null,null,null,{"$f":"DRAW!$B$42","v":36},null,null,{"$f":"DRAW!$O$42","v":13},null,null,{"$f":"DRAW!$B$42","v":36},null,null,{"$f":"DRAW!$Q$42","v":20},null,null,null,{"$f":"DRAW!$B$42","v":36},null,null,{"$f":"DRAW!$S$42","v":1}]
[null,"Team",{"$f":"DRAW!$B$42","v":36},"V","Team",{"$f":"DRAW!$D$42","v":37},null,null,"Team",{"$f":"DRAW!$B$42","v":36},"V","Team",{"$f":"DRAW!$F$42","v":39},null,null,"Team",{"$f":"DRAW!$B$42","v":36},"V","Team",{"$f":"DRAW!$H$42","v":30},null,"Team",{"$f":"DRAW!$B$42","v":36},"V","Team",{"$f":"DRAW!$J$42","v":34},null,null,"Team",{"$f":"DRAW!$B$42","v":36},"V","Team",{"$f":"DRAW!$L$42","v":35},null,null,"Team",{"$f":"DRAW!$B$42","v":36},"V","Team",{"$f":"DRAW!$N$42","v":32},null,"Team",{"$f":"DRAW!$B$42","v":36},"V","Team",{"$f":"DRAW!$P$42","v":33},null,null,"Team",{"$f":"DRAW!$B$42","v":36},"V","Team",{"$f":"DRAW!$R$42","v":29}]
["Ends","Shots","Total",null,"Shots","Total",null,"Ends","Shots","Total",null,"Shots","Total",null,"Ends","Shots","Total",null,"Shots","Total","Ends","Shots","Total",null,"Shots","Total",null,"Ends","Shots","Total",null,"Shots","Total",null,"Ends","Shots","Total",null,"Shots","Total","Ends","Shots","Total",null,"Shots","Total",null,"Ends","Shots","Total",null,"shots","Totar"]
[1,null,null,null,null,null,null,1,null,null,null,null,null,null,1,null,null,null,null,null,1,null,null,null,null,null,null,1,null,null,null,null,null,null,1,null,null,null,null,null,1,null,null,null,null,null,null,1]
[2,null,null,null,null,null,null,2,null,null,null,null,null,null,2,null,null,null,null,null,2,null,null,null,null,null,null,2,null,null,null,null,null,null,2,null,null,null,null,null,2,null,null,null,null,null,null,2]
[3,null,null,null,null,null,null,3,null,null,null,null,null,null,3,null,null,null,null,null,3,null,null,null,null,null,null,3,null,null,null,null,null,null,3,null,null,null,null,null,3,null,null,null,null,null,null,3]
[4,null,null,null,null,null,null,4,null,null,null,null,null,null,4,null,null,null,null,null,4,null,null,null,null,null,null,4,null,null,null,null,null,null,4,null,null,null,null,null,4,null,null,null,null,null,null,4]
[5,null,null,null,null,null,null,5,null,null,null,null,null,null,5,null,null,null,null,null,5,null,null,null,null,null,null,5,null,null,null,null,null,null,5,null,null,null,null,null,5,null,null,null,null,null,null,5]
[6,null,null,null,null,null,null,6,null,null,null,null,null,null,6,null,null,null,null,null,6,null,null,null,null,null,null,6,null,null,null,null,null,null,6,null,null,null,null,null,6,null,null,null,null,null,null,6]
[7,null,null,null,null,null,null,7,null,null,null,null,null,null,7,null,null,null,null,null,7,null,null,null,null,null,null,7,null,null,null,null,null,null,7,null,null,null,null,null,7,null,null,null,null,null,null,7]
[8,null,null,null,null,null,null,8,null,null,null,null,null,null,8,null,null,null,null,null,8,null,null,null,null,null,null,8,null,null,null,null,null,null,8,null,null,null,null,null,8,null,null,null,null,null,null,8]
[9,null,null,null,null,null,null,9,null,null,null,null,null,null,9,null,null,null,null,null,9,null,null,null,null,null,null,9,null,null,null,null,null,null,9,null,null,null,null,null,9,null,null,null,null,null,null,9]
[10,null,null,null,null,null,null,10,null,null,null,null,null,null,10,null,null,null,null,null,10,null,null,null,null,null,null,10,null,null,null,null,null,null,10,null,null,null,null,null,10,null,null,null,null,null,null,10]
[11,null,null,null,null,null,null,11,null,null,null,null,null,null,11,null,null,null,null,null,11,null,null,null,null,null,null,11,null,null,null,null,null,null,11,null,null,null,null,null,11,null,null,null,null,null,null,11]
[12,null,null,null,null,null,null,12,null,null,null,null,null,null,12,null,null,null,null,null,12,null,null,null,null,null,null,12,null,null,null,null,null,null,12,null,null,null,null,null,12,null,null,null,null,null,null,12]
[13,null,null,null,null,null,null,13,null,null,null,null,null,null,13,null,null,null,null,null,13,null,null,null,null,null,null,13,null,null,null,null,null,null,13,null,null,null,null,null,13,null,null,null,null,null,null,13]
[14,null,null,null,null,null,null,14,null,null,null,null,null,null,14,null,null,null,null,null,14,null,null,null,null,null,null,14,null,null,null,null,null,null,14,null,null,null,null,null,14,null,null,null,null,null,null,14]
[15,null,null,null,null,null,null,15,null,null,null,null,null,null,15,null,null,null,null,null,15,null,null,null,null,null,null,15,null,null,null,null,null,null,15,null,null,null,null,null,15,null,null,null,null,null,null,15]
[16,null,null,null,null,null,null,16,null,null,null,null,null,null,16,null,null,null,null,null,16,null,null,null,null,null,null,16,null,null,null,null,null,null,16,null,null,null,null,null,16,null,null,null,null,null,null,16]
[17,null,null,null,null,null,null,17,null,null,null,null,null,null,17,null,null,null,null,null,17,null,null,null,null,null,null,17,null,null,null,null,null,null,17,null,null,null,null,null,17,null,null,null,null,null,null,17]
[18,null,null,null,null,null,null,18,null,null,null,null,null,null,18,null,null,null,null,null,18,null,null,null,null,null,null,18,null,null,null,null,null,null,18,null,null,null,null,null,18,null,null,null,null,null,null,18]
["Total","Shots",null,null,"Shots",null,null,"Total","Shots",null,null,"Shots",null,null,"Total","Shots",null,null,"Shots",null,"Total","Shots",null,null,"Shots",null,null,"Total","Shots",null,null,"Shots",null,null,"Total","Shots",null,null,"Shots",null,"Total","Shots",null,null,"Shots",null,null,"Total","Shots",null,null,"shots"]
[null,"Ends",null,null,"Ends",null,null,null,"Ends",null,null,"Ends",null,null,null,"Ends",null,null,"Ends",null,null,"Ends",null,null,"Ends",null,null,null,"Ends",null,null,"Ends",null,null,null,"Ends",null,null,"Ends",null,null,"Ends",null,null,"Ends",null,null,null,"Ends",null,null,"Ends"]
["1st Game ",null,null,null,null,null,null,"2nd Game ",null,null,null,null,null,null,"3rd Game ",null,null,null,null,null,"4th Game",null,null,null,null,null,null,"5th Game",null,null,null,null,null,null,"6th Game",null,null,null,null,null,"7th Game",null,null,null,null,null,null,"8th Game"]
["Team No",null,null,"Rink No",null,null,null,"Team No",null,null,"Rink No",null,null,null,"Team No",null,null,"Rink No",null,null,"Team No",null,null,"Rink No",null,null,null,"Team No",null,null,"Rink No",null,null,null,"Team No",null,null,"Rink No",null,null,"Team No",null,null,"Rink No",null,null,null,"Team No",null,null,"Rink No"]
[]
[{"$f":"DRAW!$B$43","v":37},null,null,{"$f":"DRAW!$E$43","v":21},null,null,null,{"$f":"DRAW!$B$43","v":37},null,null,{"$f":"DRAW!$G$43","v":4},null,null,null,{"$f":"DRAW!$B$43","v":37},null,null,{"$f":"DRAW!$I$43","v":10},null,null,{"$f":"DRAW!$B$43","v":37},null,null,{"$f":"DRAW!$K$43","v":17},null,null,null,{"$f":"DRAW!$B$43","v":37},null,null,{"$f":"DRAW!$M$43","v":6},null,null,null,{"$f":"DRAW!$B$43","v":37},null,null,{"$f":"DRAW!$O$43","v":14},null,null,{"$f":"DRAW!$B$43","v":37},null,null,{"$f":"DRAW!$Q$43","v":16},null,null,null,{"$f":"DRAW!$B$43","v":37},null,null,{"$f":"DRAW!$S$43","v":5}]
[null,"Team",{"$f":"DRAW!$B$43","v":37},"V","Team",{"$f":"DRAW!$D$43","v":36},null,null,"Team",{"$f":"DRAW!$B$43","v":37},"V","Team",{"$f":"DRAW!$F$43","v":38},null,null,"Team",{"$f":"DRAW!$B$43","v":37},"V","Team",{"$f":"DRAW!$H$43","v":42},null,"Team",{"$f":"DRAW!$B$43","v":37},"V","Team",{"$f":"DRAW!$J$43","v":33},null,null,"Team",{"$f":"DRAW!$B$43","v":37},"V","Team",{"$f":"DRAW!$L$43","v":34},null,null,"Team",{"$f":"DRAW!$B$43","v":37},"V","Team",{"$f":"DRAW!$N$43","v":35},null,"Team",{"$f":"DRAW!$B$43","v":37},"V","Team",{"$f":"DRAW!$P$43","v":30},null,null,"Team",{"$f":"DRAW!$B$43","v":37},"V","Team",{"$f":"DRAW!$R$43","v":39}]
["Ends","Shots","Total",null,"Shots","Total",null,"Ends","Shots","Total",null,"Shots","Total",null,"Ends","Shots","Total",null,"Shots","Total","Ends","Shots","Total",null,"Shots","Total",null,"Ends","Shots","Total",null,"Shots","Total",null,"Ends","Shots","Total",null,"Shots","Total","Ends","Shots","Total",null,"Shots","Total",null,"Ends","Shots","Total",null,"shots","Totar"]
[1,null,null,null,null,null,null,1,null,null,null,null,null,null,1,null,null,null,null,null,1,null,null,null,null,null,null,1,null,null,null,null,null,null,1,null,null,null,null,null,1,null,null,null,null,null,null,1]
[2,null,null,null,null,null,null,2,null,null,null,null,null,null,2,null,null,null,null,null,2,null,null,null,null,null,null,2,null,null,null,null,null,null,2,null,null,null,null,null,2,null,null,null,null,null,null,2]
[3,null,null,null,null,null,null,3,null,null,null,null,null,null,3,null,null,null,null,null,3,null,null,null,null,null,null,3,null,null,null,null,null,null,3,null,null,null,null,null,3,null,null,null,null,null,null,3]
[4,null,null,null,null,null,null,4,null,null,null,null,null,null,4,null,null,null,null,null,4,null,null,null,null,null,null,4,null,null,null,null,null,null,4,null,null,null,null,null,4,null,null,null,null,null,null,4]
[5,null,null,null,null,null,null,5,null,null,null,null,null,null,5,null,null,null,null,null,5,null,null,null,null,null,null,5,null,null,null,null,null,null,5,null,null,null,null,null,5,null,null,null,null,null,null,5]
[6,null,null,null,null,null,null,6,null,null,null,null,null,null,6,null,null,null,null,null,6,null,null,null,null,null,null,6,null,null,null,null,null,null,6,null,null,null,null,null,6,null,null,null,null,null,null,6]
[7,null,null,null,null,null,null,7,null,null,null,null,null,null,7,null,null,null,null,null,7,null,null,null,null,null,null,7,null,null,null,null,null,null,7,null,null,null,null,null,7,null,null,null,null,null,null,7]
[8,null,null,null,null,null,null,8,null,null,null,null,null,null,8,null,null,null,null,null,8,null,null,null,null,null,null,8,null,null,null,null,null,null,8,null,null,null,null,null,8,null,null,null,null,null,null,8]
[9,null,null,null,null,null,null,9,null,null,null,null,null,null,9,null,null,null,null,null,9,null,null,null,null,null,null,9,null,null,null,null,null,null,9,null,null,null,null,null,9,null,null,null,null,null,null,9]
[10,null,null,null,null,null,null,10,null,null,null,null,null,null,10,null,null,null,null,null,10,null,null,null,null,null,null,10,null,null,null,null,null,null,10,null,null,null,null,null,10,null,null,null,null,null,null,10]
[11,null,null,null,null,null,null,11,null,null,null,null,null,null,11,null,null,null,null,null,11,null,null,null,null,null,null,11,null,null,null,null,null,null,11,null,null,null,null,null,11,null,null,null,null,null,null,11]
[12,null,null,null,null,null,null,12,null,null,null,null,null,null,12,null,null,null,null,null,12,null,null,null,null,null,null,12,null,null,null,null,null,null,12,null,null,null,null,null,12,null,null,null,null,null,null,12]
[13,null,null,null,null,null,null,13,null,null,null,null,null,null,13,null,null,null,null,null,13,null,null,null,null,null,null,13,null,null,null,null,null,null,13,null,null,null,null,null,13,null,null,null,null,null,null,13]
[14,null,null,null,null,null,null,14,null,null,null,null,null,null,14,null,null,null,null,null,14,null,null,null,null,null,null,14,null,null,null,null,null,null,14,null,null,null,null,null,14,null,null,null,null,null,null,14]
[15,null,null,null,null,null,null,15,null,null,null,null,null,null,15,null,null,null,null,null,15,null,null,null,null,null,null,15,null,null,null,null,null,null,15,null,null,null,null,null,15,null,null,null,null,null,null,15]
[16,null,null,null,null,null,null,16,null,null,null,null,null,null,16,null,null,null,null,null,16,null,null,null,null,null,null,16,null,null,null,null,null,null,16,null,null,null,null,null,16,null,null,null,null,null,null,16]
[17,null,null,null,null,null,null,17,null,null,null,null,null,null,17,null,null,null,null,null,17,null,null,null,null,null,null,17,null,null,null,null,null,null,17,null,null,null,null,null,17,null,null,null,null,null,null,17]
[18,null,null,null,null,null,null,18,null,null,null,null,null,null,18,null,null,null,null,null,18,null,null,null,null,null,null,18,null,null,null,null,null,null,18,null,null,null,null,null,18,null,null,null,null,null,null,18]
["Total","Shots",null,null,"Shots",null,null,"Total","Shots",null,null,"Shots",null,null,"Total","Shots",null,null,"Shots",null,"Total","Shots",null,null,"Shots",null,null,"Total","Shots",null,null,"Shots",null,null,"Total","Shots",null,null,"Shots",null,"Total","Shots",null,null,"Shots",null,null,"Total","Shots",null,null,"shots"]
[null,"Ends",null,null,"Ends",null,null,null,"Ends",null,null,"Ends",null,null,null,"Ends",null,null,"Ends",null,null,"Ends",null,null,"Ends",null,null,null,"Ends",null,null,"Ends",null,null,null,"Ends",null,null,"Ends",null,null,"Ends",null,null,"Ends",null,null,null,"Ends",null,null,"Ends"]
[]
[]
["1st Game ",null,null,null,null,null,null,"2nd Game ",null,null,null,null,null,null,"3rd Game ",null,null,null,null,null,"4th Game",null,null,null,null,null,null,"5th Game",null,null,null,null,null,null,"6th Game",null,null,null,null,null,"7th Game",null,null,null,null,null,null,"8th Game"]
["Team No",null,null,"Rink No",null,null,null,"Team No",null,null,"Rink No",null,null,null,"Team No",null,null,"Rink No",null,null,"Team No",null,null,"Rink No",null,null,null,"Team No",null,null,"Rink No",null,null,null,"Team No",null,null,"Rink No",null,null,"Team No",null,null,"Rink No",null,null,null,"Team No",null,null,"Rink No"]
[]
[{"$f":"DRAW!$B$44","v":38},null,null,{"$f":"DRAW!$E$44","v":20},null,null,null,{"$f":"DRAW!$B$44","v":38},null,null,{"$f":"DRAW!$G$44","v":4},null,null,null,{"$f":"DRAW!$B$44","v":38},null,null,{"$f":"DRAW!$I$44","v":13},null,null,{"$f":"DRAW!$B$44","v":38},null,null,{"$f":"DRAW!$K$44","v":21},null,null,null,{"$f":"DRAW!$B$44","v":38},null,null,{"$f":"DRAW!$M$44","v":5},null,null,null,{"$f":"DRAW!$B$44","v":38},null,null,{"$f":"DRAW!$O$44","v":12},null,null,{"$f":"DRAW!$B$44","v":38},null,null,{"$f":"DRAW!$Q$44","v":15},null,null,null,{"$f":"DRAW!$B$44","v":38},null,null,{"$f":"DRAW!$S$44","v":6}]
[null,"Team",{"$f":"DRAW!$B$44","v":38},"V","Team",{"$f":"DRAW!$D$44","v":35},null,null,"Team",{"$f":"DRAW!$B$44","v":38},"V","Team",{"$f":"DRAW!$F$44","v":37},null,null,"Team",{"$f":"DRAW!$B$44","v":38},"V","Team",{"$f":"DRAW!$H$44","v":41},null,"Team",{"$f":"DRAW!$B$44","v":38},"V","Team",{"$f":"DRAW!$J$44","v":32},null,null,"Team",{"$f":"DRAW!$B$44","v":38},"V","Team",{"$f":"DRAW!$L$44","v":33},null,null,"Team",{"$f":"DRAW!$B$44","v":38},"V","Team",{"$f":"DRAW!$N$44","v":34},null,"Team",{"$f":"DRAW!$B$44","v":38},"V","Team",{"$f":"DRAW!$P$44","v":31},null,null,"Team",{"$f":"DRAW!$B$44","v":38},"V","Team",{"$f":"DRAW!$R$44","v":40}]
["Ends","Shots","Total",null,"Shots","Total",null,"Ends","Shots","Total",null,"Shots","Total",null,"Ends","Shots","Total",null,"Shots","Total","Ends","Shots","Total",null,"Shots","Total",null,"Ends","Shots","Total",null,"Shots","Total",null,"Ends","Shots","Total",null,"Shots","Total","Ends","Shots","Total",null,"Shots","Total",null,"Ends","Shots","Total",null,"shots","Totar"]
[1,null,null,null,null,null,null,1,null,null,null,null,null,null,1,null,null,null,null,null,1,null,null,null,null,null,null,1,null,null,null,null,null,null,1,null,null,null,null,null,1,null,null,null,null,null,null,1]
[2,null,null,null,null,null,null,2,null,null,null,null,null,null,2,null,null,null,null,null,2,null,null,null,null,null,null,2,null,null,null,null,null,null,2,null,null,null,null,null,2,null,null,null,null,null,null,2]
[3,null,null,null,null,null,null,3,null,null,null,null,null,null,3,null,null,null,null,null,3,null,null,null,null,null,null,3,null,null,null,null,null,null,3,null,null,null,null,null,3,null,null,null,null,null,null,3]
[4,null,null,null,null,null,null,4,null,null,null,null,null,null,4,null,null,null,null,null,4,null,null,null,null,null,null,4,null,null,null,null,null,null,4,null,null,null,null,null,4,null,null,null,null,null,null,4]
[5,null,null,null,null,null,null,5,null,null,null,null,null,null,5,null,null,null,null,null,5,null,null,null,null,null,null,5,null,null,null,null,null,null,5,null,null,null,null,null,5,null,null,null,null,null,null,5]
[6,null,null,null,null,null,null,6,null,null,null,null,null,null,6,null,null,null,null,null,6,null,null,null,null,null,null,6,null,null,null,null,null,null,6,null,null,null,null,null,6,null,null,null,null,null,null,6]
[7,null,null,null,null,null,null,7,null,null,null,null,null,null,7,null,null,null,null,null,7,null,null,null,null,null,null,7,null,null,null,null,null,null,7,null,null,null,null,null,7,null,null,null,null,null,null,7]
[8,null,null,null,null,null,null,8,null,null,null,null,null,null,8,null,null,null,null,null,8,null,null,null,null,null,null,8,null,null,null,null,null,null,8,null,null,null,null,null,8,null,null,null,null,null,null,8]
[9,null,null,null,null,null,null,9,null,null,null,null,null,null,9,null,null,null,null,null,9,null,null,null,null,null,null,9,null,null,null,null,null,null,9,null,null,null,null,null,9,null,null,null,null,null,null,9]
[10,null,null,null,null,null,null,10,null,null,null,null,null,null,10,null,null,null,null,null,10,null,null,null,null,null,null,10,null,null,null,null,null,null,10,null,null,null,null,null,10,null,null,null,null,null,null,10]
[11,null,null,null,null,null,null,11,null,null,null,null,null,null,11,null,null,null,null,null,11,null,null,null,null,null,null,11,null,null,null,null,null,null,11,null,null,null,null,null,11,null,null,null,null,null,null,11]
[12,null,null,null,null,null,null,12,null,null,null,null,null,null,12,null,null,null,null,null,12,null,null,null,null,null,null,12,null,null,null,null,null,null,12,null,null,null,null,null,12,null,null,null,null,null,null,12]
[13,null,null,null,null,null,null,13,null,null,null,null,null,null,13,null,null,null,null,null,13,null,null,null,null,null,null,13,null,null,null,null,null,null,13,null,null,null,null,null,13,null,null,null,null,null,null,13]
[14,null,null,null,null,null,null,14,null,null,null,null,null,null,14,null,null,null,null,null,14,null,null,null,null,null,null,14,null,null,null,null,null,null,14,null,null,null,null,null,14,null,null,null,null,null,null,14]
[15,null,null,null,null,null,null,15,null,null,null,null,null,null,15,null,null,null,null,null,15,null,null,null,null,null,null,15,null,null,null,null,null,null,15,null,null,null,null,null,15,null,null,null,null,null,null,15]
[16,null,null,null,null,null,null,16,null,null,null,null,null,null,16,null,null,null,null,null,16,null,null,null,null,null,null,16,null,null,null,null,null,null,16,null,null,null,null,null,16,null,null,null,null,null,null,16]
[17,null,null,null,null,null,null,17,null,null,null,null,null,null,17,null,null,null,null,null,17,null,null,null,null,null,null,17,null,null,null,null,null,null,17,null,null,null,null,null,17,null,null,null,null,null,null,17]
[18,null,null,null,null,null,null,18,null,null,null,null,null,null,18,null,null,null,null,null,18,null,null,null,null,null,null,18,null,null,null,null,null,null,18,null,null,null,null,null,18,null,null,null,null,null,null,18]
["Total","Shots",null,null,"Shots",null,null,"Total","Shots",null,null,"Shots",null,null,"Total","Shots",null,null,"Shots",null,"Total","Shots",null,null,"Shots",null,null,"Total","Shots",null,null,"Shots",null,null,"Total","Shots",null,null,"Shots",null,"Total","Shots",null,null,"Shots",null,null,"Total","Shots",null,null,"shots"]
[null,"Ends",null,null,"Ends",null,null,null,"Ends",null,null,"Ends",null,null,null,"Ends",null,null,"Ends",null,null,"Ends",null,null,"Ends",null,null,null,"Ends",null,null,"Ends",null,null,null,"Ends",null,null,"Ends",null,null,"Ends",null,null,"Ends",null,null,null,"Ends",null,null,"Ends"]
["1st Game ",null,null,null,null,null,null,"2nd Game ",null,null,null,null,null,null,"3rd Game ",null,null,null,null,null,"4th Game",null,null,null,null,null,null,"5th Game",null,null,null,null,null,null,"6th Game",null,null,null,null,null,"7th Game",null,null,null,null,null,null,"8th Game"]
["Team No",null,null,"Rink No",null,null,null,"Team No",null,null,"Rink No",null,null,null,"Team No",null,null,"Rink No",null,null,"Team No",null,null,"Rink No",null,null,null,"Team No",null,null,"Rink No",null,null,null,"Team No",null,null,"Rink No",null,null,"Team No",null,null,"Rink No",null,null,null,"Team No",null,null,"Rink No"]
[]
[{"$f":"DRAW!$B$45","v":39},null,null,{"$f":"DRAW!$E$45","v":19},null,null,null,{"$f":"DRAW!$B$45","v":39},null,null,{"$f":"DRAW!$G$45","v":3},null,null,null,{"$f":"DRAW!$B$45","v":39},null,null,{"$f":"DRAW!$I$45","v":14},null,null,{"$f":"DRAW!$B$45","v":39},null,null,{"$f":"DRAW!$K$45","v":18},null,null,null,{"$f":"DRAW!$B$45","v":39},null,null,{"$f":"DRAW!$M$45","v":2},null,null,null,{"$f":"DRAW!$B$45","v":39},null,null,{"$f":"DRAW!$O$45","v":8},null,null,{"$f":"DRAW!$B$45","v":39},null,null,{"$f":"DRAW!$Q$45","v":17},null,null,null,{"$f":"DRAW!$B$45","v":39},null,null,{"$f":"DRAW!$S$45","v":5}]
[null,"Team",{"$f":"DRAW!$B$45","v":39},"V","Team",{"$f":"DRAW!$D$45","v":34},null,null,"Team",{"$f":"DRAW!$B$45","v":39},"V","Team",{"$f":"DRAW!$F$45","v":36},null,null,"Team",{"$f":"DRAW!$B$45","v":39},"V","Team",{"$f":"DRAW!$H$45","v":40},null,"Team",{"$f":"DRAW!$B$45","v":39},"V","Team",{"$f":"DRAW!$J$45","v":31},null,null,"Team",{"$f":"DRAW!$B$45","v":39},"V","Team",{"$f":"DRAW!$L$45","v":32},null,null,"Team",{"$f":"DRAW!$B$45","v":39},"V","Team",{"$f":"DRAW!$N$45","v":33},null,"Team",{"$f":"DRAW!$B$45","v":39},"V","Team",{"$f":"DRAW!$P$45","v":42},null,null,"Team",{"$f":"DRAW!$B$45","v":39},"V","Team",{"$f":"DRAW!$R$45","v":37}]
["Ends","Shots","Total",null,"Shots","Total",null,"Ends","Shots","Total",null,"Shots","Total",null,"Ends","Shots","Total",null,"Shots","Total","Ends","Shots","Total",null,"Shots","Total",null,"Ends","Shots","Total",null,"Shots","Total",null,"Ends","Shots","Total",null,"Shots","Total","Ends","Shots","Total",null,"Shots","Total",null,"Ends","Shots","Total",null,"shots","Totar"]
[1,null,null,null,null,null,null,1,null,null,null,null,null,null,1,null,null,null,null,null,1,null,null,null,null,null,null,1,null,null,null,null,null,null,1,null,null,null,null,null,1,null,null,null,null,null,null,1]
[2,null,null,null,null,null,null,2,null,null,null,null,null,null,2,null,null,null,null,null,2,null,null,null,null,null,null,2,null,null,null,null,null,null,2,null,null,null,null,null,2,null,null,null,null,null,null,2]
[3,null,null,null,null,null,null,3,null,null,null,null,null,null,3,null,null,null,null,null,3,null,null,null,null,null,null,3,null,null,null,null,null,null,3,null,null,null,null,null,3,null,null,null,null,null,null,3]
[4,null,null,null,null,null,null,4,null,null,null,null,null,null,4,null,null,null,null,null,4,null,null,null,null,null,null,4,null,null,null,null,null,null,4,null,null,null,null,null,4,null,null,null,null,null,null,4]
[5,null,null,null,null,null,null,5,null,null,null,null,null,null,5,null,null,null,null,null,5,null,null,null,null,null,null,5,null,null,null,null,null,null,5,null,null,null,null,null,5,null,null,null,null,null,null,5]
[6,null,null,null,null,null,null,6,null,null,null,null,null,null,6,null,null,null,null,null,6,null,null,null,null,null,null,6,null,null,null,null,null,null,6,null,null,null,null,null,6,null,null,null,null,null,null,6]
[7,null,null,null,null,null,null,7,null,null,null,null,null,null,7,null,null,null,null,null,7,null,null,null,null,null,null,7,null,null,null,null,null,null,7,null,null,null,null,null,7,null,null,null,null,null,null,7]
[8,null,null,null,null,null,null,8,null,null,null,null,null,null,8,null,null,null,null,null,8,null,null,null,null,null,null,8,null,null,null,null,null,null,8,null,null,null,null,null,8,null,null,null,null,null,null,8]
[9,null,null,null,null,null,null,9,null,null,null,null,null,null,9,null,null,null,null,null,9,null,null,null,null,null,null,9,null,null,null,null,null,null,9,null,null,null,null,null,9,null,null,null,null,null,null,9]
[10,null,null,null,null,null,null,10,null,null,null,null,null,null,10,null,null,null,null,null,10,null,null,null,null,null,null,10,null,null,null,null,null,null,10,null,null,null,null,null,10,null,null,null,null,null,null,10]
[11,null,null,null,null,null,null,11,null,null,null,null,null,null,11,null,null,null,null,null,11,null,null,null,null,null,null,11,null,null,null,null,null,null,11,null,null,null,null,null,11,null,null,null,null,null,null,11]
[12,null,null,null,null,null,null,12,null,null,null,null,null,null,12,null,null,null,null,null,12,null,null,null,null,null,null,12,null,null,null,null,null,null,12,null,null,null,null,null,12,null,null,null,null,null,null,12]
[13,null,null,null,null,null,null,13,null,null,null,null,null,null,13,null,null,null,null,null,13,null,null,null,null,null,null,13,null,null,null,null,null,null,13,null,null,null,null,null,13,null,null,null,null,null,null,13]
[14,null,null,null,null,null,null,14,null,null,null,null,null,null,14,null,null,null,null,null,14,null,null,null,null,null,null,14,null,null,null,null,null,null,14,null,null,null,null,null,14,null,null,null,null,null,null,14]
[15,null,null,null,null,null,null,15,null,null,null,null,null,null,15,null,null,null,null,null,15,null,null,null,null,null,null,15,null,null,null,null,null,null,15,null,null,null,null,null,15,null,null,null,null,null,null,15]
[16,null,null,null,null,null,null,16,null,null,null,null,null,null,16,null,null,null,null,null,16,null,null,null,null,null,null,16,null,null,null,null,null,null,16,null,null,null,null,null,16,null,null,null,null,null,null,16]
[17,null,null,null,null,null,null,17,null,null,null,null,null,null,17,null,null,null,null,null,17,null,null,null,null,null,null,17,null,null,null,null,null,null,17,null,null,null,null,null,17,null,null,null,null,null,null,17]
[18,null,null,null,null,null,null,18,null,null,null,null,null,null,18,null,null,null,null,null,18,null,null,null,null,null,null,18,null,null,null,null,null,null,18,null,null,null,null,null,18,null,null,null,null,null,null,18]
["Total","Shots",null,null,"Shots",null,null,"Total","Shots",null,null,"Shots",null,null,"Total","Shots",null,null,"Shots",null,"Total","Shots",null,null,"Shots",null,null,"Total","Shots",null,null,"Shots",null,null,"Total","Shots",null,null,"Shots",null,"Total","Shots",null,null,"Shots",null,null,"Total","Shots",null,null,"shots"]
[null,"Ends",null,null,"Ends",null,null,null,"Ends",null,null,"Ends",null,null,null,"Ends",null,null,"Ends",null,null,"Ends",null,null,"Ends",null,null,null,"Ends",null,null,"Ends",null,null,null,"Ends",null,null,"Ends",null,null,"Ends",null,null,"Ends",null,null,null,"Ends",null,null,"Ends"]
[]
[]
["1st Game ",null,null,null,null,null,null,"2nd Game ",null,null,null,null,null,null,"3rd Game ",null,null,null,null,null,"4th Game",null,null,null,null,null,null,"5th Game",null,null,null,null,null,null,"6th Game",null,null,null,null,null,"7th Game",null,null,null,null,null,null,"8th Game"]
["Team No",null,null,"Rink No",null,null,null,"Team No",null,null,"Rink No",null,null,null,"Team No",null,null,"Rink No",null,null,"Team No",null,null,"Rink No",null,null,null,"Team No",null,null,"Rink No",null,null,null,"Team No",null,null,"Rink No",null,null,"Team No",null,null,"Rink No",null,null,null,"Team No",null,null,"Rink No"]
[]
[{"$f":"DRAW!$B$46","v":40},null,null,{"$f":"DRAW!$E$46","v":18},null,null,null,{"$f":"DRAW!$B$46","v":40},null,null,{"$f":"DRAW!$G$46","v":2},null,null,null,{"$f":"DRAW!$B$46","v":40},null,null,{"$f":"DRAW!$I$46","v":14},null,null,{"$f":"DRAW!$B$46","v":40},null,null,{"$f":"DRAW!$K$46","v":19},null,null,null,{"$f":"DRAW!$B$46","v":40},null,null,{"$f":"DRAW!$M$46","v":3},null,null,null,{"$f":"DRAW!$B$46","v":40},null,null,{"$f":"DRAW!$O$46","v":10},null,null,{"$f":"DRAW!$B$46","v":40},null,null,{"$f":"DRAW!$Q$46","v":21},null,null,null,{"$f":"DRAW!$B$46","v":40},null,null,{"$f":"DRAW!$S$46","v":6}]
[null,"Team",{"$f":"DRAW!$B$46","v":40},"V","Team",{"$f":"DRAW!$D$46","v":33},null,null,"Team",{"$f":"DRAW!$B$46","v":40},"V","Team",{"$f":"DRAW!$F$46","v":35},null,null,"Team",{"$f":"DRAW!$B$46","v":40},"V","Team",{"$f":"DRAW!$H$46","v":39},null,"Team",{"$f":"DRAW!$B$46","v":40},"V","Team",{"$f":"DRAW!$J$46","v":30},null,null,"Team",{"$f":"DRAW!$B$46","v":40},"V","Team",{"$f":"DRAW!$L$46","v":31},null,null,"Team",{"$f":"DRAW!$B$46","v":40},"V","Team",{"$f":"DRAW!$N$46","v":29},null,"Team",{"$f":"DRAW!$B$46","v":40},"V","Team",{"$f":"DRAW!$P$46","v":32},null,null,"Team",{"$f":"DRAW!$B$46","v":40},"V","Team",{"$f":"DRAW!$R$46","v":38}]
["Ends","Shots","Total",null,"Shots","Total",null,"Ends","Shots","Total",null,"Shots","Total",null,"Ends","Shots","Total",null,"Shots","Total","Ends","Shots","Total",null,"Shots","Total",null,"Ends","Shots","Total",null,"Shots","Total",null,"Ends","Shots","Total",null,"Shots","Total","Ends","Shots","Total",null,"Shots","Total",null,"Ends","Shots","Total",null,"shots","Totar"]
[1,null,null,null,null,null,null,1,null,null,null,null,null,null,1,null,null,null,null,null,1,null,null,null,null,null,null,1,null,null,null,null,null,null,1,null,null,null,null,null,1,null,null,null,null,null,null,1]
[2,null,null,null,null,null,null,2,null,null,null,null,null,null,2,null,null,null,null,null,2,null,null,null,null,null,null,2,null,null,null,null,null,null,2,null,null,null,null,null,2,null,null,null,null,null,null,2]
[3,null,null,null,null,null,null,3,null,null,null,null,null,null,3,null,null,null,null,null,3,null,null,null,null,null,null,3,null,null,null,null,null,null,3,null,null,null,null,null,3,null,null,null,null,null,null,3]
[4,null,null,null,null,null,null,4,null,null,null,null,null,null,4,null,null,null,null,null,4,null,null,null,null,null,null,4,null,null,null,null,null,null,4,null,null,null,null,null,4,null,null,null,null,null,null,4]
[5,null,null,null,null,null,null,5,null,null,null,null,null,null,5,null,null,null,null,null,5,null,null,null,null,null,null,5,null,null,null,null,null,null,5,null,null,null,null,null,5,null,null,null,null,null,null,5]
[6,null,null,null,null,null,null,6,null,null,null,null,null,null,6,null,null,null,null,null,6,null,null,null,null,null,null,6,null,null,null,null,null,null,6,null,null,null,null,null,6,null,null,null,null,null,null,6]
[7,null,null,null,null,null,null,7,null,null,null,null,null,null,7,null,null,null,null,null,7,null,null,null,null,null,null,7,null,null,null,null,null,null,7,null,null,null,null,null,7,null,null,null,null,null,null,7]
[8,null,null,null,null,null,null,8,null,null,null,null,null,null,8,null,null,null,null,null,8,null,null,null,null,null,null,8,null,null,null,null,null,null,8,null,null,null,null,null,8,null,null,null,null,null,null,8]
[9,null,null,null,null,null,null,9,null,null,null,null,null,null,9,null,null,null,null,null,9,null,null,null,null,null,null,9,null,null,null,null,null,null,9,null,null,null,null,null,9,null,null,null,null,null,null,9]
[10,null,null,null,null,null,null,10,null,null,null,null,null,null,10,null,null,null,null,null,10,null,null,null,null,null,null,10,null,null,null,null,null,null,10,null,null,null,null,null,10,null,null,null,null,null,null,10]
[11,null,null,null,null,null,null,11,null,null,null,null,null,null,11,null,null,null,null,null,11,null,null,null,null,null,null,11,null,null,null,null,null,null,11,null,null,null,null,null,11,null,null,null,null,null,null,11]
[12,null,null,null,null,null,null,12,null,null,null,null,null,null,12,null,null,null,null,null,12,null,null,null,null,null,null,12,null,null,null,null,null,null,12,null,null,null,null,null,12,null,null,null,null,null,null,12]
[13,null,null,null,null,null,null,13,null,null,null,null,null,null,13,null,null,null,null,null,13,null,null,null,null,null,null,13,null,null,null,null,null,null,13,null,null,null,null,null,13,null,null,null,null,null,null,13]
[14,null,null,null,null,null,null,14,null,null,null,null,null,null,14,null,null,null,null,null,14,null,null,null,null,null,null,14,null,null,null,null,null,null,14,null,null,null,null,null,14,null,null,null,null,null,null,14]
[15,null,null,null,null,null,null,15,null,null,null,null,null,null,15,null,null,null,null,null,15,null,null,null,null,null,null,15,null,null,null,null,null,null,15,null,null,null,null,null,15,null,null,null,null,null,null,15]
[16,null,null,null,null,null,null,16,null,null,null,null,null,null,16,null,null,null,null,null,16,null,null,null,null,null,null,16,null,null,null,null,null,null,16,null,null,null,null,null,16,null,null,null,null,null,null,16]
[17,null,null,null,null,null,null,17,null,null,null,null,null,null,17,null,null,null,null,null,17,null,null,null,null,null,null,17,null,null,null,null,null,null,17,null,null,null,null,null,17,null,null,null,null,null,null,17]
[18,null,null,null,null,null,null,18,null,null,null,null,null,null,18,null,null,null,null,null,18,null,null,null,null,null,null,18,null,null,null,null,null,null,18,null,null,null,null,null,18,null,null,null,null,null,null,18]
["Total","Shots",null,null,"Shots",null,null,"Total","Shots",null,null,"Shots",null,null,"Total","Shots",null,null,"Shots",null,"Total","Shots",null,null,"Shots",null,null,"Total","Shots",null,null,"Shots",null,null,"Total","Shots",null,null,"Shots",null,"Total","Shots",null,null,"Shots",null,null,"Total","Shots",null,null,"shots"]
[null,"Ends",null,null,"Ends",null,null,null,"Ends",null,null,"Ends",null,null,null,"Ends",null,null,"Ends",null,null,"Ends",null,null,"Ends",null,null,null,"Ends",null,null,"Ends",null,null,null,"Ends",null,null,"Ends",null,null,"Ends",null,null,"Ends",null,null,null,"Ends",null,null,"Ends"]
["1st Game ",null,null,null,null,null,null,"2nd Game ",null,null,null,null,null,null,"3rd Game ",null,null,null,null,null,"4th Game",null,null,null,null,null,null,"5th Game",null,null,null,null,null,null,"6th Game",null,null,null,null,null,"7th Game",null,null,null,null,null,null,"8th Game"]
["Team No",null,null,"Rink No",null,null,null,"Team No",null,null,"Rink No",null,null,null,"Team No",null,null,"Rink No",null,null,"Team No",null,null,"Rink No",null,null,null,"Team No",null,null,"Rink No",null,null,null,"Team No",null,null,"Rink No",null,null,"Team No",null,null,"Rink No",null,null,null,"Team No",null,null,"Rink No"]
[]
[{"$f":"DRAW!$B$47","v":41},null,null,{"$f":"DRAW!$E$47","v":17},null,null,null,{"$f":"DRAW!$B$47","v":41},null,null,{"$f":"DRAW!$G$47","v":7},null,null,null,{"$f":"DRAW!$B$47","v":41},null,null,{"$f":"DRAW!$I$431","v":0},null,null,{"$f":"DRAW!$B$47","v":41},null,null,{"$f":"DRAW!$K$47","v":20},null,null,null,{"$f":"DRAW!$B$47","v":41},null,null,{"$f":"DRAW!$M$47","v":1},null,null,null,{"$f":"DRAW!$B$47","v":41},null,null,{"$f":"DRAW!$O$47","v":9},null,null,{"$f":"DRAW!$B$47","v":41},null,null,{"$f":"DRAW!$Q$47","v":19},null,null,null,{"$f":"DRAW!$B$47","v":41},null,null,{"$f":"DRAW!$S$47","v":3}]
[null,"Team",{"$f":"DRAW!$B$47","v":41},"V","Team",{"$f":"DRAW!$D$47","v":32},null,null,"Team",{"$f":"DRAW!$B$47","v":41},"V","Team",{"$f":"DRAW!$F$47","v":34},null,null,"Team",{"$f":"DRAW!$B$47","v":41},"V","Team",{"$f":"DRAW!$H$431","v":0},null,"Team",{"$f":"DRAW!$B$47","v":41},"V","Team",{"$f":"DRAW!$J$47","v":42},null,null,"Team",{"$f":"DRAW!$B$47","v":41},"V","Team",{"$f":"DRAW!$L$47","v":30},null,null,"Team",{"$f":"DRAW!$B$47","v":41},"V","Team",{"$f":"DRAW!$N$47","v":31},null,"Team",{"$f":"DRAW!$B$47","v":41},"V","Team",{"$f":"DRAW!$P$47","v":29},null,null,"Team",{"$f":"DRAW!$B$47","v":41},"V","Team",{"$f":"DRAW!$R$47","v":35}]
["Ends","Shots","Total",null,"Shots","Total",null,"Ends","Shots","Total",null,"Shots","Total",null,"Ends","Shots","Total",null,"Shots","Total","Ends","Shots","Total",null,"Shots","Total",null,"Ends","Shots","Total",null,"Shots","Total",null,"Ends","Shots","Total",null,"Shots","Total","Ends","Shots","Total",null,"Shots","Total",null,"Ends","Shots","Total",null,"shots","Totar"]
[1,null,null,null,null,null,null,1,null,null,null,null,null,null,1,null,null,null,null,null,1,null,null,null,null,null,null,1,null,null,null,null,null,null,1,null,null,null,null,null,1,null,null,null,null,null,null,1]
[2,null,null,null,null,null,null,2,null,null,null,null,null,null,2,null,null,null,null,null,2,null,null,null,null,null,null,2,null,null,null,null,null,null,2,null,null,null,null,null,2,null,null,null,null,null,null,2]
[3,null,null,null,null,null,null,3,null,null,null,null,null,null,3,null,null,null,null,null,3,null,null,null,null,null,null,3,null,null,null,null,null,null,3,null,null,null,null,null,3,null,null,null,null,null,null,3]
[4,null,null,null,null,null,null,4,null,null,null,null,null,null,4,null,null,null,null,null,4,null,null,null,null,null,null,4,null,null,null,null,null,null,4,null,null,null,null,null,4,null,null,null,null,null,null,4]
[5,null,null,null,null,null,null,5,null,null,null,null,null,null,5,null,null,null,null,null,5,null,null,null,null,null,null,5,null,null,null,null,null,null,5,null,null,null,null,null,5,null,null,null,null,null,null,5]
[6,null,null,null,null,null,null,6,null,null,null,null,null,null,6,null,null,null,null,null,6,null,null,null,null,null,null,6,null,null,null,null,null,null,6,null,null,null,null,null,6,null,null,null,null,null,null,6]
[7,null,null,null,null,null,null,7,null,null,null,null,null,null,7,null,null,null,null,null,7,null,null,null,null,null,null,7,null,null,null,null,null,null,7,null,null,null,null,null,7,null,null,null,null,null,null,7]
[8,null,null,null,null,null,null,8,null,null,null,null,null,null,8,null,null,null,null,null,8,null,null,null,null,null,null,8,null,null,null,null,null,null,8,null,null,null,null,null,8,null,null,null,null,null,null,8]
[9,null,null,null,null,null,null,9,null,null,null,null,null,null,9,null,null,null,null,null,9,null,null,null,null,null,null,9,null,null,null,null,null,null,9,null,null,null,null,null,9,null,null,null,null,null,null,9]
[10,null,null,null,null,null,null,10,null,null,null,null,null,null,10,null,null,null,null,null,10,null,null,null,null,null,null,10,null,null,null,null,null,null,10,null,null,null,null,null,10,null,null,null,null,null,null,10]
[11,null,null,null,null,null,null,11,null,null,null,null,null,null,11,null,null,null,null,null,11,null,null,null,null,null,null,11,null,null,null,null,null,null,11,null,null,null,null,null,11,null,null,null,null,null,null,11]
[12,null,null,null,null,null,null,12,null,null,null,null,null,null,12,null,null,null,null,null,12,null,null,null,null,null,null,12,null,null,null,null,null,null,12,null,null,null,null,null,12,null,null,null,null,null,null,12]
[13,null,null,null,null,null,null,13,null,null,null,null,null,null,13,null,null,null,null,null,13,null,null,null,null,null,null,13,null,null,null,null,null,null,13,null,null,null,null,null,13,null,null,null,null,null,null,13]
[14,null,null,null,null,null,null,14,null,null,null,null,null,null,14,null,null,null,null,null,14,null,null,null,null,null,null,14,null,null,null,null,null,null,14,null,null,null,null,null,14,null,null,null,null,null,null,14]
[15,null,null,null,null,null,null,15,null,null,null,null,null,null,15,null,null,null,null,null,15,null,null,null,null,null,null,15,null,null,null,null,null,null,15,null,null,null,null,null,15,null,null,null,null,null,null,15]
[16,null,null,null,null,null,null,16,null,null,null,null,null,null,16,null,null,null,null,null,16,null,null,null,null,null,null,16,null,null,null,null,null,null,16,null,null,null,null,null,16,null,null,null,null,null,null,16]
[17,null,null,null,null,null,null,17,null,null,null,null,null,null,17,null,null,null,null,null,17,null,null,null,null,null,null,17,null,null,null,null,null,null,17,null,null,null,null,null,17,null,null,null,null,null,null,17]
[18,null,null,null,null,null,null,18,null,null,null,null,null,null,18,null,null,null,null,null,18,null,null,null,null,null,null,18,null,null,null,null,null,null,18,null,null,null,null,null,18,null,null,null,null,null,null,18]
["Total","Shots",null,null,"Shots",null,null,"Total","Shots",null,null,"Shots",null,null,"Total","Shots",null,null,"Shots",null,"Total","Shots",null,null,"Shots",null,null,"Total","Shots",null,null,"Shots",null,null,"Total","Shots",null,null,"Shots",null,"Total","Shots",null,null,"Shots",null,null,"Total","Shots",null,null,"shots"]
[null,"Ends",null,null,"Ends",null,null,null,"Ends",null,null,"Ends",null,null,null,"Ends",null,null,"Ends",null,null,"Ends",null,null,"Ends",null,null,null,"Ends",null,null,"Ends",null,null,null,"Ends",null,null,"Ends",null,null,"Ends",null,null,"Ends",null,null,null,"Ends",null,null,"Ends"]
[]
[]
["1st Game ",null,null,null,null,null,null,"2nd Game ",null,null,null,null,null,null,"3rd Game ",null,null,null,null,null,"4th Game",null,null,null,null,null,null,"5th Game",null,null,null,null,null,null,"6th Game",null,null,null,null,null,"7th Game",null,null,null,null,null,null,"8th Game"]
["Team No",null,null,"Rink No",null,null,null,"Team No",null,null,"Rink No",null,null,null,"Team No",null,null,"Rink No",null,null,"Team No",null,null,"Rink No",null,null,null,"Team No",null,null,"Rink No",null,null,null,"Team No",null,null,"Rink No",null,null,"Team No",null,null,"Rink No",null,null,null,"Team No",null,null,"Rink No"]
[]
[{"$f":"DRAW!$B$48","v":42},null,null,{"$f":"DRAW!$E$48","v":16},null,null,null,{"$f":"DRAW!$B$48","v":42},null,null,{"$f":"DRAW!$G$48","v":1},null,null,null,{"$f":"DRAW!$B$48","v":42},null,null,{"$f":"DRAW!$I$48","v":10},null,null,{"$f":"DRAW!$B$48","v":42},null,null,{"$f":"DRAW!$K$48","v":20},null,null,null,{"$f":"DRAW!$B$48","v":42},null,null,{"$f":"DRAW!$M$48","v":7},null,null,null,{"$f":"DRAW!$B$48","v":42},null,null,{"$f":"DRAW!$O$48","v":11},null,null,{"$f":"DRAW!$B$48","v":42},null,null,{"$f":"DRAW!$Q$48","v":17},null,null,null,{"$f":"DRAW!$B$48","v":42},null,null,{"$f":"DRAW!$S$48","v":7}]
[null,"Team",{"$f":"DRAW!$B$48","v":42},"V","Team",{"$f":"DRAW!$D$48","v":31},null,null,"Team",{"$f":"DRAW!$B$48","v":42},"V","Team",{"$f":"DRAW!$F$48","v":33},null,null,"Team",{"$f":"DRAW!$B$48","v":42},"V","Team",{"$f":"DRAW!$H$48","v":37},null,"Team",{"$f":"DRAW!$B$48","v":42},"V","Team",{"$f":"DRAW!$J$48","v":41},null,null,"Team",{"$f":"DRAW!$B$48","v":42},"V","Team",{"$f":"DRAW!$L$48","v":29},null,null,"Team",{"$f":"DRAW!$B$48","v":42},"V","Team",{"$f":"DRAW!$N$48","v":30},null,"Team",{"$f":"DRAW!$B$48","v":42},"V","Team",{"$f":"DRAW!$P$48","v":39},null,null,"Team",{"$f":"DRAW!$B$48","v":42},"V","Team",{"$f":"DRAW!$R$48","v":34}]
["Ends","Shots","Total",null,"Shots","Total",null,"Ends","Shots","Total",null,"Shots","Total",null,"Ends","Shots","Total",null,"Shots","Total","Ends","Shots","Total",null,"Shots","Total",null,"Ends","Shots","Total",null,"Shots","Total",null,"Ends","Shots","Total",null,"Shots","Total","Ends","Shots","Total",null,"Shots","Total",null,"Ends","Shots","Total",null,"shots","Totar"]
[1,null,null,null,null,null,null,1,null,null,null,null,null,null,1,null,null,null,null,null,1,null,null,null,null,null,null,1,null,null,null,null,null,null,1,null,null,null,null,null,1,null,null,null,null,null,null,1]
[2,null,null,null,null,null,null,2,null,null,null,null,null,null,2,null,null,null,null,null,2,null,null,null,null,null,null,2,null,null,null,null,null,null,2,null,null,null,null,null,2,null,null,null,null,null,null,2]
[3,null,null,null,null,null,null,3,null,null,null,null,null,null,3,null,null,null,null,null,3,null,null,null,null,null,null,3,null,null,null,null,null,null,3,null,null,null,null,null,3,null,null,null,null,null,null,3]
[4,null,null,null,null,null,null,4,null,null,null,null,null,null,4,null,null,null,null,null,4,null,null,null,null,null,null,4,null,null,null,null,null,null,4,null,null,null,null,null,4,null,null,null,null,null,null,4]
[5,null,null,null,null,null,null,5,null,null,null,null,null,null,5,null,null,null,null,null,5,null,null,null,null,null,null,5,null,null,null,null,null,null,5,null,null,null,null,null,5,null,null,null,null,null,null,5]
[6,null,null,null,null,null,null,6,null,null,null,null,null,null,6,null,null,null,null,null,6,null,null,null,null,null,null,6,null,null,null,null,null,null,6,null,null,null,null,null,6,null,null,null,null,null,null,6]
[7,null,null,null,null,null,null,7,null,null,null,null,null,null,7,null,null,null,null,null,7,null,null,null,null,null,null,7,null,null,null,null,null,null,7,null,null,null,null,null,7,null,null,null,null,null,null,7]
[8,null,null,null,null,null,null,8,null,null,null,null,null,null,8,null,null,null,null,null,8,null,null,null,null,null,null,8,null,null,null,null,null,null,8,null,null,null,null,null,8,null,null,null,null,null,null,8]
[9,null,null,null,null,null,null,9,null,null,null,null,null,null,9,null,null,null,null,null,9,null,null,null,null,null,null,9,null,null,null,null,null,null,9,null,null,null,null,null,9,null,null,null,null,null,null,9]
[10,null,null,null,null,null,null,10,null,null,null,null,null,null,10,null,null,null,null,null,10,null,null,null,null,null,null,10,null,null,null,null,null,null,10,null,null,null,null,null,10,null,null,null,null,null,null,10]
[11,null,null,null,null,null,null,11,null,null,null,null,null,null,11,null,null,null,null,null,11,null,null,null,null,null,null,11,null,null,null,null,null,null,11,null,null,null,null,null,11,null,null,null,null,null,null,11]
[12,null,null,null,null,null,null,12,null,null,null,null,null,null,12,null,null,null,null,null,12,null,null,null,null,null,null,12,null,null,null,null,null,null,12,null,null,null,null,null,12,null,null,null,null,null,null,12]
[13,null,null,null,null,null,null,13,null,null,null,null,null,null,13,null,null,null,null,null,13,null,null,null,null,null,null,13,null,null,null,null,null,null,13,null,null,null,null,null,13,null,null,null,null,null,null,13]
[14,null,null,null,null,null,null,14,null,null,null,null,null,null,14,null,null,null,null,null,14,null,null,null,null,null,null,14,null,null,null,null,null,null,14,null,null,null,null,null,14,null,null,null,null,null,null,14]
[15,null,null,null,null,null,null,15,null,null,null,null,null,null,15,null,null,null,null,null,15,null,null,null,null,null,null,15,null,null,null,null,null,null,15,null,null,null,null,null,15,null,null,null,null,null,null,15]
[16,null,null,null,null,null,null,16,null,null,null,null,null,null,16,null,null,null,null,null,16,null,null,null,null,null,null,16,null,null,null,null,null,null,16,null,null,null,null,null,16,null,null,null,null,null,null,16]
[17,null,null,null,null,null,null,17,null,null,null,null,null,null,17,null,null,null,null,null,17,null,null,null,null,null,null,17,null,null,null,null,null,null,17,null,null,null,null,null,17,null,null,null,null,null,null,17]
[18,null,null,null,null,null,null,18,null,null,null,null,null,null,18,null,null,null,null,null,18,null,null,null,null,null,null,18,null,null,null,null,null,null,18,null,null,null,null,null,18,null,null,null,null,null,null,18]
["Total","Shots",null,null,"Shots",null,null,"Total","Shots",null,null,"Shots",null,null,"Total","Shots",null,null,"Shots",null,"Total","Shots",null,null,"Shots",null,null,"Total","Shots",null,null,"Shots",null,null,"Total","Shots",null,null,"Shots",null,"Total","Shots",null,null,"Shots",null,null,"Total","Shots",null,null,"shots"]
[null,"Ends",null,null,"Ends",null,null,null,"Ends",null,null,"Ends",null,null,null,"Ends",null,null,"Ends",null,null,"Ends",null,null,"Ends",null,null,null,"Ends",null,null,"Ends",null,null,null,"Ends",null,null,"Ends",null,null,"Ends",null,null,"Ends",null,null,null,"Ends",null,null,"Ends"]

{"sheet":"DRAW","index":4,"n_rows":48,"n_cols":19,"rows_kept":48,"cut":false,"hidden":false,"merged":[[0,1,0,18],[4,1,4,2],[1,1,1,18],[4,9,4,10],[4,11,4,12],[4,7,4,8],[4,17,4,18],[4,13,4,14],[4,15,4,16],[4,3,4,4],[4,5,4,6]]}
[null,"Tournament Name etc. Here."]
[null,"Other heading info"]
[]
[]
[null,"RINK DRAW",null,"Round 1",null,"Round 2",null,"Round 3",null,"Round 4",null,"Round 5",null,"Round 6",null,"Round 7",null,"Round 8"]
[null,"Team","Skips Name","vs","Rink","vs","Rink","vs","Rink","vs","Rink","vs","Rink","vs","Rink","vs","Rink","vs","Rink"]
[null,1,null,2,1,3,13,5,19,7,2,14,14,12,17,13,5,8,8]
[null,2,null,1,1,4,12,8,16,12,5,13,8,14,18,9,2,5,9]
[null,3,null,14,2,1,13,7,15,11,4,12,10,13,16,10,1,4,11]
[null,4,null,13,3,2,12,6,18,10,7,11,9,8,20,12,7,3,11]
[null,5,null,12,4,14,8,1,19,9,3,10,12,11,15,8,6,2,9]
[null,6,null,11,5,13,14,4,18,8,1,9,13,10,19,7,4,14,14]
[null,7,null,10,6,12,9,3,15,1,2,8,11,9,21,6,4,13,10]
[null,8,null,9,7,11,10,2,16,6,1,7,11,4,20,5,6,1,8]
[null,9,null,8,7,10,11,14,17,5,3,6,13,7,21,2,2,11,12]
[null,10,null,7,6,9,11,13,20,4,7,5,12,6,19,3,1,12,13]
[null,11,null,6,5,8,10,12,21,3,4,4,9,5,15,14,3,9,12]
[null,12,null,5,4,7,9,11,21,2,5,3,10,1,17,4,7,10,13]
[null,13,null,4,3,6,14,10,20,14,6,2,8,3,16,1,5,7,10]
[null,14,null,3,2,5,8,9,17,13,6,1,14,2,18,11,3,6,14]
[null,15,null,16,8,17,20,19,5,21,9,28,21,26,3,27,12,22,15]
[null,16,null,15,8,18,19,22,2,26,12,27,15,28,4,23,9,19,16]
[null,17,null,28,9,15,20,21,1,25,11,26,17,27,2,24,8,18,18]
[null,18,null,27,10,16,19,20,4,24,14,25,16,22,6,26,14,17,18]
[null,19,null,26,11,28,15,15,5,23,10,24,19,25,1,22,13,16,16]
[null,20,null,25,12,27,21,18,4,22,8,23,20,24,5,21,11,28,21]
[null,21,null,24,13,26,16,17,1,15,9,22,18,23,7,20,11,27,17]
[null,22,null,23,14,25,17,16,2,20,8,21,18,18,6,19,13,15,15]
[null,23,null,22,14,24,18,28,3,19,10,20,20,21,7,16,9,25,19]
[null,24,null,21,13,23,18,27,6,18,14,19,19,20,5,17,8,26,20]
[null,25,null,20,12,22,17,26,7,17,11,18,16,19,1,28,10,23,19]
[null,26,null,19,11,21,16,25,7,16,12,17,17,15,3,18,14,24,20]
[null,27,null,18,10,20,21,24,6,28,13,16,15,17,2,15,12,21,17]
[null,28,null,17,9,19,15,23,3,27,13,15,21,16,4,25,10,20,21]
[null,29,null,30,15,31,6,33,12,35,16,42,7,40,10,41,19,36,1]
[null,30,null,29,15,32,5,36,9,40,19,41,1,42,11,37,16,33,2]
[null,31,null,42,16,29,6,35,8,39,18,40,3,41,9,38,15,32,4]
[null,32,null,41,17,30,5,34,11,38,21,39,2,36,13,40,21,31,4]
[null,33,null,40,18,42,1,29,12,37,17,38,5,39,8,36,20,30,2]
[null,34,null,39,19,41,7,32,11,36,15,37,6,38,12,35,18,42,7]
[null,35,null,38,20,40,2,31,8,29,16,36,4,37,14,34,18,41,3]
[null,36,null,37,21,39,3,30,9,34,15,35,4,32,13,33,20,29,1]
[null,37,null,36,21,38,4,42,10,33,17,34,6,35,14,30,16,39,5]
[null,38,null,35,20,37,4,41,13,32,21,33,5,34,12,31,15,40,6]
[null,39,null,34,19,36,3,40,14,31,18,32,2,33,8,42,17,37,5]
[null,40,null,33,18,35,2,39,14,30,19,31,3,29,10,32,21,38,6]
[null,41,null,32,17,34,7,38,13,42,20,30,1,31,9,29,19,35,3]
[null,42,null,31,16,33,1,37,10,41,20,29,7,30,11,39,17,34,7]

{"sheet":"Half Sheet","index":5,"n_rows":28,"n_cols":14,"rows_kept":28,"cut":false,"hidden":false,"merged":[[3,17,3,19],[0,0,0,5],[0,7,0,12],[0,14,0,19],[1,0,2,2],[1,3,2,5],[1,7,2,9],[1,10,2,12],[1,14,2,16],[1,17,2,19],[24,0,25,0],[24,7,25,7],[24,14,25,14],[3,0,3,2],[3,3,3,5],[3,7,3,9],[3,10,3,12],[3,14,3,16]]}
["Half Sheet"]
[]
[]
[]
[]
[]
[]
[]
[]
[]
[]
[]
[]
[]
[]
[]
[]
[]
[]
[]
[]
[]
[]
[]
[]
[]
[null,null,null,null,null,null,".",null,null,null,null,null,null,"."]
[null,null,null,null,null,null,".",null,null,null,null,null,null,"."]

{"sheet":"Sheet3","index":6,"n_rows":579,"n_cols":18,"rows_kept":579,"cut":false,"hidden":true,"merged":[[562,2,562,3],[563,2,563,3],[563,4,563,5],[563,6,563,7],[2,16,2,17],[2,6,2,7],[2,8,2,9],[2,10,2,11],[2,12,2,13],[2,14,2,15],[563,16,563,17],[563,8,563,9],[563,10,563,11],[563,12,563,13],[563,14,563,15],[521,14,521,15],[521,10,521,11],[521,12,521,13],[543,12,543,13],[521,6,521,7],[543,10,543,11],[543,2,543,3],[543,4,543,5],[543,6,543,7],[542,2,542,3],[443,2,443,3],[443,4,443,5],[443,6,443,7],[543,8,543,9],[521,8,521,9],[520,2,520,3],[470,2,470,3],[497,2,497,3],[521,2,521,3],[521,4,521,5],[496,2,496,3],[471,2,471,3],[471,4,471,5],[471,6,471,7],[497,4,497,5],[497,6,497,7],[471,8,471,9],[443,16,443,17],[443,8,443,9],[443,10,443,11],[443,12,443,13],[443,14,443,15],[543,14,543,15],[543,16,543,17],[521,16,521,17],[471,16,471,17],[497,8,497,9],[497,10,497,11],[497,12,497,13],[497,14,497,15],[497,16,497,17],[471,10,471,11],[471,12,471,13],[471,14,471,15],[52,10,52,11],[272,6,272,7],[232,10,232,11],[272,10,272,11],[52,6,52,7],[52,8,52,9],[381,8,381,9],[380,2,380,3],[381,6,381,7],[271,2,271,3],[272,2,272,3],[272,4,272,5],[346,2,346,3],[146,10,146,11],[190,10,190,11],[231,2,231,3],[146,6,146,7],[100,6,100,7],[232,2,232,3],[232,4,232,5],[232,6,232,7],[347,2,347,3],[347,4,347,5],[347,6,347,7],[1,2,1,3],[2,2,2,3],[2,4,2,5],[190,4,190,5],[145,2,145,3],[51,2,51,3],[52,2,52,3],[52,4,52,5],[100,2,100,3],[100,4,100,5],[146,2,146,3],[146,4,146,5],[190,2,190,3],[189,2,189,3],[99,2,99,3],[442,2,442,3],[413,6,413,7],[413,2,413,3],[413,4,413,5],[412,2,412,3],[381,2,381,3],[381,4,381,5],[381,16,381,17],[381,14,381,15],[413,10,413,11],[413,8,413,9],[381,10,381,11],[52,16,52,17],[146,12,146,13],[190,14,190,15],[232,14,232,15],[100,14,100,15],[100,16,100,17],[146,14,146,15],[272,14,272,15],[413,14,413,15],[52,12,52,13],[52,14,52,15],[413,16,413,17],[146,16,146,17],[190,16,190,17],[190,12,190,13],[232,16,232,17],[272,16,272,17],[311,16,311,17],[311,12,311,13],[381,12,381,13],[413,12,413,13],[272,12,272,13],[232,12,232,13],[347,16,347,17],[310,2,310,3],[311,2,311,3],[311,4,311,5],[311,6,311,7],[311,8,311,9],[311,10,311,11],[347,8,347,9],[347,10,347,11],[347,14,347,15],[311,14,311,15],[100,8,100,9],[100,10,100,11],[190,6,190,7],[232,8,232,9],[146,8,146,9],[190,8,190,9],[100,12,100,13],[272,8,272,9],[347,12,347,13]]}
[]
[null,"n","46 STARTERS"]
[null,null,"Round 1",null,"round 2",null,"round 3",null,"round 4",null,"round 5",null,"round 6",null,"round 7",null,"round 8"]
[null,null,"Vs","Rink","Vs","Rink","Vs","Rink","Vs","Rink","Vs","Rink","Vs","Rink","Vs","Rink","Vs","Rink"]
[null,1,29,22,31,2,43,9,30,15,3,4,12,16,32,14,21,26]
[null,2,11,15,41,24,39,11,15,2,8,23,16,1,13,12,26,21]
[null,3,17,12,27,15,11,5,42,28,1,4,26,10,43,20,16,23]
[null,4,32,6,26,28,19,15,25,12,42,19,10,27,11,8,46,2]
[null,5,13,3,39,21,8,24,26,14,25,16,23,7,12,25,22,13]
[null,6,42,14,23,5,34,23,31,18,39,15,22,24,9,4,14,8]
[null,7,19,23,20,14,29,3,36,16,13,28,44,6,37,9,31,17]
[null,8,34,20,33,7,5,24,13,10,2,23,38,8,45,15,35,3]
[null,9,12,13,24,17,21,28,19,1,44,27,18,18,6,4,10,9]
[null,10,45,4,13,20,15,14,16,25,11,21,4,27,27,2,9,9]
[null,11,2,15,16,9,3,5,14,24,10,21,32,23,4,8,45,6]
[null,12,9,13,17,18,13,22,39,3,37,7,1,16,5,25,18,12]
[null,13,5,3,10,20,12,22,8,10,7,28,24,4,2,12,37,15]
[null,14,46,11,34,1,20,17,11,24,29,25,28,15,18,3,6,8]
[null,15,26,17,46,26,10,14,2,2,36,9,17,21,25,6,34,24]
[null,16,41,21,11,9,22,4,10,25,28,13,2,1,33,17,3,23]
[null,17,3,12,12,18,46,7,23,23,40,3,15,21,26,24,39,14]
[null,18,38,2,19,10,25,21,45,27,23,22,9,18,14,3,12,12]
[null,19,7,23,18,10,4,15,9,1,26,6,43,11,24,28,32,16]
[null,20,27,5,7,14,14,17,24,22,46,10,34,3,44,21,38,25]
[null,21,24,10,45,16,9,28,44,7,22,17,42,9,41,1,1,26]
[null,22,44,16,38,22,16,4,34,8,21,17,6,24,39,5,5,13]
[null,23,37,8,6,5,42,16,17,23,18,22,5,7,35,18,44,11]
[null,24,21,10,9,17,35,1,20,22,34,11,13,4,19,28,30,18]
[null,25,36,1,43,27,18,21,4,12,5,16,35,28,15,6,41,10]
[null,26,15,17,4,28,41,2,5,14,19,6,3,10,17,24,2,21]
[null,27,20,5,3,15,33,25,35,9,45,14,46,17,10,2,43,22]
[null,28,31,28,29,12,30,6,40,17,16,13,14,15,42,23,36,7]
[null,29,1,22,28,12,7,3,32,20,14,25,40,14,36,19,42,1]
[null,30,39,27,32,8,28,6,1,15,43,2,33,12,46,22,24,18]
[null,31,28,28,1,2,36,10,6,18,35,8,45,26,38,7,7,17]
[null,32,4,6,30,8,37,27,29,20,33,1,11,23,1,14,19,16]
[null,33,35,19,8,7,27,25,41,11,32,1,30,12,16,17,40,28]
[null,34,8,20,14,1,6,23,22,8,24,11,20,3,40,16,15,24]
[null,35,33,19,44,23,24,1,27,9,31,8,25,28,23,18,8,3]
[null,36,25,1,40,25,31,10,7,16,15,9,41,22,29,19,28,7]
[null,37,23,8,42,3,32,27,38,19,12,7,39,25,7,9,13,15]
[null,38,18,2,22,22,40,13,37,19,41,20,8,8,31,7,20,25]
[null,39,30,27,5,21,2,11,12,3,6,15,37,25,22,5,17,14]
[null,40,43,7,36,25,38,13,28,17,17,3,29,14,34,16,33,28]
[null,41,16,21,2,24,26,2,33,11,38,20,36,22,21,1,25,10]
[null,42,6,14,37,3,23,16,3,28,4,19,21,9,28,23,29,1]
[null,43,40,7,25,27,1,9,46,21,30,2,19,11,3,20,27,22]
[null,44,22,16,35,23,45,8,21,7,9,27,7,6,20,21,23,11]
[null,45,10,4,21,16,44,8,18,27,27,14,31,26,8,15,11,6]
[null,46,14,11,15,26,17,7,43,21,20,10,27,17,30,22,4,2]
[]
[null,null,"44 STARTERS"]
[null,null,"Round 1",null,"round 2",null,"round 3",null,"round 4",null,"round 5",null,"round 6",null,"round 7",null,"round 8"]
[null,null,"Vs","Rink","Vs","Rink","Vs","Rink","Vs","Rink","Vs","Rink","Vs","Rink","Vs","Rink","Vs","Rink"]
[null,1,10,16,9,14,16,23,32,3,33,15,23,24,11,10,6,7]
[null,2,31,22,34,9,4,1,8,20,19,3,29,8,37,19,36,25]
[null,3,18,10,6,15,26,26,7,4,13,8,10,7,19,23,24,16]
[null,4,11,14,8,24,2,1,44,18,9,11,19,15,20,2,29,26]
[null,5,36,2,42,8,18,16,12,28,8,25,14,3,28,14,20,18]
[null,6,14,27,3,15,10,5,13,9,31,10,44,21,9,26,1,7]
[null,7,23,9,19,16,15,22,3,4,16,20,31,1,32,24,22,8]
[null,8,16,8,4,24,27,7,2,20,5,25,12,11,25,15,13,3]
[null,9,30,25,1,14,31,2,35,15,4,11,32,17,6,26,38,1]
[null,10,1,16,44,22,6,5,36,14,17,9,3,7,29,17,27,24]
[null,11,4,14,16,17,42,24,19,7,38,27,22,18,1,10,32,2]
[null,12,26,3,15,12,33,21,5,28,28,23,8,11,16,6,34,15]
[null,13,33,26,30,1,38,19,6,9,3,8,43,23,17,16,8,3]
[null,14,6,27,26,21,28,12,16,5,20,22,5,3,38,9,15,17]
[null,15,44,6,12,12,7,22,43,16,25,4,16,28,34,13,14,17]
[null,16,8,8,11,17,1,23,14,5,7,20,15,28,12,6,19,9]
[null,17,25,19,41,6,35,14,37,22,10,9,18,26,13,16,28,5]
[null,18,3,10,24,7,5,16,20,23,34,1,17,26,21,21,25,12]
[null,19,22,13,7,16,25,28,11,7,2,3,4,15,3,23,16,9]
[null,20,39,1,21,20,29,13,18,23,14,22,37,14,4,2,5,18]
[null,21,38,7,20,20,37,11,41,24,44,2,25,22,18,21,42,10]
[null,22,19,13,35,4,32,15,29,25,41,28,11,18,40,3,7,8]
[null,23,7,9,36,28,34,3,31,17,40,21,1,24,30,11,41,4]
[null,24,43,24,18,7,44,10,39,21,35,5,34,27,36,8,3,16]
[null,25,17,19,43,3,19,28,27,11,15,4,21,22,8,15,18,12]
[null,26,12,3,14,21,3,26,38,8,36,18,33,13,39,7,31,23]
[null,27,37,21,28,25,8,7,25,11,42,19,40,12,43,1,10,24]
[null,28,29,15,27,25,14,12,42,1,12,23,38,20,5,14,17,5]
[null,29,28,15,37,2,20,13,22,25,30,7,2,8,10,17,4,26]
[null,30,9,25,13,1,39,9,34,19,29,7,35,16,23,11,40,22]
[null,31,2,22,40,13,9,2,23,17,6,10,7,1,41,18,26,23]
[null,32,35,23,33,10,22,15,1,3,43,14,9,17,7,24,11,2]
[null,33,13,26,32,10,12,21,40,2,1,15,26,13,44,28,37,6]
[null,34,40,28,2,9,23,3,30,19,18,1,24,27,15,13,12,15]
[null,35,32,23,22,4,17,14,9,15,24,5,30,16,42,22,44,11]
[null,36,5,2,23,28,40,17,10,14,26,18,42,4,24,8,2,25]
[null,37,27,21,29,2,21,11,17,22,39,26,20,14,2,19,33,6]
[null,38,21,7,39,23,13,19,26,8,11,27,28,20,14,9,9,1]
[null,39,20,1,38,23,30,9,24,21,37,26,41,10,26,7,43,20]
[null,40,34,28,31,13,36,17,33,2,23,21,27,12,22,3,30,22]
[null,41,42,17,17,6,43,8,21,24,22,28,39,10,31,18,23,4]
[null,42,41,17,5,8,11,24,28,1,27,19,36,4,35,22,21,10]
[null,43,24,24,25,3,41,8,15,16,32,14,13,23,27,1,39,20]
[null,44,15,6,10,22,24,10,4,18,21,2,6,21,33,28,35,11]
[]
[null,null,"42 STARTERS"]
[null,null,"Round 1",null,"round 2",null,"round 3",null,"round 4",null,"round 5",null,"round 6",null,"round 7",null,"round 8"]
[null,null,"Vs","Rink","Vs","Rink","Vs","Rink","Vs","Rink","Vs","Rink","Vs","Rink","Vs","Rink","Vs","Rink"]
[null,1,2,1,3,13,5,19,7,2,14,14,12,17,13,5,8,8]
[null,2,1,1,4,12,8,16,12,5,13,8,14,18,9,2,5,9]
[null,3,14,2,1,13,7,15,11,4,12,10,13,16,10,1,4,11]
[null,4,13,3,2,12,6,18,10,7,11,9,8,20,12,7,3,11]
[null,5,12,4,14,8,1,19,9,3,10,12,11,15,8,6,2,9]
[null,6,11,5,13,14,4,18,8,1,9,13,10,19,7,4,14,14]
[null,7,10,6,12,9,3,15,1,2,8,11,9,21,6,4,13,10]
[null,8,9,7,11,10,2,16,6,1,7,11,4,20,5,6,1,8]
[null,9,8,7,10,11,14,17,5,3,6,13,7,21,2,2,11,12]
[null,10,7,6,9,11,13,20,4,7,5,12,6,19,3,1,12,13]
[null,11,6,5,8,10,12,21,3,4,4,9,5,15,14,3,9,12]
[null,12,5,4,7,9,11,21,2,5,3,10,1,17,4,7,10,13]
[null,13,4,3,6,14,10,20,14,6,2,8,3,16,1,5,7,10]
[null,14,3,2,5,8,9,17,13,6,1,14,2,18,11,3,6,14]
[null,15,16,8,17,20,19,5,21,9,28,21,26,3,27,12,22,15]
[null,16,15,8,18,19,22,2,26,12,27,15,28,4,23,9,19,16]
[null,17,28,9,15,20,21,1,25,11,26,17,27,2,24,8,18,18]
[null,18,27,10,16,19,20,4,24,14,25,16,22,6,26,14,17,18]
[null,19,26,11,28,15,15,5,23,10,24,19,25,1,22,13,16,16]
[null,20,25,12,27,21,18,4,22,8,23,20,24,5,21,11,28,21]
[null,21,24,13,26,16,17,1,15,9,22,18,23,7,20,11,27,17]
[null,22,23,14,25,17,16,2,20,8,21,18,18,6,19,13,15,15]
[null,23,22,14,24,18,28,3,19,10,20,20,21,7,16,9,25,19]
[null,24,21,13,23,18,27,6,18,14,19,19,20,5,17,8,26,20]
[null,25,20,12,22,17,26,7,17,11,18,16,19,1,28,10,23,19]
[null,26,19,11,21,16,25,7,16,12,17,17,15,3,18,14,24,20]
[null,27,18,10,20,21,24,6,28,13,16,15,17,2,15,12,21,17]
[null,28,17,9,19,15,23,3,27,13,15,21,16,4,25,10,20,21]
[null,29,30,15,31,6,33,12,35,16,42,7,40,10,41,19,36,1]
[null,30,29,15,32,5,36,9,40,19,41,1,42,11,37,16,33,2]
[null,31,42,16,29,6,35,8,39,18,40,3,41,9,38,15,32,4]
[null,32,41,17,30,5,34,11,38,21,39,2,36,13,40,21,31,4]
[null,33,40,18,42,1,29,12,37,17,38,5,39,8,36,20,30,2]
[null,34,39,19,41,7,32,11,36,15,37,6,38,12,35,18,42,7]
[null,35,38,20,40,2,31,8,29,16,36,4,37,14,34,18,41,3]
[null,36,37,21,39,3,30,9,34,15,35,4,32,13,33,20,29,1]
[null,37,36,21,38,4,42,10,33,17,34,6,35,14,30,16,39,5]
[null,38,35,20,37,4,41,13,32,21,33,5,34,12,31,15,40,6]
[null,39,34,19,36,3,40,14,31,18,32,2,33,8,42,17,37,5]
[null,40,33,18,35,2,39,14,30,19,31,3,29,10,32,21,38,6]
[null,41,32,17,34,7,38,13,42,20,30,1,31,9,29,19,35,3]
[null,42,31,16,33,1,37,10,41,20,29,7,30,11,39,17,34,7]
[]
[null,null,"40 STARTERS"]
[null,null,"Round 1",null,"round 2",null,"round 3",null,"round 4",null,"round 5",null,"round 6",null,"round 7",null,"round 8"]
[null,null,"Vs","Rink","Vs","Rink","Vs","Rink","Vs","Rink","Vs","Rink","Vs","Rink","Vs","Rink","Vs","Rink"]
[null,1,2,1,3,13,5,19,7,2,14,14,12,17,13,5,8,8]
[null,2,1,1,4,12,8,16,12,5,13,8,14,18,9,2,5,9]
[null,3,14,2,1,13,7,15,11,4,12,10,13,16,10,1,4,11]
[null,4,13,3,2,12,6,18,10,7,11,9,8,20,12,7,3,11]
[null,5,12,4,14,8,1,19,9,3,10,12,11,15,8,6,2,9]
[null,6,11,5,13,14,4,18,8,1,9,13,10,19,7,4,14,14]
[null,7,10,6,12,9,3,15,1,2,8,11,9,21,6,4,13,10]
[null,8,9,7,11,10,2,16,6,1,7,11,4,20,5,6,1,8]
[null,9,8,7,10,11,14,17,5,3,6,13,7,21,2,2,11,12]
[null,10,7,6,9,11,13,20,4,7,5,12,6,19,3,1,12,13]
[null,11,6,5,8,10,12,21,3,4,4,9,5,15,14,3,9,12]
[null,12,5,4,7,9,11,21,2,5,3,10,1,17,4,7,10,13]
[null,13,4,3,6,14,10,20,14,6,2,8,3,16,1,5,7,10]
[null,14,3,2,5,8,9,17,13,6,1,14,2,18,11,3,6,14]
[null,15,16,8,17,20,19,5,21,9,28,21,26,3,27,12,22,15]
[null,16,15,8,18,19,22,2,26,12,27,15,28,4,23,9,19,16]
[null,17,28,9,15,20,21,1,25,11,26,17,27,2,24,8,18,18]
[null,18,27,10,16,19,20,4,24,14,25,16,22,6,26,14,17,18]
[null,19,26,11,28,15,15,5,23,10,24,19,25,1,22,13,16,16]
[null,20,25,12,27,21,18,4,22,8,23,20,24,5,21,11,28,21]
[null,21,24,13,26,16,17,1,15,9,22,18,23,7,20,11,27,17]
[null,22,23,14,25,17,16,2,20,8,21,18,18,6,19,13,15,15]
[null,23,22,14,24,18,28,3,19,10,20,20,21,7,16,9,25,19]
[null,24,21,13,23,18,27,6,18,14,19,19,20,5,17,8,26,20]
[null,25,20,12,22,17,26,7,17,11,18,16,19,1,28,10,23,19]
[null,26,19,11,21,16,25,7,16,12,17,17,15,3,18,14,24,20]
[null,27,18,10,20,21,24,6,28,13,16,15,17,2,15,12,21,17]
[null,28,17,9,19,15,23,3,27,13,15,21,16,4,25,10,20,21]
[null,29,30,15,31,6,32,11,33,16,35,5,34,8,39,18,36,3]
[null,30,29,15,32,5,34,9,36,17,40,3,38,10,37,21,31,4]
[null,31,40,16,29,6,33,10,35,15,39,2,37,9,36,19,30,4]
[null,32,39,17,30,5,29,11,34,18,38,1,36,12,35,16,40,2]
[null,33,38,18,40,1,31,10,29,16,37,4,35,13,34,20,39,7]
[null,34,37,19,39,4,30,9,32,18,36,6,29,8,33,20,38,5]
[null,35,36,20,38,3,40,12,31,15,29,5,33,13,32,16,37,6]
[null,36,35,20,37,2,39,8,30,17,34,6,32,12,31,19,29,3]
[null,37,34,19,36,2,38,13,40,20,33,4,31,9,30,21,35,6]
[null,38,33,18,35,3,37,13,39,19,32,1,30,10,40,17,34,5]
[null,39,32,17,34,4,36,8,38,19,31,2,40,11,29,18,33,7]
[null,40,31,16,33,1,35,12,37,20,30,3,39,11,38,17,32,2]
[]
[null,null,"38 STARTERS"]
[null,null,"Round 1",null,"round 2",null,"round 3",null,"round 4",null,"round 5",null,"round 6",null,"round 7",null,"round 8"]
[null,null,"Vs","Rink","Vs","Rink","Vs","Rink","Vs","Rink","Vs","Rink","Vs","Rink","Vs","Rink","Vs","Rink"]
[null,1,2,1,3,13,5,19,7,2,14,14,12,17,13,5,8,8]
[null,2,1,1,4,12,8,16,12,5,13,8,14,18,9,2,5,9]
[null,3,14,2,1,13,7,15,11,4,12,10,13,16,10,1,4,11]
[null,4,13,3,2,12,6,18,10,7,11,9,8,20,12,7,3,11]
[null,5,12,4,14,8,1,19,9,3,10,12,11,15,8,6,2,9]
[null,6,11,5,13,14,4,18,8,1,9,13,10,19,7,4,14,14]
[null,7,10,6,12,9,3,15,1,2,8,11,9,21,6,4,13,10]
[null,8,9,7,11,10,2,16,6,1,7,11,4,20,5,6,1,8]
[null,9,8,7,10,11,14,17,5,3,6,13,7,21,2,2,11,12]
[null,10,7,6,9,11,13,20,4,7,5,12,6,19,3,1,12,13]
[null,11,6,5,8,10,12,21,3,4,4,9,5,15,14,3,9,12]
[null,12,5,4,7,9,11,21,2,5,3,10,1,17,4,7,10,13]
[null,13,4,3,6,14,10,20,14,6,2,8,3,16,1,5,7,10]
[null,14,3,2,5,8,9,17,13,6,1,14,2,18,11,3,6,14]
[null,15,16,8,17,20,18,4,19,9,21,19,20,1,25,11,22,17]
[null,16,15,8,18,19,20,2,22,10,26,17,24,3,23,14,17,18]
[null,17,26,9,15,20,19,3,21,8,25,16,23,2,22,12,16,18]
[null,18,25,10,16,19,15,4,20,11,24,15,22,5,21,9,26,16]
[null,19,24,11,26,15,17,3,15,9,23,18,21,6,20,13,25,21]
[null,20,23,12,25,18,16,2,18,11,22,20,15,1,19,13,24,19]
[null,21,22,13,24,17,26,5,17,8,15,19,19,6,18,9,23,20]
[null,22,21,13,23,16,25,1,16,10,20,20,18,5,17,12,15,17]
[null,23,20,12,22,16,24,6,26,13,19,18,17,2,16,14,21,20]
[null,24,19,11,21,17,23,6,25,12,18,15,16,3,26,10,20,19]
[null,25,18,10,20,18,22,1,24,12,17,16,26,4,15,11,19,21]
[null,26,17,9,19,15,21,5,23,13,16,17,25,4,24,10,18,16]
[null,27,28,15,29,6,30,11,31,16,33,5,32,8,37,18,34,3]
[null,28,27,15,30,5,32,9,34,17,38,3,36,10,35,21,29,4]
[null,29,38,16,27,6,31,10,33,15,37,2,35,9,34,19,28,4]
[null,30,37,17,28,5,27,11,32,18,36,1,34,12,33,16,38,2]
[null,31,36,18,38,1,29,10,27,16,35,4,33,13,32,20,37,7]
[null,32,35,19,37,4,28,9,30,18,34,6,27,8,31,20,36,5]
[null,33,34,20,36,3,38,12,29,15,27,5,31,13,30,16,35,6]
[null,34,33,20,35,2,37,8,28,17,32,6,30,12,29,19,27,3]
[null,35,32,19,34,2,36,13,38,20,31,4,29,9,28,21,33,6]
[null,36,31,18,33,3,35,13,37,19,30,1,28,10,38,17,32,5]
[null,37,30,17,32,4,34,8,36,19,29,2,38,11,27,18,31,7]
[null,38,29,16,31,1,33,12,35,20,28,3,37,11,36,17,30,2]
[]
[null,null,"36 STARTERS"]
[null,null,"Round 1",null,"round 2",null,"round 3",null,"round 4",null,"round 5",null,"round 6",null,"round 7",null,"round 8"]
[null,null,"Vs","Rink","Vs","Rink","Vs","Rink","Vs","Rink","Vs","Rink","Vs","Rink","Vs","Rink","Vs","Rink"]
[null,1,2,1,3,13,4,18,5,2,7,12,6,15,11,4,8,10]
[null,2,1,1,4,12,6,16,8,3,12,10,10,17,9,7,3,11]
[null,3,12,2,1,13,5,17,7,1,11,9,9,16,8,5,2,11]
[null,4,11,3,2,12,1,18,6,4,10,8,8,19,7,2,12,9]
[null,5,10,4,12,8,3,17,1,2,9,11,7,20,6,6,11,14]
[null,6,9,5,11,11,2,16,4,4,8,13,1,15,5,6,10,12]
[null,7,8,6,10,10,12,19,3,1,1,12,5,20,4,2,9,13]
[null,8,7,6,9,9,11,15,2,3,6,13,4,19,3,5,1,10]
[null,9,6,5,8,9,10,20,12,6,5,11,3,16,2,7,7,13]
[null,10,5,4,7,10,9,20,11,5,4,8,2,17,12,3,6,12]
[null,11,4,3,6,11,8,15,10,5,3,9,12,18,1,4,5,14]
[null,12,3,2,5,8,7,19,9,6,2,10,11,18,10,3,4,9]
[null,13,14,8,15,20,16,4,17,9,19,19,18,1,23,11,20,17]
[null,14,13,8,16,19,18,2,20,10,24,17,22,3,21,14,15,18]
[null,15,24,9,13,20,17,3,19,8,23,16,21,2,20,12,14,18]
[null,16,23,10,14,19,13,4,18,11,22,15,20,5,19,9,24,16]
[null,17,22,11,24,15,15,3,13,9,21,18,19,6,18,13,23,21]
[null,18,21,12,23,18,14,2,16,11,20,20,13,1,17,13,22,19]
[null,19,20,13,22,17,24,5,15,8,13,19,17,6,16,9,21,20]
[null,20,19,13,21,16,23,1,14,10,18,20,16,5,15,12,13,17]
[null,21,18,12,20,16,22,6,24,13,17,18,15,2,14,14,19,20]
[null,22,17,11,19,17,21,6,23,12,16,15,14,3,24,10,18,19]
[null,23,16,10,18,18,20,1,22,12,15,16,24,4,13,11,17,21]
[null,24,15,9,17,15,19,5,21,13,14,17,23,4,22,10,16,16]
[null,25,26,15,27,6,28,11,29,16,31,5,30,8,35,18,32,3]
[null,26,25,15,28,5,30,9,32,17,36,3,34,10,33,21,27,4]
[null,27,36,16,25,6,29,10,31,15,35,2,33,9,32,19,26,4]
[null,28,35,17,26,5,25,11,30,18,34,1,32,12,31,16,36,2]
[null,29,34,18,36,1,27,10,25,16,33,4,31,13,30,20,35,7]
[null,30,33,19,35,4,26,9,28,18,32,6,25,8,29,20,34,5]
[null,31,32,20,34,3,36,12,27,15,25,5,29,13,28,16,33,6]
[null,32,31,20,33,2,35,8,26,17,30,6,28,12,27,19,25,3]
[null,33,30,19,32,2,34,13,36,20,29,4,27,9,26,21,31,6]
[null,34,29,18,31,3,33,13,35,19,28,1,26,10,36,17,30,5]
[null,35,28,17,30,4,32,8,34,19,27,2,36,11,25,18,29,7]
[null,36,27,16,29,1,31,12,33,20,26,3,35,11,34,17,28,2]
[]
[null,null,"34 STARTERS"]
[null,null,"Round 1",null,"round 2",null,"round 3",null,"round 4",null,"round 5",null,"round 6",null,"round 7",null,"round 8"]
[null,null,"Vs","Rink","Vs","Rink","Vs","Rink","Vs","Rink","Vs","Rink","Vs","Rink","Vs","Rink","Vs","Rink"]
[null,1,2,1,3,13,4,18,5,2,7,12,6,15,11,4,8,10]
[null,2,1,1,4,12,6,16,8,3,12,10,10,17,9,7,3,11]
[null,3,12,2,1,13,5,17,7,1,11,9,9,16,8,5,2,11]
[null,4,11,3,2,12,1,18,6,4,10,8,8,19,7,2,12,9]
[null,5,10,4,12,8,3,17,1,2,9,11,7,20,6,6,11,14]
[null,6,9,5,11,11,2,16,4,4,8,13,1,15,5,6,10,12]
[null,7,8,6,10,10,12,19,3,1,1,12,5,20,4,2,9,13]
[null,8,7,6,9,9,11,15,2,3,6,13,4,19,3,5,1,10]
[null,9,6,5,8,9,10,20,12,6,5,11,3,16,2,7,7,13]
[null,10,5,4,7,10,9,20,11,5,4,8,2,17,12,3,6,12]
[null,11,4,3,6,11,8,15,10,5,3,9,12,18,1,4,5,14]
[null,12,3,2,5,8,7,19,9,6,2,10,11,18,10,3,4,9]
[null,13,14,8,15,20,16,4,17,9,19,19,18,1,23,11,20,17]
[null,14,13,8,16,19,18,2,20,10,24,17,22,3,21,14,15,18]
[null,15,24,9,13,20,17,3,19,8,23,16,21,2,20,12,14,18]
[null,16,23,10,14,19,13,4,18,11,22,15,20,5,19,9,24,16]
[null,17,22,11,24,15,15,3,13,9,21,18,19,6,18,13,23,21]
[null,18,21,12,23,18,14,2,16,11,20,20,13,1,17,13,22,19]
[null,19,20,13,22,17,24,5,15,8,13,19,17,6,16,9,21,20]
[null,20,19,13,21,16,23,1,14,10,18,20,16,5,15,12,13,17]
[null,21,18,12,20,16,22,6,24,13,17,18,15,2,14,14,19,20]
[null,22,17,11,19,17,21,6,23,12,16,15,14,3,24,10,18,19]
[null,23,16,10,18,18,20,1,22,12,15,16,24,4,13,11,17,21]
[null,24,15,9,17,15,19,5,21,13,14,17,23,4,22,10,16,16]
[null,25,26,16,27,6,28,11,29,17,30,2,31,9,32,18,33,4]
[null,26,25,16,28,5,30,9,32,20,34,6,27,13,29,19,31,5]
[null,27,34,17,25,6,29,12,31,18,33,5,26,13,28,20,30,6]
[null,28,33,18,26,5,25,11,30,16,32,4,34,12,27,20,29,2]
[null,29,32,19,34,4,27,12,25,17,31,3,33,11,26,19,28,2]
[null,30,31,20,33,3,26,9,28,16,25,2,32,10,34,17,27,6]
[null,31,30,20,32,2,34,10,27,18,29,3,25,9,33,16,26,5]
[null,32,29,19,31,2,33,13,26,20,28,4,30,10,25,18,34,3]
[null,33,28,18,30,3,32,13,34,19,27,5,29,11,31,16,25,4]
[null,34,27,17,29,4,31,10,33,19,26,6,28,12,30,17,32,3]
[]
[]
[null,null,"32 STARTERS"]
[null,null,"Round 1",null,"round 2",null,"round 3",null,"round 4",null,"round 5",null,"round 6",null,"round 7",null,"round 8"]
[null,null,"Vs","Rink","Vs","Rink","Vs","Rink","Vs","Rink","Vs","Rink","Vs","Rink","Vs","Rink","Vs","Rink"]
[null,1,2,1,3,13,4,18,5,2,7,12,6,15,11,4,8,10]
[null,2,1,1,4,12,6,16,8,3,12,10,10,17,9,7,3,11]
[null,3,12,2,1,13,5,17,7,1,11,9,9,16,8,5,2,11]
[null,4,11,3,2,12,1,18,6,4,10,8,8,19,7,2,12,9]
[null,5,10,4,12,8,3,17,1,2,9,11,7,20,6,6,11,14]
[null,6,9,5,11,11,2,16,4,4,8,13,1,15,5,6,10,12]
[null,7,8,6,10,10,12,19,3,1,1,12,5,20,4,2,9,13]
[null,8,7,6,9,9,11,15,2,3,6,13,4,19,3,5,1,10]
[null,9,6,5,8,9,10,20,12,6,5,11,3,16,2,7,7,13]
[null,10,5,4,7,10,9,20,11,5,4,8,2,17,12,3,6,12]
[null,11,4,3,6,11,8,15,10,5,3,9,12,18,1,4,5,14]
[null,12,3,2,5,8,7,19,9,6,2,10,11,18,10,3,4,9]
[null,13,14,9,15,20,16,4,17,10,18,16,19,2,20,11,21,18]
[null,14,13,9,16,19,18,2,20,13,22,20,15,6,17,12,19,19]
[null,15,22,10,13,20,17,5,19,11,21,19,14,6,16,13,18,20]
[null,16,21,11,14,19,13,4,18,9,20,18,22,5,15,13,17,16]
[null,17,20,12,22,18,15,5,13,10,19,17,21,4,14,12,16,16]
[null,18,19,13,21,17,14,2,16,9,13,16,20,3,22,10,15,20]
[null,19,18,13,20,16,22,3,15,11,17,17,13,2,21,9,14,19]
[null,20,17,12,19,16,21,6,14,13,16,18,18,3,13,11,22,17]
[null,21,16,11,18,17,20,6,22,12,15,19,17,4,19,9,13,18]
[null,22,15,10,17,18,19,3,21,12,14,20,16,5,18,10,20,17]
[null,23,24,16,25,6,26,11,27,17,28,2,29,9,30,18,31,4]
[null,24,23,16,26,5,28,9,30,20,32,6,25,13,27,19,29,5]
[null,25,32,17,23,6,27,12,29,18,31,5,24,13,26,20,28,6]
[null,26,31,18,24,5,23,11,28,16,30,4,32,12,25,20,27,2]
[null,27,30,19,32,4,25,12,23,17,29,3,31,11,24,19,26,2]
[null,28,29,20,31,3,24,9,26,16,23,2,30,10,32,17,25,6]
[null,29,28,20,30,2,32,10,25,18,27,3,23,9,31,16,24,5]
[null,30,27,19,29,2,31,13,24,20,26,4,28,10,23,18,32,3]
[null,31,26,18,28,3,30,13,32,19,25,5,27,11,29,16,23,4]
[null,32,25,17,27,4,29,10,31,19,24,6,26,12,28,17,30,3]
[]
[null,null,"30 STARTERS"]
[null,null,"Round 1",null,"round 2",null,"round 3",null,"round 4",null,"round 5",null,"round 6",null,"round 7",null,"round 8"]
[null,null,"Vs","Rink","Vs","Rink","Vs","Rink","Vs","Rink","Vs","Rink","Vs","Rink","Vs","Rink","Vs","Rink"]
[null,1,2,2,3,13,4,18,5,3,6,9,7,16,8,4,9,11]
[null,2,1,2,4,12,6,16,8,6,10,13,3,20,5,5,7,12]
[null,3,10,3,1,13,5,19,7,4,9,12,2,20,4,6,6,13]
[null,4,9,4,2,12,1,18,6,2,8,11,10,19,3,6,5,9]
[null,5,8,5,10,11,3,19,1,3,7,10,9,18,2,5,4,9]
[null,6,7,6,9,10,2,16,4,2,1,9,8,17,10,3,3,13]
[null,7,6,6,8,9,10,17,3,4,5,10,1,16,9,2,2,12]
[null,8,5,5,7,9,9,20,2,6,4,11,6,17,1,4,10,10]
[null,9,4,4,6,10,8,20,10,5,3,12,5,18,7,2,1,11]
[null,10,3,3,5,11,7,17,9,5,2,13,4,19,6,3,8,10]
[null,11,12,9,13,20,14,4,15,10,16,16,17,2,18,11,19,18]
[null,12,11,9,14,19,16,2,18,13,20,20,13,6,15,12,17,19]
[null,13,20,10,11,20,15,5,17,11,19,19,12,6,14,13,16,20]
[null,14,19,11,12,19,11,4,16,9,18,18,20,5,13,13,15,16]
[null,15,18,12,20,18,13,5,11,10,17,17,19,4,12,12,14,16]
[null,16,17,13,19,17,12,2,14,9,11,16,18,3,20,10,13,20]
[null,17,16,13,18,16,20,3,13,11,15,17,11,2,19,9,12,19]
[null,18,15,12,17,16,19,6,12,13,14,18,16,3,11,11,20,17]
[null,19,14,11,16,17,18,6,20,12,13,19,15,4,17,9,11,18]
[null,20,13,10,15,18,17,3,19,12,12,20,14,5,16,10,18,17]
[null,21,22,16,23,6,24,11,25,17,26,2,27,9,28,18,29,4]
[null,22,21,16,24,5,26,9,28,20,30,6,23,13,25,19,27,5]
[null,23,30,17,21,6,25,12,27,18,29,5,22,13,24,20,26,6]
[null,24,29,18,22,5,21,11,26,16,28,4,30,12,23,20,25,2]
[null,25,28,19,30,4,23,12,21,17,27,3,29,11,22,19,24,2]
[null,26,27,20,29,3,22,9,24,16,21,2,28,10,30,17,23,6]
[null,27,26,20,28,2,30,10,23,18,25,3,21,9,29,16,22,5]
[null,28,25,19,27,2,29,13,22,20,24,4,26,10,21,18,30,3]
[null,29,24,18,26,3,28,13,30,19,23,5,25,11,27,16,21,4]
[null,30,23,17,25,4,27,10,29,19,22,6,24,12,26,17,28,3]
[]
[null,null,"28 STARTERS"]
[null,null,"Round 1",null,"round 2",null,"round 3",null,"round 4",null,"round 5",null,"round 6",null,"round 7",null,"round 8"]
[null,null,"Vs","Rink","Vs","Rink","Vs","Rink","Vs","Rink","Vs","Rink","Vs","Rink","Vs","Rink","Vs","Rink"]
[null,1,2,1,3,13,5,6,6,8,11,3,7,9,14,5,8,12]
[null,2,1,1,4,12,8,3,10,10,7,5,12,13,13,1,14,9]
[null,3,14,2,1,13,7,1,9,11,6,4,11,12,12,3,13,14]
[null,4,13,3,2,12,6,2,8,9,5,7,10,8,11,4,12,10]
[null,5,12,4,14,8,1,6,7,13,4,7,9,14,10,2,11,11]
[null,6,11,5,13,14,4,2,1,8,3,4,8,11,9,6,10,13]
[null,7,10,6,12,11,3,1,5,13,2,5,1,9,8,7,9,8]
[null,8,9,7,11,10,2,3,4,9,14,6,6,11,7,7,1,12]
[null,9,8,7,10,9,14,4,3,11,13,2,5,14,6,6,7,8]
[null,10,7,6,9,9,13,5,2,10,12,1,4,8,5,2,6,13]
[null,11,6,5,8,10,12,7,14,14,1,3,3,12,4,4,5,11]
[null,12,5,4,7,11,11,7,13,12,10,1,2,13,3,3,4,10]
[null,13,4,3,6,14,10,5,12,12,9,2,14,10,2,1,3,14]
[null,14,3,2,5,8,9,4,11,14,8,6,13,10,1,5,2,9]
[null,15,16,8,17,6,19,13,20,1,25,10,21,2,28,12,22,5]
[null,16,15,8,18,5,22,10,24,3,21,12,26,6,27,8,28,2]
[null,17,28,9,15,6,21,8,23,4,20,11,25,5,26,10,27,7]
[null,18,27,10,16,5,20,9,22,2,19,14,24,1,25,11,26,3]
[null,19,26,11,28,1,15,13,21,6,18,14,23,7,24,9,25,4]
[null,20,25,12,27,7,18,9,15,1,17,11,22,4,23,13,24,6]
[null,21,24,13,26,4,17,8,19,6,16,12,15,2,22,14,23,1]
[null,22,23,14,25,3,16,10,18,2,28,13,20,4,21,14,15,5]
[null,23,22,14,24,2,28,11,17,4,27,9,19,7,20,13,21,1]
[null,24,21,13,23,2,27,12,16,3,26,8,18,1,19,9,20,6]
[null,25,20,12,22,3,26,14,28,7,15,10,17,5,18,11,19,4]
[null,26,19,11,21,4,25,14,27,5,24,8,16,6,17,10,18,3]
[null,27,18,10,20,7,24,12,26,5,23,9,28,3,16,8,17,7]
[null,28,17,9,19,1,23,11,25,7,22,13,27,3,15,12,16,2]
[]
[null,null,"26  STARTERS"]
[null,null,"Round 1",null,"round 2",null,"round 3",null,"round 4",null,"round 5",null,"round 6",null,"round 7",null,"round 8"]
[null,null,"Vs","Rink","Vs","Rink","Vs","Rink","Vs","Rink","Vs","Rink","Vs","Rink","Vs","Rink","Vs","Rink"]
[null,1,2,1,3,13,5,6,6,8,11,3,7,9,14,5,8,12]
[null,2,1,1,4,12,8,3,10,10,7,5,12,13,13,1,14,9]
[null,3,14,2,1,13,7,1,9,11,6,4,11,12,12,3,13,14]
[null,4,13,3,2,12,6,2,8,9,5,7,10,8,11,4,12,10]
[null,5,12,4,14,8,1,6,7,13,4,7,9,14,10,2,11,11]
[null,6,11,5,13,14,4,2,1,8,3,4,8,11,9,6,10,13]
[null,7,10,6,12,11,3,1,5,13,2,5,1,9,8,7,9,8]
[null,8,9,7,11,10,2,3,4,9,14,6,6,11,7,7,1,12]
[null,9,8,7,10,9,14,4,3,11,13,2,5,14,6,6,7,8]
[null,10,7,6,9,9,13,5,2,10,12,1,4,8,5,2,6,13]
[null,11,6,5,8,10,12,7,14,14,1,3,3,12,4,4,5,11]
[null,12,5,4,7,11,11,7,13,12,10,1,2,13,3,3,4,10]
[null,13,4,3,6,14,10,5,12,12,9,2,14,10,2,1,3,14]
[null,14,3,2,5,8,9,4,11,14,8,6,13,10,1,5,2,9]
[null,15,16,9,17,6,18,8,21,5,24,10,23,3,20,8,19,2]
[null,16,15,9,18,5,20,10,26,2,21,8,19,6,24,12,22,5]
[null,17,26,8,15,6,19,9,25,3,20,13,18,4,23,10,21,6]
[null,18,25,10,16,5,15,8,24,6,19,12,17,4,22,11,20,3]
[null,19,24,11,26,4,17,9,23,1,18,12,16,6,21,14,15,2]
[null,20,23,12,25,1,16,10,22,4,17,13,26,5,15,8,18,3]
[null,21,22,13,24,3,26,11,15,5,16,8,25,2,19,14,17,6]
[null,22,21,13,23,2,25,12,20,4,26,9,24,1,18,11,16,5]
[null,23,20,12,22,2,24,13,19,1,25,11,15,3,17,10,26,7]
[null,24,19,11,21,3,23,13,18,6,15,10,22,1,16,12,25,4]
[null,25,18,10,20,1,22,12,17,3,23,11,21,2,26,13,24,4]
[null,26,17,8,19,4,21,11,16,2,22,9,20,5,25,13,23,7]
[]
[null,null,"24 STARTERS"]
[null,null,"Round 1",null,"round 2",null,"round 3",null,"round 4",null,"round 5",null,"round 6",null,"round 7",null,"round 8"]
[null,null,"Vs","Rink","Vs","Rink","Vs","Rink","Vs","Rink","Vs","Rink","Vs","Rink","Vs","Rink","Vs","Rink"]
[null,1,2,2,3,13,4,1,7,12,10,3,9,10,6,1,5,9]
[null,2,1,2,4,12,6,3,12,9,7,1,5,13,10,5,8,12]
[null,3,12,1,1,13,5,2,11,10,6,6,4,11,9,3,7,13]
[null,4,11,3,2,12,1,1,10,13,5,5,3,11,8,4,6,10]
[null,5,10,4,12,11,3,2,9,8,4,5,2,13,7,7,1,9]
[null,6,9,5,11,8,2,3,8,11,3,6,12,12,1,1,4,10]
[null,7,8,6,10,10,12,4,1,12,2,1,11,9,5,7,3,13]
[null,8,7,6,9,9,11,5,6,11,12,2,10,8,4,4,2,12]
[null,9,6,5,8,9,10,6,5,8,11,4,1,10,3,3,12,14]
[null,10,5,4,7,10,9,6,4,13,1,3,8,8,2,5,11,11]
[null,11,4,3,6,8,8,5,3,10,9,4,7,9,12,6,10,11]
[null,12,3,1,5,11,7,4,2,9,8,2,6,12,11,6,9,14]
[null,13,14,9,15,6,16,8,19,5,22,10,21,3,18,8,17,2]
[null,14,13,9,16,5,18,10,24,2,19,8,17,6,22,12,20,5]
[null,15,24,8,13,6,17,9,23,3,18,13,16,4,21,10,19,6]
[null,16,23,10,14,5,13,8,22,6,17,12,15,4,20,11,18,3]
[null,17,22,11,24,4,15,9,21,1,16,12,14,6,19,14,13,2]
[null,18,21,12,23,1,14,10,20,4,15,13,24,5,13,8,16,3]
[null,19,20,13,22,3,24,11,13,5,14,8,23,2,17,14,15,6]
[null,20,19,13,21,2,23,12,18,4,24,9,22,1,16,11,14,5]
[null,21,18,12,20,2,22,13,17,1,23,11,13,3,15,10,24,7]
[null,22,17,11,19,3,21,13,16,6,13,10,20,1,14,12,23,4]
[null,23,16,10,18,1,20,12,15,3,21,11,19,2,24,13,22,4]
[null,24,15,8,17,4,19,11,14,2,20,9,18,5,23,13,21,7]
[]
[null,null,"22 STARTERS"]
[null,null,"Round 1",null,"round 2",null,"round 3",null,"round 4",null,"round 5",null,"round 6",null,"round 7",null,"round 8"]
[null,null,"Vs","Rink","Vs","Rink","Vs","Rink","Vs","Rink","Vs","Rink","Vs","Rink","Vs","Rink","Vs","Rink"]
[null,1,2,2,3,13,4,1,7,12,10,3,9,10,6,1,5,9]
[null,2,1,2,4,12,6,3,12,9,7,1,5,13,10,5,8,12]
[null,3,12,1,1,13,5,2,11,10,6,6,4,11,9,3,7,13]
[null,4,11,3,2,12,1,1,10,13,5,5,3,11,8,4,6,10]
[null,5,10,4,12,11,3,2,9,8,4,5,2,13,7,7,1,9]
[null,6,9,5,11,8,2,3,8,11,3,6,12,12,1,1,4,10]
[null,7,8,6,10,10,12,4,1,12,2,1,11,9,5,7,3,13]
[null,8,7,6,9,9,11,5,6,11,12,2,10,8,4,4,2,12]
[null,9,6,5,8,9,10,6,5,8,11,4,1,10,3,3,12,14]
[null,10,5,4,7,10,9,6,4,13,1,3,8,8,2,5,11,11]
[null,11,4,3,6,8,8,5,3,10,9,4,7,9,12,6,10,11]
[null,12,3,1,5,11,7,4,2,9,8,2,6,12,11,6,9,14]
[null,13,14,9,15,6,16,10,17,2,18,11,22,3,20,12,21,4]
[null,14,13,9,16,5,18,12,20,6,22,13,21,2,17,10,19,5]
[null,15,22,10,13,6,17,11,19,3,21,12,20,4,16,13,18,2]
[null,16,21,11,14,5,13,10,18,4,20,9,19,6,15,13,17,3]
[null,17,20,12,22,4,15,11,13,2,19,10,18,5,14,10,16,3]
[null,18,19,13,21,3,14,12,16,4,13,11,17,5,22,9,15,2]
[null,19,18,13,20,2,22,9,15,3,17,10,16,6,21,11,14,5]
[null,20,17,12,19,2,21,13,14,6,16,9,15,4,13,12,22,6]
[null,21,16,11,18,3,20,13,22,5,15,12,14,2,19,11,13,4]
[null,22,15,10,17,4,19,9,21,5,14,13,13,3,18,9,20,6]
[]
[null,null,"20 STARTERS"]
[null,null,"Round 1",null,"round 2",null,"round 3",null,"round 4",null,"round 5",null,"round 6",null,"round 7",null,"round 8"]
[null,null,"Vs","Rink","Vs","Rink","Vs","Rink","Vs","Rink","Vs","Rink","Vs","Rink","Vs","Rink","Vs","Rink"]
[null,1,2,2,3,13,4,3,5,9,6,4,10,10,8,5,9,11]
[null,2,1,2,4,12,6,5,8,13,10,6,9,9,5,3,7,12]
[null,3,10,3,1,13,5,4,7,10,9,5,8,11,4,6,6,9]
[null,4,9,4,2,12,1,3,6,11,8,2,7,13,3,6,5,10]
[null,5,8,5,10,11,3,4,1,9,7,3,6,12,2,3,4,10]
[null,6,7,6,9,10,2,5,4,11,1,4,5,12,10,2,3,9]
[null,7,6,6,8,9,10,2,3,10,5,3,4,13,9,4,2,12]
[null,8,5,5,7,9,9,6,2,13,4,2,3,11,1,5,10,13]
[null,9,4,4,6,10,8,6,10,12,3,5,2,9,7,4,1,11]
[null,10,3,3,5,11,7,2,9,12,2,6,1,10,6,2,8,13]
[null,11,12,9,13,6,14,10,15,2,16,11,20,3,18,12,19,4]
[null,12,11,9,14,5,16,12,18,6,20,13,19,2,15,10,17,5]
[null,13,20,10,11,6,15,11,17,3,19,12,18,4,14,13,16,2]
[null,14,19,11,12,5,11,10,16,4,18,9,17,6,13,13,15,3]
[null,15,18,12,20,4,13,11,11,2,17,10,16,5,12,10,14,3]
[null,16,17,13,19,3,12,12,14,4,11,11,15,5,20,9,13,2]
[null,17,16,13,18,2,20,9,13,3,15,10,14,6,19,11,12,5]
[null,18,15,12,17,2,19,13,12,6,14,9,13,4,11,12,20,6]
[null,19,14,11,16,3,18,13,20,5,13,12,12,2,17,11,11,4]
[null,20,13,10,15,4,17,9,19,5,12,13,11,3,16,9,18,6]
[]
[null,null,"18 STARTERS"]
[null,null,"Round 1",null,"round 2",null,"round 3",null,"round 4",null,"round 5",null,"round 6",null,"round 7",null,"round 8"]
[null,null,"Vs","Rink","Vs","Rink","Vs","Rink","Vs","Rink","Vs","Rink","Vs","Rink","Vs","Rink","Vs","Rink"]
[null,1,2,2,3,13,4,3,5,9,6,4,10,10,8,5,11,2]
[null,2,1,2,4,12,6,5,8,13,10,6,9,9,5,3,7,12]
[null,3,10,3,1,13,5,4,7,10,9,5,8,11,4,6,12,4]
[null,4,9,4,2,12,1,3,6,11,8,2,7,13,3,6,13,10]
[null,5,8,5,10,11,3,4,1,9,7,3,6,12,2,3,14,6]
[null,6,7,6,9,10,2,5,4,11,1,4,5,12,10,2,15,9]
[null,7,6,6,8,9,10,2,3,10,5,3,4,13,9,4,2,12]
[null,8,5,5,7,9,9,6,2,13,4,2,3,11,1,5,16,3]
[null,9,4,4,6,10,8,6,10,12,3,5,2,9,7,4,17,11]
[null,10,3,3,5,11,7,2,9,12,2,6,1,10,6,2,18,13]
[null,11,12,9,13,5,14,10,15,2,16,13,17,3,18,11,1,2]
[null,12,11,9,14,4,16,11,18,5,13,12,15,6,17,12,3,4]
[null,13,18,10,11,5,15,9,17,4,12,12,14,2,16,9,4,10]
[null,14,17,11,12,4,11,10,16,3,18,9,13,2,15,13,5,6]
[null,15,16,12,18,3,13,9,11,2,17,10,12,6,14,13,6,9]
[null,16,15,12,17,2,12,11,14,3,11,13,18,4,13,9,8,3]
[null,17,14,11,16,2,18,12,13,4,15,10,11,3,12,12,9,11]
[null,18,13,10,15,3,17,12,12,5,14,9,16,4,11,11,10,13]
[]
[null,null,"16 STARTERS"]
[null,null,"Round 1",null,"round 2",null,"round 3",null,"round 4",null,"round 5",null,"round 6",null,"round 7",null,"round 8"]
[null,null,"Vs","Rink","Vs","Rink","Vs","Rink","Vs","Rink","Vs","Rink","Vs","Rink","Vs","Rink","Vs","Rink"]
[null,1,2,2,3,12,4,3,5,9,6,6,7,10,8,4,9,12]
[null,2,1,2,4,11,6,4,8,12,3,5,5,13,7,6,10,5]
[null,3,8,3,1,12,5,2,7,11,2,5,4,9,6,2,11,13]
[null,4,7,4,2,11,1,3,6,10,8,2,3,9,5,5,12,9]
[null,5,6,5,8,10,3,2,1,9,7,3,2,13,4,5,13,10]
[null,6,5,5,7,9,2,4,4,10,1,6,8,11,3,2,14,3]
[null,7,4,4,6,9,8,5,3,11,5,3,1,10,2,6,15,2]
[null,8,3,3,5,10,7,5,2,12,4,2,6,11,1,4,16,6]
[null,9,10,9,11,5,12,10,13,2,14,13,15,3,16,11,1,12]
[null,10,9,9,12,4,14,11,16,5,11,12,13,6,15,12,2,5]
[null,11,16,10,9,5,13,9,15,4,10,12,12,2,14,9,3,13]
[null,12,15,11,10,4,9,10,14,3,16,9,11,2,13,13,4,9]
[null,13,14,12,16,3,11,9,9,2,15,10,10,6,12,13,5,10]
[null,14,13,12,15,2,10,11,12,3,9,13,16,4,11,9,6,3]
[null,15,12,11,14,2,16,12,11,4,13,10,9,3,10,12,7,2]
[null,16,11,10,13,3,15,12,10,5,12,9,14,4,9,11,8,6]
[]
[null,null,"14 STARTERS"]
[null,null,"Round 1",null,"round 2",null,"round 3",null,"round 4",null,"round 5",null,"round 6",null,"round 7",null,"round 8"]
[null,null,"Vs","Rink","Vs","Rink","Vs","Rink","Vs","Rink","Vs","Rink","Vs","Rink","Vs","Rink","Vs","Rink"]
[null,1,2,2,8,1,3,6,4,5,13,6,14,3,6,7,5,2]
[null,2,1,2,14,6,4,7,6,4,11,3,13,1,10,2,8,5]
[null,3,14,1,13,4,1,6,5,3,10,1,12,2,9,5,7,6]
[null,4,13,3,12,5,2,7,1,5,9,4,11,7,8,6,6,3]
[null,5,12,4,11,7,14,2,3,3,8,7,10,5,7,1,1,2]
[null,6,11,5,10,3,13,1,2,4,7,2,9,6,1,7,4,3]
[null,7,10,7,9,2,12,3,14,7,6,2,8,4,5,1,3,6]
[null,8,9,6,1,1,11,4,13,2,5,7,7,4,4,6,2,5]
[null,9,8,6,7,2,10,5,12,1,4,4,6,6,3,5,14,7]
[null,10,7,7,6,3,9,5,11,6,3,1,5,5,2,2,13,4]
[null,11,6,5,5,7,8,4,10,6,2,3,4,7,14,4,12,1]
[null,12,5,4,4,5,7,3,9,1,14,5,3,2,13,3,11,1]
[null,13,4,3,3,4,6,1,8,2,1,6,2,1,12,3,10,4]
[null,14,3,1,2,6,5,2,7,7,12,5,1,3,11,4,9,7]